Workbook

Sheet Instructions
B2: Welcome to Nick's Nifty Key Leads Program!
B8: PIANO MAKE MODEL | E8: Steinway 220908 | L8: Date | M8: 2014-10-17
B9: CUSTOMER | E9: Joe Schlabotnik
B10: Key Input Naturals = | E10: Key 1 > | F10: 250 | H10: Key 88 > | I10: 250 | J10: mm
B11: Sharps = | E11: Key 2 > | F11: 200 | H11: Key 86 > | I11: 200 | J11: mm
B12: Lead Remain Limit = | E12: 0.2 | F12: inches
B13: Lead # 1 Mass = | E13: 14.2 | F13: grams | H13: Main Entry Grid Looks Like This
B14: Lead # 2 Mass = | E14: 14.2 | F14: grams
B15: Lead # 3 Mass = | E15: 11.2 | F15: grams
B16: Lead widths = | E16: 0.44 | F16: inches
B17: Drill Limit Depth | E17: =E16-E12 -> 0.24 | F17: inches | G17: =E16-E17 -> 0.2
B18: Diameter Test Weights | E18: 16 | F18: mm
I21: 250 | J21: mm
I24: 242 | J24: mm
H25: 175 | I25: mm
G26: 145 | H26: mm
F27: 125 | G27: mm
D61: Gram Test | F61: Total Lead to remove gms | G61: Location mm | H61: Drill Depth Inches | I61: Leave this much lead | J61: Location mm | K61: Depth | L61: Leave this much lead | M61: Location mm | N61: Depth | O61: Leave this much lead
C62: Key # | D62: DW | E62: DDW | F62: Ld. Out | G62: Lead 1 | H62: Drill Out | I62: LEAVE | J62: Lead 2 | K62: Drill Out | L62: LEAVE | M62: Lead 3 | N62: Drill Out | O62: LEAVE
B63: A | C63: 1 | D63: 48 | E63: 53 | F63: 10.34 | G63: 110 | H63: 0.24 | I63: 0.2 | J63: 92 | K63: 0.096 | L63: 0.344 | M63: 68 | N63: =IF(ISERROR(AC64), "",AC64) -> 0 | O63: 0.44
O64: =IF(ISERROR((H63+K63+N63)/$E$10*$E$7), 0,(H63+K63+N63)/$E$10*$E$7) -> 0
C71: Key # | D71: DW | E71: DDW | F71: Ld. Out | G71: Lead 1 | H71: Drill Out | I71: LEAVE | J71: Lead 2 | K71: Drill Out | L71: LEAVE | M71: Lead 3 | N71: Drill Out | O71: LEAVE
B72: A | C72: 1 | D72: 48 | E72: 50 | F72: 4.14 | G72: 110 | H72: 0.1281690141 | I72: 0.3118309859 | J72: 92 | K72: =IF(ISERROR(AC67), 0,AC67) -> 0 | L72: =IF(ISERROR(ROUND($E$10-K72,3)), 0,ROUND($E$10-K72,3)) -> 0 | M72: 68 | N72: =IF(ISERROR(AC70), "",AC70) -> 0 | O72: 0.44
F78: Ld. Out | G78: Lead 1 | J78: Lead 2 | K78: Drill Out | M78: Lead 3
B79: A# | C79: 2 | D79: 43 | E79: 52 | F79: 15.96 | G79: 108 | H79: 0.24 | I79: =$E$16-H79 -> 0.2 | J79: 89 | K79: 0.066 | L79: =ROUND($E$16-K79,3) -> 0.374 | M79: 70 | N79: =IF(ISERROR(AC80), "",AC80) -> 0 | O79: =IF(ISERROR($E$16-N79), "",$E$16-N79) -> 0.44
C80: =IF(AND(C79<E79, F79>$E$7),"Ignore Dril Out Lead 1; rather pop out Lead 1 and LEAVE lead # 2 to "&L79&" inches.","") -> Ignore Dril Out Lead 1; rather pop out Lead 1 and LEAVE lead # 2 to 0.374 inches.
G91: Lead 1 | H91: Drill Out | I91: LEAVE
B92: C | C92: 4 | D92: 50 | E92: 52 | F92: 4.31 | G92: 112 | H92: 0.134 | I92: 0.306 | J92: 82 | K92: =AC92 -> 0 | L92: 0.44 | M92: 75 | O92: 0.44
G104: Lead 1 | H104: Drill Out | I104: LEAVE
B105: C# | C105: 5 | D105: 55 | E105: 52 | G105: 108 | J105: 89 | K105: =AC105 -> 0 | M105: 70
C106: =IF(AND(C105<E105, F105>$E$7),"Pop out lead # 1 and LEAVE lead # 2 to "&L105&" inches.","") -> 

Sheet Friction & BW
P6: READ
F14: Note | G14: DW | H14: UW | I14: Friction | J14: Balance Weight (BW) | K14: BW + F | L14: BW = 38 | M14: DW | N14: BW41-35 | O14: DW | P14: Note
B15: =G15 -> 47 | C15: 47 | D15: =J15 -> 35 | E15: 1 | F15: A 1 | G15: 47 | H15: 23 | I15: =(G15-H15)/2 -> 12 | J15: =(G15+H15)/2 -> 35 | K15: =J15+I15 -> 47 | L15: ='BW38'!G15 -> 38 | M15: =L15+I15 -> 50 | N15: ='BW41'!G15 -> 41 | O15: =N15+I15 -> 53 | P15: A 1
F16: A# 2 | G16: 50 | H16: 20 | I16: =(G16-H16)/2 -> 15 | J16: =(G16+H16)/2 -> 35 | K16: =J16+I16 -> 50 | L16: ='BW38'!G16 -> 38 | M16: 53 | N16: ='BW41'!G16 -> 41 | O16: 56 | P16: A# 2
F17: B 3 | G17: 50 | H17: 18 | I17: =(G17-H17)/2 -> 16 | J17: =(G17+H17)/2 -> 34 | K17: =J17+I17 -> 50 | L17: ='BW38'!G17 -> 38 | M17: 54 | N17: ='BW41'!G17 -> 41 | O17: 57 | P17: B 3
B18: =G16 -> 50 | C18: 50 | D18: =J16 -> 35 | E18: 2 | F18: C 4 | G18: 50 | H18: 17 | I18: 16.5 | J18: 33.5 | K18: 50 | L18: ='BW38'!G18 -> 38 | M18: 54.5 | N18: ='BW41'!G18 -> 41 | O18: 57.5 | P18: C 4
F19: C# 5 | G19: 50 | H19: 25 | I19: 12.5 | J19: 37.5 | K19: 50 | L19: ='BW38'!G19 -> 38 | M19: 50.5 | N19: ='BW41'!G19 -> 41 | O19: 53.5 | P19: C# 5
F20: D 6 | G20: 50 | H20: 18 | I20: 16 | J20: 34 | K20: 50 | L20: ='BW38'!G20 -> 38 | M20: 54 | N20: ='BW41'!G20 -> 41 | O20: 57 | P20: D 6
B21: =G17 -> 50 | C21: 50 | D21: =J17 -> 34 | E21: 3 | F21: D# 7 | G21: 50 | H21: 17 | I21: 16.5 | J21: 33.5 | K21: 50 | L21: ='BW38'!G21 -> 38 | M21: 54.5 | N21: ='BW41'!G21 -> 41 | O21: 57.5 | P21: D# 7
F22: E 8 | G22: 53 | H22: 25 | I22: 14 | J22: 39 | K22: 53 | L22: ='BW38'!G22 -> 38 | M22: 52 | N22: ='BW41'!G22 -> 41 | O22: 55 | P22: E 8
F23: F 9 | G23: 52 | H23: 27 | I23: 12.5 | J23: 39.5 | K23: 52 | L23: ='BW38'!G23 -> 38 | M23: 50.5 | N23: ='BW41'!G23 -> 41 | O23: 53.5 | P23: F 9
B24: =G18 -> 50 | C24: 50 | D24: =J18 -> 33.5 | E24: 4 | F24: F# 10 | G24: 52 | H24: 25 | I24: 13.5 | J24: 38.5 | K24: 52 | L24: ='BW38'!G24 -> 38 | M24: 51.5 | N24: ='BW41'!G24 -> 41 | O24: 54.5 | P24: F# 10
F25: G 11 | G25: 53 | H25: 16 | I25: 18.5 | J25: 34.5 | K25: 53 | L25: ='BW38'!G25 -> 38 | M25: 56.5 | N25: ='BW41'!G25 -> 41 | O25: 59.5 | P25: G 11
F26: G# 12 | G26: 53 | H26: 26 | I26: 13.5 | J26: 39.5 | K26: 53 | L26: ='BW38'!G26 -> 38 | M26: 51.5 | N26: ='BW41'!G26 -> 41 | O26: 54.5 | P26: G# 12
B27: =G19 -> 50 | C27: 50 | D27: =J19 -> 37.5 | E27: 5 | F27: A 13 | G27: 52 | H27: 26 | I27: 13 | J27: 39 | K27: 52 | L27: ='BW38'!G27 -> 38 | M27: 51 | N27: ='BW41'!G27 -> 40 | O27: 53 | P27: A 13
F28: A# 14 | G28: 49 | H28: 25 | I28: 12 | J28: 37 | K28: 49 | L28: ='BW38'!G28 -> 38 | M28: 50 | N28: ='BW41'!G28 -> 40 | O28: 52 | P28: A# 14
F29: B 15 | G29: 52 | H29: 27 | I29: 12.5 | J29: 39.5 | K29: 52 | L29: ='BW38'!G29 -> 38 | M29: 50.5 | N29: ='BW41'!G29 -> 40 | O29: 52.5 | P29: B 15
B30: =G20 -> 50 | C30: 50 | D30: =J20 -> 34 | E30: 6 | F30: C 16 | G30: 48 | H30: 27 | I30: 10.5 | J30: 37.5 | K30: 48 | L30: ='BW38'!G30 -> 38 | M30: 48.5 | N30: ='BW41'!G30 -> 40 | O30: 50.5 | P30: C 16
F31: C# 17 | G31: 45 | H31: 23 | I31: 11 | J31: 34 | K31: 45 | L31: ='BW38'!G31 -> 38 | M31: 49 | N31: ='BW41'!G31 -> 40 | O31: 51 | P31: C# 17
F32: D 18 | G32: 53 | H32: 26 | I32: 13.5 | J32: 39.5 | K32: 53 | L32: ='BW38'!G32 -> 38 | M32: 51.5 | N32: ='BW41'!G32 -> 40 | O32: 53.5 | P32: D 18
B33: =G21 -> 50 | C33: 50 | D33: =J21 -> 33.5 | E33: 7 | F33: D# 19 | G33: 53 | H33: 26 | I33: 13.5 | J33: 39.5 | K33: 53 | L33: ='BW38'!G33 -> 38 | M33: 51.5 | N33: ='BW41'!G33 -> 40 | O33: 53.5 | P33: D# 19
F34: E 20 | G34: 52 | H34: 29 | I34: 11.5 | J34: 40.5 | K34: =J34+I34 -> 52 | L34: ='BW38'!G34 -> 38 | M34: 49.5 | N34: ='BW41'!G34 -> 40 | O34: 51.5 | P34: E 20
F35: F 21 | G35: 50 | H35: 22 | I35: 14 | J35: 36 | K35: 50 | L35: ='BW38'!G35 -> 38 | M35: 52 | N35: ='BW41'!G35 -> 40 | O35: 54 | P35: F 21
B36: =G22 -> 53 | C36: 53 | D36: =J22 -> 39 | E36: 8 | F36: F# 22 | G36: 52 | H36: 26 | I36: 13 | J36: 39 | K36: 52 | L36: ='BW38'!G36 -> 38 | M36: 51 | N36: ='BW41'!G36 -> 40 | O36: 53 | P36: F# 22
F37: G 23 | G37: 48 | H37: 24 | I37: 12 | J37: 36 | K37: 48 | L37: ='BW38'!G37 -> 38 | M37: 50 | N37: ='BW41'!G37 -> 40 | O37: 52 | P37: G 23
F38: G# 24 | G38: 52 | H38: 26 | I38: 13 | J38: 39 | K38: 52 | L38: ='BW38'!G38 -> 38 | M38: 51 | N38: ='BW41'!G38 -> 40 | O38: 53 | P38: G# 24
B39: =G23 -> 52 | C39: 52 | D39: =J23 -> 39.5 | E39: 9 | F39: A 25 | G39: 56 | H39: 26 | I39: 15 | J39: 41 | K39: 56 | L39: ='BW38'!G39 -> 38 | M39: 53 | N39: ='BW41'!G39 -> 39 | O39: 54 | P39: A 25
F40: A# 26 | G40: 56 | H40: 26 | I40: 15 | J40: 41 | K40: 56 | L40: ='BW38'!G40 -> 38 | M40: 53 | N40: ='BW41'!G40 -> 39 | O40: 54 | P40: A# 26
F41: B 27 | G41: 56 | H41: 26 | I41: 15 | J41: 41 | K41: 56 | L41: ='BW38'!G41 -> 38 | M41: 53 | N41: ='BW41'!G41 -> 39 | O41: 54 | P41: B 27
B42: =G24 -> 52 | C42: 52 | D42: =J24 -> 38.5 | E42: 10 | F42: C 28 | G42: 56 | H42: 26 | I42: 15 | J42: 41 | K42: 56 | L42: ='BW38'!G42 -> 38 | M42: 53 | N42: ='BW41'!G42 -> 39 | O42: 54 | P42: C 28
F43: C# 29 | G43: 60 | H43: 26 | I43: 17 | J43: 43 | K43: 60 | L43: ='BW38'!G43 -> 38 | M43: 55 | N43: ='BW41'!G43 -> 39 | O43: 56 | P43: C# 29
F44: D 30 | G44: 54 | H44: 26 | I44: 14 | J44: 40 | K44: 54 | L44: ='BW38'!G44 -> 38 | M44: 52 | N44: ='BW41'!G44 -> 39 | O44: 53 | P44: D 30
B45: =G25 -> 53 | C45: 53 | D45: =J25 -> 34.5 | E45: 11 | F45: D# 31 | G45: 65 | H45: 25 | I45: 20 | J45: 45 | K45: 65 | L45: ='BW38'!G45 -> 38 | M45: 58 | N45: ='BW41'!G45 -> 39 | O45: 59 | P45: D# 31
F46: E 32 | G46: 52 | H46: 26 | I46: 13 | J46: 39 | K46: 52 | L46: ='BW38'!G46 -> 38 | M46: 51 | N46: ='BW41'!G46 -> 39 | O46: 52 | P46: E 32
F47: F 33 | G47: 58 | H47: 32 | I47: 13 | J47: 45 | K47: 58 | L47: ='BW38'!G47 -> 38 | M47: =L47+I47 -> 51 | N47: ='BW41'!G47 -> 39 | O47: =N47+I47 -> 52 | P47: F 33
B48: =G26 -> 53 | C48: 53 | D48: =J26 -> 39.5 | E48: 12 | F48: F# 34 | G48: 62 | H48: 30 | I48: 16 | J48: 46 | K48: 62 | L48: ='BW38'!G48 -> 38 | M48: 54 | N48: ='BW41'!G48 -> 39 | O48: 55 | P48: F# 34
F49: G 35 | G49: 54 | H49: 26 | I49: 14 | J49: 40 | K49: 54 | L49: ='BW38'!G49 -> 38 | M49: 52 | N49: ='BW41'!G49 -> 39 | O49: 53 | P49: G 35
F50: G# 36 | G50: 52 | H50: 24 | I50: 14 | J50: 38 | K50: 52 | L50: ='BW38'!G50 -> 38 | M50: 52 | N50: ='BW41'!G50 -> 39 | O50: 53 | P50: G# 36
F51: A 37 | G51: 50 | H51: 28 | I51: 11 | J51: 39 | K51: 50 | L51: ='BW38'!G51 -> 38 | M51: 49 | N51: ='BW41'!G51 -> 38 | O51: 49 | P51: A 37
F52: A# 38 | G52: 52 | H52: 28 | I52: 12 | J52: 40 | K52: 52 | L52: ='BW38'!G52 -> 38 | M52: 50 | N52: ='BW41'!G52 -> 38 | O52: 50 | P52: A# 38
B53: =G27 -> 52 | C53: 52 | D53: =J27 -> 39 | E53: 13 | F53: B 39 | G53: 55 | H53: 28 | I53: 13.5 | J53: 41.5 | K53: 55 | L53: ='BW38'!G53 -> 38 | M53: 51.5 | N53: ='BW41'!G53 -> 38 | O53: 51.5 | P53: B 39
F54: C 40 | G54: 52 | H54: 28 | I54: 12 | J54: 40 | K54: 52 | L54: ='BW38'!G54 -> 38 | M54: 50 | N54: ='BW41'!G54 -> 38 | O54: 50 | P54: C 40
F55: C# 41 | G55: 50 | H55: 28 | I55: 11 | J55: 39 | K55: 50 | L55: ='BW38'!G55 -> 38 | M55: 49 | N55: ='BW41'!G55 -> 38 | O55: 49 | P55: C# 41
B56: =G28 -> 49 | C56: 49 | D56: =J28 -> 37 | E56: 14 | F56: D 42 | G56: 50 | H56: 24 | I56: 13 | J56: 37 | K56: 50 | L56: ='BW38'!G56 -> 38 | M56: 51 | N56: ='BW41'!G56 -> 38 | O56: 51 | P56: D 42
F57: D# 43 | G57: 54 | H57: 30 | I57: 12 | J57: 42 | K57: 54 | L57: ='BW38'!G57 -> 38 | M57: 50 | N57: ='BW41'!G57 -> 38 | O57: 50 | P57: D# 43
F58: E 44 | G58: 52 | H58: 28 | I58: 12 | J58: 40 | K58: 52 | L58: ='BW38'!G58 -> 38 | M58: 50 | N58: ='BW41'!G58 -> 38 | O58: 50 | P58: E 44
B59: =G29 -> 52 | C59: 52 | D59: =J29 -> 39.5 | E59: 15 | F59: F 45 | G59: 50 | H59: 26 | I59: 12 | J59: 38 | K59: 50 | L59: ='BW38'!G59 -> 38 | M59: 50 | N59: ='BW41'!G59 -> 38 | O59: 50 | P59: F 45
F60: F# 46 | G60: 52 | H60: 28 | I60: 12 | J60: 40 | K60: 52 | L60: ='BW38'!G60 -> 38 | M60: 50 | N60: ='BW41'!G60 -> 38 | O60: 50 | P60: F# 46
F61: G 47 | G61: 50 | H61: 28 | I61: 11 | J61: 39 | K61: 50 | L61: ='BW38'!G61 -> 38 | M61: 49 | N61: ='BW41'!G61 -> 38 | O61: 49 | P61: G 47
B62: =G30 -> 48 | C62: 48 | D62: =J30 -> 37.5 | E62: 16 | F62: G# 48 | G62: 57 | H62: 28 | I62: 14.5 | J62: 42.5 | K62: 57 | L62: ='BW38'!G62 -> 38 | M62: 52.5 | N62: ='BW41'!G62 -> 38 | O62: 52.5 | P62: G# 48
F63: A 49 | G63: 50 | H63: 20 | I63: 15 | J63: 35 | K63: 50 | L63: ='BW38'!G63 -> 38 | M63: 53 | N63: ='BW41'!G63 -> 37 | O63: 52 | P63: A 49
F64: A# 50 | G64: 56 | H64: 28 | I64: 14 | J64: 42 | K64: 56 | L64: ='BW38'!G64 -> 38 | M64: 52 | N64: ='BW41'!G64 -> 37 | O64: 51 | P64: A# 50
B65: =G31 -> 45 | C65: 45 | D65: =J31 -> 34 | E65: 17 | F65: B 51 | G65: 50 | H65: 22 | I65: 14 | J65: 36 | K65: 50 | L65: ='BW38'!G65 -> 38 | M65: 52 | N65: ='BW41'!G65 -> 37 | O65: 51 | P65: B 51
F66: C 52 | G66: 49 | H66: 20 | I66: 14.5 | J66: 34.5 | K66: 49 | L66: ='BW38'!G66 -> 38 | M66: 52.5 | N66: ='BW41'!G66 -> 37 | O66: 51.5 | P66: C 52
F67: C# 53 | G67: 49 | H67: 24 | I67: 12.5 | J67: 36.5 | K67: 49 | L67: ='BW38'!G67 -> 38 | M67: 50.5 | N67: ='BW41'!G67 -> 37 | O67: 49.5 | P67: C# 53
B68: =G32 -> 53 | C68: 53 | D68: =J32 -> 39.5 | E68: 18 | F68: D 54 | G68: 49 | H68: 24 | I68: 12.5 | J68: 36.5 | K68: 49 | L68: ='BW38'!G68 -> 38 | M68: 50.5 | N68: ='BW41'!G68 -> 37 | O68: 49.5 | P68: D 54
F69: D# 55 | G69: 49 | H69: 26 | I69: 11.5 | J69: 37.5 | K69: 49 | L69: ='BW38'!G69 -> 38 | M69: 49.5 | N69: ='BW41'!G69 -> 37 | O69: 48.5 | P69: D# 55
F70: E 56 | G70: 49 | H70: 20 | I70: 14.5 | J70: 34.5 | K70: 49 | L70: ='BW38'!G70 -> 38 | M70: 52.5 | N70: ='BW41'!G70 -> 37 | O70: 51.5 | P70: E 56
B71: =G33 -> 53 | C71: 53 | D71: =J33 -> 39.5 | E71: 19 | F71: F 57 | G71: 49 | H71: 20 | I71: 14.5 | J71: 34.5 | K71: 49 | L71: ='BW38'!G71 -> 38 | M71: 52.5 | N71: ='BW41'!G71 -> 37 | O71: 51.5 | P71: F 57
F72: F# 58 | G72: 49 | H72: 22 | I72: 13.5 | J72: 35.5 | K72: 49 | L72: ='BW38'!G72 -> 38 | M72: 51.5 | N72: ='BW41'!G72 -> 37 | O72: 50.5 | P72: F# 58
F73: G 59 | G73: 49 | H73: 24 | I73: 12.5 | J73: 36.5 | K73: 49 | L73: ='BW38'!G73 -> 38 | M73: 50.5 | N73: ='BW41'!G73 -> 37 | O73: 49.5 | P73: G 59
B74: =G34 -> 52 | C74: 52 | D74: =J34 -> 40.5 | E74: 20 | F74: G# 60 | G74: 48 | H74: 28 | I74: 10 | J74: 38 | K74: 48 | L74: ='BW38'!G74 -> 38 | M74: 48 | N74: ='BW41'!G74 -> 37 | O74: 47 | P74: G# 60
F75: A 61 | G75: 48 | H75: 27 | I75: 10.5 | J75: 37.5 | K75: 48 | L75: ='BW38'!G75 -> 38 | M75: 48.5 | N75: ='BW41'!G75 -> 36 | O75: 46.5 | P75: A 61
F76: A# 62 | G76: 48 | H76: 27 | I76: 10.5 | J76: 37.5 | K76: 48 | L76: ='BW38'!G76 -> 38 | M76: 48.5 | N76: ='BW41'!G76 -> 36 | O76: 46.5 | P76: A# 62
B77: =G35 -> 50 | C77: 50 | D77: =J35 -> 36 | E77: 21 | F77: B 63 | G77: 48 | H77: 25 | I77: 11.5 | J77: 36.5 | K77: 48 | L77: ='BW38'!G77 -> 38 | M77: 49.5 | N77: ='BW41'!G77 -> 36 | O77: 47.5 | P77: B 63
F78: C 64 | G78: 48 | H78: 26 | I78: 11 | J78: 37 | K78: 48 | L78: ='BW38'!G78 -> 38 | M78: 49 | N78: ='BW41'!G78 -> 36 | O78: 47 | P78: C 64
F79: C# 65 | G79: 48 | H79: 25 | I79: 11.5 | J79: 36.5 | K79: 48 | L79: ='BW38'!G79 -> 38 | M79: =L79+I79 -> 49.5 | N79: ='BW41'!G79 -> 36 | O79: =N79+I79 -> 47.5 | P79: C# 65
B80: =G36 -> 52 | C80: 52 | D80: =J36 -> 39 | E80: 22 | F80: D 66 | G80: 48 | H80: 25 | I80: 11.5 | J80: 36.5 | K80: =J80+I80 -> 48 | L80: ='BW38'!G80 -> 38 | M80: 49.5 | N80: ='BW41'!G80 -> 36 | O80: 47.5 | P80: D 66
F81: D# 67 | G81: 48 | H81: 25 | I81: =(G81-H81)/2 -> 11.5 | J81: =(G81+H81)/2 -> 36.5 | K81: 48 | L81: ='BW38'!G81 -> 38 | M81: 49.5 | N81: ='BW41'!G81 -> 36 | O81: 47.5 | P81: D# 67
F82: E 68 | G82: 48 | H82: 25 | I82: 11.5 | J82: 36.5 | K82: 48 | L82: ='BW38'!G82 -> 38 | M82: 49.5 | N82: ='BW41'!G82 -> 36 | O82: 47.5 | P82: E 68
B83: =G37 -> 48 | C83: 48 | D83: =J37 -> 36 | E83: 23 | F83: F 69 | G83: 48 | H83: 25 | I83: 11.5 | J83: 36.5 | K83: 48 | L83: ='BW38'!G83 -> 38 | M83: 49.5 | N83: ='BW41'!G83 -> 36 | O83: 47.5 | P83: F 69
F84: F# 70 | G84: 48 | H84: 25 | I84: 11.5 | J84: 36.5 | K84: 48 | L84: ='BW38'!G84 -> 38 | M84: 49.5 | N84: ='BW41'!G84 -> 36 | O84: 47.5 | P84: F# 70
F85: G 71 | G85: 48 | H85: 25 | I85: 11.5 | J85: 36.5 | K85: 48 | L85: ='BW38'!G85 -> 38 | M85: 49.5 | N85: ='BW41'!G85 -> 36 | O85: 47.5 | P85: G 71
B86: =G38 -> 52 | C86: 52 | D86: =J38 -> 39 | E86: 24 | F86: G# 72 | G86: 48 | H86: 25 | I86: 11.5 | J86: 36.5 | K86: 48 | L86: ='BW38'!G86 -> 38 | M86: 49.5 | N86: ='BW41'!G86 -> 36 | O86: 47.5 | P86: G# 72
F87: A 73 | G87: 48 | H87: 25 | I87: 11.5 | J87: 36.5 | K87: 48 | L87: ='BW38'!G87 -> 38 | M87: 49.5 | N87: ='BW41'!G87 -> 35 | O87: 46.5 | P87: A 73
F88: A# 74 | G88: 48 | H88: 25 | I88: 11.5 | J88: 36.5 | K88: 48 | L88: ='BW38'!G88 -> 38 | M88: 49.5 | N88: ='BW41'!G88 -> 35 | O88: 46.5 | P88: A# 74
F89: B 75 | G89: 48 | H89: 25 | I89: 11.5 | J89: 36.5 | K89: 48 | L89: ='BW38'!G89 -> 38 | M89: 49.5 | N89: ='BW41'!G89 -> 35 | O89: 46.5 | P89: B 75
F90: C 76 | G90: 48 | H90: 25 | I90: 11.5 | J90: 36.5 | K90: 48 | L90: ='BW38'!G90 -> 38 | M90: 49.5 | N90: ='BW41'!G90 -> 35 | O90: 46.5 | P90: C 76
B91: =G39 -> 56 | C91: 56 | D91: =J39 -> 41 | E91: 25 | F91: C# 77 | G91: 48 | H91: 25 | I91: 11.5 | J91: 36.5 | K91: 48 | L91: ='BW38'!G91 -> 38 | M91: 49.5 | N91: ='BW41'!G91 -> 35 | O91: 46.5 | P91: C# 77
F92: D 78 | G92: 48 | H92: 25 | I92: 11.5 | J92: 36.5 | K92: 48 | L92: ='BW38'!G92 -> 38 | M92: 49.5 | N92: ='BW41'!G92 -> 35 | O92: 46.5 | P92: D 78
F93: D# 79 | G93: 46 | H93: 22 | I93: 12 | J93: 34 | K93: 46 | L93: ='BW38'!G93 -> 38 | M93: 50 | N93: ='BW41'!G93 -> 35 | O93: 47 | P93: D# 79
B94: =G40 -> 56 | C94: 56 | D94: =J40 -> 41 | E94: 26 | F94: E 80 | G94: 46 | H94: 22 | I94: 12 | J94: 34 | K94: 46 | L94: ='BW38'!G94 -> 38 | M94: 50 | N94: ='BW41'!G94 -> 35 | O94: 47 | P94: E 80
F95: F 81 | G95: 46 | H95: 22 | I95: 12 | J95: 34 | K95: 46 | L95: ='BW38'!G95 -> 38 | M95: 50 | N95: ='BW41'!G95 -> 35 | O95: 47 | P95: F 81
F96: F# 82 | G96: 99 | H96: 25 | I96: 37 | J96: 62 | K96: 99 | L96: ='BW38'!G96 -> 38 | M96: 75 | N96: ='BW41'!G96 -> 35 | O96: 72 | P96: F# 82
B97: =G41 -> 56 | C97: 56 | D97: =J41 -> 41 | E97: 27 | F97: G 83 | G97: 50 | H97: 27 | I97: 11.5 | J97: 38.5 | K97: 50 | L97: ='BW38'!G97 -> 38 | M97: 49.5 | N97: ='BW41'!G97 -> 35 | O97: 46.5 | P97: G 83
F98: G# 84 | G98: 45 | H98: 25 | I98: 10 | J98: 35 | K98: 45 | L98: ='BW38'!G98 -> 38 | M98: 48 | N98: ='BW41'!G98 -> 35 | O98: 45 | P98: G# 84
F99: A 85 | G99: 47 | H99: 27 | I99: 10 | J99: 37 | K99: 47 | L99: ='BW38'!G99 -> 38 | M99: 48 | N99: ='BW41'!G99 -> 35 | O99: 45 | P99: A 85
B100: =G42 -> 56 | C100: 56 | D100: =J42 -> 41 | E100: 28 | F100: A# 86 | G100: 47 | H100: 27 | I100: 10 | J100: 37 | K100: 47 | L100: ='BW38'!G100 -> 38 | M100: 48 | N100: ='BW41'!G100 -> 35 | O100: 45 | P100: A# 86
F101: B 87 | G101: 45 | H101: 25 | I101: 10 | J101: 35 | K101: 45 | L101: ='BW38'!G101 -> 38 | M101: 48 | N101: ='BW41'!G101 -> 35 | O101: 45 | P101: B 87
F102: C 88 | G102: 42 | H102: 22 | I102: 10 | J102: 32 | K102: 42 | L102: ='BW38'!G102 -> 38 | M102: 48 | N102: ='BW41'!G102 -> 35 | O102: 45 | P102: C 88
B103: =G43 -> 60 | C103: 60 | D103: =J43 -> 43 | E103: 29
B106: =G44 -> 54 | C106: 54 | D106: =J44 -> 40 | E106: 30
B109: =G45 -> 65 | C109: 65 | D109: =J45 -> 45 | E109: 31 | F109: Note | G109: DW | H109: UW | I109: Friction | J109: Balance Weight (BW) | K109: BW + F | L109: BW = 38 | M109: DW | N109: BW41-35 | O109: DW | P109: Note
F110: A 1 | G110: 50 | H110: 26 | I110: =(G110-H110)/2 -> 12 | J110: =(G110+H110)/2 -> 38 | K110: =J110+I110 -> 50 | L110: 38 | M110: =L110+I110 -> 50 | N110: 41 | O110: =N110+I110 -> 53 | P110: A 1
F111: A# 2 | G111: 50 | H111: 26 | I111: =(G111-H111)/2 -> 12 | J111: =(G111+H111)/2 -> 38 | K111: =J111+I111 -> 50 | L111: 38 | M111: 50 | N111: 41 | O111: 53 | P111: A# 2
B112: =G46 -> 52 | C112: 52 | D112: =J46 -> 39 | E112: 32 | F112: B 3 | G112: 50 | H112: 26 | I112: 12 | J112: 38 | K112: 50 | L112: 38 | M112: 50 | N112: 41 | O112: 53 | P112: B 3
F113: C 4 | G113: 50 | H113: 26 | I113: 12 | J113: 38 | K113: 50 | L113: 38 | M113: 50 | N113: 41 | O113: 53 | P113: C 4
F114: C# 5 | G114: 50 | H114: 26 | I114: 12 | J114: 38 | K114: 50 | L114: 38 | M114: 50 | N114: 41 | O114: 53 | P114: C# 5
B115: =G47 -> 58 | C115: 58 | D115: =J47 -> 45 | E115: 33 | F115: D 6 | G115: 50 | H115: 26 | I115: 12 | J115: 38 | K115: 50 | L115: 38 | M115: 50 | N115: 41 | O115: 53 | P115: D 6
F116: D# 7 | G116: 50 | H116: 26 | I116: 12 | J116: 38 | K116: 50 | L116: 38 | M116: 50 | N116: 41 | O116: 53 | P116: D# 7
F117: E 8 | G117: 50 | H117: 26 | I117: 12 | J117: 38 | K117: 50 | L117: 38 | M117: 50 | N117: 41 | O117: 53 | P117: E 8
B118: =G48 -> 62 | C118: 62 | D118: =J48 -> 46 | E118: 34 | F118: F 9 | G118: 50 | H118: 26 | I118: 12 | J118: 38 | K118: 50 | L118: 38 | M118: 50 | N118: 41 | O118: 53 | P118: F 9
F119: F# 10 | G119: 50 | H119: 26 | I119: 12 | J119: 38 | K119: 50 | L119: 38 | M119: 50 | N119: 41 | O119: 53 | P119: F# 10
F120: G 11 | G120: 50 | H120: 26 | I120: 12 | J120: 38 | K120: 50 | L120: 38 | M120: 50 | N120: 41 | O120: 53 | P120: G 11
B121: =G49 -> 54 | C121: 54 | D121: =J49 -> 40 | E121: 35 | F121: G# 12 | G121: 50 | H121: 26 | I121: 12 | J121: 38 | K121: 50 | L121: 38 | M121: 50 | N121: 41 | O121: 53 | P121: G# 12
F122: A 13 | G122: 50 | H122: 26 | I122: 12 | J122: 38 | K122: 50 | L122: 38 | M122: 50 | N122: 40 | O122: 52 | P122: A 13
F123: A# 14 | G123: 50 | H123: 26 | I123: 12 | J123: 38 | K123: 50 | L123: 38 | M123: 50 | N123: 40 | O123: 52 | P123: A# 14
B124: =G50 -> 52 | C124: 52 | D124: =J50 -> 38 | E124: 36 | F124: B 15 | G124: 50 | H124: 26 | I124: 12 | J124: 38 | K124: 50 | L124: 38 | M124: 50 | N124: 40 | O124: 52 | P124: B 15
F125: C 16 | G125: 50 | H125: 26 | I125: 12 | J125: 38 | K125: 50 | L125: 38 | M125: 50 | N125: 40 | O125: 52 | P125: C 16
F126: C# 17 | G126: 50 | H126: 26 | I126: 12 | J126: 38 | K126: 50 | L126: 38 | M126: 50 | N126: 40 | O126: 52 | P126: C# 17
F127: D 18 | G127: 50 | H127: 26 | I127: 12 | J127: 38 | K127: 50 | L127: 38 | M127: 50 | N127: 40 | O127: 52 | P127: D 18
F128: D# 19 | G128: 50 | H128: 26 | I128: 12 | J128: 38 | K128: 50 | L128: 38 | M128: 50 | N128: 40 | O128: 52 | P128: D# 19
B129: =G51 -> 50 | C129: 50 | D129: =J51 -> 39 | E129: 37 | F129: E 20 | G129: 50 | H129: 26 | I129: 12 | J129: 38 | K129: 50 | L129: 38 | M129: 50 | N129: 40 | O129: 52 | P129: E 20
F130: F 21 | G130: 50 | H130: 26 | I130: 12 | J130: 38 | K130: 50 | L130: 38 | M130: 50 | N130: 40 | O130: 52 | P130: F 21
F131: F# 22 | G131: 50 | H131: 26 | I131: 12 | J131: 38 | K131: 50 | L131: 38 | M131: 50 | N131: 40 | O131: 52 | P131: F# 22
B132: =G52 -> 52 | C132: 52 | D132: =J52 -> 40 | E132: 38 | F132: G 23 | G132: 50 | H132: 26 | I132: 12 | J132: 38 | K132: 50 | L132: 38 | M132: 50 | N132: 40 | O132: 52 | P132: G 23
F133: G# 24 | G133: 50 | H133: 26 | I133: 12 | J133: 38 | K133: 50 | L133: 38 | M133: 50 | N133: 40 | O133: 52 | P133: G# 24
F134: A 25 | G134: 50 | H134: 26 | I134: 12 | J134: 38 | K134: 50 | L134: 38 | M134: 50 | N134: 39 | O134: 51 | P134: A 25
B135: =G53 -> 55 | C135: 55 | D135: =J53 -> 41.5 | E135: 39 | F135: A# 26 | G135: 50 | H135: 26 | I135: 12 | J135: 38 | K135: 50 | L135: 38 | M135: 50 | N135: 39 | O135: 51 | P135: A# 26
F136: B 27 | G136: 50 | H136: 26 | I136: 12 | J136: 38 | K136: 50 | L136: 38 | M136: 50 | N136: 39 | O136: 51 | P136: B 27
F137: C 28 | G137: 50 | H137: 26 | I137: 12 | J137: 38 | K137: 50 | L137: 38 | M137: 50 | N137: 39 | O137: 51 | P137: C 28
B138: =G54 -> 52 | C138: 52 | D138: =J54 -> 40 | E138: 40 | F138: C# 29 | G138: 50 | H138: 26 | I138: 12 | J138: 38 | K138: 50 | L138: 38 | M138: 50 | N138: 39 | O138: 51 | P138: C# 29
F139: D 30 | G139: 50 | H139: 26 | I139: 12 | J139: 38 | K139: 50 | L139: 38 | M139: 50 | N139: 39 | O139: 51 | P139: D 30
F140: D# 31 | G140: 50 | H140: 26 | I140: 12 | J140: 38 | K140: 50 | L140: 38 | M140: 50 | N140: 39 | O140: 51 | P140: D# 31
B141: =G55 -> 50 | C141: 50 | D141: =J55 -> 39 | E141: 41 | F141: E 32 | G141: 50 | H141: 26 | I141: 12 | J141: 38 | K141: 50 | L141: 38 | M141: 50 | N141: 39 | O141: 51 | P141: E 32
F142: F 33 | G142: 50 | H142: 26 | I142: 12 | J142: 38 | K142: 50 | L142: 38 | M142: =L142+I142 -> 50 | N142: 39 | O142: =N142+I142 -> 51 | P142: F 33
F143: F# 34 | G143: 50 | H143: 26 | I143: 12 | J143: 38 | K143: 50 | L143: 38 | M143: 50 | N143: 39 | O143: 51 | P143: F# 34
B144: =G56 -> 50 | C144: 50 | D144: =J56 -> 37 | E144: 42 | F144: G 35 | G144: 50 | H144: 26 | I144: 12 | J144: 38 | K144: 50 | L144: 38 | M144: 50 | N144: 39 | O144: 51 | P144: G 35
F145: G# 36 | G145: 50 | H145: 26 | I145: 12 | J145: 38 | K145: 50 | L145: 38 | M145: 50 | N145: 39 | O145: 51 | P145: G# 36
F146: A 37 | G146: 50 | H146: 26 | I146: 12 | J146: 38 | K146: 50 | L146: 38 | M146: 50 | N146: 38 | O146: 50 | P146: A 37
B147: =G57 -> 54 | C147: 54 | D147: =J57 -> 42 | E147: 43 | F147: A# 38 | G147: 50 | H147: 26 | I147: 12 | J147: 38 | K147: 50 | L147: 38 | M147: 50 | N147: 38 | O147: 50 | P147: A# 38
F148: B 39 | G148: 50 | H148: 26 | I148: 12 | J148: 38 | K148: 50 | L148: 38 | M148: 50 | N148: 38 | O148: 50 | P148: B 39
F149: C 40 | G149: 50 | H149: 26 | I149: 12 | J149: 38 | K149: 50 | L149: 38 | M149: 50 | N149: 38 | O149: 50 | P149: C 40
B150: =G58 -> 52 | C150: 52 | D150: =J58 -> 40 | E150: 44 | F150: C# 41 | G150: 50 | H150: 26 | I150: 12 | J150: 38 | K150: 50 | L150: 38 | M150: 50 | N150: 38 | O150: 50 | P150: C# 41
F151: D 42 | G151: 50 | H151: 26 | I151: 12 | J151: 38 | K151: 50 | L151: 38 | M151: 50 | N151: 38 | O151: 50 | P151: D 42
F152: D# 43 | G152: 50 | H152: 26 | I152: 12 | J152: 38 | K152: 50 | L152: 38 | M152: 50 | N152: 38 | O152: 50 | P152: D# 43
B153: =G59 -> 50 | C153: 50 | D153: =J59 -> 38 | E153: 45 | F153: E 44 | G153: 50 | H153: 26 | I153: 12 | J153: 38 | K153: 50 | L153: 38 | M153: 50 | N153: 38 | O153: 50 | P153: E 44
F154: F 45 | G154: 50 | H154: 26 | I154: 12 | J154: 38 | K154: 50 | L154: 38 | M154: 50 | N154: 38 | O154: 50 | P154: F 45
F155: F# 46 | G155: 50 | H155: 26 | I155: 12 | J155: 38 | K155: 50 | L155: 38 | M155: 50 | N155: 38 | O155: 50 | P155: F# 46
B156: =G60 -> 52 | C156: 52 | D156: =J60 -> 40 | E156: 46 | F156: G 47 | G156: 50 | H156: 26 | I156: 12 | J156: 38 | K156: 50 | L156: 38 | M156: 50 | N156: 38 | O156: 50 | P156: G 47
F157: G# 48 | G157: 50 | H157: 26 | I157: 12 | J157: 38 | K157: 50 | L157: 38 | M157: 50 | N157: 38 | O157: 50 | P157: G# 48
F158: A 49 | G158: 50 | H158: 26 | I158: 12 | J158: 38 | K158: 50 | L158: 38 | M158: 50 | N158: 37 | O158: 49 | P158: A 49
B159: =G61 -> 50 | C159: 50 | D159: =J61 -> 39 | E159: 47 | F159: A# 50 | G159: 50 | H159: 26 | I159: 12 | J159: 38 | K159: 50 | L159: 38 | M159: 50 | N159: 37 | O159: 49 | P159: A# 50
F160: B 51 | G160: 50 | H160: 26 | I160: 12 | J160: 38 | K160: 50 | L160: 38 | M160: 50 | N160: 37 | O160: 49 | P160: B 51
F161: C 52 | G161: 50 | H161: 26 | I161: 12 | J161: 38 | K161: 50 | L161: 38 | M161: 50 | N161: 37 | O161: 49 | P161: C 52
B162: =G62 -> 57 | C162: 57 | D162: =J62 -> 42.5 | E162: 48 | F162: C# 53 | G162: 50 | H162: 26 | I162: 12 | J162: 38 | K162: 50 | L162: 38 | M162: 50 | N162: 37 | O162: 49 | P162: C# 53
F163: D 54 | G163: 50 | H163: 26 | I163: 12 | J163: 38 | K163: 50 | L163: 38 | M163: 50 | N163: 37 | O163: 49 | P163: D 54
F164: D# 55 | G164: 50 | H164: 26 | I164: 12 | J164: 38 | K164: 50 | L164: 38 | M164: 50 | N164: 37 | O164: 49 | P164: D# 55
F165: E 56 | G165: 50 | H165: 26 | I165: 12 | J165: 38 | K165: 50 | L165: 38 | M165: 50 | N165: 37 | O165: 49 | P165: E 56
F166: F 57 | G166: 50 | H166: 26 | I166: 12 | J166: 38 | K166: 50 | L166: 38 | M166: 50 | N166: 37 | O166: 49 | P166: F 57
B167: =G63 -> 50 | C167: 50 | D167: =J63 -> 35 | E167: 49 | F167: F# 58 | G167: 50 | H167: 26 | I167: 12 | J167: 38 | K167: 50 | L167: 38 | M167: 50 | N167: 37 | O167: 49 | P167: F# 58
F168: G 59 | G168: 50 | H168: 26 | I168: 12 | J168: 38 | K168: 50 | L168: 38 | M168: 50 | N168: 37 | O168: 49 | P168: G 59
F169: G# 60 | G169: 50 | H169: 26 | I169: 12 | J169: 38 | K169: 50 | L169: 38 | M169: 50 | N169: 37 | O169: 49 | P169: G# 60
B170: =G64 -> 56 | C170: 56 | D170: =J64 -> 42 | E170: 50 | F170: A 61 | G170: 50 | H170: 26 | I170: 12 | J170: 38 | K170: 50 | L170: 38 | M170: 50 | N170: 36 | O170: 48 | P170: A 61
F171: A# 62 | G171: 50 | H171: 26 | I171: 12 | J171: 38 | K171: 50 | L171: 38 | M171: 50 | N171: 36 | O171: 48 | P171: A# 62
F172: B 63 | G172: 50 | H172: 26 | I172: 12 | J172: 38 | K172: 50 | L172: 38 | M172: 50 | N172: 36 | O172: 48 | P172: B 63
B173: =G65 -> 50 | C173: 50 | D173: =J65 -> 36 | E173: 51 | F173: C 64 | G173: 50 | H173: 26 | I173: 12 | J173: 38 | K173: 50 | L173: 38 | M173: 50 | N173: 36 | O173: 48 | P173: C 64
F174: C# 65 | G174: 50 | H174: 26 | I174: 12 | J174: 38 | K174: 50 | L174: 38 | M174: =L174+I174 -> 50 | N174: 36 | O174: =N174+I174 -> 48 | P174: C# 65
F175: D 66 | G175: 50 | H175: 26 | I175: =(G175-H175)/2 -> 12 | J175: =(G175+H175)/2 -> 38 | K175: =J175+I175 -> 50 | L175: 38 | M175: 50 | N175: 36 | O175: 48 | P175: D 66
B176: =G66 -> 49 | C176: 49 | D176: =J66 -> 34.5 | E176: 52 | F176: D# 67 | G176: 50 | H176: 26 | I176: 12 | J176: 38 | K176: 50 | L176: 38 | M176: 50 | N176: 36 | O176: 48 | P176: D# 67
F177: E 68 | G177: 50 | H177: 26 | I177: 12 | J177: 38 | K177: 50 | L177: 38 | M177: 50 | N177: 36 | O177: 48 | P177: E 68
F178: F 69 | G178: 50 | H178: 26 | I178: 12 | J178: 38 | K178: 50 | L178: 38 | M178: 50 | N178: 36 | O178: 48 | P178: F 69
B179: =G67 -> 49 | C179: 49 | D179: =J67 -> 36.5 | E179: 53 | F179: F# 70 | G179: 50 | H179: 26 | I179: 12 | J179: 38 | K179: 50 | L179: 38 | M179: 50 | N179: 36 | O179: 48 | P179: F# 70
F180: G 71 | G180: 50 | H180: 26 | I180: 12 | J180: 38 | K180: 50 | L180: 38 | M180: 50 | N180: 36 | O180: 48 | P180: G 71
F181: G# 72 | G181: 50 | H181: 26 | I181: 12 | J181: 38 | K181: 50 | L181: 38 | M181: 50 | N181: 36 | O181: 48 | P181: G# 72
B182: =G68 -> 49 | C182: 49 | D182: =J68 -> 36.5 | E182: 54 | F182: A 73 | G182: 50 | H182: 26 | I182: 12 | J182: 38 | K182: 50 | L182: 38 | M182: 50 | N182: 35 | O182: 47 | P182: A 73
F183: A# 74 | G183: 50 | H183: 26 | I183: 12 | J183: 38 | K183: 50 | L183: 38 | M183: 50 | N183: 35 | O183: 47 | P183: A# 74
F184: B 75 | G184: 50 | H184: 26 | I184: 12 | J184: 38 | K184: 50 | L184: 38 | M184: 50 | N184: 35 | O184: 47 | P184: B 75
B185: =G69 -> 49 | C185: 49 | D185: =J69 -> 37.5 | E185: 55 | F185: C 76 | G185: 50 | H185: 26 | I185: 12 | J185: 38 | K185: 50 | L185: 38 | M185: 50 | N185: 35 | O185: 47 | P185: C 76
F186: C# 77 | G186: 50 | H186: 26 | I186: 12 | J186: 38 | K186: 50 | L186: 38 | M186: 50 | N186: 35 | O186: 47 | P186: C# 77
F187: D 78 | G187: 50 | H187: 26 | I187: 12 | J187: 38 | K187: 50 | L187: 38 | M187: 50 | N187: 35 | O187: 47 | P187: D 78
B188: =G70 -> 49 | C188: 49 | D188: =J70 -> 34.5 | E188: 56 | F188: D# 79 | G188: 50 | H188: 26 | I188: 12 | J188: 38 | K188: 50 | L188: 38 | M188: 50 | N188: 35 | O188: 47 | P188: D# 79
F189: E 80 | G189: 50 | H189: 26 | I189: 12 | J189: 38 | K189: 50 | L189: 38 | M189: 50 | N189: 35 | O189: 47 | P189: E 80
F190: F 81 | G190: 50 | H190: 26 | I190: 12 | J190: 38 | K190: 50 | L190: 38 | M190: 50 | N190: 35 | O190: 47 | P190: F 81
B191: =G71 -> 49 | C191: 49 | D191: =J71 -> 34.5 | E191: 57 | F191: F# 82 | G191: 50 | H191: 26 | I191: 12 | J191: 38 | K191: 50 | L191: 38 | M191: 50 | N191: 35 | O191: 47 | P191: F# 82
F192: G 83 | G192: 50 | H192: 26 | I192: 12 | J192: 38 | K192: 50 | L192: 38 | M192: 50 | N192: 35 | O192: 47 | P192: G 83
F193: G# 84 | G193: 50 | H193: 26 | I193: 12 | J193: 38 | K193: 50 | L193: 38 | M193: 50 | N193: 35 | O193: 47 | P193: G# 84
B194: =G72 -> 49 | C194: 49 | D194: =J72 -> 35.5 | E194: 58 | F194: A 85 | G194: 50 | H194: 26 | I194: 12 | J194: 38 | K194: 50 | L194: 38 | M194: 50 | N194: 35 | O194: 47 | P194: A 85
F195: A# 86 | G195: 50 | H195: 26 | I195: 12 | J195: 38 | K195: 50 | L195: 38 | M195: 50 | N195: 35 | O195: 47 | P195: A# 86
F196: B 87 | G196: 50 | H196: 26 | I196: 12 | J196: 38 | K196: 50 | L196: 38 | M196: 50 | N196: 35 | O196: 47 | P196: B 87
B197: =G73 -> 49 | C197: 49 | D197: =J73 -> 36.5 | E197: 59 | F197: C 88 | G197: 50 | H197: 26 | I197: 12 | J197: 38 | K197: 50 | L197: 38 | M197: 50 | N197: 35 | O197: 47 | P197: C 88
B200: =G74 -> 48 | C200: 48 | D200: =J74 -> 38 | E200: 60
B205: =G75 -> 48 | C205: 48 | D205: =J75 -> 37.5 | E205: 61
B208: =G76 -> 48 | C208: 48 | D208: =J76 -> 37.5 | E208: 62
B211: =G77 -> 48 | C211: 48 | D211: =J77 -> 36.5 | E211: 63
B214: =G78 -> 48 | C214: 48 | D214: =J78 -> 37 | E214: 64
B217: =G79 -> 48 | C217: 48 | D217: =J79 -> 36.5 | E217: 65
B220: =G80 -> 48 | C220: 48 | D220: =J80 -> 36.5 | E220: 66
B223: =G81 -> 48 | C223: 48 | D223: =J81 -> 36.5 | E223: 67
B226: =G82 -> 48 | C226: 48 | D226: =J82 -> 36.5 | E226: 68
B229: =G83 -> 48 | C229: 48 | D229: =J83 -> 36.5 | E229: 69
B232: =G84 -> 48 | C232: 48 | D232: =J84 -> 36.5 | E232: 70
B235: =G85 -> 48 | C235: 48 | D235: =J85 -> 36.5 | E235: 71
B238: =G86 -> 48 | C238: 48 | D238: =J86 -> 36.5 | E238: 72
B243: =G87 -> 48 | C243: 48 | D243: =J87 -> 36.5 | E243: 73
B246: =G88 -> 48 | C246: 48 | D246: =J88 -> 36.5 | E246: 74
B249: =G89 -> 48 | C249: 48 | D249: =J89 -> 36.5 | E249: 75
B252: =G90 -> 48 | C252: 48 | D252: =J90 -> 36.5 | E252: 76
B255: =G91 -> 48 | C255: 48 | D255: =J91 -> 36.5 | E255: 77
B258: =G92 -> 48 | C258: 48 | D258: =J92 -> 36.5 | E258: 78
... 10 more rows

Sheet Grand Keys
B2: PIANO MAKE MODEL | E2: Stein & Grabyurbutt | L2: Date | M2: 2015-12-31 | N2: NOTES go here. | Q2: Example Key # 1 details lead number and locations
B3: CUSTOMER | E3: Joe Schlabotnik | X3: =F4 -> 323
B4: Key Input Naturals = | E4: Key 1 > | F4: 323 | H4: Key 88 > | I4: 252 | J4: mm | K4: Notes go here. | Y4: =A16 -> 313.1346154
B5: Sharps = | E5: Key 2 > | F5: 288 | H5: Key 86 > | I5: 252 | J5: mm | X5: =F15 -> 0
B6: Lead Remain Limit = | E6: 0.25 | F6: inches | W6: =I15 -> 0
B7: Lead # 1 Mass = | E7: 14.2 | F7: grams | H7: Main Entry Grid Enter Key Dimensions and Lead Masses here. Below enter your DW and Lead Locations. | V7: =L15 -> 0 | AB7: Test Weights
B8: Lead # 2 Mass = | E8: 14.2 | F8: grams
B9: Lead # 3 Mass = | E9: 14.2 | F9: grams
B10: Lead widths = | E10: 0.4 | F10: inches
B11: Drill Limit Depth | E11: =E10-E6 -> 0.15 | F11: inches | G11: =E10-E11 -> 0.25
B12: Diameter Test Weights | E12: 17 | F12: mm
C13: Gram Test | E13: Total Lead to remove gms | F13: Location mm | G13: Drill Depth Inches | H13: Leave this much lead | I13: Location mm | J13: Depth | K13: Leave this much lead | L13: Location mm | M13: Depth | N13: Leave this much lead | Q13: delta DW | R13: ddw | S13: dif_dw | T13: key_ro | U13: reqd_ld | V13: key_div | W13: slugs | X13: lead_wid | Y13: reqd_ld | Z13: max_drill | AA13: tot_drill | AB13: act_drill | AC13: lead_out | AD13: fac | AE13: slug_rmn | AF13: delta_DW
B14: Key # | C14: DW (or BW) | D14: DDW (or DBW) | E14: Ld. Out | F14: Lead 1 | G14: Drill Out | H14: LEAVE | I14: Lead 2 | J14: Drill Out | K14: LEAVE | L14: Lead 3 | M14: Drill Out | N14: LEAVE | O14: =A16 -> 313.1346154 | P14: =F15 -> 0 | Q14: =C15 -> 47 | R14: =D15 -> 53 | S14: =Q14-R14 -> -6 | T14: =IF(ISERROR(IF(ISERROR((O14/P14)), 0,(O14/P14))), 0,IF(ISERROR((O14/P14)), 0,(O14/P14))) -> 0 | U14: =IF(ISERROR(S14*T14), 0,S14*T14) -> 0 | V14: =IF(ISERROR(IF(ISERROR(IF(ISERROR(IF(ISERROR(O14/T14), 0,O14/T14)), 0,IF(ISERROR(O14/T14), 0,O14/T14))), 0,IF(ISERROR(IF(ISERROR(O14/T14), 0,O14/T14)), 0,IF(ISERROR(O14/T14), 0,O14/T14)))), 0,IF(ISERROR(IF(ISERROR(IF(ISERROR(O14/T14), 0,O14/T14)), 0,IF(ISERROR(O14/T14), 0,O14/T14))), 0,IF(ISERROR(IF(ISERROR(O14/T14), 0,O14/T14)), 0,IF(ISERROR(O14/T14), 0,O14/T14)))) -> 0 | W14: =$E$7 -> 14.2 | X14: =$E$10 -> 0.4 | Y14: =IF(ISERROR(ABS(U14)), 0,ABS(U14)) -> 0 | Z14: =$X$14-$G$11 -> 0.15 | AA14: =IF(ISERROR(ABS((Y14*X14)/W14)), 0,ABS((Y14*X14)/W14)) -> 0 | AB14: =IF(ISERROR(IF(AA14>Z14,Z14,AA14)), 0,IF(AA14>Z14,Z14,AA14)) -> 0 | AC14: =IF(ISERROR(IF(Y14>W14,W14,Y14)), 0,IF(Y14>W14,W14,Y14)) -> 0 | AD14: =IF(ISERROR((AC14*AB14)/AA14), 0,(AC14*AB14)/AA14) -> 0 | AE14: =IF(ISERROR(IF(ISERROR(IF(AC14=W14,0,(AC14*AB14)/AA14)), 0,IF(AC14=W14,0,(AC14*AB14)/AA14))), 0,IF(ISERROR(IF(AC14=W14,0,(AC14*AB14)/AA14)), 0,IF(AC14=W14,0,(AC14*AB14)/AA14))) -> 0 | AF14: =IF(ISERROR(IF(ISERROR(IF(ISERROR(IF(AC14=60,Q14+(AC14/T14),Q14+(AD14/T14))), 0,IF(AC14=60,Q14+(AC14/T14),Q14+(AD14/T14)))), 0,IF(ISERROR(IF(AC14=60,Q14+(AC14/T14),Q14+(AD14/T14))), 0,IF(AC14=60,Q14+(AC14/T14),Q14+(AD14/T14))))), 0,IF(ISERROR(IF(ISERROR(IF(AC14=60,Q14+(AC14/T14),Q14+(AD14/T14))), 0,IF(AC14=60,Q14+(AC14/T14),Q14+(AD14/T14)))), 0,IF(ISERROR(IF(AC14=60,Q14+(AC14/T14),Q14+(AD14/T14))), 0,IF(AC14=60,Q14+(AC14/T14),Q14+(AD14/T14))))) -> 0
A15: A | B15: 1 | C15: 47 | D15: 53 | E15: =IF(ISERROR(Y14), 0,Y14) -> 0 | G15: =AB14 -> 0 | H15: =IF(ISERROR($E$10-G15), 0,$E$10-G15) -> 0.4 | J15: =IF(ISERROR(AB15), 0,AB15) -> 0 | K15: =IF(ISERROR(ROUND($E$10-J15,3)), 0,ROUND($E$10-J15,3)) -> 0.4 | M15: =IF(ISERROR(AB16), "",AB16) -> 0 | N15: =IF(ISERROR(IF(ISERROR($E$10-M15), "",$E$10-M15)), "",IF(ISERROR($E$10-M15), "",$E$10-M15)) -> 0.4 | O15: =A16 -> 313.1346154 | P15: =I15 -> 0 | Q15: =IF(ISERROR(IF(ISERROR(IF(ISERROR(IF(AC14=W14,Q14+(AC14/T14),Q14+(AD14/T14))), 0,IF(AC14=W14,Q14+(AC14/T14),Q14+(AD14/T14)))), 0,IF(ISERROR(IF(AC14=W14,Q14+(AC14/T14),Q14+(AD14/T14))), 0,IF(AC14=W14,Q14+(AC14/T14),Q14+(AD14/T14))))), 0,IF(ISERROR(IF(ISERROR(IF(AC14=W14,Q14+(AC14/T14),Q14+(AD14/T14))), 0,IF(AC14=W14,Q14+(AC14/T14),Q14+(AD14/T14)))), 0,IF(ISERROR(IF(AC14=W14,Q14+(AC14/T14),Q14+(AD14/T14))), 0,IF(AC14=W14,Q14+(AC14/T14),Q14+(AD14/T14))))) -> 0 | R15: =D15 -> 53 | S15: =IF(ISERROR(IF(ISERROR(IF(ISERROR(Q15-R15), 0,Q15-R15)), 0,IF(ISERROR(Q15-R15), 0,Q15-R15))), 0,IF(ISERROR(IF(ISERROR(Q15-R15), 0,Q15-R15)), 0,IF(ISERROR(Q15-R15), 0,Q15-R15))) -> -53 | T15: =IF(ISERROR(IF(ISERROR(IF(ISERROR((O15/P15)), 0,(O15/P15))), 0,IF(ISERROR((O15/P15)), 0,(O15/P15)))), 0,IF(ISERROR(IF(ISERROR((O15/P15)), 0,(O15/P15))), 0,IF(ISERROR((O15/P15)), 0,(O15/P15)))) -> 0 | U15: =IF(ISERROR(IF(ISERROR(IF(ISERROR(S15*T15), 0,S15*T15)), 0,IF(ISERROR(S15*T15), 0,S15*T15))), 0,IF(ISERROR(IF(ISERROR(S15*T15), 0,S15*T15)), 0,IF(ISERROR(S15*T15), 0,S15*T15))) -> 0 | V15: =IF(ISERROR(IF(ISERROR(IF(ISERROR(IF(ISERROR(O15/T15), 0,O15/T15)), 0,IF(ISERROR(O15/T15), 0,O15/T15))), 0,IF(ISERROR(IF(ISERROR(O15/T15), 0,O15/T15)), 0,IF(ISERROR(O15/T15), 0,O15/T15)))), 0,IF(ISERROR(IF(ISERROR(IF(ISERROR(O15/T15), 0,O15/T15)), 0,IF(ISERROR(O15/T15), 0,O15/T15))), 0,IF(ISERROR(IF(ISERROR(O15/T15), 0,O15/T15)), 0,IF(ISERROR(O15/T15), 0,O15/T15)))) -> 0 | W15: 14.2 | X15: 0.4 | Y15: =IF(ISERROR(IF(ISERROR(IF(ISERROR(ABS(U15)), 0,ABS(U15))), 0,IF(ISERROR(ABS(U15)), 0,ABS(U15)))), 0,IF(ISERROR(IF(ISERROR(ABS(U15)), 0,ABS(U15))), 0,IF(ISERROR(ABS(U15)), 0,ABS(U15)))) -> 0 | Z15: 0.15 | AA15: =IF(ISERROR(IF(ISERROR(IF(ISERROR(ABS((Y15*X15)/W15)), 0,ABS((Y15*X15)/W15))), 0,IF(ISERROR(ABS((Y15*X15)/W15)), 0,ABS((Y15*X15)/W15)))), 0,IF(ISERROR(IF(ISERROR(ABS((Y15*X15)/W15)), 0,ABS((Y15*X15)/W15))), 0,IF(ISERROR(ABS((Y15*X15)/W15)), 0,ABS((Y15*X15)/W15)))) -> 0 | AB15: =IF(ISERROR(IF(ISERROR(IF(ISERROR(IF(AA15>Z15,Z15,AA15)), 0,IF(AA15>Z15,Z15,AA15))), 0,IF(ISERROR(IF(AA15>Z15,Z15,AA15)), 0,IF(AA15>Z15,Z15,AA15)))), 0,IF(ISERROR(IF(ISERROR(IF(AA15>Z15,Z15,AA15)), 0,IF(AA15>Z15,Z15,AA15))), 0,IF(ISERROR(IF(AA15>Z15,Z15,AA15)), 0,IF(AA15>Z15,Z15,AA15)))) -> 0 | AC15: =IF(ISERROR(IF(ISERROR(IF(ISERROR(IF(Y15>W15,W15,Y15)), 0,IF(Y15>W15,W15,Y15))), 0,IF(ISERROR(IF(Y15>W15,W15,Y15)), 0,IF(Y15>W15,W15,Y15)))), 0,IF(ISERROR(IF(ISERROR(IF(Y15>W15,W15,Y15)), 0,IF(Y15>W15,W15,Y15))), 0,IF(ISERROR(IF(Y15>W15,W15,Y15)), 0,IF(Y15>W15,W15,Y15)))) -> 0 | AD15: =IF(ISERROR((AC15*AB15)/AA15), "",(AC15*AB15)/AA15) ->  | AE15: =IF(ISERROR(IF(AC15=W15,0,(AC15*AB15)/AA15)), "",IF(AC15=W15,0,(AC15*AB15)/AA15)) ->  | AF15: =IF(ISERROR(IF(AC15=60,Q15+(AC15/T15),Q15+(AD15/T15))), "",IF(AC15=60,Q15+(AC15/T15),Q15+(AD15/T15))) -> 
A16: =F301 -> 313.1346154 | B16: =IF(AND(C15<D15, E15>$E$7),"Ignore Drill Out Lead 1; rather pop out Lead 1 and LEAVE lead # 2 to "&K15&" inches.","") ->  | N16: =(G15+J15+M15)/$E$10*$E$7 -> 0 | O16: =A16 -> 313.1346154 | P16: =L15 -> 0 | Q16: =IF(ISERROR(IF(AC15=W15,Q15+(AC15/T15),Q15+(AD15/T15))), "",IF(AC15=W15,Q15+(AC15/T15),Q15+(AD15/T15))) ->  | R16: =D15 -> 53 | S16: =IF(ISERROR(Q16-R16), 0,Q16-R16) -> 0 | T16: =IF(ISERROR(IF(ISERROR(IF(ISERROR(IF(ISERROR((O16/P16)), 0,(O16/P16))), 0,IF(ISERROR((O16/P16)), 0,(O16/P16)))), 0,IF(ISERROR(IF(ISERROR((O16/P16)), 0,(O16/P16))), 0,IF(ISERROR((O16/P16)), 0,(O16/P16))))), 0,IF(ISERROR(IF(ISERROR(IF(ISERROR((O16/P16)), 0,(O16/P16))), 0,IF(ISERROR((O16/P16)), 0,(O16/P16)))), 0,IF(ISERROR(IF(ISERROR((O16/P16)), 0,(O16/P16))), 0,IF(ISERROR((O16/P16)), 0,(O16/P16))))) -> 0 | U16: =IF(ISERROR(S16*T16), "",S16*T16) -> 0 | V16: =IF(ISERROR(IF(ISERROR(IF(ISERROR(IF(ISERROR(O16/T16), 0,O16/T16)), 0,IF(ISERROR(O16/T16), 0,O16/T16))), 0,IF(ISERROR(IF(ISERROR(O16/T16), 0,O16/T16)), 0,IF(ISERROR(O16/T16), 0,O16/T16)))), 0,IF(ISERROR(IF(ISERROR(IF(ISERROR(O16/T16), 0,O16/T16)), 0,IF(ISERROR(O16/T16), 0,O16/T16))), 0,IF(ISERROR(IF(ISERROR(O16/T16), 0,O16/T16)), 0,IF(ISERROR(O16/T16), 0,O16/T16)))) -> 0 | W16: 14.2 | X16: 0.4 | Y16: =IF(ISERROR(ABS(U16)), "",ABS(U16)) -> 0 | Z16: 0.15 | AA16: =IF(ISERROR(ABS((Y16*X16)/W16)), "",ABS((Y16*X16)/W16)) -> 0 | AB16: =IF(AA16>Z16,Z16,AA16) -> 0 | AC16: =IF(Y16>W16,W16,Y16) -> 0 | AD16: =IF(ISERROR((AC16*AB16)/AA16), "",(AC16*AB16)/AA16) ->  | AE16: =IF(ISERROR(IF(AC16=W16,0,(AC16*AB16)/AA16)), "",IF(AC16=W16,0,(AC16*AB16)/AA16)) ->  | AF16: =IF(ISERROR(IF(AC16=60,Q16+(AC16/T16),Q16+(AD16/T16))), "",IF(AC16=60,Q16+(AC16/T16),Q16+(AD16/T16))) -> 
C17: Test | D17: Target | F17: 1 | G17: dr_o | H17: Lv_in | I17: 2 | J17: dr_o | K17: Lv_in | L17: 3 | M17: dr_o | N17: Lv_in | O17: =A19 -> 279.5 | P17: =F18 -> 0 | Q17: =C18 -> 50 | R17: =D18 -> 53 | S17: =Q17-R17 -> -3 | T17: =IF(ISERROR(IF(ISERROR((O17/P17)), 0,(O17/P17))), 0,IF(ISERROR((O17/P17)), 0,(O17/P17))) -> 0 | U17: =IF(ISERROR(S17*T17), 0,S17*T17) -> 0 | V17: =IF(ISERROR(IF(ISERROR(IF(ISERROR(IF(ISERROR(O17/T17), 0,O17/T17)), 0,IF(ISERROR(O17/T17), 0,O17/T17))), 0,IF(ISERROR(IF(ISERROR(O17/T17), 0,O17/T17)), 0,IF(ISERROR(O17/T17), 0,O17/T17)))), 0,IF(ISERROR(IF(ISERROR(IF(ISERROR(O17/T17), 0,O17/T17)), 0,IF(ISERROR(O17/T17), 0,O17/T17))), 0,IF(ISERROR(IF(ISERROR(O17/T17), 0,O17/T17)), 0,IF(ISERROR(O17/T17), 0,O17/T17)))) -> 0 | W17: 14.2 | X17: 0.4 | Y17: =IF(ISERROR(ABS(U17)), 0,ABS(U17)) -> 0 | Z17: 0.15 | AA17: =IF(ISERROR(ABS((Y17*X17)/W17)), 0,ABS((Y17*X17)/W17)) -> 0 | AB17: =IF(ISERROR(IF(AA17>Z17,Z17,AA17)), 0,IF(AA17>Z17,Z17,AA17)) -> 0 | AC17: =IF(ISERROR(IF(Y17>W17,W17,Y17)), 0,IF(Y17>W17,W17,Y17)) -> 0 | AD17: =IF(ISERROR((AC17*AB17)/AA17), 0,(AC17*AB17)/AA17) -> 0 | AE17: =IF(ISERROR(IF(ISERROR(IF(AC17=W17,0,(AC17*AB17)/AA17)), 0,IF(AC17=W17,0,(AC17*AB17)/AA17))), 0,IF(ISERROR(IF(AC17=W17,0,(AC17*AB17)/AA17)), 0,IF(AC17=W17,0,(AC17*AB17)/AA17))) -> 0 | AF17: =IF(ISERROR(IF(AC17=60,Q17+(AC17/T17),Q17+(AD17/T17))), 0,IF(AC17=60,Q17+(AC17/T17),Q17+(AD17/T17))) -> 0
A18: A# | B18: 2 | C18: 50 | D18: 53 | E18: =IF(ISERROR(Y17), 0,Y17) -> 0 | G18: =IF(ISERROR(AB17), 0,AB17) -> 0 | H18: =IF(ISERROR($E$10-G18), 0,$E$10-G18) -> 0.4 | J18: =IF(ISERROR(AB18), 0,AB18) -> 0 | K18: =IF(ISERROR(ROUND($E$10-J18,3)), 0,ROUND($E$10-J18,3)) -> 0.4 | M18: =IF(ISERROR(AB19), "",AB19) -> 0 | N18: =IF(ISERROR($E$10-M18), "",$E$10-M18) -> 0.4 | O18: =A19 -> 279.5 | P18: =I18 -> 0 | Q18: =IF(ISERROR(IF(AC17=W17,Q17+(AC17/T17),Q17+(AD17/T17))), 0,IF(AC17=W17,Q17+(AC17/T17),Q17+(AD17/T17))) -> 0 | R18: =D18 -> 53 | S18: =IF(ISERROR(Q18-R18), 0,Q18-R18) -> -53 | T18: =IF(ISERROR(IF(ISERROR(IF(ISERROR((O18/P18)), 0,(O18/P18))), 0,IF(ISERROR((O18/P18)), 0,(O18/P18)))), 0,IF(ISERROR(IF(ISERROR((O18/P18)), 0,(O18/P18))), 0,IF(ISERROR((O18/P18)), 0,(O18/P18)))) -> 0 | U18: =IF(ISERROR(S18*T18), 0,S18*T18) -> 0 | V18: =IF(ISERROR(IF(ISERROR(IF(ISERROR(IF(ISERROR(O18/T18), 0,O18/T18)), 0,IF(ISERROR(O18/T18), 0,O18/T18))), 0,IF(ISERROR(IF(ISERROR(O18/T18), 0,O18/T18)), 0,IF(ISERROR(O18/T18), 0,O18/T18)))), 0,IF(ISERROR(IF(ISERROR(IF(ISERROR(O18/T18), 0,O18/T18)), 0,IF(ISERROR(O18/T18), 0,O18/T18))), 0,IF(ISERROR(IF(ISERROR(O18/T18), 0,O18/T18)), 0,IF(ISERROR(O18/T18), 0,O18/T18)))) -> 0 | W18: 14.2 | X18: 0.4 | Y18: =IF(ISERROR(ABS(U18)), 0,ABS(U18)) -> 0 | Z18: 0.15 | AA18: =IF(ISERROR(ABS((Y18*X18)/W18)), 0,ABS((Y18*X18)/W18)) -> 0 | AB18: =IF(ISERROR(IF(AA18>Z18,Z18,AA18)), 0,IF(AA18>Z18,Z18,AA18)) -> 0 | AC18: =IF(ISERROR(IF(Y18>W18,W18,Y18)), 0,IF(Y18>W18,W18,Y18)) -> 0 | AD18: =IF(ISERROR((AC18*AB18)/AA18), "",(AC18*AB18)/AA18) ->  | AE18: =IF(ISERROR(IF(AC18=W18,0,(AC18*AB18)/AA18)), "",IF(AC18=W18,0,(AC18*AB18)/AA18)) ->  | AF18: =IF(ISERROR(IF(AC18=60,Q18+(AC18/T18),Q18+(AD18/T18))), "",IF(AC18=60,Q18+(AC18/T18),Q18+(AD18/T18))) -> 
A19: =R300 -> 279.5 | B19: =IF(AND(C18<D18, E18>$E$7),"Ignore Drill Out Lead 1; rather pop out Lead 1 and LEAVE lead # 2 to "&K18&" inches.","") ->  | N19: =(G18+J18+M18)/$E$10*$E$7 -> 0 | O19: =A19 -> 279.5 | P19: =L18 -> 0 | Q19: =IF(ISERROR(IF(AC18=W18,Q18+(AC18/T18),Q18+(AD18/T18))), "",IF(AC18=W18,Q18+(AC18/T18),Q18+(AD18/T18))) ->  | R19: =D18 -> 53 | S19: =IF(ISERROR(Q19-R19), 0,Q19-R19) -> 0 | T19: =IF(ISERROR((O19/P19)), 0,(O19/P19)) -> 0 | U19: =IF(ISERROR(S19*T19), "",S19*T19) -> 0 | V19: =IF(ISERROR(IF(ISERROR(O19/T19), 0,O19/T19)), 0,IF(ISERROR(O19/T19), 0,O19/T19)) -> 0 | W19: 14.2 | X19: 0.4 | Y19: =IF(ISERROR(ABS(U19)), "",ABS(U19)) -> 0 | Z19: 0.15 | AA19: =IF(ISERROR(ABS((Y19*X19)/W19)), "",ABS((Y19*X19)/W19)) -> 0 | AB19: =IF(AA19>Z19,Z19,AA19) -> 0 | AC19: =IF(Y19>W19,W19,Y19) -> 0 | AD19: =IF(ISERROR((AC19*AB19)/AA19), "",(AC19*AB19)/AA19) ->  | AE19: =IF(ISERROR(IF(AC19=W19,0,(AC19*AB19)/AA19)), "",IF(AC19=W19,0,(AC19*AB19)/AA19)) ->  | AF19: =IF(ISERROR(IF(AC19=60,Q19+(AC19/T19),Q19+(AD19/T19))), "",IF(AC19=60,Q19+(AC19/T19),Q19+(AD19/T19))) -> 
C20: Test | D20: Target | F20: 1 | G20: dr_o | H20: Lv_in | I20: 2 | J20: dr_o | K20: Lv_in | L20: 3 | M20: dr_o | N20: Lv_in | O20: =A22 -> 313.1346154 | P20: =F21 -> 0 | Q20: =C21 -> 50 | R20: =D21 -> 53 | S20: =Q20-R20 -> -3 | T20: =IF(ISERROR(IF(ISERROR(IF(ISERROR(IF(ISERROR((O20/P20)), 0,(O20/P20))), 0,IF(ISERROR((O20/P20)), 0,(O20/P20)))), 0,IF(ISERROR(IF(ISERROR((O20/P20)), 0,(O20/P20))), 0,IF(ISERROR((O20/P20)), 0,(O20/P20))))), 0,IF(ISERROR(IF(ISERROR(IF(ISERROR((O20/P20)), 0,(O20/P20))), 0,IF(ISERROR((O20/P20)), 0,(O20/P20)))), 0,IF(ISERROR(IF(ISERROR((O20/P20)), 0,(O20/P20))), 0,IF(ISERROR((O20/P20)), 0,(O20/P20))))) -> 0 | U20: =IF(ISERROR(IF(ISERROR(IF(ISERROR(IF(ISERROR(S20*T20), 0,S20*T20)), 0,IF(ISERROR(S20*T20), 0,S20*T20))), 0,IF(ISERROR(IF(ISERROR(S20*T20), 0,S20*T20)), 0,IF(ISERROR(S20*T20), 0,S20*T20)))), 0,IF(ISERROR(IF(ISERROR(IF(ISERROR(S20*T20), 0,S20*T20)), 0,IF(ISERROR(S20*T20), 0,S20*T20))), 0,IF(ISERROR(IF(ISERROR(S20*T20), 0,S20*T20)), 0,IF(ISERROR(S20*T20), 0,S20*T20)))) -> 0 | V20: =IF(ISERROR(IF(ISERROR(IF(ISERROR(IF(ISERROR(O20/T20), 0,O20/T20)), 0,IF(ISERROR(O20/T20), 0,O20/T20))), 0,IF(ISERROR(IF(ISERROR(O20/T20), 0,O20/T20)), 0,IF(ISERROR(O20/T20), 0,O20/T20)))), 0,IF(ISERROR(IF(ISERROR(IF(ISERROR(O20/T20), 0,O20/T20)), 0,IF(ISERROR(O20/T20), 0,O20/T20))), 0,IF(ISERROR(IF(ISERROR(O20/T20), 0,O20/T20)), 0,IF(ISERROR(O20/T20), 0,O20/T20)))) -> 0 | W20: 14.2 | X20: 0.4 | Y20: =IF(ISERROR(IF(ISERROR(IF(ISERROR(ABS(U20)), 0,ABS(U20))), 0,IF(ISERROR(ABS(U20)), 0,ABS(U20)))), 0,IF(ISERROR(IF(ISERROR(ABS(U20)), 0,ABS(U20))), 0,IF(ISERROR(ABS(U20)), 0,ABS(U20)))) -> 0 | Z20: 0.15 | AA20: =IF(ISERROR(IF(ISERROR(IF(ISERROR(ABS((Y20*X20)/W20)), 0,ABS((Y20*X20)/W20))), 0,IF(ISERROR(ABS((Y20*X20)/W20)), 0,ABS((Y20*X20)/W20)))), 0,IF(ISERROR(IF(ISERROR(ABS((Y20*X20)/W20)), 0,ABS((Y20*X20)/W20))), 0,IF(ISERROR(ABS((Y20*X20)/W20)), 0,ABS((Y20*X20)/W20)))) -> 0 | AB20: =IF(ISERROR(IF(ISERROR(IF(ISERROR(IF(AA20>Z20,Z20,AA20)), 0,IF(AA20>Z20,Z20,AA20))), 0,IF(ISERROR(IF(AA20>Z20,Z20,AA20)), 0,IF(AA20>Z20,Z20,AA20)))), 0,IF(ISERROR(IF(ISERROR(IF(AA20>Z20,Z20,AA20)), 0,IF(AA20>Z20,Z20,AA20))), 0,IF(ISERROR(IF(AA20>Z20,Z20,AA20)), 0,IF(AA20>Z20,Z20,AA20)))) -> 0 | AC20: =IF(ISERROR(IF(ISERROR(IF(ISERROR(IF(Y20>W20,W20,Y20)), 0,IF(Y20>W20,W20,Y20))), 0,IF(ISERROR(IF(Y20>W20,W20,Y20)), 0,IF(Y20>W20,W20,Y20)))), 0,IF(ISERROR(IF(ISERROR(IF(Y20>W20,W20,Y20)), 0,IF(Y20>W20,W20,Y20))), 0,IF(ISERROR(IF(Y20>W20,W20,Y20)), 0,IF(Y20>W20,W20,Y20)))) -> 0 | AD20: =IF(ISERROR((AC20*AB20)/AA20), 0,(AC20*AB20)/AA20) -> 0 | AE20: =IF(ISERROR(IF(ISERROR(IF(AC20=W20,0,(AC20*AB20)/AA20)), 0,IF(AC20=W20,0,(AC20*AB20)/AA20))), 0,IF(ISERROR(IF(AC20=W20,0,(AC20*AB20)/AA20)), 0,IF(AC20=W20,0,(AC20*AB20)/AA20))) -> 0 | AF20: =IF(ISERROR(IF(AC20=60,Q20+(AC20/T20),Q20+(AD20/T20))), 0,IF(AC20=60,Q20+(AC20/T20),Q20+(AD20/T20))) -> 0
A21: B | B21: 3 | C21: 50 | D21: 53 | E21: =IF(ISERROR(Y20), 0,Y20) -> 0 | G21: =IF(ISERROR(IF(ISERROR(IF(ISERROR(AB20), 0,AB20)), 0,IF(ISERROR(AB20), 0,AB20))), 0,IF(ISERROR(IF(ISERROR(AB20), 0,AB20)), 0,IF(ISERROR(AB20), 0,AB20))) -> 0 | H21: =IF(ISERROR(IF(ISERROR(IF(ISERROR($E$10-G21), 0,$E$10-G21)), 0,IF(ISERROR($E$10-G21), 0,$E$10-G21))), 0,IF(ISERROR(IF(ISERROR($E$10-G21), 0,$E$10-G21)), 0,IF(ISERROR($E$10-G21), 0,$E$10-G21))) -> 0.4 | J21: =IF(ISERROR(AB21), 0,AB21) -> 0 | K21: =IF(ISERROR(ROUND($E$10-J21,3)), 0,ROUND($E$10-J21,3)) -> 0.4 | M21: =IF(ISERROR(AB22), 0,AB22) -> 0 | N21: =IF(ISERROR($E$10-M21), 0,$E$10-M21) -> 0.4 | O21: =A22 -> 313.1346154 | P21: =I21 -> 0 | Q21: =IF(ISERROR(IF(AC20=W20,Q20+(AC20/T20),Q20+(AD20/T20))), 0,IF(AC20=W20,Q20+(AC20/T20),Q20+(AD20/T20))) -> 0 | R21: =D21 -> 53 | S21: =IF(ISERROR(Q21-R21), 0,Q21-R21) -> -53 | T21: =IF(ISERROR(IF(ISERROR(IF(ISERROR(IF(ISERROR((O21/P21)), 0,(O21/P21))), 0,IF(ISERROR((O21/P21)), 0,(O21/P21)))), 0,IF(ISERROR(IF(ISERROR((O21/P21)), 0,(O21/P21))), 0,IF(ISERROR((O21/P21)), 0,(O21/P21))))), 0,IF(ISERROR(IF(ISERROR(IF(ISERROR((O21/P21)), 0,(O21/P21))), 0,IF(ISERROR((O21/P21)), 0,(O21/P21)))), 0,IF(ISERROR(IF(ISERROR((O21/P21)), 0,(O21/P21))), 0,IF(ISERROR((O21/P21)), 0,(O21/P21))))) -> 0 | U21: =IF(ISERROR(S21*T21), 0,S21*T21) -> 0 | V21: =IF(ISERROR(IF(ISERROR(IF(ISERROR(IF(ISERROR(O21/T21), 0,O21/T21)), 0,IF(ISERROR(O21/T21), 0,O21/T21))), 0,IF(ISERROR(IF(ISERROR(O21/T21), 0,O21/T21)), 0,IF(ISERROR(O21/T21), 0,O21/T21)))), 0,IF(ISERROR(IF(ISERROR(IF(ISERROR(O21/T21), 0,O21/T21)), 0,IF(ISERROR(O21/T21), 0,O21/T21))), 0,IF(ISERROR(IF(ISERROR(O21/T21), 0,O21/T21)), 0,IF(ISERROR(O21/T21), 0,O21/T21)))) -> 0 | W21: 14.2 | X21: 0.4 | Y21: =IF(ISERROR(ABS(U21)), 0,ABS(U21)) -> 0 | Z21: 0.15 | AA21: =IF(ISERROR(ABS((Y21*X21)/W21)), 0,ABS((Y21*X21)/W21)) -> 0 | AB21: =IF(ISERROR(IF(AA21>Z21,Z21,AA21)), 0,IF(AA21>Z21,Z21,AA21)) -> 0 | AC21: =IF(ISERROR(IF(Y21>W21,W21,Y21)), 0,IF(Y21>W21,W21,Y21)) -> 0 | AD21: =IF(ISERROR((AC21*AB21)/AA21), 0,(AC21*AB21)/AA21) -> 0 | AE21: =IF(ISERROR(IF(ISERROR(IF(AC21=W21,0,(AC21*AB21)/AA21)), 0,IF(AC21=W21,0,(AC21*AB21)/AA21))), 0,IF(ISERROR(IF(AC21=W21,0,(AC21*AB21)/AA21)), 0,IF(AC21=W21,0,(AC21*AB21)/AA21))) -> 0 | AF21: =IF(ISERROR(IF(AC21=60,Q21+(AC21/T21),Q21+(AD21/T21))), 0,IF(AC21=60,Q21+(AC21/T21),Q21+(AD21/T21))) -> 0
A22: =F301 -> 313.1346154 | B22: =IF(AND(C21<D21, E21>$E$7),"Ignore Drill Out Lead 1; rather pop out Lead 1 and LEAVE lead # 2 to "&K21&" inches.","") ->  | N22: =IF(ISERROR((G21+J21+M21)/$E$10*$E$7), 0,(G21+J21+M21)/$E$10*$E$7) -> 0 | O22: =A22 -> 313.1346154 | P22: =L21 -> 0 | Q22: =IF(ISERROR(IF(AC21=W21,Q21+(AC21/T21),Q21+(AD21/T21))), 0,IF(AC21=W21,Q21+(AC21/T21),Q21+(AD21/T21))) -> 0 | R22: =D21 -> 53 | S22: =IF(ISERROR(Q22-R22), 0,Q22-R22) -> -53 | T22: =IF(ISERROR(IF(ISERROR((O22/P22)), 0,(O22/P22))), 0,IF(ISERROR((O22/P22)), 0,(O22/P22))) -> 0 | U22: =IF(ISERROR(IF(ISERROR(S22*T22), 0,S22*T22)), 0,IF(ISERROR(S22*T22), 0,S22*T22)) -> 0 | V22: =IF(ISERROR(IF(ISERROR(IF(ISERROR(O22/T22), 0,O22/T22)), 0,IF(ISERROR(O22/T22), 0,O22/T22))), 0,IF(ISERROR(IF(ISERROR(O22/T22), 0,O22/T22)), 0,IF(ISERROR(O22/T22), 0,O22/T22))) -> 0 | W22: 14.2 | X22: 0.4 | Y22: =IF(ISERROR(IF(ISERROR(ABS(U22)), 0,ABS(U22))), 0,IF(ISERROR(ABS(U22)), 0,ABS(U22))) -> 0 | Z22: 0.15 | AA22: =IF(ISERROR(IF(ISERROR(ABS((Y22*X22)/W22)), 0,ABS((Y22*X22)/W22))), 0,IF(ISERROR(ABS((Y22*X22)/W22)), 0,ABS((Y22*X22)/W22))) -> 0 | AB22: =IF(ISERROR(IF(ISERROR(IF(AA22>Z22,Z22,AA22)), 0,IF(AA22>Z22,Z22,AA22))), 0,IF(ISERROR(IF(AA22>Z22,Z22,AA22)), 0,IF(AA22>Z22,Z22,AA22))) -> 0 | AC22: =IF(ISERROR(IF(ISERROR(IF(Y22>W22,W22,Y22)), 0,IF(Y22>W22,W22,Y22))), 0,IF(ISERROR(IF(Y22>W22,W22,Y22)), 0,IF(Y22>W22,W22,Y22))) -> 0 | AD22: =IF(ISERROR((AC22*AB22)/AA22), "",(AC22*AB22)/AA22) ->  | AE22: =IF(ISERROR(IF(AC22=W22,0,(AC22*AB22)/AA22)), "",IF(AC22=W22,0,(AC22*AB22)/AA22)) ->  | AF22: =IF(ISERROR(IF(AC22=60,Q22+(AC22/T22),Q22+(AD22/T22))), "",IF(AC22=60,Q22+(AC22/T22),Q22+(AD22/T22))) -> 
C23: Test | D23: Target | F23: 1 | G23: dr_o | H23: Lv_in | I23: 2 | J23: dr_o | K23: Lv_in | L23: 3 | M23: dr_o | N23: Lv_in | O23: =A25 -> 311.7692308 | P23: =F24 -> 0 | Q23: =C24 -> 50 | R23: =D24 -> 53 | S23: =Q23-R23 -> -3 | T23: =IF(ISERROR(IF(ISERROR(IF(ISERROR(IF(ISERROR((O23/P23)), 0,(O23/P23))), 0,IF(ISERROR((O23/P23)), 0,(O23/P23)))), 0,IF(ISERROR(IF(ISERROR((O23/P23)), 0,(O23/P23))), 0,IF(ISERROR((O23/P23)), 0,(O23/P23))))), 0,IF(ISERROR(IF(ISERROR(IF(ISERROR((O23/P23)), 0,(O23/P23))), 0,IF(ISERROR((O23/P23)), 0,(O23/P23)))), 0,IF(ISERROR(IF(ISERROR((O23/P23)), 0,(O23/P23))), 0,IF(ISERROR((O23/P23)), 0,(O23/P23))))) -> 0 | U23: =IF(ISERROR(IF(ISERROR(IF(ISERROR(IF(ISERROR(S23*T23), 0,S23*T23)), 0,IF(ISERROR(S23*T23), 0,S23*T23))), 0,IF(ISERROR(IF(ISERROR(S23*T23), 0,S23*T23)), 0,IF(ISERROR(S23*T23), 0,S23*T23)))), 0,IF(ISERROR(IF(ISERROR(IF(ISERROR(S23*T23), 0,S23*T23)), 0,IF(ISERROR(S23*T23), 0,S23*T23))), 0,IF(ISERROR(IF(ISERROR(S23*T23), 0,S23*T23)), 0,IF(ISERROR(S23*T23), 0,S23*T23)))) -> 0 | V23: =IF(ISERROR(IF(ISERROR(IF(ISERROR(IF(ISERROR(O23/T23), 0,O23/T23)), 0,IF(ISERROR(O23/T23), 0,O23/T23))), 0,IF(ISERROR(IF(ISERROR(O23/T23), 0,O23/T23)), 0,IF(ISERROR(O23/T23), 0,O23/T23)))), 0,IF(ISERROR(IF(ISERROR(IF(ISERROR(O23/T23), 0,O23/T23)), 0,IF(ISERROR(O23/T23), 0,O23/T23))), 0,IF(ISERROR(IF(ISERROR(O23/T23), 0,O23/T23)), 0,IF(ISERROR(O23/T23), 0,O23/T23)))) -> 0 | W23: 14.2 | X23: 0.4 | Y23: =IF(ISERROR(IF(ISERROR(IF(ISERROR(ABS(U23)), 0,ABS(U23))), 0,IF(ISERROR(ABS(U23)), 0,ABS(U23)))), 0,IF(ISERROR(IF(ISERROR(ABS(U23)), 0,ABS(U23))), 0,IF(ISERROR(ABS(U23)), 0,ABS(U23)))) -> 0 | Z23: 0.15 | AA23: =IF(ISERROR(IF(ISERROR(IF(ISERROR(ABS((Y23*X23)/W23)), 0,ABS((Y23*X23)/W23))), 0,IF(ISERROR(ABS((Y23*X23)/W23)), 0,ABS((Y23*X23)/W23)))), 0,IF(ISERROR(IF(ISERROR(ABS((Y23*X23)/W23)), 0,ABS((Y23*X23)/W23))), 0,IF(ISERROR(ABS((Y23*X23)/W23)), 0,ABS((Y23*X23)/W23)))) -> 0 | AB23: =IF(ISERROR(IF(ISERROR(IF(ISERROR(IF(AA23>Z23,Z23,AA23)), 0,IF(AA23>Z23,Z23,AA23))), 0,IF(ISERROR(IF(AA23>Z23,Z23,AA23)), 0,IF(AA23>Z23,Z23,AA23)))), 0,IF(ISERROR(IF(ISERROR(IF(AA23>Z23,Z23,AA23)), 0,IF(AA23>Z23,Z23,AA23))), 0,IF(ISERROR(IF(AA23>Z23,Z23,AA23)), 0,IF(AA23>Z23,Z23,AA23)))) -> 0 | AC23: =IF(ISERROR(IF(ISERROR(IF(ISERROR(IF(Y23>W23,W23,Y23)), 0,IF(Y23>W23,W23,Y23))), 0,IF(ISERROR(IF(Y23>W23,W23,Y23)), 0,IF(Y23>W23,W23,Y23)))), 0,IF(ISERROR(IF(ISERROR(IF(Y23>W23,W23,Y23)), 0,IF(Y23>W23,W23,Y23))), 0,IF(ISERROR(IF(Y23>W23,W23,Y23)), 0,IF(Y23>W23,W23,Y23)))) -> 0 | AD23: =IF(ISERROR((AC23*AB23)/AA23), 0,(AC23*AB23)/AA23) -> 0 | AE23: =IF(ISERROR(IF(ISERROR(IF(AC23=W23,0,(AC23*AB23)/AA23)), 0,IF(AC23=W23,0,(AC23*AB23)/AA23))), 0,IF(ISERROR(IF(AC23=W23,0,(AC23*AB23)/AA23)), 0,IF(AC23=W23,0,(AC23*AB23)/AA23))) -> 0 | AF23: =IF(ISERROR(IF(AC23=60,Q23+(AC23/T23),Q23+(AD23/T23))), 0,IF(AC23=60,Q23+(AC23/T23),Q23+(AD23/T23))) -> 0
A24: C | B24: 4 | C24: 50 | D24: 53 | E24: =IF(ISERROR(IF(ISERROR(IF(ISERROR(Y23), 0,Y23)), 0,IF(ISERROR(Y23), 0,Y23))), 0,IF(ISERROR(IF(ISERROR(Y23), 0,Y23)), 0,IF(ISERROR(Y23), 0,Y23))) -> 0 | G24: =IF(ISERROR(IF(ISERROR(IF(ISERROR(AB23), 0,AB23)), 0,IF(ISERROR(AB23), 0,AB23))), 0,IF(ISERROR(IF(ISERROR(AB23), 0,AB23)), 0,IF(ISERROR(AB23), 0,AB23))) -> 0 | H24: =IF(ISERROR(IF(ISERROR(IF(ISERROR($E$10-G24), 0,$E$10-G24)), 0,IF(ISERROR($E$10-G24), 0,$E$10-G24))), 0,IF(ISERROR(IF(ISERROR($E$10-G24), 0,$E$10-G24)), 0,IF(ISERROR($E$10-G24), 0,$E$10-G24))) -> 0.4 | J24: =IF(ISERROR(AB24), 0,AB24) -> 0 | K24: =IF(ISERROR(ROUND($E$10-J24,3)), 0,ROUND($E$10-J24,3)) -> 0.4 | M24: =IF(ISERROR(AB25), 0,AB25) -> 0 | N24: =IF(ISERROR($E$10-M24), 0,$E$10-M24) -> 0.4 | O24: =A25 -> 311.7692308 | P24: =I24 -> 0 | Q24: =IF(ISERROR(IF(AC23=W23,Q23+(AC23/T23),Q23+(AD23/T23))), 0,IF(AC23=W23,Q23+(AC23/T23),Q23+(AD23/T23))) -> 0 | R24: =D24 -> 53 | S24: =IF(ISERROR(Q24-R24), 0,Q24-R24) -> -53 | T24: =IF(ISERROR(IF(ISERROR(IF(ISERROR(IF(ISERROR((O24/P24)), 0,(O24/P24))), 0,IF(ISERROR((O24/P24)), 0,(O24/P24)))), 0,IF(ISERROR(IF(ISERROR((O24/P24)), 0,(O24/P24))), 0,IF(ISERROR((O24/P24)), 0,(O24/P24))))), 0,IF(ISERROR(IF(ISERROR(IF(ISERROR((O24/P24)), 0,(O24/P24))), 0,IF(ISERROR((O24/P24)), 0,(O24/P24)))), 0,IF(ISERROR(IF(ISERROR((O24/P24)), 0,(O24/P24))), 0,IF(ISERROR((O24/P24)), 0,(O24/P24))))) -> 0 | U24: =IF(ISERROR(S24*T24), 0,S24*T24) -> 0 | V24: =IF(ISERROR(IF(ISERROR(IF(ISERROR(IF(ISERROR(O24/T24), 0,O24/T24)), 0,IF(ISERROR(O24/T24), 0,O24/T24))), 0,IF(ISERROR(IF(ISERROR(O24/T24), 0,O24/T24)), 0,IF(ISERROR(O24/T24), 0,O24/T24)))), 0,IF(ISERROR(IF(ISERROR(IF(ISERROR(O24/T24), 0,O24/T24)), 0,IF(ISERROR(O24/T24), 0,O24/T24))), 0,IF(ISERROR(IF(ISERROR(O24/T24), 0,O24/T24)), 0,IF(ISERROR(O24/T24), 0,O24/T24)))) -> 0 | W24: 14.2 | X24: 0.4 | Y24: =IF(ISERROR(ABS(U24)), 0,ABS(U24)) -> 0 | Z24: 0.15 | AA24: =IF(ISERROR(ABS((Y24*X24)/W24)), 0,ABS((Y24*X24)/W24)) -> 0 | AB24: =IF(ISERROR(IF(AA24>Z24,Z24,AA24)), 0,IF(AA24>Z24,Z24,AA24)) -> 0 | AC24: =IF(ISERROR(IF(Y24>W24,W24,Y24)), 0,IF(Y24>W24,W24,Y24)) -> 0 | AD24: =IF(ISERROR((AC24*AB24)/AA24), 0,(AC24*AB24)/AA24) -> 0 | AE24: =IF(ISERROR(IF(ISERROR(IF(AC24=W24,0,(AC24*AB24)/AA24)), 0,IF(AC24=W24,0,(AC24*AB24)/AA24))), 0,IF(ISERROR(IF(AC24=W24,0,(AC24*AB24)/AA24)), 0,IF(AC24=W24,0,(AC24*AB24)/AA24))) -> 0 | AF24: =IF(ISERROR(IF(AC24=60,Q24+(AC24/T24),Q24+(AD24/T24))), 0,IF(AC24=60,Q24+(AC24/T24),Q24+(AD24/T24))) -> 0
A25: =F302 -> 311.7692308 | B25: =IF(AND(C24<D24, E24>$E$7),"Ignore Drill Out Lead 1; rather pop out Lead 1 and LEAVE lead # 2 to "&K24&" inches.","") ->  | N25: =IF(ISERROR((G24+J24+M24)/$E$10*$E$7), 0,(G24+J24+M24)/$E$10*$E$7) -> 0 | O25: =A25 -> 311.7692308 | P25: =L24 -> 0 | Q25: =IF(ISERROR(IF(AC24=W24,Q24+(AC24/T24),Q24+(AD24/T24))), 0,IF(AC24=W24,Q24+(AC24/T24),Q24+(AD24/T24))) -> 0 | R25: =D24 -> 53 | S25: =IF(ISERROR(Q25-R25), 0,Q25-R25) -> -53 | T25: =IF(ISERROR(IF(ISERROR((O25/P25)), 0,(O25/P25))), 0,IF(ISERROR((O25/P25)), 0,(O25/P25))) -> 0 | U25: =IF(ISERROR(IF(ISERROR(S25*T25), 0,S25*T25)), 0,IF(ISERROR(S25*T25), 0,S25*T25)) -> 0 | V25: =IF(ISERROR(IF(ISERROR(IF(ISERROR(O25/T25), 0,O25/T25)), 0,IF(ISERROR(O25/T25), 0,O25/T25))), 0,IF(ISERROR(IF(ISERROR(O25/T25), 0,O25/T25)), 0,IF(ISERROR(O25/T25), 0,O25/T25))) -> 0 | W25: 14.2 | X25: 0.4 | Y25: =IF(ISERROR(IF(ISERROR(ABS(U25)), 0,ABS(U25))), 0,IF(ISERROR(ABS(U25)), 0,ABS(U25))) -> 0 | Z25: 0.15 | AA25: =IF(ISERROR(IF(ISERROR(ABS((Y25*X25)/W25)), 0,ABS((Y25*X25)/W25))), 0,IF(ISERROR(ABS((Y25*X25)/W25)), 0,ABS((Y25*X25)/W25))) -> 0 | AB25: =IF(ISERROR(IF(ISERROR(IF(AA25>Z25,Z25,AA25)), 0,IF(AA25>Z25,Z25,AA25))), 0,IF(ISERROR(IF(AA25>Z25,Z25,AA25)), 0,IF(AA25>Z25,Z25,AA25))) -> 0 | AC25: =IF(ISERROR(IF(ISERROR(IF(Y25>W25,W25,Y25)), 0,IF(Y25>W25,W25,Y25))), 0,IF(ISERROR(IF(Y25>W25,W25,Y25)), 0,IF(Y25>W25,W25,Y25))) -> 0 | AD25: =IF(ISERROR((AC25*AB25)/AA25), "",(AC25*AB25)/AA25) ->  | AE25: =IF(ISERROR(IF(AC25=W25,0,(AC25*AB25)/AA25)), "",IF(AC25=W25,0,(AC25*AB25)/AA25)) ->  | AF25: =IF(ISERROR(IF(AC25=60,Q25+(AC25/T25),Q25+(AD25/T25))), "",IF(AC25=60,Q25+(AC25/T25),Q25+(AD25/T25))) -> 
C26: Test | D26: Target | F26: 1 | G26: dr_o | H26: Lv_in | I26: 2 | J26: dr_o | K26: Lv_in | L26: 3 | M26: dr_o | N26: Lv_in | O26: =A28 -> 278.5 | P26: =F27 -> 0 | Q26: =C27 -> 50 | R26: =D27 -> 53 | S26: =Q26-R26 -> -3 | T26: =IF(ISERROR(IF(ISERROR(IF(ISERROR(IF(ISERROR((O26/P26)), 0,(O26/P26))), 0,IF(ISERROR((O26/P26)), 0,(O26/P26)))), 0,IF(ISERROR(IF(ISERROR((O26/P26)), 0,(O26/P26))), 0,IF(ISERROR((O26/P26)), 0,(O26/P26))))), 0,IF(ISERROR(IF(ISERROR(IF(ISERROR((O26/P26)), 0,(O26/P26))), 0,IF(ISERROR((O26/P26)), 0,(O26/P26)))), 0,IF(ISERROR(IF(ISERROR((O26/P26)), 0,(O26/P26))), 0,IF(ISERROR((O26/P26)), 0,(O26/P26))))) -> 0 | U26: =IF(ISERROR(IF(ISERROR(IF(ISERROR(IF(ISERROR(S26*T26), 0,S26*T26)), 0,IF(ISERROR(S26*T26), 0,S26*T26))), 0,IF(ISERROR(IF(ISERROR(S26*T26), 0,S26*T26)), 0,IF(ISERROR(S26*T26), 0,S26*T26)))), 0,IF(ISERROR(IF(ISERROR(IF(ISERROR(S26*T26), 0,S26*T26)), 0,IF(ISERROR(S26*T26), 0,S26*T26))), 0,IF(ISERROR(IF(ISERROR(S26*T26), 0,S26*T26)), 0,IF(ISERROR(S26*T26), 0,S26*T26)))) -> 0 | V26: =IF(ISERROR(IF(ISERROR(IF(ISERROR(IF(ISERROR(O26/T26), 0,O26/T26)), 0,IF(ISERROR(O26/T26), 0,O26/T26))), 0,IF(ISERROR(IF(ISERROR(O26/T26), 0,O26/T26)), 0,IF(ISERROR(O26/T26), 0,O26/T26)))), 0,IF(ISERROR(IF(ISERROR(IF(ISERROR(O26/T26), 0,O26/T26)), 0,IF(ISERROR(O26/T26), 0,O26/T26))), 0,IF(ISERROR(IF(ISERROR(O26/T26), 0,O26/T26)), 0,IF(ISERROR(O26/T26), 0,O26/T26)))) -> 0 | W26: 14.2 | X26: 0.4 | Y26: =IF(ISERROR(IF(ISERROR(IF(ISERROR(ABS(U26)), 0,ABS(U26))), 0,IF(ISERROR(ABS(U26)), 0,ABS(U26)))), 0,IF(ISERROR(IF(ISERROR(ABS(U26)), 0,ABS(U26))), 0,IF(ISERROR(ABS(U26)), 0,ABS(U26)))) -> 0 | Z26: 0.15 | AA26: =IF(ISERROR(IF(ISERROR(IF(ISERROR(ABS((Y26*X26)/W26)), 0,ABS((Y26*X26)/W26))), 0,IF(ISERROR(ABS((Y26*X26)/W26)), 0,ABS((Y26*X26)/W26)))), 0,IF(ISERROR(IF(ISERROR(ABS((Y26*X26)/W26)), 0,ABS((Y26*X26)/W26))), 0,IF(ISERROR(ABS((Y26*X26)/W26)), 0,ABS((Y26*X26)/W26)))) -> 0 | AB26: =IF(ISERROR(IF(ISERROR(IF(ISERROR(IF(AA26>Z26,Z26,AA26)), 0,IF(AA26>Z26,Z26,AA26))), 0,IF(ISERROR(IF(AA26>Z26,Z26,AA26)), 0,IF(AA26>Z26,Z26,AA26)))), 0,IF(ISERROR(IF(ISERROR(IF(AA26>Z26,Z26,AA26)), 0,IF(AA26>Z26,Z26,AA26))), 0,IF(ISERROR(IF(AA26>Z26,Z26,AA26)), 0,IF(AA26>Z26,Z26,AA26)))) -> 0 | AC26: =IF(ISERROR(IF(ISERROR(IF(ISERROR(IF(Y26>W26,W26,Y26)), 0,IF(Y26>W26,W26,Y26))), 0,IF(ISERROR(IF(Y26>W26,W26,Y26)), 0,IF(Y26>W26,W26,Y26)))), 0,IF(ISERROR(IF(ISERROR(IF(Y26>W26,W26,Y26)), 0,IF(Y26>W26,W26,Y26))), 0,IF(ISERROR(IF(Y26>W26,W26,Y26)), 0,IF(Y26>W26,W26,Y26)))) -> 0 | AD26: =IF(ISERROR((AC26*AB26)/AA26), 0,(AC26*AB26)/AA26) -> 0 | AE26: =IF(ISERROR(IF(ISERROR(IF(AC26=W26,0,(AC26*AB26)/AA26)), 0,IF(AC26=W26,0,(AC26*AB26)/AA26))), 0,IF(ISERROR(IF(AC26=W26,0,(AC26*AB26)/AA26)), 0,IF(AC26=W26,0,(AC26*AB26)/AA26))) -> 0 | AF26: =IF(ISERROR(IF(AC26=60,Q26+(AC26/T26),Q26+(AD26/T26))), 0,IF(AC26=60,Q26+(AC26/T26),Q26+(AD26/T26))) -> 0
A27: C# | B27: 5 | C27: 50 | D27: 53 | E27: =IF(ISERROR(IF(ISERROR(IF(ISERROR(Y26), 0,Y26)), 0,IF(ISERROR(Y26), 0,Y26))), 0,IF(ISERROR(IF(ISERROR(Y26), 0,Y26)), 0,IF(ISERROR(Y26), 0,Y26))) -> 0 | G27: =IF(ISERROR(IF(ISERROR(IF(ISERROR(AB26), 0,AB26)), 0,IF(ISERROR(AB26), 0,AB26))), 0,IF(ISERROR(IF(ISERROR(AB26), 0,AB26)), 0,IF(ISERROR(AB26), 0,AB26))) -> 0 | H27: =IF(ISERROR(IF(ISERROR(IF(ISERROR($E$10-G27), 0,$E$10-G27)), 0,IF(ISERROR($E$10-G27), 0,$E$10-G27))), 0,IF(ISERROR(IF(ISERROR($E$10-G27), 0,$E$10-G27)), 0,IF(ISERROR($E$10-G27), 0,$E$10-G27))) -> 0.4 | J27: =IF(ISERROR(AB27), 0,AB27) -> 0 | K27: =IF(ISERROR(ROUND($E$10-J27,3)), 0,ROUND($E$10-J27,3)) -> 0.4 | M27: =IF(ISERROR(AB28), 0,AB28) -> 0 | N27: =IF(ISERROR($E$10-M27), 0,$E$10-M27) -> 0.4 | O27: =A28 -> 278.5 | P27: =I27 -> 0 | Q27: =IF(ISERROR(IF(AC26=W26,Q26+(AC26/T26),Q26+(AD26/T26))), 0,IF(AC26=W26,Q26+(AC26/T26),Q26+(AD26/T26))) -> 0 | R27: =D27 -> 53 | S27: =IF(ISERROR(Q27-R27), 0,Q27-R27) -> -53 | T27: =IF(ISERROR(IF(ISERROR(IF(ISERROR(IF(ISERROR((O27/P27)), 0,(O27/P27))), 0,IF(ISERROR((O27/P27)), 0,(O27/P27)))), 0,IF(ISERROR(IF(ISERROR((O27/P27)), 0,(O27/P27))), 0,IF(ISERROR((O27/P27)), 0,(O27/P27))))), 0,IF(ISERROR(IF(ISERROR(IF(ISERROR((O27/P27)), 0,(O27/P27))), 0,IF(ISERROR((O27/P27)), 0,(O27/P27)))), 0,IF(ISERROR(IF(ISERROR((O27/P27)), 0,(O27/P27))), 0,IF(ISERROR((O27/P27)), 0,(O27/P27))))) -> 0 | U27: =IF(ISERROR(S27*T27), 0,S27*T27) -> 0 | V27: =IF(ISERROR(IF(ISERROR(IF(ISERROR(IF(ISERROR(O27/T27), 0,O27/T27)), 0,IF(ISERROR(O27/T27), 0,O27/T27))), 0,IF(ISERROR(IF(ISERROR(O27/T27), 0,O27/T27)), 0,IF(ISERROR(O27/T27), 0,O27/T27)))), 0,IF(ISERROR(IF(ISERROR(IF(ISERROR(O27/T27), 0,O27/T27)), 0,IF(ISERROR(O27/T27), 0,O27/T27))), 0,IF(ISERROR(IF(ISERROR(O27/T27), 0,O27/T27)), 0,IF(ISERROR(O27/T27), 0,O27/T27)))) -> 0 | W27: 14.2 | X27: 0.4 | Y27: =IF(ISERROR(ABS(U27)), 0,ABS(U27)) -> 0 | Z27: 0.15 | AA27: =IF(ISERROR(ABS((Y27*X27)/W27)), 0,ABS((Y27*X27)/W27)) -> 0 | AB27: =IF(ISERROR(IF(AA27>Z27,Z27,AA27)), 0,IF(AA27>Z27,Z27,AA27)) -> 0 | AC27: =IF(ISERROR(IF(Y27>W27,W27,Y27)), 0,IF(Y27>W27,W27,Y27)) -> 0 | AD27: =IF(ISERROR(IF(ISERROR(IF(ISERROR((AC27*AB27)/AA27), 0,(AC27*AB27)/AA27)), 0,IF(ISERROR((AC27*AB27)/AA27), 0,(AC27*AB27)/AA27))), 0,IF(ISERROR(IF(ISERROR((AC27*AB27)/AA27), 0,(AC27*AB27)/AA27)), 0,IF(ISERROR((AC27*AB27)/AA27), 0,(AC27*AB27)/AA27))) -> 0 | AE27: =IF(ISERROR(IF(ISERROR(IF(ISERROR(IF(AC27=W27,0,(AC27*AB27)/AA27)), 0,IF(AC27=W27,0,(AC27*AB27)/AA27))), 0,IF(ISERROR(IF(AC27=W27,0,(AC27*AB27)/AA27)), 0,IF(AC27=W27,0,(AC27*AB27)/AA27)))), 0,IF(ISERROR(IF(ISERROR(IF(AC27=W27,0,(AC27*AB27)/AA27)), 0,IF(AC27=W27,0,(AC27*AB27)/AA27))), 0,IF(ISERROR(IF(AC27=W27,0,(AC27*AB27)/AA27)), 0,IF(AC27=W27,0,(AC27*AB27)/AA27)))) -> 0 | AF27: =IF(ISERROR(IF(ISERROR(IF(AC27=60,Q27+(AC27/T27),Q27+(AD27/T27))), 0,IF(AC27=60,Q27+(AC27/T27),Q27+(AD27/T27)))), 0,IF(ISERROR(IF(AC27=60,Q27+(AC27/T27),Q27+(AD27/T27))), 0,IF(AC27=60,Q27+(AC27/T27),Q27+(AD27/T27)))) -> 0
A28: =R301 -> 278.5 | B28: =IF(AND(C27<D27, E27>$E$7),"Ignore Drill Out Lead 1; rather pop out Lead 1 and LEAVE lead # 2 to "&K27&" inches.","") ->  | N28: =IF(ISERROR((G27+J27+M27)/$E$10*$E$7), 0,(G27+J27+M27)/$E$10*$E$7) -> 0 | O28: =A28 -> 278.5 | P28: =L27 -> 0 | Q28: =IF(ISERROR(IF(ISERROR(IF(AC27=W27,Q27+(AC27/T27),Q27+(AD27/T27))), 0,IF(AC27=W27,Q27+(AC27/T27),Q27+(AD27/T27)))), 0,IF(ISERROR(IF(AC27=W27,Q27+(AC27/T27),Q27+(AD27/T27))), 0,IF(AC27=W27,Q27+(AC27/T27),Q27+(AD27/T27)))) -> 0 | R28: =D27 -> 53 | S28: =IF(ISERROR(Q28-R28), 0,Q28-R28) -> -53 | T28: =IF(ISERROR(IF(ISERROR((O28/P28)), 0,(O28/P28))), 0,IF(ISERROR((O28/P28)), 0,(O28/P28))) -> 0 | U28: =IF(ISERROR(IF(ISERROR(S28*T28), 0,S28*T28)), 0,IF(ISERROR(S28*T28), 0,S28*T28)) -> 0 | V28: =IF(ISERROR(IF(ISERROR(IF(ISERROR(O28/T28), 0,O28/T28)), 0,IF(ISERROR(O28/T28), 0,O28/T28))), 0,IF(ISERROR(IF(ISERROR(O28/T28), 0,O28/T28)), 0,IF(ISERROR(O28/T28), 0,O28/T28))) -> 0 | W28: 14.2 | X28: 0.4 | Y28: =IF(ISERROR(IF(ISERROR(ABS(U28)), 0,ABS(U28))), 0,IF(ISERROR(ABS(U28)), 0,ABS(U28))) -> 0 | Z28: 0.15 | AA28: =IF(ISERROR(IF(ISERROR(ABS((Y28*X28)/W28)), 0,ABS((Y28*X28)/W28))), 0,IF(ISERROR(ABS((Y28*X28)/W28)), 0,ABS((Y28*X28)/W28))) -> 0 | AB28: =IF(ISERROR(IF(ISERROR(IF(AA28>Z28,Z28,AA28)), 0,IF(AA28>Z28,Z28,AA28))), 0,IF(ISERROR(IF(AA28>Z28,Z28,AA28)), 0,IF(AA28>Z28,Z28,AA28))) -> 0 | AC28: =IF(ISERROR(IF(ISERROR(IF(Y28>W28,W28,Y28)), 0,IF(Y28>W28,W28,Y28))), 0,IF(ISERROR(IF(Y28>W28,W28,Y28)), 0,IF(Y28>W28,W28,Y28))) -> 0 | AD28: =IF(ISERROR((AC28*AB28)/AA28), "",(AC28*AB28)/AA28) ->  | AE28: =IF(ISERROR(IF(AC28=W28,0,(AC28*AB28)/AA28)), "",IF(AC28=W28,0,(AC28*AB28)/AA28)) ->  | AF28: =IF(ISERROR(IF(AC28=60,Q28+(AC28/T28),Q28+(AD28/T28))), "",IF(AC28=60,Q28+(AC28/T28),Q28+(AD28/T28))) -> 
C29: Test | D29: Target | F29: 1 | G29: dr_o | H29: Lv_in | I29: 2 | J29: dr_o | K29: Lv_in | L29: 3 | M29: dr_o | N29: Lv_in | O29: =A31 -> 310.4038462 | P29: =F30 -> 0 | Q29: =C30 -> 50 | R29: =D30 -> 53 | S29: =Q29-R29 -> -3 | T29: =IF(ISERROR(IF(ISERROR(IF(ISERROR(IF(ISERROR((O29/P29)), 0,(O29/P29))), 0,IF(ISERROR((O29/P29)), 0,(O29/P29)))), 0,IF(ISERROR(IF(ISERROR((O29/P29)), 0,(O29/P29))), 0,IF(ISERROR((O29/P29)), 0,(O29/P29))))), 0,IF(ISERROR(IF(ISERROR(IF(ISERROR((O29/P29)), 0,(O29/P29))), 0,IF(ISERROR((O29/P29)), 0,(O29/P29)))), 0,IF(ISERROR(IF(ISERROR((O29/P29)), 0,(O29/P29))), 0,IF(ISERROR((O29/P29)), 0,(O29/P29))))) -> 0 | U29: =IF(ISERROR(IF(ISERROR(IF(ISERROR(IF(ISERROR(S29*T29), 0,S29*T29)), 0,IF(ISERROR(S29*T29), 0,S29*T29))), 0,IF(ISERROR(IF(ISERROR(S29*T29), 0,S29*T29)), 0,IF(ISERROR(S29*T29), 0,S29*T29)))), 0,IF(ISERROR(IF(ISERROR(IF(ISERROR(S29*T29), 0,S29*T29)), 0,IF(ISERROR(S29*T29), 0,S29*T29))), 0,IF(ISERROR(IF(ISERROR(S29*T29), 0,S29*T29)), 0,IF(ISERROR(S29*T29), 0,S29*T29)))) -> 0 | V29: =IF(ISERROR(IF(ISERROR(IF(ISERROR(IF(ISERROR(O29/T29), 0,O29/T29)), 0,IF(ISERROR(O29/T29), 0,O29/T29))), 0,IF(ISERROR(IF(ISERROR(O29/T29), 0,O29/T29)), 0,IF(ISERROR(O29/T29), 0,O29/T29)))), 0,IF(ISERROR(IF(ISERROR(IF(ISERROR(O29/T29), 0,O29/T29)), 0,IF(ISERROR(O29/T29), 0,O29/T29))), 0,IF(ISERROR(IF(ISERROR(O29/T29), 0,O29/T29)), 0,IF(ISERROR(O29/T29), 0,O29/T29)))) -> 0 | W29: 14.2 | X29: 0.4 | Y29: =IF(ISERROR(IF(ISERROR(IF(ISERROR(ABS(U29)), 0,ABS(U29))), 0,IF(ISERROR(ABS(U29)), 0,ABS(U29)))), 0,IF(ISERROR(IF(ISERROR(ABS(U29)), 0,ABS(U29))), 0,IF(ISERROR(ABS(U29)), 0,ABS(U29)))) -> 0 | Z29: 0.15 | AA29: =IF(ISERROR(IF(ISERROR(IF(ISERROR(ABS((Y29*X29)/W29)), 0,ABS((Y29*X29)/W29))), 0,IF(ISERROR(ABS((Y29*X29)/W29)), 0,ABS((Y29*X29)/W29)))), 0,IF(ISERROR(IF(ISERROR(ABS((Y29*X29)/W29)), 0,ABS((Y29*X29)/W29))), 0,IF(ISERROR(ABS((Y29*X29)/W29)), 0,ABS((Y29*X29)/W29)))) -> 0 | AB29: =IF(ISERROR(IF(ISERROR(IF(ISERROR(IF(AA29>Z29,Z29,AA29)), 0,IF(AA29>Z29,Z29,AA29))), 0,IF(ISERROR(IF(AA29>Z29,Z29,AA29)), 0,IF(AA29>Z29,Z29,AA29)))), 0,IF(ISERROR(IF(ISERROR(IF(AA29>Z29,Z29,AA29)), 0,IF(AA29>Z29,Z29,AA29))), 0,IF(ISERROR(IF(AA29>Z29,Z29,AA29)), 0,IF(AA29>Z29,Z29,AA29)))) -> 0 | AC29: =IF(ISERROR(IF(ISERROR(IF(ISERROR(IF(Y29>W29,W29,Y29)), 0,IF(Y29>W29,W29,Y29))), 0,IF(ISERROR(IF(Y29>W29,W29,Y29)), 0,IF(Y29>W29,W29,Y29)))), 0,IF(ISERROR(IF(ISERROR(IF(Y29>W29,W29,Y29)), 0,IF(Y29>W29,W29,Y29))), 0,IF(ISERROR(IF(Y29>W29,W29,Y29)), 0,IF(Y29>W29,W29,Y29)))) -> 0 | AD29: =IF(ISERROR((AC29*AB29)/AA29), 0,(AC29*AB29)/AA29) -> 0 | AE29: =IF(ISERROR(IF(ISERROR(IF(AC29=W29,0,(AC29*AB29)/AA29)), 0,IF(AC29=W29,0,(AC29*AB29)/AA29))), 0,IF(ISERROR(IF(AC29=W29,0,(AC29*AB29)/AA29)), 0,IF(AC29=W29,0,(AC29*AB29)/AA29))) -> 0 | AF29: =IF(ISERROR(IF(AC29=60,Q29+(AC29/T29),Q29+(AD29/T29))), 0,IF(AC29=60,Q29+(AC29/T29),Q29+(AD29/T29))) -> 0
A30: D | B30: 6 | C30: 50 | D30: 53 | E30: =IF(ISERROR(IF(ISERROR(IF(ISERROR(Y29), 0,Y29)), 0,IF(ISERROR(Y29), 0,Y29))), 0,IF(ISERROR(IF(ISERROR(Y29), 0,Y29)), 0,IF(ISERROR(Y29), 0,Y29))) -> 0 | G30: =IF(ISERROR(IF(ISERROR(IF(ISERROR(AB29), 0,AB29)), 0,IF(ISERROR(AB29), 0,AB29))), 0,IF(ISERROR(IF(ISERROR(AB29), 0,AB29)), 0,IF(ISERROR(AB29), 0,AB29))) -> 0 | H30: =IF(ISERROR(IF(ISERROR(IF(ISERROR($E$10-G30), 0,$E$10-G30)), 0,IF(ISERROR($E$10-G30), 0,$E$10-G30))), 0,IF(ISERROR(IF(ISERROR($E$10-G30), 0,$E$10-G30)), 0,IF(ISERROR($E$10-G30), 0,$E$10-G30))) -> 0.4 | J30: =IF(ISERROR(AB30), 0,AB30) -> 0 | K30: =IF(ISERROR(ROUND($E$10-J30,3)), 0,ROUND($E$10-J30,3)) -> 0.4 | M30: =IF(ISERROR(AB31), 0,AB31) -> 0 | N30: =IF(ISERROR($E$10-M30), 0,$E$10-M30) -> 0.4 | O30: =A31 -> 310.4038462 | P30: =I30 -> 0 | Q30: =IF(ISERROR(IF(AC29=W29,Q29+(AC29/T29),Q29+(AD29/T29))), 0,IF(AC29=W29,Q29+(AC29/T29),Q29+(AD29/T29))) -> 0 | R30: =D30 -> 53 | S30: =IF(ISERROR(Q30-R30), 0,Q30-R30) -> -53 | T30: =IF(ISERROR(IF(ISERROR(IF(ISERROR(IF(ISERROR((O30/P30)), 0,(O30/P30))), 0,IF(ISERROR((O30/P30)), 0,(O30/P30)))), 0,IF(ISERROR(IF(ISERROR((O30/P30)), 0,(O30/P30))), 0,IF(ISERROR((O30/P30)), 0,(O30/P30))))), 0,IF(ISERROR(IF(ISERROR(IF(ISERROR((O30/P30)), 0,(O30/P30))), 0,IF(ISERROR((O30/P30)), 0,(O30/P30)))), 0,IF(ISERROR(IF(ISERROR((O30/P30)), 0,(O30/P30))), 0,IF(ISERROR((O30/P30)), 0,(O30/P30))))) -> 0 | U30: =IF(ISERROR(S30*T30), 0,S30*T30) -> 0 | V30: =IF(ISERROR(IF(ISERROR(IF(ISERROR(IF(ISERROR(O30/T30), 0,O30/T30)), 0,IF(ISERROR(O30/T30), 0,O30/T30))), 0,IF(ISERROR(IF(ISERROR(O30/T30), 0,O30/T30)), 0,IF(ISERROR(O30/T30), 0,O30/T30)))), 0,IF(ISERROR(IF(ISERROR(IF(ISERROR(O30/T30), 0,O30/T30)), 0,IF(ISERROR(O30/T30), 0,O30/T30))), 0,IF(ISERROR(IF(ISERROR(O30/T30), 0,O30/T30)), 0,IF(ISERROR(O30/T30), 0,O30/T30)))) -> 0 | W30: 14.2 | X30: 0.4 | Y30: =IF(ISERROR(ABS(U30)), 0,ABS(U30)) -> 0 | Z30: 0.15 | AA30: =IF(ISERROR(ABS((Y30*X30)/W30)), 0,ABS((Y30*X30)/W30)) -> 0 | AB30: =IF(ISERROR(IF(AA30>Z30,Z30,AA30)), 0,IF(AA30>Z30,Z30,AA30)) -> 0 | AC30: =IF(ISERROR(IF(Y30>W30,W30,Y30)), 0,IF(Y30>W30,W30,Y30)) -> 0 | AD30: =IF(ISERROR(IF(ISERROR(IF(ISERROR(IF(ISERROR((AC30*AB30)/AA30), 0,(AC30*AB30)/AA30)), 0,IF(ISERROR((AC30*AB30)/AA30), 0,(AC30*AB30)/AA30))), 0,IF(ISERROR(IF(ISERROR((AC30*AB30)/AA30), 0,(AC30*AB30)/AA30)), 0,IF(ISERROR((AC30*AB30)/AA30), 0,(AC30*AB30)/AA30)))), 0,IF(ISERROR(IF(ISERROR(IF(ISERROR((AC30*AB30)/AA30), 0,(AC30*AB30)/AA30)), 0,IF(ISERROR((AC30*AB30)/AA30), 0,(AC30*AB30)/AA30))), 0,IF(ISERROR(IF(ISERROR((AC30*AB30)/AA30), 0,(AC30*AB30)/AA30)), 0,IF(ISERROR((AC30*AB30)/AA30), 0,(AC30*AB30)/AA30)))) -> 0 | AE30: =IF(ISERROR(IF(ISERROR(IF(ISERROR(IF(AC30=W30,0,(AC30*AB30)/AA30)), 0,IF(AC30=W30,0,(AC30*AB30)/AA30))), 0,IF(ISERROR(IF(AC30=W30,0,(AC30*AB30)/AA30)), 0,IF(AC30=W30,0,(AC30*AB30)/AA30)))), 0,IF(ISERROR(IF(ISERROR(IF(AC30=W30,0,(AC30*AB30)/AA30)), 0,IF(AC30=W30,0,(AC30*AB30)/AA30))), 0,IF(ISERROR(IF(AC30=W30,0,(AC30*AB30)/AA30)), 0,IF(AC30=W30,0,(AC30*AB30)/AA30)))) -> 0 | AF30: =IF(ISERROR(IF(ISERROR(IF(AC30=60,Q30+(AC30/T30),Q30+(AD30/T30))), 0,IF(AC30=60,Q30+(AC30/T30),Q30+(AD30/T30)))), 0,IF(ISERROR(IF(AC30=60,Q30+(AC30/T30),Q30+(AD30/T30))), 0,IF(AC30=60,Q30+(AC30/T30),Q30+(AD30/T30)))) -> 0
A31: =F303 -> 310.4038462 | B31: =IF(AND(C30<D30, E30>$E$7),"Ignore Drill Out Lead 1; rather pop out Lead 1 and LEAVE lead # 2 to "&K30&" inches.","") ->  | N31: =IF(ISERROR((G30+J30+M30)/$E$10*$E$7), 0,(G30+J30+M30)/$E$10*$E$7) -> 0 | O31: =A31 -> 310.4038462 | P31: =L30 -> 0 | Q31: =IF(ISERROR(IF(ISERROR(IF(AC30=W30,Q30+(AC30/T30),Q30+(AD30/T30))), 0,IF(AC30=W30,Q30+(AC30/T30),Q30+(AD30/T30)))), 0,IF(ISERROR(IF(AC30=W30,Q30+(AC30/T30),Q30+(AD30/T30))), 0,IF(AC30=W30,Q30+(AC30/T30),Q30+(AD30/T30)))) -> 0 | R31: =D30 -> 53 | S31: =IF(ISERROR(Q31-R31), 0,Q31-R31) -> -53 | T31: =IF(ISERROR(IF(ISERROR((O31/P31)), 0,(O31/P31))), 0,IF(ISERROR((O31/P31)), 0,(O31/P31))) -> 0 | U31: =IF(ISERROR(IF(ISERROR(S31*T31), 0,S31*T31)), 0,IF(ISERROR(S31*T31), 0,S31*T31)) -> 0 | V31: =IF(ISERROR(IF(ISERROR(IF(ISERROR(O31/T31), 0,O31/T31)), 0,IF(ISERROR(O31/T31), 0,O31/T31))), 0,IF(ISERROR(IF(ISERROR(O31/T31), 0,O31/T31)), 0,IF(ISERROR(O31/T31), 0,O31/T31))) -> 0 | W31: 14.2 | X31: 0.4 | Y31: =IF(ISERROR(IF(ISERROR(ABS(U31)), 0,ABS(U31))), 0,IF(ISERROR(ABS(U31)), 0,ABS(U31))) -> 0 | Z31: 0.15 | AA31: =IF(ISERROR(IF(ISERROR(ABS((Y31*X31)/W31)), 0,ABS((Y31*X31)/W31))), 0,IF(ISERROR(ABS((Y31*X31)/W31)), 0,ABS((Y31*X31)/W31))) -> 0 | AB31: =IF(ISERROR(IF(ISERROR(IF(AA31>Z31,Z31,AA31)), 0,IF(AA31>Z31,Z31,AA31))), 0,IF(ISERROR(IF(AA31>Z31,Z31,AA31)), 0,IF(AA31>Z31,Z31,AA31))) -> 0 | AC31: =IF(ISERROR(IF(ISERROR(IF(Y31>W31,W31,Y31)), 0,IF(Y31>W31,W31,Y31))), 0,IF(ISERROR(IF(Y31>W31,W31,Y31)), 0,IF(Y31>W31,W31,Y31))) -> 0 | AD31: =IF(ISERROR((AC31*AB31)/AA31), "",(AC31*AB31)/AA31) ->  | AE31: =IF(ISERROR(IF(AC31=W31,0,(AC31*AB31)/AA31)), "",IF(AC31=W31,0,(AC31*AB31)/AA31)) ->  | AF31: =IF(ISERROR(IF(AC31=60,Q31+(AC31/T31),Q31+(AD31/T31))), "",IF(AC31=60,Q31+(AC31/T31),Q31+(AD31/T31))) -> 
C32: Test | D32: Target | F32: 1 | G32: dr_o | H32: Lv_in | I32: 2 | J32: dr_o | K32: Lv_in | L32: 3 | M32: dr_o | N32: Lv_in | O32: =A34 -> 277.5 | P32: =F33 -> 0 | Q32: =C33 -> 50 | R32: =D33 -> 53 | S32: =Q32-R32 -> -3 | T32: =IF(ISERROR(IF(ISERROR(IF(ISERROR(IF(ISERROR((O32/P32)), 0,(O32/P32))), 0,IF(ISERROR((O32/P32)), 0,(O32/P32)))), 0,IF(ISERROR(IF(ISERROR((O32/P32)), 0,(O32/P32))), 0,IF(ISERROR((O32/P32)), 0,(O32/P32))))), 0,IF(ISERROR(IF(ISERROR(IF(ISERROR((O32/P32)), 0,(O32/P32))), 0,IF(ISERROR((O32/P32)), 0,(O32/P32)))), 0,IF(ISERROR(IF(ISERROR((O32/P32)), 0,(O32/P32))), 0,IF(ISERROR((O32/P32)), 0,(O32/P32))))) -> 0 | U32: =IF(ISERROR(IF(ISERROR(IF(ISERROR(IF(ISERROR(S32*T32), 0,S32*T32)), 0,IF(ISERROR(S32*T32), 0,S32*T32))), 0,IF(ISERROR(IF(ISERROR(S32*T32), 0,S32*T32)), 0,IF(ISERROR(S32*T32), 0,S32*T32)))), 0,IF(ISERROR(IF(ISERROR(IF(ISERROR(S32*T32), 0,S32*T32)), 0,IF(ISERROR(S32*T32), 0,S32*T32))), 0,IF(ISERROR(IF(ISERROR(S32*T32), 0,S32*T32)), 0,IF(ISERROR(S32*T32), 0,S32*T32)))) -> 0 | V32: =IF(ISERROR(IF(ISERROR(IF(ISERROR(IF(ISERROR(O32/T32), 0,O32/T32)), 0,IF(ISERROR(O32/T32), 0,O32/T32))), 0,IF(ISERROR(IF(ISERROR(O32/T32), 0,O32/T32)), 0,IF(ISERROR(O32/T32), 0,O32/T32)))), 0,IF(ISERROR(IF(ISERROR(IF(ISERROR(O32/T32), 0,O32/T32)), 0,IF(ISERROR(O32/T32), 0,O32/T32))), 0,IF(ISERROR(IF(ISERROR(O32/T32), 0,O32/T32)), 0,IF(ISERROR(O32/T32), 0,O32/T32)))) -> 0 | W32: 14.2 | X32: 0.4 | Y32: =IF(ISERROR(IF(ISERROR(IF(ISERROR(ABS(U32)), 0,ABS(U32))), 0,IF(ISERROR(ABS(U32)), 0,ABS(U32)))), 0,IF(ISERROR(IF(ISERROR(ABS(U32)), 0,ABS(U32))), 0,IF(ISERROR(ABS(U32)), 0,ABS(U32)))) -> 0 | Z32: 0.15 | AA32: =IF(ISERROR(IF(ISERROR(IF(ISERROR(ABS((Y32*X32)/W32)), 0,ABS((Y32*X32)/W32))), 0,IF(ISERROR(ABS((Y32*X32)/W32)), 0,ABS((Y32*X32)/W32)))), 0,IF(ISERROR(IF(ISERROR(ABS((Y32*X32)/W32)), 0,ABS((Y32*X32)/W32))), 0,IF(ISERROR(ABS((Y32*X32)/W32)), 0,ABS((Y32*X32)/W32)))) -> 0 | AB32: =IF(ISERROR(IF(ISERROR(IF(ISERROR(IF(AA32>Z32,Z32,AA32)), 0,IF(AA32>Z32,Z32,AA32))), 0,IF(ISERROR(IF(AA32>Z32,Z32,AA32)), 0,IF(AA32>Z32,Z32,AA32)))), 0,IF(ISERROR(IF(ISERROR(IF(AA32>Z32,Z32,AA32)), 0,IF(AA32>Z32,Z32,AA32))), 0,IF(ISERROR(IF(AA32>Z32,Z32,AA32)), 0,IF(AA32>Z32,Z32,AA32)))) -> 0 | AC32: =IF(ISERROR(IF(ISERROR(IF(ISERROR(IF(Y32>W32,W32,Y32)), 0,IF(Y32>W32,W32,Y32))), 0,IF(ISERROR(IF(Y32>W32,W32,Y32)), 0,IF(Y32>W32,W32,Y32)))), 0,IF(ISERROR(IF(ISERROR(IF(Y32>W32,W32,Y32)), 0,IF(Y32>W32,W32,Y32))), 0,IF(ISERROR(IF(Y32>W32,W32,Y32)), 0,IF(Y32>W32,W32,Y32)))) -> 0 | AD32: =IF(ISERROR((AC32*AB32)/AA32), 0,(AC32*AB32)/AA32) -> 0 | AE32: =IF(ISERROR(IF(ISERROR(IF(AC32=W32,0,(AC32*AB32)/AA32)), 0,IF(AC32=W32,0,(AC32*AB32)/AA32))), 0,IF(ISERROR(IF(AC32=W32,0,(AC32*AB32)/AA32)), 0,IF(AC32=W32,0,(AC32*AB32)/AA32))) -> 0 | AF32: =IF(ISERROR(IF(AC32=60,Q32+(AC32/T32),Q32+(AD32/T32))), 0,IF(AC32=60,Q32+(AC32/T32),Q32+(AD32/T32))) -> 0
A33: D# | B33: 7 | C33: 50 | D33: 53 | E33: =IF(ISERROR(IF(ISERROR(IF(ISERROR(Y32), 0,Y32)), 0,IF(ISERROR(Y32), 0,Y32))), 0,IF(ISERROR(IF(ISERROR(Y32), 0,Y32)), 0,IF(ISERROR(Y32), 0,Y32))) -> 0 | G33: =IF(ISERROR(IF(ISERROR(IF(ISERROR(AB32), 0,AB32)), 0,IF(ISERROR(AB32), 0,AB32))), 0,IF(ISERROR(IF(ISERROR(AB32), 0,AB32)), 0,IF(ISERROR(AB32), 0,AB32))) -> 0 | H33: =IF(ISERROR(IF(ISERROR(IF(ISERROR($E$10-G33), 0,$E$10-G33)), 0,IF(ISERROR($E$10-G33), 0,$E$10-G33))), 0,IF(ISERROR(IF(ISERROR($E$10-G33), 0,$E$10-G33)), 0,IF(ISERROR($E$10-G33), 0,$E$10-G33))) -> 0.4 | J33: =IF(ISERROR(AB33), 0,AB33) -> 0 | K33: =IF(ISERROR(ROUND($E$10-J33,3)), 0,ROUND($E$10-J33,3)) -> 0.4 | M33: =IF(ISERROR(AB34), "",AB34) -> 0 | N33: =IF(ISERROR($E$10-M33), "",$E$10-M33) -> 0.4 | O33: =A34 -> 277.5 | P33: =I33 -> 0 | Q33: =IF(ISERROR(IF(AC32=W32,Q32+(AC32/T32),Q32+(AD32/T32))), 0,IF(AC32=W32,Q32+(AC32/T32),Q32+(AD32/T32))) -> 0 | R33: =D33 -> 53 | S33: =IF(ISERROR(Q33-R33), 0,Q33-R33) -> -53 | T33: =IF(ISERROR(IF(ISERROR(IF(ISERROR(IF(ISERROR((O33/P33)), 0,(O33/P33))), 0,IF(ISERROR((O33/P33)), 0,(O33/P33)))), 0,IF(ISERROR(IF(ISERROR((O33/P33)), 0,(O33/P33))), 0,IF(ISERROR((O33/P33)), 0,(O33/P33))))), 0,IF(ISERROR(IF(ISERROR(IF(ISERROR((O33/P33)), 0,(O33/P33))), 0,IF(ISERROR((O33/P33)), 0,(O33/P33)))), 0,IF(ISERROR(IF(ISERROR((O33/P33)), 0,(O33/P33))), 0,IF(ISERROR((O33/P33)), 0,(O33/P33))))) -> 0 | U33: =IF(ISERROR(S33*T33), 0,S33*T33) -> 0 | V33: =IF(ISERROR(IF(ISERROR(IF(ISERROR(IF(ISERROR(O33/T33), 0,O33/T33)), 0,IF(ISERROR(O33/T33), 0,O33/T33))), 0,IF(ISERROR(IF(ISERROR(O33/T33), 0,O33/T33)), 0,IF(ISERROR(O33/T33), 0,O33/T33)))), 0,IF(ISERROR(IF(ISERROR(IF(ISERROR(O33/T33), 0,O33/T33)), 0,IF(ISERROR(O33/T33), 0,O33/T33))), 0,IF(ISERROR(IF(ISERROR(O33/T33), 0,O33/T33)), 0,IF(ISERROR(O33/T33), 0,O33/T33)))) -> 0 | W33: 14.2 | X33: 0.4 | Y33: =IF(ISERROR(ABS(U33)), 0,ABS(U33)) -> 0 | Z33: 0.15 | AA33: =IF(ISERROR(ABS((Y33*X33)/W33)), 0,ABS((Y33*X33)/W33)) -> 0 | AB33: =IF(ISERROR(IF(AA33>Z33,Z33,AA33)), 0,IF(AA33>Z33,Z33,AA33)) -> 0 | AC33: =IF(ISERROR(IF(Y33>W33,W33,Y33)), 0,IF(Y33>W33,W33,Y33)) -> 0 | AD33: =IF(ISERROR((AC33*AB33)/AA33), "",(AC33*AB33)/AA33) ->  | AE33: =IF(ISERROR(IF(AC33=W33,0,(AC33*AB33)/AA33)), "",IF(AC33=W33,0,(AC33*AB33)/AA33)) ->  | AF33: =IF(ISERROR(IF(AC33=60,Q33+(AC33/T33),Q33+(AD33/T33))), "",IF(AC33=60,Q33+(AC33/T33),Q33+(AD33/T33))) -> 
A34: =R302 -> 277.5 | B34: =IF(AND(C33<D33, E33>$E$7),"Ignore Drill Out Lead 1; rather pop out Lead 1 and LEAVE lead # 2 to "&K33&" inches.","") ->  | N34: =IF(ISERROR((G33+J33+M33)/$E$10*$E$7), 0,(G33+J33+M33)/$E$10*$E$7) -> 0 | O34: =A34 -> 277.5 | P34: =L33 -> 0 | Q34: =IF(ISERROR(IF(AC33=W33,Q33+(AC33/T33),Q33+(AD33/T33))), "",IF(AC33=W33,Q33+(AC33/T33),Q33+(AD33/T33))) ->  | R34: =D33 -> 53 | S34: =IF(ISERROR(Q34-R34), 0,Q34-R34) -> 0 | T34: =IF(ISERROR((O34/P34)), 0,(O34/P34)) -> 0 | U34: =IF(ISERROR(S34*T34), "",S34*T34) -> 0 | V34: =IF(ISERROR(IF(ISERROR(O34/T34), 0,O34/T34)), 0,IF(ISERROR(O34/T34), 0,O34/T34)) -> 0 | W34: 14.2 | X34: 0.4 | Y34: =IF(ISERROR(ABS(U34)), "",ABS(U34)) -> 0 | Z34: 0.15 | AA34: =IF(ISERROR(ABS((Y34*X34)/W34)), "",ABS((Y34*X34)/W34)) -> 0 | AB34: =IF(ISERROR(IF(AA34>Z34,Z34,AA34)), "",IF(AA34>Z34,Z34,AA34)) -> 0 | AC34: =IF(ISERROR(IF(Y34>W34,W34,Y34)), "",IF(Y34>W34,W34,Y34)) -> 0 | AD34: =IF(ISERROR((AC34*AB34)/AA34), "",(AC34*AB34)/AA34) ->  | AE34: =IF(ISERROR(IF(AC34=W34,0,(AC34*AB34)/AA34)), "",IF(AC34=W34,0,(AC34*AB34)/AA34)) ->  | AF34: =IF(ISERROR(IF(AC34=60,Q34+(AC34/T34),Q34+(AD34/T34))), "",IF(AC34=60,Q34+(AC34/T34),Q34+(AD34/T34))) -> 
C35: Test | D35: Target | F35: 1 | G35: dr_o | H35: Lv_in | I35: 2 | J35: dr_o | K35: Lv_in | L35: 3 | M35: dr_o | N35: Lv_in | O35: =A37 -> 309.0384615 | P35: =F36 -> 0 | Q35: =C36 -> 53 | R35: =D36 -> 53 | S35: =Q35-R35 -> 0 | T35: =IF(ISERROR(IF(ISERROR(IF(ISERROR(IF(ISERROR((O35/P35)), 0,(O35/P35))), 0,IF(ISERROR((O35/P35)), 0,(O35/P35)))), 0,IF(ISERROR(IF(ISERROR((O35/P35)), 0,(O35/P35))), 0,IF(ISERROR((O35/P35)), 0,(O35/P35))))), 0,IF(ISERROR(IF(ISERROR(IF(ISERROR((O35/P35)), 0,(O35/P35))), 0,IF(ISERROR((O35/P35)), 0,(O35/P35)))), 0,IF(ISERROR(IF(ISERROR((O35/P35)), 0,(O35/P35))), 0,IF(ISERROR((O35/P35)), 0,(O35/P35))))) -> 0 | U35: =IF(ISERROR(IF(ISERROR(IF(ISERROR(IF(ISERROR(S35*T35), 0,S35*T35)), 0,IF(ISERROR(S35*T35), 0,S35*T35))), 0,IF(ISERROR(IF(ISERROR(S35*T35), 0,S35*T35)), 0,IF(ISERROR(S35*T35), 0,S35*T35)))), 0,IF(ISERROR(IF(ISERROR(IF(ISERROR(S35*T35), 0,S35*T35)), 0,IF(ISERROR(S35*T35), 0,S35*T35))), 0,IF(ISERROR(IF(ISERROR(S35*T35), 0,S35*T35)), 0,IF(ISERROR(S35*T35), 0,S35*T35)))) -> 0 | V35: =IF(ISERROR(IF(ISERROR(IF(ISERROR(IF(ISERROR(O35/T35), 0,O35/T35)), 0,IF(ISERROR(O35/T35), 0,O35/T35))), 0,IF(ISERROR(IF(ISERROR(O35/T35), 0,O35/T35)), 0,IF(ISERROR(O35/T35), 0,O35/T35)))), 0,IF(ISERROR(IF(ISERROR(IF(ISERROR(O35/T35), 0,O35/T35)), 0,IF(ISERROR(O35/T35), 0,O35/T35))), 0,IF(ISERROR(IF(ISERROR(O35/T35), 0,O35/T35)), 0,IF(ISERROR(O35/T35), 0,O35/T35)))) -> 0 | W35: 14.2 | X35: 0.4 | Y35: =IF(ISERROR(IF(ISERROR(IF(ISERROR(ABS(U35)), 0,ABS(U35))), 0,IF(ISERROR(ABS(U35)), 0,ABS(U35)))), 0,IF(ISERROR(IF(ISERROR(ABS(U35)), 0,ABS(U35))), 0,IF(ISERROR(ABS(U35)), 0,ABS(U35)))) -> 0 | Z35: 0.15 | AA35: =IF(ISERROR(IF(ISERROR(IF(ISERROR(ABS((Y35*X35)/W35)), 0,ABS((Y35*X35)/W35))), 0,IF(ISERROR(ABS((Y35*X35)/W35)), 0,ABS((Y35*X35)/W35)))), 0,IF(ISERROR(IF(ISERROR(ABS((Y35*X35)/W35)), 0,ABS((Y35*X35)/W35))), 0,IF(ISERROR(ABS((Y35*X35)/W35)), 0,ABS((Y35*X35)/W35)))) -> 0 | AB35: =IF(ISERROR(IF(ISERROR(IF(ISERROR(IF(AA35>Z35,Z35,AA35)), 0,IF(AA35>Z35,Z35,AA35))), 0,IF(ISERROR(IF(AA35>Z35,Z35,AA35)), 0,IF(AA35>Z35,Z35,AA35)))), 0,IF(ISERROR(IF(ISERROR(IF(AA35>Z35,Z35,AA35)), 0,IF(AA35>Z35,Z35,AA35))), 0,IF(ISERROR(IF(AA35>Z35,Z35,AA35)), 0,IF(AA35>Z35,Z35,AA35)))) -> 0 | AC35: =IF(ISERROR(IF(ISERROR(IF(ISERROR(IF(Y35>W35,W35,Y35)), 0,IF(Y35>W35,W35,Y35))), 0,IF(ISERROR(IF(Y35>W35,W35,Y35)), 0,IF(Y35>W35,W35,Y35)))), 0,IF(ISERROR(IF(ISERROR(IF(Y35>W35,W35,Y35)), 0,IF(Y35>W35,W35,Y35))), 0,IF(ISERROR(IF(Y35>W35,W35,Y35)), 0,IF(Y35>W35,W35,Y35)))) -> 0 | AD35: =IF(ISERROR((AC35*AB35)/AA35), 0,(AC35*AB35)/AA35) -> 0 | AE35: =IF(ISERROR(IF(ISERROR(IF(AC35=W35,0,(AC35*AB35)/AA35)), 0,IF(AC35=W35,0,(AC35*AB35)/AA35))), 0,IF(ISERROR(IF(AC35=W35,0,(AC35*AB35)/AA35)), 0,IF(AC35=W35,0,(AC35*AB35)/AA35))) -> 0 | AF35: =IF(ISERROR(IF(AC35=60,Q35+(AC35/T35),Q35+(AD35/T35))), 0,IF(AC35=60,Q35+(AC35/T35),Q35+(AD35/T35))) -> 0
A36: E | B36: 8 | C36: 53 | D36: 53 | E36: =IF(ISERROR(IF(ISERROR(IF(ISERROR(Y35), 0,Y35)), 0,IF(ISERROR(Y35), 0,Y35))), 0,IF(ISERROR(IF(ISERROR(Y35), 0,Y35)), 0,IF(ISERROR(Y35), 0,Y35))) -> 0 | G36: =IF(ISERROR(IF(ISERROR(IF(ISERROR(AB35), 0,AB35)), 0,IF(ISERROR(AB35), 0,AB35))), 0,IF(ISERROR(IF(ISERROR(AB35), 0,AB35)), 0,IF(ISERROR(AB35), 0,AB35))) -> 0 | H36: =IF(ISERROR(IF(ISERROR(IF(ISERROR($E$10-G36), 0,$E$10-G36)), 0,IF(ISERROR($E$10-G36), 0,$E$10-G36))), 0,IF(ISERROR(IF(ISERROR($E$10-G36), 0,$E$10-G36)), 0,IF(ISERROR($E$10-G36), 0,$E$10-G36))) -> 0.4 | J36: =IF(ISERROR(AB36), 0,AB36) -> 0 | K36: =IF(ISERROR(ROUND($E$10-J36,3)), 0,ROUND($E$10-J36,3)) -> 0.4 | M36: =IF(ISERROR(AB37), "",AB37) -> 0 | N36: =IF(ISERROR($E$10-M36), "",$E$10-M36) -> 0.4 | O36: =A37 -> 309.0384615 | P36: =I36 -> 0 | Q36: =IF(ISERROR(IF(AC35=W35,Q35+(AC35/T35),Q35+(AD35/T35))), 0,IF(AC35=W35,Q35+(AC35/T35),Q35+(AD35/T35))) -> 0 | R36: =D36 -> 53 | S36: =IF(ISERROR(Q36-R36), 0,Q36-R36) -> -53 | T36: =IF(ISERROR(IF(ISERROR(IF(ISERROR(IF(ISERROR((O36/P36)), 0,(O36/P36))), 0,IF(ISERROR((O36/P36)), 0,(O36/P36)))), 0,IF(ISERROR(IF(ISERROR((O36/P36)), 0,(O36/P36))), 0,IF(ISERROR((O36/P36)), 0,(O36/P36))))), 0,IF(ISERROR(IF(ISERROR(IF(ISERROR((O36/P36)), 0,(O36/P36))), 0,IF(ISERROR((O36/P36)), 0,(O36/P36)))), 0,IF(ISERROR(IF(ISERROR((O36/P36)), 0,(O36/P36))), 0,IF(ISERROR((O36/P36)), 0,(O36/P36))))) -> 0 | U36: =IF(ISERROR(S36*T36), 0,S36*T36) -> 0 | V36: =IF(ISERROR(IF(ISERROR(IF(ISERROR(IF(ISERROR(O36/T36), 0,O36/T36)), 0,IF(ISERROR(O36/T36), 0,O36/T36))), 0,IF(ISERROR(IF(ISERROR(O36/T36), 0,O36/T36)), 0,IF(ISERROR(O36/T36), 0,O36/T36)))), 0,IF(ISERROR(IF(ISERROR(IF(ISERROR(O36/T36), 0,O36/T36)), 0,IF(ISERROR(O36/T36), 0,O36/T36))), 0,IF(ISERROR(IF(ISERROR(O36/T36), 0,O36/T36)), 0,IF(ISERROR(O36/T36), 0,O36/T36)))) -> 0 | W36: 14.2 | X36: 0.4 | Y36: =IF(ISERROR(ABS(U36)), 0,ABS(U36)) -> 0 | Z36: 0.15 | AA36: =IF(ISERROR(ABS((Y36*X36)/W36)), 0,ABS((Y36*X36)/W36)) -> 0 | AB36: =IF(ISERROR(IF(AA36>Z36,Z36,AA36)), 0,IF(AA36>Z36,Z36,AA36)) -> 0 | AC36: =IF(ISERROR(IF(Y36>W36,W36,Y36)), 0,IF(Y36>W36,W36,Y36)) -> 0 | AD36: =IF(ISERROR((AC36*AB36)/AA36), "",(AC36*AB36)/AA36) ->  | AE36: =IF(ISERROR(IF(AC36=W36,0,(AC36*AB36)/AA36)), "",IF(AC36=W36,0,(AC36*AB36)/AA36)) ->  | AF36: =IF(ISERROR(IF(AC36=60,Q36+(AC36/T36),Q36+(AD36/T36))), "",IF(AC36=60,Q36+(AC36/T36),Q36+(AD36/T36))) -> 
A37: =F304 -> 309.0384615 | B37: =IF(AND(C36<D36, E36>$E$7),"Ignore Drill Out Lead 1; rather pop out Lead 1 and LEAVE lead # 2 to "&K36&" inches.","") ->  | N37: =IF(ISERROR((G36+J36+M36)/$E$10*$E$7), 0,(G36+J36+M36)/$E$10*$E$7) -> 0 | O37: =A37 -> 309.0384615 | P37: =L36 -> 0 | Q37: =IF(ISERROR(IF(AC36=W36,Q36+(AC36/T36),Q36+(AD36/T36))), "",IF(AC36=W36,Q36+(AC36/T36),Q36+(AD36/T36))) ->  | R37: =D36 -> 53 | S37: =IF(ISERROR(Q37-R37), 0,Q37-R37) -> 0 | T37: =IF(ISERROR(IF(ISERROR(IF(ISERROR((O37/P37)), 0,(O37/P37))), 0,IF(ISERROR((O37/P37)), 0,(O37/P37)))), 0,IF(ISERROR(IF(ISERROR((O37/P37)), 0,(O37/P37))), 0,IF(ISERROR((O37/P37)), 0,(O37/P37)))) -> 0 | U37: =IF(ISERROR(S37*T37), "",S37*T37) -> 0 | V37: =IF(ISERROR(IF(ISERROR(IF(ISERROR(IF(ISERROR(O37/T37), 0,O37/T37)), 0,IF(ISERROR(O37/T37), 0,O37/T37))), 0,IF(ISERROR(IF(ISERROR(O37/T37), 0,O37/T37)), 0,IF(ISERROR(O37/T37), 0,O37/T37)))), 0,IF(ISERROR(IF(ISERROR(IF(ISERROR(O37/T37), 0,O37/T37)), 0,IF(ISERROR(O37/T37), 0,O37/T37))), 0,IF(ISERROR(IF(ISERROR(O37/T37), 0,O37/T37)), 0,IF(ISERROR(O37/T37), 0,O37/T37)))) -> 0 | W37: 14.2 | X37: 0.4 | Y37: =IF(ISERROR(ABS(U37)), "",ABS(U37)) -> 0 | Z37: 0.15 | AA37: =IF(ISERROR(ABS((Y37*X37)/W37)), "",ABS((Y37*X37)/W37)) -> 0 | AB37: =IF(ISERROR(IF(AA37>Z37,Z37,AA37)), "",IF(AA37>Z37,Z37,AA37)) -> 0 | AC37: =IF(ISERROR(IF(Y37>W37,W37,Y37)), "",IF(Y37>W37,W37,Y37)) -> 0 | AD37: =IF(ISERROR((AC37*AB37)/AA37), "",(AC37*AB37)/AA37) ->  | AE37: =IF(ISERROR(IF(AC37=W37,0,(AC37*AB37)/AA37)), "",IF(AC37=W37,0,(AC37*AB37)/AA37)) ->  | AF37: =IF(ISERROR(IF(AC37=60,Q37+(AC37/T37),Q37+(AD37/T37))), "",IF(AC37=60,Q37+(AC37/T37),Q37+(AD37/T37))) -> 
C38: Test | D38: Target | F38: 1 | G38: dr_o | H38: Lv_in | I38: 2 | J38: dr_o | K38: Lv_in | L38: 3 | M38: dr_o | N38: Lv_in | O38: =A40 -> 307.6730769 | P38: =F39 -> 0 | Q38: =C39 -> 52 | R38: =D39 -> 53 | S38: =Q38-R38 -> -1 | T38: =IF(ISERROR(IF(ISERROR(IF(ISERROR(IF(ISERROR((O38/P38)), 0,(O38/P38))), 0,IF(ISERROR((O38/P38)), 0,(O38/P38)))), 0,IF(ISERROR(IF(ISERROR((O38/P38)), 0,(O38/P38))), 0,IF(ISERROR((O38/P38)), 0,(O38/P38))))), 0,IF(ISERROR(IF(ISERROR(IF(ISERROR((O38/P38)), 0,(O38/P38))), 0,IF(ISERROR((O38/P38)), 0,(O38/P38)))), 0,IF(ISERROR(IF(ISERROR((O38/P38)), 0,(O38/P38))), 0,IF(ISERROR((O38/P38)), 0,(O38/P38))))) -> 0 | U38: =IF(ISERROR(IF(ISERROR(IF(ISERROR(IF(ISERROR(S38*T38), 0,S38*T38)), 0,IF(ISERROR(S38*T38), 0,S38*T38))), 0,IF(ISERROR(IF(ISERROR(S38*T38), 0,S38*T38)), 0,IF(ISERROR(S38*T38), 0,S38*T38)))), 0,IF(ISERROR(IF(ISERROR(IF(ISERROR(S38*T38), 0,S38*T38)), 0,IF(ISERROR(S38*T38), 0,S38*T38))), 0,IF(ISERROR(IF(ISERROR(S38*T38), 0,S38*T38)), 0,IF(ISERROR(S38*T38), 0,S38*T38)))) -> 0 | V38: =IF(ISERROR(IF(ISERROR(IF(ISERROR(IF(ISERROR(O38/T38), 0,O38/T38)), 0,IF(ISERROR(O38/T38), 0,O38/T38))), 0,IF(ISERROR(IF(ISERROR(O38/T38), 0,O38/T38)), 0,IF(ISERROR(O38/T38), 0,O38/T38)))), 0,IF(ISERROR(IF(ISERROR(IF(ISERROR(O38/T38), 0,O38/T38)), 0,IF(ISERROR(O38/T38), 0,O38/T38))), 0,IF(ISERROR(IF(ISERROR(O38/T38), 0,O38/T38)), 0,IF(ISERROR(O38/T38), 0,O38/T38)))) -> 0 | W38: 14.2 | X38: 0.4 | Y38: =IF(ISERROR(IF(ISERROR(IF(ISERROR(ABS(U38)), 0,ABS(U38))), 0,IF(ISERROR(ABS(U38)), 0,ABS(U38)))), 0,IF(ISERROR(IF(ISERROR(ABS(U38)), 0,ABS(U38))), 0,IF(ISERROR(ABS(U38)), 0,ABS(U38)))) -> 0 | Z38: 0.15 | AA38: =IF(ISERROR(IF(ISERROR(IF(ISERROR(ABS((Y38*X38)/W38)), 0,ABS((Y38*X38)/W38))), 0,IF(ISERROR(ABS((Y38*X38)/W38)), 0,ABS((Y38*X38)/W38)))), 0,IF(ISERROR(IF(ISERROR(ABS((Y38*X38)/W38)), 0,ABS((Y38*X38)/W38))), 0,IF(ISERROR(ABS((Y38*X38)/W38)), 0,ABS((Y38*X38)/W38)))) -> 0 | AB38: =IF(ISERROR(IF(ISERROR(IF(ISERROR(IF(AA38>Z38,Z38,AA38)), 0,IF(AA38>Z38,Z38,AA38))), 0,IF(ISERROR(IF(AA38>Z38,Z38,AA38)), 0,IF(AA38>Z38,Z38,AA38)))), 0,IF(ISERROR(IF(ISERROR(IF(AA38>Z38,Z38,AA38)), 0,IF(AA38>Z38,Z38,AA38))), 0,IF(ISERROR(IF(AA38>Z38,Z38,AA38)), 0,IF(AA38>Z38,Z38,AA38)))) -> 0 | AC38: =IF(ISERROR(IF(ISERROR(IF(ISERROR(IF(Y38>W38,W38,Y38)), 0,IF(Y38>W38,W38,Y38))), 0,IF(ISERROR(IF(Y38>W38,W38,Y38)), 0,IF(Y38>W38,W38,Y38)))), 0,IF(ISERROR(IF(ISERROR(IF(Y38>W38,W38,Y38)), 0,IF(Y38>W38,W38,Y38))), 0,IF(ISERROR(IF(Y38>W38,W38,Y38)), 0,IF(Y38>W38,W38,Y38)))) -> 0 | AD38: =IF(ISERROR((AC38*AB38)/AA38), 0,(AC38*AB38)/AA38) -> 0 | AE38: =IF(ISERROR(IF(ISERROR(IF(AC38=W38,0,(AC38*AB38)/AA38)), 0,IF(AC38=W38,0,(AC38*AB38)/AA38))), 0,IF(ISERROR(IF(AC38=W38,0,(AC38*AB38)/AA38)), 0,IF(AC38=W38,0,(AC38*AB38)/AA38))) -> 0 | AF38: =IF(ISERROR(IF(AC38=60,Q38+(AC38/T38),Q38+(AD38/T38))), 0,IF(AC38=60,Q38+(AC38/T38),Q38+(AD38/T38))) -> 0
A39: F | B39: 9 | C39: 52 | D39: 53 | E39: =IF(ISERROR(IF(ISERROR(IF(ISERROR(Y38), 0,Y38)), 0,IF(ISERROR(Y38), 0,Y38))), 0,IF(ISERROR(IF(ISERROR(Y38), 0,Y38)), 0,IF(ISERROR(Y38), 0,Y38))) -> 0 | G39: =IF(ISERROR(IF(ISERROR(IF(ISERROR(AB38), 0,AB38)), 0,IF(ISERROR(AB38), 0,AB38))), 0,IF(ISERROR(IF(ISERROR(AB38), 0,AB38)), 0,IF(ISERROR(AB38), 0,AB38))) -> 0 | H39: =IF(ISERROR(IF(ISERROR(IF(ISERROR($E$10-G39), 0,$E$10-G39)), 0,IF(ISERROR($E$10-G39), 0,$E$10-G39))), 0,IF(ISERROR(IF(ISERROR($E$10-G39), 0,$E$10-G39)), 0,IF(ISERROR($E$10-G39), 0,$E$10-G39))) -> 0.4 | J39: =IF(ISERROR(AB39), 0,AB39) -> 0 | K39: =IF(ISERROR(ROUND($E$10-J39,3)), 0,ROUND($E$10-J39,3)) -> 0.4 | M39: =IF(ISERROR(AB40), 0,AB40) -> 0 | N39: =IF(ISERROR($E$10-M39), 0,$E$10-M39) -> 0.4 | O39: =A40 -> 307.6730769 | P39: =I39 -> 0 | Q39: =IF(ISERROR(IF(AC38=W38,Q38+(AC38/T38),Q38+(AD38/T38))), 0,IF(AC38=W38,Q38+(AC38/T38),Q38+(AD38/T38))) -> 0 | R39: =D39 -> 53 | S39: =IF(ISERROR(Q39-R39), 0,Q39-R39) -> -53 | T39: =IF(ISERROR(IF(ISERROR(IF(ISERROR(IF(ISERROR((O39/P39)), 0,(O39/P39))), 0,IF(ISERROR((O39/P39)), 0,(O39/P39)))), 0,IF(ISERROR(IF(ISERROR((O39/P39)), 0,(O39/P39))), 0,IF(ISERROR((O39/P39)), 0,(O39/P39))))), 0,IF(ISERROR(IF(ISERROR(IF(ISERROR((O39/P39)), 0,(O39/P39))), 0,IF(ISERROR((O39/P39)), 0,(O39/P39)))), 0,IF(ISERROR(IF(ISERROR((O39/P39)), 0,(O39/P39))), 0,IF(ISERROR((O39/P39)), 0,(O39/P39))))) -> 0 | U39: =IF(ISERROR(S39*T39), 0,S39*T39) -> 0 | V39: =IF(ISERROR(IF(ISERROR(IF(ISERROR(IF(ISERROR(O39/T39), 0,O39/T39)), 0,IF(ISERROR(O39/T39), 0,O39/T39))), 0,IF(ISERROR(IF(ISERROR(O39/T39), 0,O39/T39)), 0,IF(ISERROR(O39/T39), 0,O39/T39)))), 0,IF(ISERROR(IF(ISERROR(IF(ISERROR(O39/T39), 0,O39/T39)), 0,IF(ISERROR(O39/T39), 0,O39/T39))), 0,IF(ISERROR(IF(ISERROR(O39/T39), 0,O39/T39)), 0,IF(ISERROR(O39/T39), 0,O39/T39)))) -> 0 | W39: 14.2 | X39: 0.4 | Y39: =IF(ISERROR(ABS(U39)), 0,ABS(U39)) -> 0 | Z39: 0.15 | AA39: =IF(ISERROR(ABS((Y39*X39)/W39)), 0,ABS((Y39*X39)/W39)) -> 0 | AB39: =IF(ISERROR(IF(AA39>Z39,Z39,AA39)), 0,IF(AA39>Z39,Z39,AA39)) -> 0 | AC39: =IF(ISERROR(IF(Y39>W39,W39,Y39)), 0,IF(Y39>W39,W39,Y39)) -> 0 | AD39: =IF(ISERROR((AC39*AB39)/AA39), 0,(AC39*AB39)/AA39) -> 0 | AE39: =IF(ISERROR(IF(ISERROR(IF(AC39=W39,0,(AC39*AB39)/AA39)), 0,IF(AC39=W39,0,(AC39*AB39)/AA39))), 0,IF(ISERROR(IF(AC39=W39,0,(AC39*AB39)/AA39)), 0,IF(AC39=W39,0,(AC39*AB39)/AA39))) -> 0 | AF39: =IF(ISERROR(IF(AC39=60,Q39+(AC39/T39),Q39+(AD39/T39))), 0,IF(AC39=60,Q39+(AC39/T39),Q39+(AD39/T39))) -> 0
A40: =F305 -> 307.6730769 | B40: =IF(AND(C39<D39, E39>$E$7),"Ignore Drill Out Lead 1; rather pop out Lead 1 and LEAVE lead # 2 to "&K39&" inches.","") ->  | N40: =IF(ISERROR((G39+J39+M39)/$E$10*$E$7), 0,(G39+J39+M39)/$E$10*$E$7) -> 0 | O40: =A40 -> 307.6730769 | P40: =L39 -> 0 | Q40: =IF(ISERROR(IF(AC39=W39,Q39+(AC39/T39),Q39+(AD39/T39))), 0,IF(AC39=W39,Q39+(AC39/T39),Q39+(AD39/T39))) -> 0 | R40: =D39 -> 53 | S40: =IF(ISERROR(Q40-R40), 0,Q40-R40) -> -53 | T40: =IF(ISERROR(IF(ISERROR((O40/P40)), 0,(O40/P40))), 0,IF(ISERROR((O40/P40)), 0,(O40/P40))) -> 0 | U40: =IF(ISERROR(IF(ISERROR(S40*T40), 0,S40*T40)), 0,IF(ISERROR(S40*T40), 0,S40*T40)) -> 0 | V40: =IF(ISERROR(IF(ISERROR(IF(ISERROR(O40/T40), 0,O40/T40)), 0,IF(ISERROR(O40/T40), 0,O40/T40))), 0,IF(ISERROR(IF(ISERROR(O40/T40), 0,O40/T40)), 0,IF(ISERROR(O40/T40), 0,O40/T40))) -> 0 | W40: 14.2 | X40: 0.4 | Y40: =IF(ISERROR(IF(ISERROR(ABS(U40)), 0,ABS(U40))), 0,IF(ISERROR(ABS(U40)), 0,ABS(U40))) -> 0 | Z40: 0.15 | AA40: =IF(ISERROR(IF(ISERROR(ABS((Y40*X40)/W40)), 0,ABS((Y40*X40)/W40))), 0,IF(ISERROR(ABS((Y40*X40)/W40)), 0,ABS((Y40*X40)/W40))) -> 0 | AB40: =IF(ISERROR(IF(ISERROR(IF(AA40>Z40,Z40,AA40)), 0,IF(AA40>Z40,Z40,AA40))), 0,IF(ISERROR(IF(AA40>Z40,Z40,AA40)), 0,IF(AA40>Z40,Z40,AA40))) -> 0 | AC40: =IF(ISERROR(IF(ISERROR(IF(Y40>W40,W40,Y40)), 0,IF(Y40>W40,W40,Y40))), 0,IF(ISERROR(IF(Y40>W40,W40,Y40)), 0,IF(Y40>W40,W40,Y40))) -> 0 | AD40: =IF(ISERROR((AC40*AB40)/AA40), "",(AC40*AB40)/AA40) ->  | AE40: =IF(ISERROR(IF(AC40=W40,0,(AC40*AB40)/AA40)), "",IF(AC40=W40,0,(AC40*AB40)/AA40)) ->  | AF40: =IF(ISERROR(IF(AC40=60,Q40+(AC40/T40),Q40+(AD40/T40))), "",IF(AC40=60,Q40+(AC40/T40),Q40+(AD40/T40))) -> 
C41: Test | D41: Target | F41: 1 | G41: dr_o | H41: Lv_in | I41: 2 | J41: dr_o | K41: Lv_in | L41: 3 | M41: dr_o | N41: Lv_in | O41: =A43 -> 276.5 | P41: =F42 -> 0 | Q41: =C42 -> 52 | R41: =D42 -> 53 | S41: =Q41-R41 -> -1 | T41: =IF(ISERROR(IF(ISERROR(IF(ISERROR(IF(ISERROR((O41/P41)), 0,(O41/P41))), 0,IF(ISERROR((O41/P41)), 0,(O41/P41)))), 0,IF(ISERROR(IF(ISERROR((O41/P41)), 0,(O41/P41))), 0,IF(ISERROR((O41/P41)), 0,(O41/P41))))), 0,IF(ISERROR(IF(ISERROR(IF(ISERROR((O41/P41)), 0,(O41/P41))), 0,IF(ISERROR((O41/P41)), 0,(O41/P41)))), 0,IF(ISERROR(IF(ISERROR((O41/P41)), 0,(O41/P41))), 0,IF(ISERROR((O41/P41)), 0,(O41/P41))))) -> 0 | U41: =IF(ISERROR(IF(ISERROR(IF(ISERROR(IF(ISERROR(S41*T41), 0,S41*T41)), 0,IF(ISERROR(S41*T41), 0,S41*T41))), 0,IF(ISERROR(IF(ISERROR(S41*T41), 0,S41*T41)), 0,IF(ISERROR(S41*T41), 0,S41*T41)))), 0,IF(ISERROR(IF(ISERROR(IF(ISERROR(S41*T41), 0,S41*T41)), 0,IF(ISERROR(S41*T41), 0,S41*T41))), 0,IF(ISERROR(IF(ISERROR(S41*T41), 0,S41*T41)), 0,IF(ISERROR(S41*T41), 0,S41*T41)))) -> 0 | V41: =IF(ISERROR(IF(ISERROR(IF(ISERROR(IF(ISERROR(O41/T41), 0,O41/T41)), 0,IF(ISERROR(O41/T41), 0,O41/T41))), 0,IF(ISERROR(IF(ISERROR(O41/T41), 0,O41/T41)), 0,IF(ISERROR(O41/T41), 0,O41/T41)))), 0,IF(ISERROR(IF(ISERROR(IF(ISERROR(O41/T41), 0,O41/T41)), 0,IF(ISERROR(O41/T41), 0,O41/T41))), 0,IF(ISERROR(IF(ISERROR(O41/T41), 0,O41/T41)), 0,IF(ISERROR(O41/T41), 0,O41/T41)))) -> 0 | W41: 14.2 | X41: 0.4 | Y41: =IF(ISERROR(IF(ISERROR(IF(ISERROR(ABS(U41)), 0,ABS(U41))), 0,IF(ISERROR(ABS(U41)), 0,ABS(U41)))), 0,IF(ISERROR(IF(ISERROR(ABS(U41)), 0,ABS(U41))), 0,IF(ISERROR(ABS(U41)), 0,ABS(U41)))) -> 0 | Z41: 0.15 | AA41: =IF(ISERROR(IF(ISERROR(IF(ISERROR(ABS((Y41*X41)/W41)), 0,ABS((Y41*X41)/W41))), 0,IF(ISERROR(ABS((Y41*X41)/W41)), 0,ABS((Y41*X41)/W41)))), 0,IF(ISERROR(IF(ISERROR(ABS((Y41*X41)/W41)), 0,ABS((Y41*X41)/W41))), 0,IF(ISERROR(ABS((Y41*X41)/W41)), 0,ABS((Y41*X41)/W41)))) -> 0 | AB41: =IF(ISERROR(IF(ISERROR(IF(ISERROR(IF(AA41>Z41,Z41,AA41)), 0,IF(AA41>Z41,Z41,AA41))), 0,IF(ISERROR(IF(AA41>Z41,Z41,AA41)), 0,IF(AA41>Z41,Z41,AA41)))), 0,IF(ISERROR(IF(ISERROR(IF(AA41>Z41,Z41,AA41)), 0,IF(AA41>Z41,Z41,AA41))), 0,IF(ISERROR(IF(AA41>Z41,Z41,AA41)), 0,IF(AA41>Z41,Z41,AA41)))) -> 0 | AC41: =IF(ISERROR(IF(ISERROR(IF(ISERROR(IF(Y41>W41,W41,Y41)), 0,IF(Y41>W41,W41,Y41))), 0,IF(ISERROR(IF(Y41>W41,W41,Y41)), 0,IF(Y41>W41,W41,Y41)))), 0,IF(ISERROR(IF(ISERROR(IF(Y41>W41,W41,Y41)), 0,IF(Y41>W41,W41,Y41))), 0,IF(ISERROR(IF(Y41>W41,W41,Y41)), 0,IF(Y41>W41,W41,Y41)))) -> 0 | AD41: =IF(ISERROR((AC41*AB41)/AA41), "",(AC41*AB41)/AA41) ->  | AE41: =IF(ISERROR(IF(AC41=W41,0,(AC41*AB41)/AA41)), "",IF(AC41=W41,0,(AC41*AB41)/AA41)) ->  | AF41: =IF(ISERROR(IF(AC41=60,Q41+(AC41/T41),Q41+(AD41/T41))), "",IF(AC41=60,Q41+(AC41/T41),Q41+(AD41/T41))) -> 
A42: F# | B42: 10 | C42: 52 | D42: 53 | E42: =IF(ISERROR(IF(ISERROR(IF(ISERROR(Y41), 0,Y41)), 0,IF(ISERROR(Y41), 0,Y41))), 0,IF(ISERROR(IF(ISERROR(Y41), 0,Y41)), 0,IF(ISERROR(Y41), 0,Y41))) -> 0 | G42: =IF(ISERROR(IF(ISERROR(IF(ISERROR(AB41), 0,AB41)), 0,IF(ISERROR(AB41), 0,AB41))), 0,IF(ISERROR(IF(ISERROR(AB41), 0,AB41)), 0,IF(ISERROR(AB41), 0,AB41))) -> 0 | H42: =IF(ISERROR(IF(ISERROR(IF(ISERROR($E$10-G42), 0,$E$10-G42)), 0,IF(ISERROR($E$10-G42), 0,$E$10-G42))), 0,IF(ISERROR(IF(ISERROR($E$10-G42), 0,$E$10-G42)), 0,IF(ISERROR($E$10-G42), 0,$E$10-G42))) -> 0.4 | J42: =IF(ISERROR(AB42), "",AB42) -> 0 | K42: =IF(ISERROR(ROUND($E$10-J42,3)), "",ROUND($E$10-J42,3)) -> 0.4 | M42: =IF(ISERROR(AB43), "",AB43) -> 0 | N42: =IF(ISERROR($E$10-M42), "",$E$10-M42) -> 0.4 | O42: =A43 -> 276.5 | P42: =I42 -> 0 | Q42: =IF(ISERROR(IF(AC41=W41,Q41+(AC41/T41),Q41+(AD41/T41))), "",IF(AC41=W41,Q41+(AC41/T41),Q41+(AD41/T41))) ->  | R42: =D42 -> 53 | S42: =IF(ISERROR(Q42-R42), "",Q42-R42) ->  | T42: =IF(ISERROR(IF(ISERROR(IF(ISERROR(IF(ISERROR((O42/P42)), 0,(O42/P42))), 0,IF(ISERROR((O42/P42)), 0,(O42/P42)))), 0,IF(ISERROR(IF(ISERROR((O42/P42)), 0,(O42/P42))), 0,IF(ISERROR((O42/P42)), 0,(O42/P42))))), 0,IF(ISERROR(IF(ISERROR(IF(ISERROR((O42/P42)), 0,(O42/P42))), 0,IF(ISERROR((O42/P42)), 0,(O42/P42)))), 0,IF(ISERROR(IF(ISERROR((O42/P42)), 0,(O42/P42))), 0,IF(ISERROR((O42/P42)), 0,(O42/P42))))) -> 0 | U42: =IF(ISERROR(S42*T42), "",S42*T42) ->  | V42: =IF(ISERROR(IF(ISERROR(IF(ISERROR(IF(ISERROR(O42/T42), 0,O42/T42)), 0,IF(ISERROR(O42/T42), 0,O42/T42))), 0,IF(ISERROR(IF(ISERROR(O42/T42), 0,O42/T42)), 0,IF(ISERROR(O42/T42), 0,O42/T42)))), 0,IF(ISERROR(IF(ISERROR(IF(ISERROR(O42/T42), 0,O42/T42)), 0,IF(ISERROR(O42/T42), 0,O42/T42))), 0,IF(ISERROR(IF(ISERROR(O42/T42), 0,O42/T42)), 0,IF(ISERROR(O42/T42), 0,O42/T42)))) -> 0 | W42: 14.2 | X42: 0.4 | Y42: =IF(ISERROR(ABS(U42)), "",ABS(U42)) ->  | Z42: 0.15 | AA42: =IF(ISERROR(ABS((Y42*X42)/W42)), 0,ABS((Y42*X42)/W42)) -> 0 | AB42: =IF(ISERROR(IF(AA42>Z42,Z42,AA42)), "",IF(AA42>Z42,Z42,AA42)) -> 0 | AC42: =IF(ISERROR(IF(Y42>W42,W42,Y42)), "",IF(Y42>W42,W42,Y42)) -> 14.2 | AD42: =IF(ISERROR((AC42*AB42)/AA42), "",(AC42*AB42)/AA42) ->  | AE42: =IF(ISERROR(IF(AC42=W42,0,(AC42*AB42)/AA42)), "",IF(AC42=W42,0,(AC42*AB42)/AA42)) -> 0 | AF42: =IF(ISERROR(IF(AC42=60,Q42+(AC42/T42),Q42+(AD42/T42))), "",IF(AC42=60,Q42+(AC42/T42),Q42+(AD42/T42))) -> 
A43: =R303 -> 276.5 | B43: =IF(AND(C42<D42, E42>$E$7),"Ignore Drill Out Lead 1; rather pop out Lead 1 and LEAVE lead # 2 to "&K42&" inches.","") ->  | N43: =(G42+J42+M42)/$E$10*$E$7 -> 0 | O43: =A43 -> 276.5 | P43: =L42 -> 0 | Q43: =IF(ISERROR(IF(AC42=W42,Q42+(AC42/T42),Q42+(AD42/T42))), "",IF(AC42=W42,Q42+(AC42/T42),Q42+(AD42/T42))) ->  | R43: =D42 -> 53 | S43: =IF(ISERROR(Q43-R43), 0,Q43-R43) -> 0 | T43: =IF(ISERROR((O43/P43)), 0,(O43/P43)) -> 0 | U43: =IF(ISERROR(S43*T43), "",S43*T43) -> 0 | V43: =IF(ISERROR(IF(ISERROR(O43/T43), 0,O43/T43)), 0,IF(ISERROR(O43/T43), 0,O43/T43)) -> 0 | W43: 14.2 | X43: 0.4 | Y43: =IF(ISERROR(ABS(U43)), "",ABS(U43)) -> 0 | Z43: 0.15 | AA43: =IF(ISERROR(ABS((Y43*X43)/W43)), "",ABS((Y43*X43)/W43)) -> 0 | AB43: =IF(ISERROR(IF(AA43>Z43,Z43,AA43)), "",IF(AA43>Z43,Z43,AA43)) -> 0 | AC43: =IF(ISERROR(IF(Y43>W43,W43,Y43)), "",IF(Y43>W43,W43,Y43)) -> 0 | AD43: =IF(ISERROR((AC43*AB43)/AA43), "",(AC43*AB43)/AA43) ->  | AE43: =IF(ISERROR(IF(AC43=W43,0,(AC43*AB43)/AA43)), "",IF(AC43=W43,0,(AC43*AB43)/AA43)) ->  | AF43: =IF(ISERROR(IF(AC43=60,Q43+(AC43/T43),Q43+(AD43/T43))), "",IF(AC43=60,Q43+(AC43/T43),Q43+(AD43/T43))) -> 
C44: Test | D44: Target | F44: 1 | G44: dr_o | H44: Lv_in | I44: 2 | J44: dr_o | K44: Lv_in | L44: 3 | M44: dr_o | N44: Lv_in | O44: =A46 -> 306.3076923 | P44: =F45 -> 0 | Q44: =C45 -> 53 | R44: =D45 -> 53 | S44: =Q44-R44 -> 0 | T44: =IF(ISERROR(IF(ISERROR(IF(ISERROR(IF(ISERROR((O44/P44)), 0,(O44/P44))), 0,IF(ISERROR((O44/P44)), 0,(O44/P44)))), 0,IF(ISERROR(IF(ISERROR((O44/P44)), 0,(O44/P44))), 0,IF(ISERROR((O44/P44)), 0,(O44/P44))))), 0,IF(ISERROR(IF(ISERROR(IF(ISERROR((O44/P44)), 0,(O44/P44))), 0,IF(ISERROR((O44/P44)), 0,(O44/P44)))), 0,IF(ISERROR(IF(ISERROR((O44/P44)), 0,(O44/P44))), 0,IF(ISERROR((O44/P44)), 0,(O44/P44))))) -> 0 | U44: =IF(ISERROR(IF(ISERROR(IF(ISERROR(IF(ISERROR(S44*T44), 0,S44*T44)), 0,IF(ISERROR(S44*T44), 0,S44*T44))), 0,IF(ISERROR(IF(ISERROR(S44*T44), 0,S44*T44)), 0,IF(ISERROR(S44*T44), 0,S44*T44)))), 0,IF(ISERROR(IF(ISERROR(IF(ISERROR(S44*T44), 0,S44*T44)), 0,IF(ISERROR(S44*T44), 0,S44*T44))), 0,IF(ISERROR(IF(ISERROR(S44*T44), 0,S44*T44)), 0,IF(ISERROR(S44*T44), 0,S44*T44)))) -> 0 | V44: =IF(ISERROR(IF(ISERROR(IF(ISERROR(IF(ISERROR(O44/T44), 0,O44/T44)), 0,IF(ISERROR(O44/T44), 0,O44/T44))), 0,IF(ISERROR(IF(ISERROR(O44/T44), 0,O44/T44)), 0,IF(ISERROR(O44/T44), 0,O44/T44)))), 0,IF(ISERROR(IF(ISERROR(IF(ISERROR(O44/T44), 0,O44/T44)), 0,IF(ISERROR(O44/T44), 0,O44/T44))), 0,IF(ISERROR(IF(ISERROR(O44/T44), 0,O44/T44)), 0,IF(ISERROR(O44/T44), 0,O44/T44)))) -> 0 | W44: 14.2 | X44: 0.4 | Y44: =IF(ISERROR(IF(ISERROR(IF(ISERROR(ABS(U44)), 0,ABS(U44))), 0,IF(ISERROR(ABS(U44)), 0,ABS(U44)))), 0,IF(ISERROR(IF(ISERROR(ABS(U44)), 0,ABS(U44))), 0,IF(ISERROR(ABS(U44)), 0,ABS(U44)))) -> 0 | Z44: 0.15 | AA44: =IF(ISERROR(IF(ISERROR(IF(ISERROR(ABS((Y44*X44)/W44)), 0,ABS((Y44*X44)/W44))), 0,IF(ISERROR(ABS((Y44*X44)/W44)), 0,ABS((Y44*X44)/W44)))), 0,IF(ISERROR(IF(ISERROR(ABS((Y44*X44)/W44)), 0,ABS((Y44*X44)/W44))), 0,IF(ISERROR(ABS((Y44*X44)/W44)), 0,ABS((Y44*X44)/W44)))) -> 0 | AB44: =IF(ISERROR(IF(ISERROR(IF(ISERROR(IF(AA44>Z44,Z44,AA44)), 0,IF(AA44>Z44,Z44,AA44))), 0,IF(ISERROR(IF(AA44>Z44,Z44,AA44)), 0,IF(AA44>Z44,Z44,AA44)))), 0,IF(ISERROR(IF(ISERROR(IF(AA44>Z44,Z44,AA44)), 0,IF(AA44>Z44,Z44,AA44))), 0,IF(ISERROR(IF(AA44>Z44,Z44,AA44)), 0,IF(AA44>Z44,Z44,AA44)))) -> 0 | AC44: =IF(ISERROR(IF(ISERROR(IF(ISERROR(IF(Y44>W44,W44,Y44)), 0,IF(Y44>W44,W44,Y44))), 0,IF(ISERROR(IF(Y44>W44,W44,Y44)), 0,IF(Y44>W44,W44,Y44)))), 0,IF(ISERROR(IF(ISERROR(IF(Y44>W44,W44,Y44)), 0,IF(Y44>W44,W44,Y44))), 0,IF(ISERROR(IF(Y44>W44,W44,Y44)), 0,IF(Y44>W44,W44,Y44)))) -> 0 | AD44: =IF(ISERROR((AC44*AB44)/AA44), 0,(AC44*AB44)/AA44) -> 0 | AE44: =IF(ISERROR(IF(ISERROR(IF(AC44=W44,0,(AC44*AB44)/AA44)), 0,IF(AC44=W44,0,(AC44*AB44)/AA44))), 0,IF(ISERROR(IF(AC44=W44,0,(AC44*AB44)/AA44)), 0,IF(AC44=W44,0,(AC44*AB44)/AA44))) -> 0 | AF44: =IF(ISERROR(IF(AC44=60,Q44+(AC44/T44),Q44+(AD44/T44))), 0,IF(AC44=60,Q44+(AC44/T44),Q44+(AD44/T44))) -> 0
A45: G | B45: 11 | C45: 53 | D45: 53 | E45: =IF(ISERROR(IF(ISERROR(IF(ISERROR(Y44), 0,Y44)), 0,IF(ISERROR(Y44), 0,Y44))), 0,IF(ISERROR(IF(ISERROR(Y44), 0,Y44)), 0,IF(ISERROR(Y44), 0,Y44))) -> 0 | G45: =IF(ISERROR(IF(ISERROR(IF(ISERROR(AB44), 0,AB44)), 0,IF(ISERROR(AB44), 0,AB44))), 0,IF(ISERROR(IF(ISERROR(AB44), 0,AB44)), 0,IF(ISERROR(AB44), 0,AB44))) -> 0 | H45: =IF(ISERROR(IF(ISERROR(IF(ISERROR($E$10-G45), 0,$E$10-G45)), 0,IF(ISERROR($E$10-G45), 0,$E$10-G45))), 0,IF(ISERROR(IF(ISERROR($E$10-G45), 0,$E$10-G45)), 0,IF(ISERROR($E$10-G45), 0,$E$10-G45))) -> 0.4 | J45: =IF(ISERROR(AB45), 0,AB45) -> 0 | K45: =IF(ISERROR(ROUND($E$10-J45,3)), 0,ROUND($E$10-J45,3)) -> 0.4 | M45: =IF(ISERROR(AB46), 0,AB46) -> 0 | N45: =IF(ISERROR($E$10-M45), 0,$E$10-M45) -> 0.4 | O45: =A46 -> 306.3076923 | P45: =I45 -> 0 | Q45: =IF(ISERROR(IF(AC44=W44,Q44+(AC44/T44),Q44+(AD44/T44))), 0,IF(AC44=W44,Q44+(AC44/T44),Q44+(AD44/T44))) -> 0 | R45: =D45 -> 53 | S45: =IF(ISERROR(Q45-R45), 0,Q45-R45) -> -53 | T45: =IF(ISERROR(IF(ISERROR(IF(ISERROR(IF(ISERROR((O45/P45)), 0,(O45/P45))), 0,IF(ISERROR((O45/P45)), 0,(O45/P45)))), 0,IF(ISERROR(IF(ISERROR((O45/P45)), 0,(O45/P45))), 0,IF(ISERROR((O45/P45)), 0,(O45/P45))))), 0,IF(ISERROR(IF(ISERROR(IF(ISERROR((O45/P45)), 0,(O45/P45))), 0,IF(ISERROR((O45/P45)), 0,(O45/P45)))), 0,IF(ISERROR(IF(ISERROR((O45/P45)), 0,(O45/P45))), 0,IF(ISERROR((O45/P45)), 0,(O45/P45))))) -> 0 | U45: =IF(ISERROR(S45*T45), 0,S45*T45) -> 0 | V45: =IF(ISERROR(IF(ISERROR(IF(ISERROR(IF(ISERROR(O45/T45), 0,O45/T45)), 0,IF(ISERROR(O45/T45), 0,O45/T45))), 0,IF(ISERROR(IF(ISERROR(O45/T45), 0,O45/T45)), 0,IF(ISERROR(O45/T45), 0,O45/T45)))), 0,IF(ISERROR(IF(ISERROR(IF(ISERROR(O45/T45), 0,O45/T45)), 0,IF(ISERROR(O45/T45), 0,O45/T45))), 0,IF(ISERROR(IF(ISERROR(O45/T45), 0,O45/T45)), 0,IF(ISERROR(O45/T45), 0,O45/T45)))) -> 0 | W45: 14.2 | X45: 0.4 | Y45: =IF(ISERROR(ABS(U45)), 0,ABS(U45)) -> 0 | Z45: 0.15 | AA45: =IF(ISERROR(ABS((Y45*X45)/W45)), 0,ABS((Y45*X45)/W45)) -> 0 | AB45: =IF(ISERROR(IF(AA45>Z45,Z45,AA45)), 0,IF(AA45>Z45,Z45,AA45)) -> 0 | AC45: =IF(ISERROR(IF(Y45>W45,W45,Y45)), 0,IF(Y45>W45,W45,Y45)) -> 0 | AD45: =IF(ISERROR((AC45*AB45)/AA45), 0,(AC45*AB45)/AA45) -> 0 | AE45: =IF(ISERROR(IF(ISERROR(IF(AC45=W45,0,(AC45*AB45)/AA45)), 0,IF(AC45=W45,0,(AC45*AB45)/AA45))), 0,IF(ISERROR(IF(AC45=W45,0,(AC45*AB45)/AA45)), 0,IF(AC45=W45,0,(AC45*AB45)/AA45))) -> 0 | AF45: =IF(ISERROR(IF(AC45=60,Q45+(AC45/T45),Q45+(AD45/T45))), 0,IF(AC45=60,Q45+(AC45/T45),Q45+(AD45/T45))) -> 0
A46: =F306 -> 306.3076923 | B46: =IF(AND(C45<D45, E45>$E$7),"Ignore Drill Out Lead 1; rather pop out Lead 1 and LEAVE lead # 2 to "&K45&" inches.","") ->  | N46: =IF(ISERROR((G45+J45+M45)/$E$10*$E$7), 0,(G45+J45+M45)/$E$10*$E$7) -> 0 | O46: =A46 -> 306.3076923 | P46: =L45 -> 0 | Q46: =IF(ISERROR(IF(AC45=W45,Q45+(AC45/T45),Q45+(AD45/T45))), 0,IF(AC45=W45,Q45+(AC45/T45),Q45+(AD45/T45))) -> 0 | R46: =D45 -> 53 | S46: =IF(ISERROR(Q46-R46), 0,Q46-R46) -> -53 | T46: =IF(ISERROR(IF(ISERROR((O46/P46)), 0,(O46/P46))), 0,IF(ISERROR((O46/P46)), 0,(O46/P46))) -> 0 | U46: =IF(ISERROR(IF(ISERROR(S46*T46), 0,S46*T46)), 0,IF(ISERROR(S46*T46), 0,S46*T46)) -> 0 | V46: =IF(ISERROR(IF(ISERROR(IF(ISERROR(O46/T46), 0,O46/T46)), 0,IF(ISERROR(O46/T46), 0,O46/T46))), 0,IF(ISERROR(IF(ISERROR(O46/T46), 0,O46/T46)), 0,IF(ISERROR(O46/T46), 0,O46/T46))) -> 0 | W46: 14.2 | X46: 0.4 | Y46: =IF(ISERROR(IF(ISERROR(ABS(U46)), 0,ABS(U46))), 0,IF(ISERROR(ABS(U46)), 0,ABS(U46))) -> 0 | Z46: 0.15 | AA46: =IF(ISERROR(IF(ISERROR(ABS((Y46*X46)/W46)), 0,ABS((Y46*X46)/W46))), 0,IF(ISERROR(ABS((Y46*X46)/W46)), 0,ABS((Y46*X46)/W46))) -> 0 | AB46: =IF(ISERROR(IF(ISERROR(IF(AA46>Z46,Z46,AA46)), 0,IF(AA46>Z46,Z46,AA46))), 0,IF(ISERROR(IF(AA46>Z46,Z46,AA46)), 0,IF(AA46>Z46,Z46,AA46))) -> 0 | AC46: =IF(ISERROR(IF(ISERROR(IF(Y46>W46,W46,Y46)), 0,IF(Y46>W46,W46,Y46))), 0,IF(ISERROR(IF(Y46>W46,W46,Y46)), 0,IF(Y46>W46,W46,Y46))) -> 0 | AD46: =IF(ISERROR((AC46*AB46)/AA46), "",(AC46*AB46)/AA46) ->  | AE46: =IF(ISERROR(IF(AC46=W46,0,(AC46*AB46)/AA46)), "",IF(AC46=W46,0,(AC46*AB46)/AA46)) ->  | AF46: =IF(ISERROR(IF(AC46=60,Q46+(AC46/T46),Q46+(AD46/T46))), "",IF(AC46=60,Q46+(AC46/T46),Q46+(AD46/T46))) -> 
C47: Test | D47: Target | F47: 1 | G47: dr_o | H47: Lv_in | I47: 2 | J47: dr_o | K47: Lv_in | L47: 3 | M47: dr_o | N47: Lv_in | O47: =A49 -> 275.5 | P47: =F48 -> 0 | Q47: =C48 -> 53 | R47: =D48 -> 53 | S47: =Q47-R47 -> 0 | T47: =IF(ISERROR(IF(ISERROR(IF(ISERROR(IF(ISERROR((O47/P47)), 0,(O47/P47))), 0,IF(ISERROR((O47/P47)), 0,(O47/P47)))), 0,IF(ISERROR(IF(ISERROR((O47/P47)), 0,(O47/P47))), 0,IF(ISERROR((O47/P47)), 0,(O47/P47))))), 0,IF(ISERROR(IF(ISERROR(IF(ISERROR((O47/P47)), 0,(O47/P47))), 0,IF(ISERROR((O47/P47)), 0,(O47/P47)))), 0,IF(ISERROR(IF(ISERROR((O47/P47)), 0,(O47/P47))), 0,IF(ISERROR((O47/P47)), 0,(O47/P47))))) -> 0 | U47: =IF(ISERROR(IF(ISERROR(IF(ISERROR(IF(ISERROR(S47*T47), 0,S47*T47)), 0,IF(ISERROR(S47*T47), 0,S47*T47))), 0,IF(ISERROR(IF(ISERROR(S47*T47), 0,S47*T47)), 0,IF(ISERROR(S47*T47), 0,S47*T47)))), 0,IF(ISERROR(IF(ISERROR(IF(ISERROR(S47*T47), 0,S47*T47)), 0,IF(ISERROR(S47*T47), 0,S47*T47))), 0,IF(ISERROR(IF(ISERROR(S47*T47), 0,S47*T47)), 0,IF(ISERROR(S47*T47), 0,S47*T47)))) -> 0 | V47: =IF(ISERROR(IF(ISERROR(IF(ISERROR(IF(ISERROR(O47/T47), 0,O47/T47)), 0,IF(ISERROR(O47/T47), 0,O47/T47))), 0,IF(ISERROR(IF(ISERROR(O47/T47), 0,O47/T47)), 0,IF(ISERROR(O47/T47), 0,O47/T47)))), 0,IF(ISERROR(IF(ISERROR(IF(ISERROR(O47/T47), 0,O47/T47)), 0,IF(ISERROR(O47/T47), 0,O47/T47))), 0,IF(ISERROR(IF(ISERROR(O47/T47), 0,O47/T47)), 0,IF(ISERROR(O47/T47), 0,O47/T47)))) -> 0 | W47: 14.2 | X47: 0.4 | Y47: =IF(ISERROR(IF(ISERROR(IF(ISERROR(ABS(U47)), 0,ABS(U47))), 0,IF(ISERROR(ABS(U47)), 0,ABS(U47)))), 0,IF(ISERROR(IF(ISERROR(ABS(U47)), 0,ABS(U47))), 0,IF(ISERROR(ABS(U47)), 0,ABS(U47)))) -> 0 | Z47: 0.15 | AA47: =IF(ISERROR(IF(ISERROR(IF(ISERROR(ABS((Y47*X47)/W47)), 0,ABS((Y47*X47)/W47))), 0,IF(ISERROR(ABS((Y47*X47)/W47)), 0,ABS((Y47*X47)/W47)))), 0,IF(ISERROR(IF(ISERROR(ABS((Y47*X47)/W47)), 0,ABS((Y47*X47)/W47))), 0,IF(ISERROR(ABS((Y47*X47)/W47)), 0,ABS((Y47*X47)/W47)))) -> 0 | AB47: =IF(ISERROR(IF(ISERROR(IF(ISERROR(IF(AA47>Z47,Z47,AA47)), 0,IF(AA47>Z47,Z47,AA47))), 0,IF(ISERROR(IF(AA47>Z47,Z47,AA47)), 0,IF(AA47>Z47,Z47,AA47)))), 0,IF(ISERROR(IF(ISERROR(IF(AA47>Z47,Z47,AA47)), 0,IF(AA47>Z47,Z47,AA47))), 0,IF(ISERROR(IF(AA47>Z47,Z47,AA47)), 0,IF(AA47>Z47,Z47,AA47)))) -> 0 | AC47: =IF(ISERROR(IF(ISERROR(IF(ISERROR(IF(Y47>W47,W47,Y47)), 0,IF(Y47>W47,W47,Y47))), 0,IF(ISERROR(IF(Y47>W47,W47,Y47)), 0,IF(Y47>W47,W47,Y47)))), 0,IF(ISERROR(IF(ISERROR(IF(Y47>W47,W47,Y47)), 0,IF(Y47>W47,W47,Y47))), 0,IF(ISERROR(IF(Y47>W47,W47,Y47)), 0,IF(Y47>W47,W47,Y47)))) -> 0 | AD47: =IF(ISERROR((AC47*AB47)/AA47), 0,(AC47*AB47)/AA47) -> 0 | AE47: =IF(ISERROR(IF(ISERROR(IF(AC47=W47,0,(AC47*AB47)/AA47)), 0,IF(AC47=W47,0,(AC47*AB47)/AA47))), 0,IF(ISERROR(IF(AC47=W47,0,(AC47*AB47)/AA47)), 0,IF(AC47=W47,0,(AC47*AB47)/AA47))) -> 0 | AF47: =IF(ISERROR(IF(AC47=60,Q47+(AC47/T47),Q47+(AD47/T47))), 0,IF(AC47=60,Q47+(AC47/T47),Q47+(AD47/T47))) -> 0
A48: G# | B48: 12 | C48: 53 | D48: 53 | E48: =IF(ISERROR(IF(ISERROR(IF(ISERROR(Y47), 0,Y47)), 0,IF(ISERROR(Y47), 0,Y47))), 0,IF(ISERROR(IF(ISERROR(Y47), 0,Y47)), 0,IF(ISERROR(Y47), 0,Y47))) -> 0 | G48: =IF(ISERROR(IF(ISERROR(IF(ISERROR(AB47), 0,AB47)), 0,IF(ISERROR(AB47), 0,AB47))), 0,IF(ISERROR(IF(ISERROR(AB47), 0,AB47)), 0,IF(ISERROR(AB47), 0,AB47))) -> 0 | H48: =IF(ISERROR(IF(ISERROR(IF(ISERROR($E$10-G48), 0,$E$10-G48)), 0,IF(ISERROR($E$10-G48), 0,$E$10-G48))), 0,IF(ISERROR(IF(ISERROR($E$10-G48), 0,$E$10-G48)), 0,IF(ISERROR($E$10-G48), 0,$E$10-G48))) -> 0.4 | J48: =IF(ISERROR(AB48), 0,AB48) -> 0 | K48: =IF(ISERROR(ROUND($E$10-J48,3)), 0,ROUND($E$10-J48,3)) -> 0.4 | M48: =IF(ISERROR(AB49), "",AB49) -> 0 | N48: =IF(ISERROR($E$10-M48), "",$E$10-M48) -> 0.4 | O48: =A49 -> 275.5 | P48: =I48 -> 0 | Q48: =IF(ISERROR(IF(AC47=W47,Q47+(AC47/T47),Q47+(AD47/T47))), 0,IF(AC47=W47,Q47+(AC47/T47),Q47+(AD47/T47))) -> 0 | R48: =D48 -> 53 | S48: =IF(ISERROR(Q48-R48), 0,Q48-R48) -> -53 | T48: =IF(ISERROR(IF(ISERROR(IF(ISERROR(IF(ISERROR((O48/P48)), 0,(O48/P48))), 0,IF(ISERROR((O48/P48)), 0,(O48/P48)))), 0,IF(ISERROR(IF(ISERROR((O48/P48)), 0,(O48/P48))), 0,IF(ISERROR((O48/P48)), 0,(O48/P48))))), 0,IF(ISERROR(IF(ISERROR(IF(ISERROR((O48/P48)), 0,(O48/P48))), 0,IF(ISERROR((O48/P48)), 0,(O48/P48)))), 0,IF(ISERROR(IF(ISERROR((O48/P48)), 0,(O48/P48))), 0,IF(ISERROR((O48/P48)), 0,(O48/P48))))) -> 0 | U48: =IF(ISERROR(S48*T48), 0,S48*T48) -> 0 | V48: =IF(ISERROR(IF(ISERROR(IF(ISERROR(IF(ISERROR(O48/T48), 0,O48/T48)), 0,IF(ISERROR(O48/T48), 0,O48/T48))), 0,IF(ISERROR(IF(ISERROR(O48/T48), 0,O48/T48)), 0,IF(ISERROR(O48/T48), 0,O48/T48)))), 0,IF(ISERROR(IF(ISERROR(IF(ISERROR(O48/T48), 0,O48/T48)), 0,IF(ISERROR(O48/T48), 0,O48/T48))), 0,IF(ISERROR(IF(ISERROR(O48/T48), 0,O48/T48)), 0,IF(ISERROR(O48/T48), 0,O48/T48)))) -> 0 | W48: 14.2 | X48: 0.4 | Y48: =IF(ISERROR(ABS(U48)), 0,ABS(U48)) -> 0 | Z48: 0.15 | AA48: =IF(ISERROR(ABS((Y48*X48)/W48)), 0,ABS((Y48*X48)/W48)) -> 0 | AB48: =IF(ISERROR(IF(AA48>Z48,Z48,AA48)), 0,IF(AA48>Z48,Z48,AA48)) -> 0 | AC48: =IF(ISERROR(IF(Y48>W48,W48,Y48)), 0,IF(Y48>W48,W48,Y48)) -> 0 | AD48: =IF(ISERROR((AC48*AB48)/AA48), "",(AC48*AB48)/AA48) ->  | AE48: =IF(ISERROR(IF(AC48=W48,0,(AC48*AB48)/AA48)), "",IF(AC48=W48,0,(AC48*AB48)/AA48)) ->  | AF48: =IF(ISERROR(IF(AC48=60,Q48+(AC48/T48),Q48+(AD48/T48))), "",IF(AC48=60,Q48+(AC48/T48),Q48+(AD48/T48))) -> 
A49: =R304 -> 275.5 | B49: =IF(AND(C48<D48, E48>$E$7),"Ignore Drill Out Lead 1; rather pop out Lead 1 and LEAVE lead # 2 to "&K48&" inches.","") ->  | N49: =IF(ISERROR((G48+J48+M48)/$E$10*$E$7), 0,(G48+J48+M48)/$E$10*$E$7) -> 0 | O49: =A49 -> 275.5 | P49: =L48 -> 0 | Q49: =IF(ISERROR(IF(AC48=W48,Q48+(AC48/T48),Q48+(AD48/T48))), "",IF(AC48=W48,Q48+(AC48/T48),Q48+(AD48/T48))) ->  | R49: =D48 -> 53 | S49: =IF(ISERROR(Q49-R49), 0,Q49-R49) -> 0 | T49: =IF(ISERROR((O49/P49)), 0,(O49/P49)) -> 0 | U49: =IF(ISERROR(S49*T49), "",S49*T49) -> 0 | V49: =IF(ISERROR(IF(ISERROR(O49/T49), 0,O49/T49)), 0,IF(ISERROR(O49/T49), 0,O49/T49)) -> 0 | W49: 14.2 | X49: 0.4 | Y49: =IF(ISERROR(ABS(U49)), "",ABS(U49)) -> 0 | Z49: 0.15 | AA49: =IF(ISERROR(ABS((Y49*X49)/W49)), "",ABS((Y49*X49)/W49)) -> 0 | AB49: =IF(ISERROR(IF(AA49>Z49,Z49,AA49)), "",IF(AA49>Z49,Z49,AA49)) -> 0 | AC49: =IF(ISERROR(IF(Y49>W49,W49,Y49)), "",IF(Y49>W49,W49,Y49)) -> 0 | AD49: =IF(ISERROR((AC49*AB49)/AA49), "",(AC49*AB49)/AA49) ->  | AE49: =IF(ISERROR(IF(AC49=W49,0,(AC49*AB49)/AA49)), "",IF(AC49=W49,0,(AC49*AB49)/AA49)) ->  | AF49: =IF(ISERROR(IF(AC49=60,Q49+(AC49/T49),Q49+(AD49/T49))), "",IF(AC49=60,Q49+(AC49/T49),Q49+(AD49/T49))) -> 
C51: Gram Test | D51: Desired DW | E51: Total Lead to remove | F51: Location mm | G51: Drill Depth Inches | H51: Leave this much lead | I51: Location mm | J51: Depth | K51: Leave this much lead | L51: Location mm | M51: Depth | N51: Leave this much lead | Q51: delta DW | R51: ddw | S51: dif_dw | T51: key_ro | U51: reqd_ld | V51: key_div | W51: slugs | X51: lead_wid | Y51: reqd_ld | Z51: max_drill | AA51: tot_drill | AB51: act_drill | AC51: lead_out | AD51: fac | AE51: slug_rmn | AF51: delta_DW
B52: Key # | C52: DW | D52: DDW | E52: Ld. Out | F52: Lead 1 | G52: Drill Out | H52: LEAVE | I52: 2nd | J52: Drill | K52: LEAVE | L52: 3rd | M52: Drill | N52: LEAVE | O52: =A54 -> 304.9423077 | P52: =F53 -> 0 | Q52: =C53 -> 52 | R52: =D53 -> 52 | S52: =Q52-R52 -> 0 | T52: =IF(ISERROR(IF(ISERROR(IF(ISERROR(IF(ISERROR((O52/P52)), 0,(O52/P52))), 0,IF(ISERROR((O52/P52)), 0,(O52/P52)))), 0,IF(ISERROR(IF(ISERROR((O52/P52)), 0,(O52/P52))), 0,IF(ISERROR((O52/P52)), 0,(O52/P52))))), 0,IF(ISERROR(IF(ISERROR(IF(ISERROR((O52/P52)), 0,(O52/P52))), 0,IF(ISERROR((O52/P52)), 0,(O52/P52)))), 0,IF(ISERROR(IF(ISERROR((O52/P52)), 0,(O52/P52))), 0,IF(ISERROR((O52/P52)), 0,(O52/P52))))) -> 0 | U52: =IF(ISERROR(IF(ISERROR(IF(ISERROR(IF(ISERROR(S52*T52), 0,S52*T52)), 0,IF(ISERROR(S52*T52), 0,S52*T52))), 0,IF(ISERROR(IF(ISERROR(S52*T52), 0,S52*T52)), 0,IF(ISERROR(S52*T52), 0,S52*T52)))), 0,IF(ISERROR(IF(ISERROR(IF(ISERROR(S52*T52), 0,S52*T52)), 0,IF(ISERROR(S52*T52), 0,S52*T52))), 0,IF(ISERROR(IF(ISERROR(S52*T52), 0,S52*T52)), 0,IF(ISERROR(S52*T52), 0,S52*T52)))) -> 0 | V52: =IF(ISERROR(IF(ISERROR(IF(ISERROR(IF(ISERROR(O52/T52), 0,O52/T52)), 0,IF(ISERROR(O52/T52), 0,O52/T52))), 0,IF(ISERROR(IF(ISERROR(O52/T52), 0,O52/T52)), 0,IF(ISERROR(O52/T52), 0,O52/T52)))), 0,IF(ISERROR(IF(ISERROR(IF(ISERROR(O52/T52), 0,O52/T52)), 0,IF(ISERROR(O52/T52), 0,O52/T52))), 0,IF(ISERROR(IF(ISERROR(O52/T52), 0,O52/T52)), 0,IF(ISERROR(O52/T52), 0,O52/T52)))) -> 0 | W52: =$E$7 -> 14.2 | X52: =$E$10 -> 0.4 | Y52: =IF(ISERROR(IF(ISERROR(IF(ISERROR(ABS(U52)), 0,ABS(U52))), 0,IF(ISERROR(ABS(U52)), 0,ABS(U52)))), 0,IF(ISERROR(IF(ISERROR(ABS(U52)), 0,ABS(U52))), 0,IF(ISERROR(ABS(U52)), 0,ABS(U52)))) -> 0 | Z52: =$X$14-$G$11 -> 0.15 | AA52: =IF(ISERROR(IF(ISERROR(IF(ISERROR(ABS((Y52*X52)/W52)), 0,ABS((Y52*X52)/W52))), 0,IF(ISERROR(ABS((Y52*X52)/W52)), 0,ABS((Y52*X52)/W52)))), 0,IF(ISERROR(IF(ISERROR(ABS((Y52*X52)/W52)), 0,ABS((Y52*X52)/W52))), 0,IF(ISERROR(ABS((Y52*X52)/W52)), 0,ABS((Y52*X52)/W52)))) -> 0 | AB52: =IF(ISERROR(IF(ISERROR(IF(ISERROR(IF(AA52>Z52,Z52,AA52)), 0,IF(AA52>Z52,Z52,AA52))), 0,IF(ISERROR(IF(AA52>Z52,Z52,AA52)), 0,IF(AA52>Z52,Z52,AA52)))), 0,IF(ISERROR(IF(ISERROR(IF(AA52>Z52,Z52,AA52)), 0,IF(AA52>Z52,Z52,AA52))), 0,IF(ISERROR(IF(AA52>Z52,Z52,AA52)), 0,IF(AA52>Z52,Z52,AA52)))) -> 0 | AC52: =IF(ISERROR(IF(ISERROR(IF(ISERROR(IF(Y52>W52,W52,Y52)), 0,IF(Y52>W52,W52,Y52))), 0,IF(ISERROR(IF(Y52>W52,W52,Y52)), 0,IF(Y52>W52,W52,Y52)))), 0,IF(ISERROR(IF(ISERROR(IF(Y52>W52,W52,Y52)), 0,IF(Y52>W52,W52,Y52))), 0,IF(ISERROR(IF(Y52>W52,W52,Y52)), 0,IF(Y52>W52,W52,Y52)))) -> 0 | AD52: =IF(ISERROR((AC52*AB52)/AA52), 0,(AC52*AB52)/AA52) -> 0 | AE52: =IF(ISERROR(IF(ISERROR(IF(AC52=W52,0,(AC52*AB52)/AA52)), 0,IF(AC52=W52,0,(AC52*AB52)/AA52))), 0,IF(ISERROR(IF(AC52=W52,0,(AC52*AB52)/AA52)), 0,IF(AC52=W52,0,(AC52*AB52)/AA52))) -> 0 | AF52: =IF(ISERROR(IF(AC52=60,Q52+(AC52/T52),Q52+(AD52/T52))), 0,IF(AC52=60,Q52+(AC52/T52),Q52+(AD52/T52))) -> 0
A53: A | B53: 13 | C53: 52 | D53: 52 | E53: =IF(ISERROR(IF(ISERROR(IF(ISERROR(Y52), 0,Y52)), 0,IF(ISERROR(Y52), 0,Y52))), 0,IF(ISERROR(IF(ISERROR(Y52), 0,Y52)), 0,IF(ISERROR(Y52), 0,Y52))) -> 0 | G53: =IF(ISERROR(IF(ISERROR(IF(ISERROR(AB52), 0,AB52)), 0,IF(ISERROR(AB52), 0,AB52))), 0,IF(ISERROR(IF(ISERROR(AB52), 0,AB52)), 0,IF(ISERROR(AB52), 0,AB52))) -> 0 | H53: =IF(ISERROR(IF(ISERROR(IF(ISERROR($E$10-G53), 0,$E$10-G53)), 0,IF(ISERROR($E$10-G53), 0,$E$10-G53))), 0,IF(ISERROR(IF(ISERROR($E$10-G53), 0,$E$10-G53)), 0,IF(ISERROR($E$10-G53), 0,$E$10-G53))) -> 0.4 | J53: =IF(ISERROR(AB53), 0,AB53) -> 0 | K53: =IF(ISERROR(ROUND($E$10-J53,3)), 0,ROUND($E$10-J53,3)) -> 0.4 | M53: =IF(ISERROR(AB54), 0,AB54) -> 0 | N53: =IF(ISERROR($E$10-M53), 0,$E$10-M53) -> 0.4 | O53: =A54 -> 304.9423077 | P53: =I53 -> 0 | Q53: =IF(ISERROR(IF(AC52=W52,Q52+(AC52/T52),Q52+(AD52/T52))), 0,IF(AC52=W52,Q52+(AC52/T52),Q52+(AD52/T52))) -> 0 | R53: =D53 -> 52 | S53: =IF(ISERROR(Q53-R53), 0,Q53-R53) -> -52 | T53: =IF(ISERROR(IF(ISERROR(IF(ISERROR(IF(ISERROR((O53/P53)), 0,(O53/P53))), 0,IF(ISERROR((O53/P53)), 0,(O53/P53)))), 0,IF(ISERROR(IF(ISERROR((O53/P53)), 0,(O53/P53))), 0,IF(ISERROR((O53/P53)), 0,(O53/P53))))), 0,IF(ISERROR(IF(ISERROR(IF(ISERROR((O53/P53)), 0,(O53/P53))), 0,IF(ISERROR((O53/P53)), 0,(O53/P53)))), 0,IF(ISERROR(IF(ISERROR((O53/P53)), 0,(O53/P53))), 0,IF(ISERROR((O53/P53)), 0,(O53/P53))))) -> 0 | U53: =IF(ISERROR(S53*T53), 0,S53*T53) -> 0 | V53: =IF(ISERROR(IF(ISERROR(IF(ISERROR(IF(ISERROR(O53/T53), 0,O53/T53)), 0,IF(ISERROR(O53/T53), 0,O53/T53))), 0,IF(ISERROR(IF(ISERROR(O53/T53), 0,O53/T53)), 0,IF(ISERROR(O53/T53), 0,O53/T53)))), 0,IF(ISERROR(IF(ISERROR(IF(ISERROR(O53/T53), 0,O53/T53)), 0,IF(ISERROR(O53/T53), 0,O53/T53))), 0,IF(ISERROR(IF(ISERROR(O53/T53), 0,O53/T53)), 0,IF(ISERROR(O53/T53), 0,O53/T53)))) -> 0 | W53: 14.2 | X53: 0.4 | Y53: =IF(ISERROR(ABS(U53)), 0,ABS(U53)) -> 0 | Z53: 0.15 | AA53: =IF(ISERROR(ABS((Y53*X53)/W53)), 0,ABS((Y53*X53)/W53)) -> 0 | AB53: =IF(ISERROR(IF(AA53>Z53,Z53,AA53)), 0,IF(AA53>Z53,Z53,AA53)) -> 0 | AC53: =IF(ISERROR(IF(Y53>W53,W53,Y53)), 0,IF(Y53>W53,W53,Y53)) -> 0 | AD53: =IF(ISERROR((AC53*AB53)/AA53), 0,(AC53*AB53)/AA53) -> 0 | AE53: =IF(ISERROR(IF(ISERROR(IF(AC53=W53,0,(AC53*AB53)/AA53)), 0,IF(AC53=W53,0,(AC53*AB53)/AA53))), 0,IF(ISERROR(IF(AC53=W53,0,(AC53*AB53)/AA53)), 0,IF(AC53=W53,0,(AC53*AB53)/AA53))) -> 0 | AF53: =IF(ISERROR(IF(AC53=60,Q53+(AC53/T53),Q53+(AD53/T53))), 0,IF(AC53=60,Q53+(AC53/T53),Q53+(AD53/T53))) -> 0
A54: =F307 -> 304.9423077 | B54: =IF(AND(C53<D53, E53>$E$7),"Ignore Drill Out Lead 1; rather pop out Lead 1 and LEAVE lead # 2 to "&K53&" inches.","") ->  | N54: =(G53+J53+M53)/$E$10*$E$7 -> 0 | O54: =A54 -> 304.9423077 | P54: =L53 -> 0 | Q54: =IF(ISERROR(IF(AC53=W53,Q53+(AC53/T53),Q53+(AD53/T53))), 0,IF(AC53=W53,Q53+(AC53/T53),Q53+(AD53/T53))) -> 0 | R54: =D53 -> 52 | S54: =IF(ISERROR(Q54-R54), 0,Q54-R54) -> -52 | T54: =IF(ISERROR(IF(ISERROR((O54/P54)), 0,(O54/P54))), 0,IF(ISERROR((O54/P54)), 0,(O54/P54))) -> 0 | U54: =IF(ISERROR(IF(ISERROR(S54*T54), 0,S54*T54)), 0,IF(ISERROR(S54*T54), 0,S54*T54)) -> 0 | V54: =IF(ISERROR(IF(ISERROR(IF(ISERROR(O54/T54), 0,O54/T54)), 0,IF(ISERROR(O54/T54), 0,O54/T54))), 0,IF(ISERROR(IF(ISERROR(O54/T54), 0,O54/T54)), 0,IF(ISERROR(O54/T54), 0,O54/T54))) -> 0 | W54: 14.2 | X54: 0.4 | Y54: =IF(ISERROR(IF(ISERROR(ABS(U54)), 0,ABS(U54))), 0,IF(ISERROR(ABS(U54)), 0,ABS(U54))) -> 0 | Z54: 0.15 | AA54: =IF(ISERROR(IF(ISERROR(ABS((Y54*X54)/W54)), 0,ABS((Y54*X54)/W54))), 0,IF(ISERROR(ABS((Y54*X54)/W54)), 0,ABS((Y54*X54)/W54))) -> 0 | AB54: =IF(ISERROR(IF(ISERROR(IF(AA54>Z54,Z54,AA54)), 0,IF(AA54>Z54,Z54,AA54))), 0,IF(ISERROR(IF(AA54>Z54,Z54,AA54)), 0,IF(AA54>Z54,Z54,AA54))) -> 0 | AC54: =IF(ISERROR(IF(ISERROR(IF(Y54>W54,W54,Y54)), 0,IF(Y54>W54,W54,Y54))), 0,IF(ISERROR(IF(Y54>W54,W54,Y54)), 0,IF(Y54>W54,W54,Y54))) -> 0 | AD54: =IF(ISERROR((AC54*AB54)/AA54), "",(AC54*AB54)/AA54) ->  | AE54: =IF(ISERROR(IF(AC54=W54,0,(AC54*AB54)/AA54)), "",IF(AC54=W54,0,(AC54*AB54)/AA54)) ->  | AF54: =IF(ISERROR(IF(AC54=60,Q54+(AC54/T54),Q54+(AD54/T54))), "",IF(AC54=60,Q54+(AC54/T54),Q54+(AD54/T54))) -> 
C55: Test | D55: Target | F55: 1 | G55: dr_o | H55: Lv_in | I55: 2 | J55: dr_o | K55: Lv_in | L55: 3 | M55: dr_o | N55: Lv_in | O55: =A57 -> 274.5 | P55: =F56 -> 0 | Q55: =C56 -> 49 | R55: =D56 -> 52 | S55: =Q55-R55 -> -3 | T55: =IF(ISERROR(IF(ISERROR(IF(ISERROR(IF(ISERROR((O55/P55)), 0,(O55/P55))), 0,IF(ISERROR((O55/P55)), 0,(O55/P55)))), 0,IF(ISERROR(IF(ISERROR((O55/P55)), 0,(O55/P55))), 0,IF(ISERROR((O55/P55)), 0,(O55/P55))))), 0,IF(ISERROR(IF(ISERROR(IF(ISERROR((O55/P55)), 0,(O55/P55))), 0,IF(ISERROR((O55/P55)), 0,(O55/P55)))), 0,IF(ISERROR(IF(ISERROR((O55/P55)), 0,(O55/P55))), 0,IF(ISERROR((O55/P55)), 0,(O55/P55))))) -> 0 | U55: =IF(ISERROR(IF(ISERROR(IF(ISERROR(IF(ISERROR(S55*T55), 0,S55*T55)), 0,IF(ISERROR(S55*T55), 0,S55*T55))), 0,IF(ISERROR(IF(ISERROR(S55*T55), 0,S55*T55)), 0,IF(ISERROR(S55*T55), 0,S55*T55)))), 0,IF(ISERROR(IF(ISERROR(IF(ISERROR(S55*T55), 0,S55*T55)), 0,IF(ISERROR(S55*T55), 0,S55*T55))), 0,IF(ISERROR(IF(ISERROR(S55*T55), 0,S55*T55)), 0,IF(ISERROR(S55*T55), 0,S55*T55)))) -> 0 | V55: =IF(ISERROR(IF(ISERROR(IF(ISERROR(IF(ISERROR(O55/T55), 0,O55/T55)), 0,IF(ISERROR(O55/T55), 0,O55/T55))), 0,IF(ISERROR(IF(ISERROR(O55/T55), 0,O55/T55)), 0,IF(ISERROR(O55/T55), 0,O55/T55)))), 0,IF(ISERROR(IF(ISERROR(IF(ISERROR(O55/T55), 0,O55/T55)), 0,IF(ISERROR(O55/T55), 0,O55/T55))), 0,IF(ISERROR(IF(ISERROR(O55/T55), 0,O55/T55)), 0,IF(ISERROR(O55/T55), 0,O55/T55)))) -> 0 | W55: 14.2 | X55: 0.4 | Y55: =IF(ISERROR(IF(ISERROR(IF(ISERROR(ABS(U55)), 0,ABS(U55))), 0,IF(ISERROR(ABS(U55)), 0,ABS(U55)))), 0,IF(ISERROR(IF(ISERROR(ABS(U55)), 0,ABS(U55))), 0,IF(ISERROR(ABS(U55)), 0,ABS(U55)))) -> 0 | Z55: 0.15 | AA55: =IF(ISERROR(IF(ISERROR(IF(ISERROR(ABS((Y55*X55)/W55)), 0,ABS((Y55*X55)/W55))), 0,IF(ISERROR(ABS((Y55*X55)/W55)), 0,ABS((Y55*X55)/W55)))), 0,IF(ISERROR(IF(ISERROR(ABS((Y55*X55)/W55)), 0,ABS((Y55*X55)/W55))), 0,IF(ISERROR(ABS((Y55*X55)/W55)), 0,ABS((Y55*X55)/W55)))) -> 0 | AB55: =IF(ISERROR(IF(ISERROR(IF(ISERROR(IF(AA55>Z55,Z55,AA55)), 0,IF(AA55>Z55,Z55,AA55))), 0,IF(ISERROR(IF(AA55>Z55,Z55,AA55)), 0,IF(AA55>Z55,Z55,AA55)))), 0,IF(ISERROR(IF(ISERROR(IF(AA55>Z55,Z55,AA55)), 0,IF(AA55>Z55,Z55,AA55))), 0,IF(ISERROR(IF(AA55>Z55,Z55,AA55)), 0,IF(AA55>Z55,Z55,AA55)))) -> 0 | AC55: =IF(ISERROR(IF(ISERROR(IF(ISERROR(IF(Y55>W55,W55,Y55)), 0,IF(Y55>W55,W55,Y55))), 0,IF(ISERROR(IF(Y55>W55,W55,Y55)), 0,IF(Y55>W55,W55,Y55)))), 0,IF(ISERROR(IF(ISERROR(IF(Y55>W55,W55,Y55)), 0,IF(Y55>W55,W55,Y55))), 0,IF(ISERROR(IF(Y55>W55,W55,Y55)), 0,IF(Y55>W55,W55,Y55)))) -> 0 | AD55: =IF(ISERROR((AC55*AB55)/AA55), 0,(AC55*AB55)/AA55) -> 0 | AE55: =IF(ISERROR(IF(ISERROR(IF(AC55=W55,0,(AC55*AB55)/AA55)), 0,IF(AC55=W55,0,(AC55*AB55)/AA55))), 0,IF(ISERROR(IF(AC55=W55,0,(AC55*AB55)/AA55)), 0,IF(AC55=W55,0,(AC55*AB55)/AA55))) -> 0 | AF55: =IF(ISERROR(IF(AC55=60,Q55+(AC55/T55),Q55+(AD55/T55))), 0,IF(AC55=60,Q55+(AC55/T55),Q55+(AD55/T55))) -> 0
A56: A# | B56: 14 | C56: 49 | D56: 52 | E56: =IF(ISERROR(IF(ISERROR(IF(ISERROR(Y55), 0,Y55)), 0,IF(ISERROR(Y55), 0,Y55))), 0,IF(ISERROR(IF(ISERROR(Y55), 0,Y55)), 0,IF(ISERROR(Y55), 0,Y55))) -> 0 | G56: =IF(ISERROR(IF(ISERROR(IF(ISERROR(AB55), 0,AB55)), 0,IF(ISERROR(AB55), 0,AB55))), 0,IF(ISERROR(IF(ISERROR(AB55), 0,AB55)), 0,IF(ISERROR(AB55), 0,AB55))) -> 0 | H56: =IF(ISERROR(IF(ISERROR(IF(ISERROR($E$10-G56), 0,$E$10-G56)), 0,IF(ISERROR($E$10-G56), 0,$E$10-G56))), 0,IF(ISERROR(IF(ISERROR($E$10-G56), 0,$E$10-G56)), 0,IF(ISERROR($E$10-G56), 0,$E$10-G56))) -> 0.4 | J56: =IF(ISERROR(AB56), 0,AB56) -> 0 | K56: =IF(ISERROR(ROUND($E$10-J56,3)), 0,ROUND($E$10-J56,3)) -> 0.4 | M56: =IF(ISERROR(AB57), "",AB57) -> 0 | N56: =IF(ISERROR($E$10-M56), "",$E$10-M56) -> 0.4 | O56: =A57 -> 274.5 | P56: =I56 -> 0 | Q56: =IF(ISERROR(IF(AC55=W55,Q55+(AC55/T55),Q55+(AD55/T55))), 0,IF(AC55=W55,Q55+(AC55/T55),Q55+(AD55/T55))) -> 0 | R56: =D56 -> 52 | S56: =IF(ISERROR(Q56-R56), 0,Q56-R56) -> -52 | T56: =IF(ISERROR(IF(ISERROR(IF(ISERROR(IF(ISERROR((O56/P56)), 0,(O56/P56))), 0,IF(ISERROR((O56/P56)), 0,(O56/P56)))), 0,IF(ISERROR(IF(ISERROR((O56/P56)), 0,(O56/P56))), 0,IF(ISERROR((O56/P56)), 0,(O56/P56))))), 0,IF(ISERROR(IF(ISERROR(IF(ISERROR((O56/P56)), 0,(O56/P56))), 0,IF(ISERROR((O56/P56)), 0,(O56/P56)))), 0,IF(ISERROR(IF(ISERROR((O56/P56)), 0,(O56/P56))), 0,IF(ISERROR((O56/P56)), 0,(O56/P56))))) -> 0 | U56: =IF(ISERROR(S56*T56), 0,S56*T56) -> 0 | V56: =IF(ISERROR(IF(ISERROR(IF(ISERROR(IF(ISERROR(O56/T56), 0,O56/T56)), 0,IF(ISERROR(O56/T56), 0,O56/T56))), 0,IF(ISERROR(IF(ISERROR(O56/T56), 0,O56/T56)), 0,IF(ISERROR(O56/T56), 0,O56/T56)))), 0,IF(ISERROR(IF(ISERROR(IF(ISERROR(O56/T56), 0,O56/T56)), 0,IF(ISERROR(O56/T56), 0,O56/T56))), 0,IF(ISERROR(IF(ISERROR(O56/T56), 0,O56/T56)), 0,IF(ISERROR(O56/T56), 0,O56/T56)))) -> 0 | W56: 14.2 | X56: 0.4 | Y56: =IF(ISERROR(ABS(U56)), 0,ABS(U56)) -> 0 | Z56: 0.15 | AA56: =IF(ISERROR(ABS((Y56*X56)/W56)), 0,ABS((Y56*X56)/W56)) -> 0 | AB56: =IF(ISERROR(IF(AA56>Z56,Z56,AA56)), 0,IF(AA56>Z56,Z56,AA56)) -> 0 | AC56: =IF(ISERROR(IF(Y56>W56,W56,Y56)), 0,IF(Y56>W56,W56,Y56)) -> 0 | AD56: =IF(ISERROR((AC56*AB56)/AA56), "",(AC56*AB56)/AA56) ->  | AE56: =IF(ISERROR(IF(AC56=W56,0,(AC56*AB56)/AA56)), "",IF(AC56=W56,0,(AC56*AB56)/AA56)) ->  | AF56: =IF(ISERROR(IF(AC56=60,Q56+(AC56/T56),Q56+(AD56/T56))), "",IF(AC56=60,Q56+(AC56/T56),Q56+(AD56/T56))) -> 
A57: =R305 -> 274.5 | B57: =IF(AND(C56<D56, E56>$E$7),"Ignore Drill Out Lead 1; rather pop out Lead 1 and LEAVE lead # 2 to "&K56&" inches.","") ->  | N57: =IF(ISERROR((G56+J56+M56)/$E$10*$E$7), 0,(G56+J56+M56)/$E$10*$E$7) -> 0 | O57: =A57 -> 274.5 | P57: =L56 -> 0 | Q57: =IF(ISERROR(IF(AC56=W56,Q56+(AC56/T56),Q56+(AD56/T56))), "",IF(AC56=W56,Q56+(AC56/T56),Q56+(AD56/T56))) ->  | R57: =D56 -> 52 | S57: =IF(ISERROR(Q57-R57), 0,Q57-R57) -> 0 | T57: =IF(ISERROR((O57/P57)), 0,(O57/P57)) -> 0 | U57: =IF(ISERROR(S57*T57), "",S57*T57) -> 0 | V57: =IF(ISERROR(IF(ISERROR(O57/T57), 0,O57/T57)), 0,IF(ISERROR(O57/T57), 0,O57/T57)) -> 0 | W57: 14.2 | X57: 0.4 | Y57: =IF(ISERROR(ABS(U57)), "",ABS(U57)) -> 0 | Z57: 0.15 | AA57: =IF(ISERROR(ABS((Y57*X57)/W57)), "",ABS((Y57*X57)/W57)) -> 0 | AB57: =IF(ISERROR(IF(AA57>Z57,Z57,AA57)), "",IF(AA57>Z57,Z57,AA57)) -> 0 | AC57: =IF(ISERROR(IF(Y57>W57,W57,Y57)), "",IF(Y57>W57,W57,Y57)) -> 0 | AD57: =IF(ISERROR((AC57*AB57)/AA57), "",(AC57*AB57)/AA57) ->  | AE57: =IF(ISERROR(IF(AC57=W57,0,(AC57*AB57)/AA57)), "",IF(AC57=W57,0,(AC57*AB57)/AA57)) ->  | AF57: =IF(ISERROR(IF(AC57=60,Q57+(AC57/T57),Q57+(AD57/T57))), "",IF(AC57=60,Q57+(AC57/T57),Q57+(AD57/T57))) -> 
C58: Test | D58: Target | F58: 1 | G58: dr_o | H58: Lv_in | I58: 2 | J58: dr_o | K58: Lv_in | L58: 3 | M58: dr_o | N58: Lv_in | O58: =A60 -> 303.5769231 | P58: =F59 -> 0 | Q58: =C59 -> 52 | R58: =D59 -> 52 | S58: =Q58-R58 -> 0 | T58: =IF(ISERROR(IF(ISERROR(IF(ISERROR(IF(ISERROR((O58/P58)), 0,(O58/P58))), 0,IF(ISERROR((O58/P58)), 0,(O58/P58)))), 0,IF(ISERROR(IF(ISERROR((O58/P58)), 0,(O58/P58))), 0,IF(ISERROR((O58/P58)), 0,(O58/P58))))), 0,IF(ISERROR(IF(ISERROR(IF(ISERROR((O58/P58)), 0,(O58/P58))), 0,IF(ISERROR((O58/P58)), 0,(O58/P58)))), 0,IF(ISERROR(IF(ISERROR((O58/P58)), 0,(O58/P58))), 0,IF(ISERROR((O58/P58)), 0,(O58/P58))))) -> 0 | U58: =IF(ISERROR(IF(ISERROR(IF(ISERROR(IF(ISERROR(S58*T58), 0,S58*T58)), 0,IF(ISERROR(S58*T58), 0,S58*T58))), 0,IF(ISERROR(IF(ISERROR(S58*T58), 0,S58*T58)), 0,IF(ISERROR(S58*T58), 0,S58*T58)))), 0,IF(ISERROR(IF(ISERROR(IF(ISERROR(S58*T58), 0,S58*T58)), 0,IF(ISERROR(S58*T58), 0,S58*T58))), 0,IF(ISERROR(IF(ISERROR(S58*T58), 0,S58*T58)), 0,IF(ISERROR(S58*T58), 0,S58*T58)))) -> 0 | V58: =IF(ISERROR(IF(ISERROR(IF(ISERROR(IF(ISERROR(O58/T58), 0,O58/T58)), 0,IF(ISERROR(O58/T58), 0,O58/T58))), 0,IF(ISERROR(IF(ISERROR(O58/T58), 0,O58/T58)), 0,IF(ISERROR(O58/T58), 0,O58/T58)))), 0,IF(ISERROR(IF(ISERROR(IF(ISERROR(O58/T58), 0,O58/T58)), 0,IF(ISERROR(O58/T58), 0,O58/T58))), 0,IF(ISERROR(IF(ISERROR(O58/T58), 0,O58/T58)), 0,IF(ISERROR(O58/T58), 0,O58/T58)))) -> 0 | W58: 14.2 | X58: 0.4 | Y58: =IF(ISERROR(IF(ISERROR(IF(ISERROR(ABS(U58)), 0,ABS(U58))), 0,IF(ISERROR(ABS(U58)), 0,ABS(U58)))), 0,IF(ISERROR(IF(ISERROR(ABS(U58)), 0,ABS(U58))), 0,IF(ISERROR(ABS(U58)), 0,ABS(U58)))) -> 0 | Z58: 0.15 | AA58: =IF(ISERROR(IF(ISERROR(IF(ISERROR(ABS((Y58*X58)/W58)), 0,ABS((Y58*X58)/W58))), 0,IF(ISERROR(ABS((Y58*X58)/W58)), 0,ABS((Y58*X58)/W58)))), 0,IF(ISERROR(IF(ISERROR(ABS((Y58*X58)/W58)), 0,ABS((Y58*X58)/W58))), 0,IF(ISERROR(ABS((Y58*X58)/W58)), 0,ABS((Y58*X58)/W58)))) -> 0 | AB58: =IF(ISERROR(IF(ISERROR(IF(ISERROR(IF(AA58>Z58,Z58,AA58)), 0,IF(AA58>Z58,Z58,AA58))), 0,IF(ISERROR(IF(AA58>Z58,Z58,AA58)), 0,IF(AA58>Z58,Z58,AA58)))), 0,IF(ISERROR(IF(ISERROR(IF(AA58>Z58,Z58,AA58)), 0,IF(AA58>Z58,Z58,AA58))), 0,IF(ISERROR(IF(AA58>Z58,Z58,AA58)), 0,IF(AA58>Z58,Z58,AA58)))) -> 0 | AC58: =IF(ISERROR(IF(ISERROR(IF(ISERROR(IF(Y58>W58,W58,Y58)), 0,IF(Y58>W58,W58,Y58))), 0,IF(ISERROR(IF(Y58>W58,W58,Y58)), 0,IF(Y58>W58,W58,Y58)))), 0,IF(ISERROR(IF(ISERROR(IF(Y58>W58,W58,Y58)), 0,IF(Y58>W58,W58,Y58))), 0,IF(ISERROR(IF(Y58>W58,W58,Y58)), 0,IF(Y58>W58,W58,Y58)))) -> 0 | AD58: =IF(ISERROR((AC58*AB58)/AA58), 0,(AC58*AB58)/AA58) -> 0 | AE58: =IF(ISERROR(IF(ISERROR(IF(AC58=W58,0,(AC58*AB58)/AA58)), 0,IF(AC58=W58,0,(AC58*AB58)/AA58))), 0,IF(ISERROR(IF(AC58=W58,0,(AC58*AB58)/AA58)), 0,IF(AC58=W58,0,(AC58*AB58)/AA58))) -> 0 | AF58: =IF(ISERROR(IF(AC58=60,Q58+(AC58/T58),Q58+(AD58/T58))), 0,IF(AC58=60,Q58+(AC58/T58),Q58+(AD58/T58))) -> 0
A59: B | B59: 15 | C59: 52 | D59: 52 | E59: =IF(ISERROR(IF(ISERROR(IF(ISERROR(Y58), 0,Y58)), 0,IF(ISERROR(Y58), 0,Y58))), 0,IF(ISERROR(IF(ISERROR(Y58), 0,Y58)), 0,IF(ISERROR(Y58), 0,Y58))) -> 0 | G59: =IF(ISERROR(IF(ISERROR(IF(ISERROR(AB58), 0,AB58)), 0,IF(ISERROR(AB58), 0,AB58))), 0,IF(ISERROR(IF(ISERROR(AB58), 0,AB58)), 0,IF(ISERROR(AB58), 0,AB58))) -> 0 | H59: =IF(ISERROR(IF(ISERROR(IF(ISERROR($E$10-G59), 0,$E$10-G59)), 0,IF(ISERROR($E$10-G59), 0,$E$10-G59))), 0,IF(ISERROR(IF(ISERROR($E$10-G59), 0,$E$10-G59)), 0,IF(ISERROR($E$10-G59), 0,$E$10-G59))) -> 0.4 | J59: =IF(ISERROR(AB59), 0,AB59) -> 0 | K59: =IF(ISERROR(ROUND($E$10-J59,3)), 0,ROUND($E$10-J59,3)) -> 0.4 | M59: =IF(ISERROR(AB60), "",AB60) -> 0 | N59: =IF(ISERROR($E$10-M59), "",$E$10-M59) -> 0.4 | O59: =A60 -> 303.5769231 | P59: =I59 -> 0 | Q59: =IF(ISERROR(IF(AC58=W58,Q58+(AC58/T58),Q58+(AD58/T58))), 0,IF(AC58=W58,Q58+(AC58/T58),Q58+(AD58/T58))) -> 0 | R59: =D59 -> 52 | S59: =IF(ISERROR(Q59-R59), 0,Q59-R59) -> -52 | T59: =IF(ISERROR(IF(ISERROR(IF(ISERROR(IF(ISERROR((O59/P59)), 0,(O59/P59))), 0,IF(ISERROR((O59/P59)), 0,(O59/P59)))), 0,IF(ISERROR(IF(ISERROR((O59/P59)), 0,(O59/P59))), 0,IF(ISERROR((O59/P59)), 0,(O59/P59))))), 0,IF(ISERROR(IF(ISERROR(IF(ISERROR((O59/P59)), 0,(O59/P59))), 0,IF(ISERROR((O59/P59)), 0,(O59/P59)))), 0,IF(ISERROR(IF(ISERROR((O59/P59)), 0,(O59/P59))), 0,IF(ISERROR((O59/P59)), 0,(O59/P59))))) -> 0 | U59: =IF(ISERROR(S59*T59), 0,S59*T59) -> 0 | V59: =IF(ISERROR(IF(ISERROR(IF(ISERROR(IF(ISERROR(O59/T59), 0,O59/T59)), 0,IF(ISERROR(O59/T59), 0,O59/T59))), 0,IF(ISERROR(IF(ISERROR(O59/T59), 0,O59/T59)), 0,IF(ISERROR(O59/T59), 0,O59/T59)))), 0,IF(ISERROR(IF(ISERROR(IF(ISERROR(O59/T59), 0,O59/T59)), 0,IF(ISERROR(O59/T59), 0,O59/T59))), 0,IF(ISERROR(IF(ISERROR(O59/T59), 0,O59/T59)), 0,IF(ISERROR(O59/T59), 0,O59/T59)))) -> 0 | W59: 14.2 | X59: 0.4 | Y59: =IF(ISERROR(ABS(U59)), 0,ABS(U59)) -> 0 | Z59: 0.15 | AA59: =IF(ISERROR(ABS((Y59*X59)/W59)), 0,ABS((Y59*X59)/W59)) -> 0 | AB59: =IF(ISERROR(IF(AA59>Z59,Z59,AA59)), 0,IF(AA59>Z59,Z59,AA59)) -> 0 | AC59: =IF(ISERROR(IF(Y59>W59,W59,Y59)), 0,IF(Y59>W59,W59,Y59)) -> 0 | AD59: =IF(ISERROR((AC59*AB59)/AA59), "",(AC59*AB59)/AA59) ->  | AE59: =IF(ISERROR(IF(AC59=W59,0,(AC59*AB59)/AA59)), "",IF(AC59=W59,0,(AC59*AB59)/AA59)) ->  | AF59: =IF(ISERROR(IF(AC59=60,Q59+(AC59/T59),Q59+(AD59/T59))), "",IF(AC59=60,Q59+(AC59/T59),Q59+(AD59/T59))) -> 
A60: =F308 -> 303.5769231 | B60: =IF(AND(C59<D59, E59>$E$7),"Ignore Drill Out Lead 1; rather pop out Lead 1 and LEAVE lead # 2 to "&K59&" inches.","") ->  | N60: =IF(ISERROR((G59+J59+M59)/$E$10*$E$7), 0,(G59+J59+M59)/$E$10*$E$7) -> 0 | O60: =A60 -> 303.5769231 | P60: =L59 -> 0 | Q60: =IF(ISERROR(IF(AC59=W59,Q59+(AC59/T59),Q59+(AD59/T59))), "",IF(AC59=W59,Q59+(AC59/T59),Q59+(AD59/T59))) ->  | R60: =D59 -> 52 | S60: =IF(ISERROR(Q60-R60), 0,Q60-R60) -> 0 | T60: =IF(ISERROR((O60/P60)), 0,(O60/P60)) -> 0 | U60: =IF(ISERROR(S60*T60), "",S60*T60) -> 0 | V60: =IF(ISERROR(IF(ISERROR(O60/T60), 0,O60/T60)), 0,IF(ISERROR(O60/T60), 0,O60/T60)) -> 0 | W60: 14.2 | X60: 0.4 | Y60: =IF(ISERROR(ABS(U60)), "",ABS(U60)) -> 0 | Z60: 0.15 | AA60: =IF(ISERROR(ABS((Y60*X60)/W60)), "",ABS((Y60*X60)/W60)) -> 0 | AB60: =IF(ISERROR(IF(AA60>Z60,Z60,AA60)), "",IF(AA60>Z60,Z60,AA60)) -> 0 | AC60: =IF(ISERROR(IF(Y60>W60,W60,Y60)), "",IF(Y60>W60,W60,Y60)) -> 0 | AD60: =IF(ISERROR((AC60*AB60)/AA60), "",(AC60*AB60)/AA60) ->  | AE60: =IF(ISERROR(IF(AC60=W60,0,(AC60*AB60)/AA60)), "",IF(AC60=W60,0,(AC60*AB60)/AA60)) ->  | AF60: =IF(ISERROR(IF(AC60=60,Q60+(AC60/T60),Q60+(AD60/T60))), "",IF(AC60=60,Q60+(AC60/T60),Q60+(AD60/T60))) -> 
C61: Test | D61: Target | F61: 1 | G61: dr_o | H61: Lv_in | I61: 2 | J61: dr_o | K61: Lv_in | L61: 3 | M61: dr_o | N61: Lv_in | O61: =A63 -> 302.2115385 | P61: =F62 -> 0 | Q61: =C62 -> 48 | R61: =D62 -> 52 | S61: =Q61-R61 -> -4 | T61: =IF(ISERROR(IF(ISERROR(IF(ISERROR(IF(ISERROR((O61/P61)), 0,(O61/P61))), 0,IF(ISERROR((O61/P61)), 0,(O61/P61)))), 0,IF(ISERROR(IF(ISERROR((O61/P61)), 0,(O61/P61))), 0,IF(ISERROR((O61/P61)), 0,(O61/P61))))), 0,IF(ISERROR(IF(ISERROR(IF(ISERROR((O61/P61)), 0,(O61/P61))), 0,IF(ISERROR((O61/P61)), 0,(O61/P61)))), 0,IF(ISERROR(IF(ISERROR((O61/P61)), 0,(O61/P61))), 0,IF(ISERROR((O61/P61)), 0,(O61/P61))))) -> 0 | U61: =IF(ISERROR(IF(ISERROR(IF(ISERROR(IF(ISERROR(S61*T61), 0,S61*T61)), 0,IF(ISERROR(S61*T61), 0,S61*T61))), 0,IF(ISERROR(IF(ISERROR(S61*T61), 0,S61*T61)), 0,IF(ISERROR(S61*T61), 0,S61*T61)))), 0,IF(ISERROR(IF(ISERROR(IF(ISERROR(S61*T61), 0,S61*T61)), 0,IF(ISERROR(S61*T61), 0,S61*T61))), 0,IF(ISERROR(IF(ISERROR(S61*T61), 0,S61*T61)), 0,IF(ISERROR(S61*T61), 0,S61*T61)))) -> 0 | V61: =IF(ISERROR(IF(ISERROR(IF(ISERROR(IF(ISERROR(O61/T61), 0,O61/T61)), 0,IF(ISERROR(O61/T61), 0,O61/T61))), 0,IF(ISERROR(IF(ISERROR(O61/T61), 0,O61/T61)), 0,IF(ISERROR(O61/T61), 0,O61/T61)))), 0,IF(ISERROR(IF(ISERROR(IF(ISERROR(O61/T61), 0,O61/T61)), 0,IF(ISERROR(O61/T61), 0,O61/T61))), 0,IF(ISERROR(IF(ISERROR(O61/T61), 0,O61/T61)), 0,IF(ISERROR(O61/T61), 0,O61/T61)))) -> 0 | W61: 14.2 | X61: 0.4 | Y61: =IF(ISERROR(IF(ISERROR(IF(ISERROR(ABS(U61)), 0,ABS(U61))), 0,IF(ISERROR(ABS(U61)), 0,ABS(U61)))), 0,IF(ISERROR(IF(ISERROR(ABS(U61)), 0,ABS(U61))), 0,IF(ISERROR(ABS(U61)), 0,ABS(U61)))) -> 0 | Z61: 0.15 | AA61: =IF(ISERROR(IF(ISERROR(IF(ISERROR(ABS((Y61*X61)/W61)), 0,ABS((Y61*X61)/W61))), 0,IF(ISERROR(ABS((Y61*X61)/W61)), 0,ABS((Y61*X61)/W61)))), 0,IF(ISERROR(IF(ISERROR(ABS((Y61*X61)/W61)), 0,ABS((Y61*X61)/W61))), 0,IF(ISERROR(ABS((Y61*X61)/W61)), 0,ABS((Y61*X61)/W61)))) -> 0 | AB61: =IF(ISERROR(IF(ISERROR(IF(ISERROR(IF(AA61>Z61,Z61,AA61)), 0,IF(AA61>Z61,Z61,AA61))), 0,IF(ISERROR(IF(AA61>Z61,Z61,AA61)), 0,IF(AA61>Z61,Z61,AA61)))), 0,IF(ISERROR(IF(ISERROR(IF(AA61>Z61,Z61,AA61)), 0,IF(AA61>Z61,Z61,AA61))), 0,IF(ISERROR(IF(AA61>Z61,Z61,AA61)), 0,IF(AA61>Z61,Z61,AA61)))) -> 0 | AC61: =IF(ISERROR(IF(ISERROR(IF(ISERROR(IF(Y61>W61,W61,Y61)), 0,IF(Y61>W61,W61,Y61))), 0,IF(ISERROR(IF(Y61>W61,W61,Y61)), 0,IF(Y61>W61,W61,Y61)))), 0,IF(ISERROR(IF(ISERROR(IF(Y61>W61,W61,Y61)), 0,IF(Y61>W61,W61,Y61))), 0,IF(ISERROR(IF(Y61>W61,W61,Y61)), 0,IF(Y61>W61,W61,Y61)))) -> 0 | AD61: =IF(ISERROR(IF(ISERROR(IF(ISERROR((AC61*AB61)/AA61), 0,(AC61*AB61)/AA61)), 0,IF(ISERROR((AC61*AB61)/AA61), 0,(AC61*AB61)/AA61))), 0,IF(ISERROR(IF(ISERROR((AC61*AB61)/AA61), 0,(AC61*AB61)/AA61)), 0,IF(ISERROR((AC61*AB61)/AA61), 0,(AC61*AB61)/AA61))) -> 0 | AE61: =IF(ISERROR(IF(ISERROR(IF(ISERROR(IF(AC61=W61,0,(AC61*AB61)/AA61)), 0,IF(AC61=W61,0,(AC61*AB61)/AA61))), 0,IF(ISERROR(IF(AC61=W61,0,(AC61*AB61)/AA61)), 0,IF(AC61=W61,0,(AC61*AB61)/AA61)))), 0,IF(ISERROR(IF(ISERROR(IF(AC61=W61,0,(AC61*AB61)/AA61)), 0,IF(AC61=W61,0,(AC61*AB61)/AA61))), 0,IF(ISERROR(IF(AC61=W61,0,(AC61*AB61)/AA61)), 0,IF(AC61=W61,0,(AC61*AB61)/AA61)))) -> 0 | AF61: =IF(ISERROR(IF(ISERROR(IF(AC61=60,Q61+(AC61/T61),Q61+(AD61/T61))), 0,IF(AC61=60,Q61+(AC61/T61),Q61+(AD61/T61)))), 0,IF(ISERROR(IF(AC61=60,Q61+(AC61/T61),Q61+(AD61/T61))), 0,IF(AC61=60,Q61+(AC61/T61),Q61+(AD61/T61)))) -> 0
A62: C | B62: 16 | C62: 48 | D62: 52 | E62: =IF(ISERROR(IF(ISERROR(IF(ISERROR(Y61), 0,Y61)), 0,IF(ISERROR(Y61), 0,Y61))), 0,IF(ISERROR(IF(ISERROR(Y61), 0,Y61)), 0,IF(ISERROR(Y61), 0,Y61))) -> 0 | G62: =IF(ISERROR(IF(ISERROR(IF(ISERROR(AB61), 0,AB61)), 0,IF(ISERROR(AB61), 0,AB61))), 0,IF(ISERROR(IF(ISERROR(AB61), 0,AB61)), 0,IF(ISERROR(AB61), 0,AB61))) -> 0 | H62: =IF(ISERROR(IF(ISERROR(IF(ISERROR($E$10-G62), 0,$E$10-G62)), 0,IF(ISERROR($E$10-G62), 0,$E$10-G62))), 0,IF(ISERROR(IF(ISERROR($E$10-G62), 0,$E$10-G62)), 0,IF(ISERROR($E$10-G62), 0,$E$10-G62))) -> 0.4 | J62: =IF(ISERROR(IF(ISERROR(AB62), 0,AB62)), 0,IF(ISERROR(AB62), 0,AB62)) -> 0 | K62: =IF(ISERROR(IF(ISERROR(ROUND($E$10-J62,3)), 0,ROUND($E$10-J62,3))), 0,IF(ISERROR(ROUND($E$10-J62,3)), 0,ROUND($E$10-J62,3))) -> 0.4 | M62: =IF(ISERROR(AB63), 0,AB63) -> 0 | N62: =IF(ISERROR($E$10-M62), 0,$E$10-M62) -> 0.4 | O62: =A63 -> 302.2115385 | P62: =I62 -> 0 | Q62: =IF(ISERROR(IF(ISERROR(IF(AC61=W61,Q61+(AC61/T61),Q61+(AD61/T61))), 0,IF(AC61=W61,Q61+(AC61/T61),Q61+(AD61/T61)))), 0,IF(ISERROR(IF(AC61=W61,Q61+(AC61/T61),Q61+(AD61/T61))), 0,IF(AC61=W61,Q61+(AC61/T61),Q61+(AD61/T61)))) -> 0 | R62: =D62 -> 52 | S62: =IF(ISERROR(IF(ISERROR(Q62-R62), 0,Q62-R62)), 0,IF(ISERROR(Q62-R62), 0,Q62-R62)) -> -52 | T62: =IF(ISERROR(IF(ISERROR(IF(ISERROR(IF(ISERROR((O62/P62)), 0,(O62/P62))), 0,IF(ISERROR((O62/P62)), 0,(O62/P62)))), 0,IF(ISERROR(IF(ISERROR((O62/P62)), 0,(O62/P62))), 0,IF(ISERROR((O62/P62)), 0,(O62/P62))))), 0,IF(ISERROR(IF(ISERROR(IF(ISERROR((O62/P62)), 0,(O62/P62))), 0,IF(ISERROR((O62/P62)), 0,(O62/P62)))), 0,IF(ISERROR(IF(ISERROR((O62/P62)), 0,(O62/P62))), 0,IF(ISERROR((O62/P62)), 0,(O62/P62))))) -> 0 | U62: =IF(ISERROR(IF(ISERROR(S62*T62), 0,S62*T62)), 0,IF(ISERROR(S62*T62), 0,S62*T62)) -> 0 | V62: =IF(ISERROR(IF(ISERROR(IF(ISERROR(IF(ISERROR(O62/T62), 0,O62/T62)), 0,IF(ISERROR(O62/T62), 0,O62/T62))), 0,IF(ISERROR(IF(ISERROR(O62/T62), 0,O62/T62)), 0,IF(ISERROR(O62/T62), 0,O62/T62)))), 0,IF(ISERROR(IF(ISERROR(IF(ISERROR(O62/T62), 0,O62/T62)), 0,IF(ISERROR(O62/T62), 0,O62/T62))), 0,IF(ISERROR(IF(ISERROR(O62/T62), 0,O62/T62)), 0,IF(ISERROR(O62/T62), 0,O62/T62)))) -> 0 | W62: 14.2 | X62: 0.4 | Y62: =IF(ISERROR(IF(ISERROR(ABS(U62)), 0,ABS(U62))), 0,IF(ISERROR(ABS(U62)), 0,ABS(U62))) -> 0 | Z62: 0.15 | AA62: =IF(ISERROR(IF(ISERROR(ABS((Y62*X62)/W62)), 0,ABS((Y62*X62)/W62))), 0,IF(ISERROR(ABS((Y62*X62)/W62)), 0,ABS((Y62*X62)/W62))) -> 0 | AB62: =IF(ISERROR(IF(ISERROR(IF(AA62>Z62,Z62,AA62)), 0,IF(AA62>Z62,Z62,AA62))), 0,IF(ISERROR(IF(AA62>Z62,Z62,AA62)), 0,IF(AA62>Z62,Z62,AA62))) -> 0 | AC62: =IF(ISERROR(IF(ISERROR(IF(Y62>W62,W62,Y62)), 0,IF(Y62>W62,W62,Y62))), 0,IF(ISERROR(IF(Y62>W62,W62,Y62)), 0,IF(Y62>W62,W62,Y62))) -> 0 | AD62: =IF(ISERROR((AC62*AB62)/AA62), 0,(AC62*AB62)/AA62) -> 0 | AE62: =IF(ISERROR(IF(ISERROR(IF(AC62=W62,0,(AC62*AB62)/AA62)), 0,IF(AC62=W62,0,(AC62*AB62)/AA62))), 0,IF(ISERROR(IF(AC62=W62,0,(AC62*AB62)/AA62)), 0,IF(AC62=W62,0,(AC62*AB62)/AA62))) -> 0 | AF62: =IF(ISERROR(IF(AC62=60,Q62+(AC62/T62),Q62+(AD62/T62))), 0,IF(AC62=60,Q62+(AC62/T62),Q62+(AD62/T62))) -> 0
A63: =F309 -> 302.2115385 | B63: =IF(AND(C62<D62, E62>$E$7),"Ignore Drill Out Lead 1; rather pop out Lead 1 and LEAVE lead # 2 to "&K62&" inches.","") ->  | N63: =IF(ISERROR(IF(ISERROR((G62+J62+M62)/$E$10*$E$7), 0,(G62+J62+M62)/$E$10*$E$7)), 0,IF(ISERROR((G62+J62+M62)/$E$10*$E$7), 0,(G62+J62+M62)/$E$10*$E$7)) -> 0 | O63: =A63 -> 302.2115385 | P63: =L62 -> 0 | Q63: =IF(ISERROR(IF(AC62=W62,Q62+(AC62/T62),Q62+(AD62/T62))), 0,IF(AC62=W62,Q62+(AC62/T62),Q62+(AD62/T62))) -> 0 | R63: =D62 -> 52 | S63: =IF(ISERROR(Q63-R63), 0,Q63-R63) -> -52 | T63: =IF(ISERROR(IF(ISERROR((O63/P63)), 0,(O63/P63))), 0,IF(ISERROR((O63/P63)), 0,(O63/P63))) -> 0 | U63: =IF(ISERROR(IF(ISERROR(S63*T63), 0,S63*T63)), 0,IF(ISERROR(S63*T63), 0,S63*T63)) -> 0 | V63: =IF(ISERROR(IF(ISERROR(IF(ISERROR(O63/T63), 0,O63/T63)), 0,IF(ISERROR(O63/T63), 0,O63/T63))), 0,IF(ISERROR(IF(ISERROR(O63/T63), 0,O63/T63)), 0,IF(ISERROR(O63/T63), 0,O63/T63))) -> 0 | W63: 14.2 | X63: 0.4 | Y63: =IF(ISERROR(IF(ISERROR(ABS(U63)), 0,ABS(U63))), 0,IF(ISERROR(ABS(U63)), 0,ABS(U63))) -> 0 | Z63: 0.15 | AA63: =IF(ISERROR(IF(ISERROR(ABS((Y63*X63)/W63)), 0,ABS((Y63*X63)/W63))), 0,IF(ISERROR(ABS((Y63*X63)/W63)), 0,ABS((Y63*X63)/W63))) -> 0 | AB63: =IF(ISERROR(IF(ISERROR(IF(AA63>Z63,Z63,AA63)), 0,IF(AA63>Z63,Z63,AA63))), 0,IF(ISERROR(IF(AA63>Z63,Z63,AA63)), 0,IF(AA63>Z63,Z63,AA63))) -> 0 | AC63: =IF(ISERROR(IF(ISERROR(IF(Y63>W63,W63,Y63)), 0,IF(Y63>W63,W63,Y63))), 0,IF(ISERROR(IF(Y63>W63,W63,Y63)), 0,IF(Y63>W63,W63,Y63))) -> 0 | AD63: =IF(ISERROR((AC63*AB63)/AA63), "",(AC63*AB63)/AA63) ->  | AE63: =IF(ISERROR(IF(AC63=W63,0,(AC63*AB63)/AA63)), "",IF(AC63=W63,0,(AC63*AB63)/AA63)) ->  | AF63: =IF(ISERROR(IF(AC63=60,Q63+(AC63/T63),Q63+(AD63/T63))), "",IF(AC63=60,Q63+(AC63/T63),Q63+(AD63/T63))) -> 
C64: Test | D64: Target | F64: 1 | G64: dr_o | H64: Lv_in | I64: 2 | J64: dr_o | K64: Lv_in | L64: 3 | M64: dr_o | N64: Lv_in | O64: =A66 -> 273.5 | P64: =F65 -> 0 | Q64: =C65 -> 45 | R64: =D65 -> 52 | S64: =Q64-R64 -> -7 | T64: =IF(ISERROR(IF(ISERROR(IF(ISERROR(IF(ISERROR((O64/P64)), 0,(O64/P64))), 0,IF(ISERROR((O64/P64)), 0,(O64/P64)))), 0,IF(ISERROR(IF(ISERROR((O64/P64)), 0,(O64/P64))), 0,IF(ISERROR((O64/P64)), 0,(O64/P64))))), 0,IF(ISERROR(IF(ISERROR(IF(ISERROR((O64/P64)), 0,(O64/P64))), 0,IF(ISERROR((O64/P64)), 0,(O64/P64)))), 0,IF(ISERROR(IF(ISERROR((O64/P64)), 0,(O64/P64))), 0,IF(ISERROR((O64/P64)), 0,(O64/P64))))) -> 0 | U64: =IF(ISERROR(IF(ISERROR(IF(ISERROR(IF(ISERROR(S64*T64), 0,S64*T64)), 0,IF(ISERROR(S64*T64), 0,S64*T64))), 0,IF(ISERROR(IF(ISERROR(S64*T64), 0,S64*T64)), 0,IF(ISERROR(S64*T64), 0,S64*T64)))), 0,IF(ISERROR(IF(ISERROR(IF(ISERROR(S64*T64), 0,S64*T64)), 0,IF(ISERROR(S64*T64), 0,S64*T64))), 0,IF(ISERROR(IF(ISERROR(S64*T64), 0,S64*T64)), 0,IF(ISERROR(S64*T64), 0,S64*T64)))) -> 0 | V64: =IF(ISERROR(IF(ISERROR(IF(ISERROR(IF(ISERROR(O64/T64), 0,O64/T64)), 0,IF(ISERROR(O64/T64), 0,O64/T64))), 0,IF(ISERROR(IF(ISERROR(O64/T64), 0,O64/T64)), 0,IF(ISERROR(O64/T64), 0,O64/T64)))), 0,IF(ISERROR(IF(ISERROR(IF(ISERROR(O64/T64), 0,O64/T64)), 0,IF(ISERROR(O64/T64), 0,O64/T64))), 0,IF(ISERROR(IF(ISERROR(O64/T64), 0,O64/T64)), 0,IF(ISERROR(O64/T64), 0,O64/T64)))) -> 0 | W64: 14.2 | X64: 0.4 | Y64: =IF(ISERROR(IF(ISERROR(IF(ISERROR(ABS(U64)), 0,ABS(U64))), 0,IF(ISERROR(ABS(U64)), 0,ABS(U64)))), 0,IF(ISERROR(IF(ISERROR(ABS(U64)), 0,ABS(U64))), 0,IF(ISERROR(ABS(U64)), 0,ABS(U64)))) -> 0 | Z64: 0.15 | AA64: =IF(ISERROR(IF(ISERROR(IF(ISERROR(ABS((Y64*X64)/W64)), 0,ABS((Y64*X64)/W64))), 0,IF(ISERROR(ABS((Y64*X64)/W64)), 0,ABS((Y64*X64)/W64)))), 0,IF(ISERROR(IF(ISERROR(ABS((Y64*X64)/W64)), 0,ABS((Y64*X64)/W64))), 0,IF(ISERROR(ABS((Y64*X64)/W64)), 0,ABS((Y64*X64)/W64)))) -> 0 | AB64: =IF(ISERROR(IF(ISERROR(IF(ISERROR(IF(AA64>Z64,Z64,AA64)), 0,IF(AA64>Z64,Z64,AA64))), 0,IF(ISERROR(IF(AA64>Z64,Z64,AA64)), 0,IF(AA64>Z64,Z64,AA64)))), 0,IF(ISERROR(IF(ISERROR(IF(AA64>Z64,Z64,AA64)), 0,IF(AA64>Z64,Z64,AA64))), 0,IF(ISERROR(IF(AA64>Z64,Z64,AA64)), 0,IF(AA64>Z64,Z64,AA64)))) -> 0 | AC64: =IF(ISERROR(IF(ISERROR(IF(ISERROR(IF(Y64>W64,W64,Y64)), 0,IF(Y64>W64,W64,Y64))), 0,IF(ISERROR(IF(Y64>W64,W64,Y64)), 0,IF(Y64>W64,W64,Y64)))), 0,IF(ISERROR(IF(ISERROR(IF(Y64>W64,W64,Y64)), 0,IF(Y64>W64,W64,Y64))), 0,IF(ISERROR(IF(Y64>W64,W64,Y64)), 0,IF(Y64>W64,W64,Y64)))) -> 0 | AD64: =IF(ISERROR(IF(ISERROR(IF(ISERROR(IF(ISERROR((AC64*AB64)/AA64), 0,(AC64*AB64)/AA64)), 0,IF(ISERROR((AC64*AB64)/AA64), 0,(AC64*AB64)/AA64))), 0,IF(ISERROR(IF(ISERROR((AC64*AB64)/AA64), 0,(AC64*AB64)/AA64)), 0,IF(ISERROR((AC64*AB64)/AA64), 0,(AC64*AB64)/AA64)))), 0,IF(ISERROR(IF(ISERROR(IF(ISERROR((AC64*AB64)/AA64), 0,(AC64*AB64)/AA64)), 0,IF(ISERROR((AC64*AB64)/AA64), 0,(AC64*AB64)/AA64))), 0,IF(ISERROR(IF(ISERROR((AC64*AB64)/AA64), 0,(AC64*AB64)/AA64)), 0,IF(ISERROR((AC64*AB64)/AA64), 0,(AC64*AB64)/AA64)))) -> 0 | AE64: =IF(ISERROR(IF(ISERROR(IF(ISERROR(IF(AC64=W64,0,(AC64*AB64)/AA64)), 0,IF(AC64=W64,0,(AC64*AB64)/AA64))), 0,IF(ISERROR(IF(AC64=W64,0,(AC64*AB64)/AA64)), 0,IF(AC64=W64,0,(AC64*AB64)/AA64)))), 0,IF(ISERROR(IF(ISERROR(IF(AC64=W64,0,(AC64*AB64)/AA64)), 0,IF(AC64=W64,0,(AC64*AB64)/AA64))), 0,IF(ISERROR(IF(AC64=W64,0,(AC64*AB64)/AA64)), 0,IF(AC64=W64,0,(AC64*AB64)/AA64)))) -> 0 | AF64: =IF(ISERROR(IF(ISERROR(IF(AC64=60,Q64+(AC64/T64),Q64+(AD64/T64))), 0,IF(AC64=60,Q64+(AC64/T64),Q64+(AD64/T64)))), 0,IF(ISERROR(IF(AC64=60,Q64+(AC64/T64),Q64+(AD64/T64))), 0,IF(AC64=60,Q64+(AC64/T64),Q64+(AD64/T64)))) -> 0
A65: C# | B65: 17 | C65: 45 | D65: 52 | E65: =IF(ISERROR(IF(ISERROR(IF(ISERROR(Y64), 0,Y64)), 0,IF(ISERROR(Y64), 0,Y64))), 0,IF(ISERROR(IF(ISERROR(Y64), 0,Y64)), 0,IF(ISERROR(Y64), 0,Y64))) -> 0 | G65: =IF(ISERROR(IF(ISERROR(IF(ISERROR(AB64), 0,AB64)), 0,IF(ISERROR(AB64), 0,AB64))), 0,IF(ISERROR(IF(ISERROR(AB64), 0,AB64)), 0,IF(ISERROR(AB64), 0,AB64))) -> 0 | H65: =IF(ISERROR(IF(ISERROR(IF(ISERROR($E$10-G65), 0,$E$10-G65)), 0,IF(ISERROR($E$10-G65), 0,$E$10-G65))), 0,IF(ISERROR(IF(ISERROR($E$10-G65), 0,$E$10-G65)), 0,IF(ISERROR($E$10-G65), 0,$E$10-G65))) -> 0.4 | J65: =IF(ISERROR(IF(ISERROR(AB65), 0,AB65)), 0,IF(ISERROR(AB65), 0,AB65)) -> 0 | K65: =IF(ISERROR(IF(ISERROR(ROUND($E$10-J65,3)), 0,ROUND($E$10-J65,3))), 0,IF(ISERROR(ROUND($E$10-J65,3)), 0,ROUND($E$10-J65,3))) -> 0.4 | M65: =IF(ISERROR(AB66), "",AB66) -> 0 | N65: =IF(ISERROR($E$10-M65), "",$E$10-M65) -> 0.4 | O65: =A66 -> 273.5 | P65: =I65 -> 0 | Q65: =IF(ISERROR(IF(ISERROR(IF(AC64=W64,Q64+(AC64/T64),Q64+(AD64/T64))), 0,IF(AC64=W64,Q64+(AC64/T64),Q64+(AD64/T64)))), 0,IF(ISERROR(IF(AC64=W64,Q64+(AC64/T64),Q64+(AD64/T64))), 0,IF(AC64=W64,Q64+(AC64/T64),Q64+(AD64/T64)))) -> 0 | R65: =D65 -> 52 | S65: =IF(ISERROR(IF(ISERROR(Q65-R65), 0,Q65-R65)), 0,IF(ISERROR(Q65-R65), 0,Q65-R65)) -> -52 | T65: 0 | U65: =IF(ISERROR(IF(ISERROR(S65*T65), 0,S65*T65)), 0,IF(ISERROR(S65*T65), 0,S65*T65)) -> 0 | V65: 0 | W65: 14.2 | X65: 0.4 | Y65: =IF(ISERROR(IF(ISERROR(ABS(U65)), 0,ABS(U65))), 0,IF(ISERROR(ABS(U65)), 0,ABS(U65))) -> 0 | Z65: 0.15 | AA65: =IF(ISERROR(IF(ISERROR(ABS((Y65*X65)/W65)), 0,ABS((Y65*X65)/W65))), 0,IF(ISERROR(ABS((Y65*X65)/W65)), 0,ABS((Y65*X65)/W65))) -> 0 | AB65: =IF(ISERROR(IF(ISERROR(IF(AA65>Z65,Z65,AA65)), 0,IF(AA65>Z65,Z65,AA65))), 0,IF(ISERROR(IF(AA65>Z65,Z65,AA65)), 0,IF(AA65>Z65,Z65,AA65))) -> 0 | AC65: =IF(ISERROR(IF(ISERROR(IF(Y65>W65,W65,Y65)), 0,IF(Y65>W65,W65,Y65))), 0,IF(ISERROR(IF(Y65>W65,W65,Y65)), 0,IF(Y65>W65,W65,Y65))) -> 0 | AD65: =IF(ISERROR((AC65*AB65)/AA65), "",(AC65*AB65)/AA65) ->  | AE65: =IF(ISERROR(IF(AC65=W65,0,(AC65*AB65)/AA65)), "",IF(AC65=W65,0,(AC65*AB65)/AA65)) ->  | AF65: =IF(ISERROR(IF(AC65=60,Q65+(AC65/T65),Q65+(AD65/T65))), "",IF(AC65=60,Q65+(AC65/T65),Q65+(AD65/T65))) -> 
A66: =R306 -> 273.5 | B66: =IF(AND(C65<D65, E65>$E$7),"Ignore Drill Out Lead 1; rather pop out Lead 1 and LEAVE lead # 2 to "&K65&" inches.","") ->  | N66: =IF(ISERROR(IF(ISERROR((G65+J65+M65)/$E$10*$E$7), 0,(G65+J65+M65)/$E$10*$E$7)), 0,IF(ISERROR((G65+J65+M65)/$E$10*$E$7), 0,(G65+J65+M65)/$E$10*$E$7)) -> 0 | O66: =A66 -> 273.5 | P66: =L65 -> 0 | Q66: =IF(ISERROR(IF(AC65=W65,Q65+(AC65/T65),Q65+(AD65/T65))), "",IF(AC65=W65,Q65+(AC65/T65),Q65+(AD65/T65))) ->  | R66: =D65 -> 52 | S66: =IF(ISERROR(Q66-R66), 0,Q66-R66) -> 0 | T66: 0 | U66: =IF(ISERROR(S66*T66), "",S66*T66) -> 0 | V66: 0 | W66: 14.2 | X66: 0.4 | Y66: =IF(ISERROR(ABS(U66)), "",ABS(U66)) -> 0 | Z66: 0.15 | AA66: =IF(ISERROR(ABS((Y66*X66)/W66)), "",ABS((Y66*X66)/W66)) -> 0 | AB66: =IF(ISERROR(IF(AA66>Z66,Z66,AA66)), "",IF(AA66>Z66,Z66,AA66)) -> 0 | AC66: =IF(ISERROR(IF(Y66>W66,W66,Y66)), "",IF(Y66>W66,W66,Y66)) -> 0 | AD66: =IF(ISERROR((AC66*AB66)/AA66), "",(AC66*AB66)/AA66) ->  | AE66: =IF(ISERROR(IF(AC66=W66,0,(AC66*AB66)/AA66)), "",IF(AC66=W66,0,(AC66*AB66)/AA66)) ->  | AF66: =IF(ISERROR(IF(AC66=60,Q66+(AC66/T66),Q66+(AD66/T66))), "",IF(AC66=60,Q66+(AC66/T66),Q66+(AD66/T66))) -> 
C67: Test | D67: Target | F67: 1 | G67: dr_o | H67: Lv_in | I67: 2 | J67: dr_o | K67: Lv_in | L67: 3 | M67: dr_o | N67: Lv_in | O67: =A69 -> 300.8461538 | P67: =F68 -> 0 | Q67: =C68 -> 53 | R67: =D68 -> 52 | S67: =Q67-R67 -> 1 | T67: 0 | U67: =IF(ISERROR(IF(ISERROR(IF(ISERROR(IF(ISERROR(S67*T67), 0,S67*T67)), 0,IF(ISERROR(S67*T67), 0,S67*T67))), 0,IF(ISERROR(IF(ISERROR(S67*T67), 0,S67*T67)), 0,IF(ISERROR(S67*T67), 0,S67*T67)))), 0,IF(ISERROR(IF(ISERROR(IF(ISERROR(S67*T67), 0,S67*T67)), 0,IF(ISERROR(S67*T67), 0,S67*T67))), 0,IF(ISERROR(IF(ISERROR(S67*T67), 0,S67*T67)), 0,IF(ISERROR(S67*T67), 0,S67*T67)))) -> 0 | V67: 0 | W67: 14.2 | X67: 0.4 | Y67: =IF(ISERROR(IF(ISERROR(IF(ISERROR(ABS(U67)), 0,ABS(U67))), 0,IF(ISERROR(ABS(U67)), 0,ABS(U67)))), 0,IF(ISERROR(IF(ISERROR(ABS(U67)), 0,ABS(U67))), 0,IF(ISERROR(ABS(U67)), 0,ABS(U67)))) -> 0 | Z67: 0.15 | AA67: =IF(ISERROR(IF(ISERROR(IF(ISERROR(ABS((Y67*X67)/W67)), 0,ABS((Y67*X67)/W67))), 0,IF(ISERROR(ABS((Y67*X67)/W67)), 0,ABS((Y67*X67)/W67)))), 0,IF(ISERROR(IF(ISERROR(ABS((Y67*X67)/W67)), 0,ABS((Y67*X67)/W67))), 0,IF(ISERROR(ABS((Y67*X67)/W67)), 0,ABS((Y67*X67)/W67)))) -> 0 | AB67: =IF(ISERROR(IF(ISERROR(IF(ISERROR(IF(AA67>Z67,Z67,AA67)), 0,IF(AA67>Z67,Z67,AA67))), 0,IF(ISERROR(IF(AA67>Z67,Z67,AA67)), 0,IF(AA67>Z67,Z67,AA67)))), 0,IF(ISERROR(IF(ISERROR(IF(AA67>Z67,Z67,AA67)), 0,IF(AA67>Z67,Z67,AA67))), 0,IF(ISERROR(IF(AA67>Z67,Z67,AA67)), 0,IF(AA67>Z67,Z67,AA67)))) -> 0 | AC67: =IF(ISERROR(IF(ISERROR(IF(ISERROR(IF(Y67>W67,W67,Y67)), 0,IF(Y67>W67,W67,Y67))), 0,IF(ISERROR(IF(Y67>W67,W67,Y67)), 0,IF(Y67>W67,W67,Y67)))), 0,IF(ISERROR(IF(ISERROR(IF(Y67>W67,W67,Y67)), 0,IF(Y67>W67,W67,Y67))), 0,IF(ISERROR(IF(Y67>W67,W67,Y67)), 0,IF(Y67>W67,W67,Y67)))) -> 0 | AD67: =IF(ISERROR(IF(ISERROR(IF(ISERROR(IF(ISERROR((AC67*AB67)/AA67), 0,(AC67*AB67)/AA67)), 0,IF(ISERROR((AC67*AB67)/AA67), 0,(AC67*AB67)/AA67))), 0,IF(ISERROR(IF(ISERROR((AC67*AB67)/AA67), 0,(AC67*AB67)/AA67)), 0,IF(ISERROR((AC67*AB67)/AA67), 0,(AC67*AB67)/AA67)))), 0,IF(ISERROR(IF(ISERROR(IF(ISERROR((AC67*AB67)/AA67), 0,(AC67*AB67)/AA67)), 0,IF(ISERROR((AC67*AB67)/AA67), 0,(AC67*AB67)/AA67))), 0,IF(ISERROR(IF(ISERROR((AC67*AB67)/AA67), 0,(AC67*AB67)/AA67)), 0,IF(ISERROR((AC67*AB67)/AA67), 0,(AC67*AB67)/AA67)))) -> 0 | AE67: =IF(ISERROR(IF(ISERROR(IF(ISERROR(IF(AC67=W67,0,(AC67*AB67)/AA67)), 0,IF(AC67=W67,0,(AC67*AB67)/AA67))), 0,IF(ISERROR(IF(AC67=W67,0,(AC67*AB67)/AA67)), 0,IF(AC67=W67,0,(AC67*AB67)/AA67)))), 0,IF(ISERROR(IF(ISERROR(IF(AC67=W67,0,(AC67*AB67)/AA67)), 0,IF(AC67=W67,0,(AC67*AB67)/AA67))), 0,IF(ISERROR(IF(AC67=W67,0,(AC67*AB67)/AA67)), 0,IF(AC67=W67,0,(AC67*AB67)/AA67)))) -> 0 | AF67: =IF(ISERROR(IF(ISERROR(IF(AC67=60,Q67+(AC67/T67),Q67+(AD67/T67))), 0,IF(AC67=60,Q67+(AC67/T67),Q67+(AD67/T67)))), 0,IF(ISERROR(IF(AC67=60,Q67+(AC67/T67),Q67+(AD67/T67))), 0,IF(AC67=60,Q67+(AC67/T67),Q67+(AD67/T67)))) -> 0
A68: D | B68: 18 | C68: 53 | D68: 52 | E68: =IF(ISERROR(IF(ISERROR(IF(ISERROR(Y67), 0,Y67)), 0,IF(ISERROR(Y67), 0,Y67))), 0,IF(ISERROR(IF(ISERROR(Y67), 0,Y67)), 0,IF(ISERROR(Y67), 0,Y67))) -> 0 | G68: =IF(ISERROR(IF(ISERROR(IF(ISERROR(AB67), 0,AB67)), 0,IF(ISERROR(AB67), 0,AB67))), 0,IF(ISERROR(IF(ISERROR(AB67), 0,AB67)), 0,IF(ISERROR(AB67), 0,AB67))) -> 0 | H68: =IF(ISERROR(IF(ISERROR(IF(ISERROR($E$10-G68), 0,$E$10-G68)), 0,IF(ISERROR($E$10-G68), 0,$E$10-G68))), 0,IF(ISERROR(IF(ISERROR($E$10-G68), 0,$E$10-G68)), 0,IF(ISERROR($E$10-G68), 0,$E$10-G68))) -> 0.4 | J68: =IF(ISERROR(IF(ISERROR(AB68), 0,AB68)), 0,IF(ISERROR(AB68), 0,AB68)) -> 0 | K68: =IF(ISERROR(IF(ISERROR(ROUND($E$10-J68,3)), 0,ROUND($E$10-J68,3))), 0,IF(ISERROR(ROUND($E$10-J68,3)), 0,ROUND($E$10-J68,3))) -> 0.4 | M68: =IF(ISERROR(IF(ISERROR(IF(ISERROR(IF(ISERROR(AB69), 0,AB69)), 0,IF(ISERROR(AB69), 0,AB69))), 0,IF(ISERROR(IF(ISERROR(AB69), 0,AB69)), 0,IF(ISERROR(AB69), 0,AB69)))), 0,IF(ISERROR(IF(ISERROR(IF(ISERROR(AB69), 0,AB69)), 0,IF(ISERROR(AB69), 0,AB69))), 0,IF(ISERROR(IF(ISERROR(AB69), 0,AB69)), 0,IF(ISERROR(AB69), 0,AB69)))) -> 0 | N68: =IF(ISERROR(IF(ISERROR(IF(ISERROR(IF(ISERROR($E$10-M68), 0,$E$10-M68)), 0,IF(ISERROR($E$10-M68), 0,$E$10-M68))), 0,IF(ISERROR(IF(ISERROR($E$10-M68), 0,$E$10-M68)), 0,IF(ISERROR($E$10-M68), 0,$E$10-M68)))), 0,IF(ISERROR(IF(ISERROR(IF(ISERROR($E$10-M68), 0,$E$10-M68)), 0,IF(ISERROR($E$10-M68), 0,$E$10-M68))), 0,IF(ISERROR(IF(ISERROR($E$10-M68), 0,$E$10-M68)), 0,IF(ISERROR($E$10-M68), 0,$E$10-M68)))) -> 0.4 | O68: =A69 -> 300.8461538 | P68: =I68 -> 0 | Q68: =IF(ISERROR(IF(ISERROR(IF(AC67=W67,Q67+(AC67/T67),Q67+(AD67/T67))), 0,IF(AC67=W67,Q67+(AC67/T67),Q67+(AD67/T67)))), 0,IF(ISERROR(IF(AC67=W67,Q67+(AC67/T67),Q67+(AD67/T67))), 0,IF(AC67=W67,Q67+(AC67/T67),Q67+(AD67/T67)))) -> 0 | R68: =D68 -> 52 | S68: =IF(ISERROR(IF(ISERROR(Q68-R68), 0,Q68-R68)), 0,IF(ISERROR(Q68-R68), 0,Q68-R68)) -> -52 | T68: 0 | U68: =IF(ISERROR(IF(ISERROR(S68*T68), 0,S68*T68)), 0,IF(ISERROR(S68*T68), 0,S68*T68)) -> 0 | V68: 0 | W68: 14.2 | X68: 0.4 | Y68: =IF(ISERROR(IF(ISERROR(ABS(U68)), 0,ABS(U68))), 0,IF(ISERROR(ABS(U68)), 0,ABS(U68))) -> 0 | Z68: 0.15 | AA68: =IF(ISERROR(IF(ISERROR(ABS((Y68*X68)/W68)), 0,ABS((Y68*X68)/W68))), 0,IF(ISERROR(ABS((Y68*X68)/W68)), 0,ABS((Y68*X68)/W68))) -> 0 | AB68: =IF(ISERROR(IF(ISERROR(IF(AA68>Z68,Z68,AA68)), 0,IF(AA68>Z68,Z68,AA68))), 0,IF(ISERROR(IF(AA68>Z68,Z68,AA68)), 0,IF(AA68>Z68,Z68,AA68))) -> 0 | AC68: =IF(ISERROR(IF(ISERROR(IF(Y68>W68,W68,Y68)), 0,IF(Y68>W68,W68,Y68))), 0,IF(ISERROR(IF(Y68>W68,W68,Y68)), 0,IF(Y68>W68,W68,Y68))) -> 0 | AD68: =IF(ISERROR((AC68*AB68)/AA68), 0,(AC68*AB68)/AA68) -> 0 | AE68: =IF(ISERROR(IF(ISERROR(IF(AC68=W68,0,(AC68*AB68)/AA68)), 0,IF(AC68=W68,0,(AC68*AB68)/AA68))), 0,IF(ISERROR(IF(AC68=W68,0,(AC68*AB68)/AA68)), 0,IF(AC68=W68,0,(AC68*AB68)/AA68))) -> 0 | AF68: =IF(ISERROR(IF(AC68=60,Q68+(AC68/T68),Q68+(AD68/T68))), 0,IF(AC68=60,Q68+(AC68/T68),Q68+(AD68/T68))) -> 0
A69: =F310 -> 300.8461538 | B69: =IF(AND(C68<D68, E68>$E$7),"Ignore Drill Out Lead 1; rather pop out Lead 1 and LEAVE lead # 2 to "&K68&" inches.","") ->  | N69: =IF(ISERROR(IF(ISERROR((G68+J68+M68)/$E$10*$E$7), 0,(G68+J68+M68)/$E$10*$E$7)), 0,IF(ISERROR((G68+J68+M68)/$E$10*$E$7), 0,(G68+J68+M68)/$E$10*$E$7)) -> 0 | O69: =A69 -> 300.8461538 | P69: =L68 -> 0 | Q69: =IF(ISERROR(IF(AC68=W68,Q68+(AC68/T68),Q68+(AD68/T68))), 0,IF(AC68=W68,Q68+(AC68/T68),Q68+(AD68/T68))) -> 0 | R69: =D68 -> 52 | S69: =IF(ISERROR(Q69-R69), 0,Q69-R69) -> -52 | T69: 0 | U69: =IF(ISERROR(IF(ISERROR(IF(ISERROR(IF(ISERROR(S69*T69), 0,S69*T69)), 0,IF(ISERROR(S69*T69), 0,S69*T69))), 0,IF(ISERROR(IF(ISERROR(S69*T69), 0,S69*T69)), 0,IF(ISERROR(S69*T69), 0,S69*T69)))), 0,IF(ISERROR(IF(ISERROR(IF(ISERROR(S69*T69), 0,S69*T69)), 0,IF(ISERROR(S69*T69), 0,S69*T69))), 0,IF(ISERROR(IF(ISERROR(S69*T69), 0,S69*T69)), 0,IF(ISERROR(S69*T69), 0,S69*T69)))) -> 0 | V69: 0 | W69: 14.2 | X69: 0.4 | Y69: =IF(ISERROR(IF(ISERROR(IF(ISERROR(ABS(U69)), 0,ABS(U69))), 0,IF(ISERROR(ABS(U69)), 0,ABS(U69)))), 0,IF(ISERROR(IF(ISERROR(ABS(U69)), 0,ABS(U69))), 0,IF(ISERROR(ABS(U69)), 0,ABS(U69)))) -> 0 | Z69: 0.15 | AA69: =IF(ISERROR(IF(ISERROR(IF(ISERROR(ABS((Y69*X69)/W69)), 0,ABS((Y69*X69)/W69))), 0,IF(ISERROR(ABS((Y69*X69)/W69)), 0,ABS((Y69*X69)/W69)))), 0,IF(ISERROR(IF(ISERROR(ABS((Y69*X69)/W69)), 0,ABS((Y69*X69)/W69))), 0,IF(ISERROR(ABS((Y69*X69)/W69)), 0,ABS((Y69*X69)/W69)))) -> 0 | AB69: =IF(ISERROR(IF(ISERROR(IF(ISERROR(IF(AA69>Z69,Z69,AA69)), 0,IF(AA69>Z69,Z69,AA69))), 0,IF(ISERROR(IF(AA69>Z69,Z69,AA69)), 0,IF(AA69>Z69,Z69,AA69)))), 0,IF(ISERROR(IF(ISERROR(IF(AA69>Z69,Z69,AA69)), 0,IF(AA69>Z69,Z69,AA69))), 0,IF(ISERROR(IF(AA69>Z69,Z69,AA69)), 0,IF(AA69>Z69,Z69,AA69)))) -> 0 | AC69: =IF(ISERROR(IF(ISERROR(IF(ISERROR(IF(Y69>W69,W69,Y69)), 0,IF(Y69>W69,W69,Y69))), 0,IF(ISERROR(IF(Y69>W69,W69,Y69)), 0,IF(Y69>W69,W69,Y69)))), 0,IF(ISERROR(IF(ISERROR(IF(Y69>W69,W69,Y69)), 0,IF(Y69>W69,W69,Y69))), 0,IF(ISERROR(IF(Y69>W69,W69,Y69)), 0,IF(Y69>W69,W69,Y69)))) -> 0 | AD69: =IF(ISERROR((AC69*AB69)/AA69), "",(AC69*AB69)/AA69) ->  | AE69: =IF(ISERROR(IF(AC69=W69,0,(AC69*AB69)/AA69)), "",IF(AC69=W69,0,(AC69*AB69)/AA69)) ->  | AF69: =IF(ISERROR(IF(AC69=60,Q69+(AC69/T69),Q69+(AD69/T69))), "",IF(AC69=60,Q69+(AC69/T69),Q69+(AD69/T69))) -> 
C70: Test | D70: Target | F70: 1 | G70: dr_o | H70: Lv_in | I70: 2 | J70: dr_o | K70: Lv_in | L70: 3 | M70: dr_o | N70: Lv_in | O70: =A72 -> 272.5 | P70: =F71 -> 0 | Q70: =C71 -> 53 | R70: =D71 -> 52 | S70: =Q70-R70 -> 1 | T70: 0 | U70: =IF(ISERROR(IF(ISERROR(IF(ISERROR(IF(ISERROR(S70*T70), 0,S70*T70)), 0,IF(ISERROR(S70*T70), 0,S70*T70))), 0,IF(ISERROR(IF(ISERROR(S70*T70), 0,S70*T70)), 0,IF(ISERROR(S70*T70), 0,S70*T70)))), 0,IF(ISERROR(IF(ISERROR(IF(ISERROR(S70*T70), 0,S70*T70)), 0,IF(ISERROR(S70*T70), 0,S70*T70))), 0,IF(ISERROR(IF(ISERROR(S70*T70), 0,S70*T70)), 0,IF(ISERROR(S70*T70), 0,S70*T70)))) -> 0 | V70: 0 | W70: 14.2 | X70: 0.4 | Y70: =IF(ISERROR(IF(ISERROR(IF(ISERROR(ABS(U70)), 0,ABS(U70))), 0,IF(ISERROR(ABS(U70)), 0,ABS(U70)))), 0,IF(ISERROR(IF(ISERROR(ABS(U70)), 0,ABS(U70))), 0,IF(ISERROR(ABS(U70)), 0,ABS(U70)))) -> 0 | Z70: 0.15 | AA70: =IF(ISERROR(IF(ISERROR(IF(ISERROR(ABS((Y70*X70)/W70)), 0,ABS((Y70*X70)/W70))), 0,IF(ISERROR(ABS((Y70*X70)/W70)), 0,ABS((Y70*X70)/W70)))), 0,IF(ISERROR(IF(ISERROR(ABS((Y70*X70)/W70)), 0,ABS((Y70*X70)/W70))), 0,IF(ISERROR(ABS((Y70*X70)/W70)), 0,ABS((Y70*X70)/W70)))) -> 0 | AB70: =IF(ISERROR(IF(ISERROR(IF(ISERROR(IF(AA70>Z70,Z70,AA70)), 0,IF(AA70>Z70,Z70,AA70))), 0,IF(ISERROR(IF(AA70>Z70,Z70,AA70)), 0,IF(AA70>Z70,Z70,AA70)))), 0,IF(ISERROR(IF(ISERROR(IF(AA70>Z70,Z70,AA70)), 0,IF(AA70>Z70,Z70,AA70))), 0,IF(ISERROR(IF(AA70>Z70,Z70,AA70)), 0,IF(AA70>Z70,Z70,AA70)))) -> 0 | AC70: =IF(ISERROR(IF(ISERROR(IF(ISERROR(IF(Y70>W70,W70,Y70)), 0,IF(Y70>W70,W70,Y70))), 0,IF(ISERROR(IF(Y70>W70,W70,Y70)), 0,IF(Y70>W70,W70,Y70)))), 0,IF(ISERROR(IF(ISERROR(IF(Y70>W70,W70,Y70)), 0,IF(Y70>W70,W70,Y70))), 0,IF(ISERROR(IF(Y70>W70,W70,Y70)), 0,IF(Y70>W70,W70,Y70)))) -> 0 | AD70: =IF(ISERROR(IF(ISERROR(IF(ISERROR(IF(ISERROR((AC70*AB70)/AA70), 0,(AC70*AB70)/AA70)), 0,IF(ISERROR((AC70*AB70)/AA70), 0,(AC70*AB70)/AA70))), 0,IF(ISERROR(IF(ISERROR((AC70*AB70)/AA70), 0,(AC70*AB70)/AA70)), 0,IF(ISERROR((AC70*AB70)/AA70), 0,(AC70*AB70)/AA70)))), 0,IF(ISERROR(IF(ISERROR(IF(ISERROR((AC70*AB70)/AA70), 0,(AC70*AB70)/AA70)), 0,IF(ISERROR((AC70*AB70)/AA70), 0,(AC70*AB70)/AA70))), 0,IF(ISERROR(IF(ISERROR((AC70*AB70)/AA70), 0,(AC70*AB70)/AA70)), 0,IF(ISERROR((AC70*AB70)/AA70), 0,(AC70*AB70)/AA70)))) -> 0 | AE70: =IF(ISERROR(IF(ISERROR(IF(ISERROR(IF(AC70=W70,0,(AC70*AB70)/AA70)), 0,IF(AC70=W70,0,(AC70*AB70)/AA70))), 0,IF(ISERROR(IF(AC70=W70,0,(AC70*AB70)/AA70)), 0,IF(AC70=W70,0,(AC70*AB70)/AA70)))), 0,IF(ISERROR(IF(ISERROR(IF(AC70=W70,0,(AC70*AB70)/AA70)), 0,IF(AC70=W70,0,(AC70*AB70)/AA70))), 0,IF(ISERROR(IF(AC70=W70,0,(AC70*AB70)/AA70)), 0,IF(AC70=W70,0,(AC70*AB70)/AA70)))) -> 0 | AF70: =IF(ISERROR(IF(ISERROR(IF(AC70=60,Q70+(AC70/T70),Q70+(AD70/T70))), 0,IF(AC70=60,Q70+(AC70/T70),Q70+(AD70/T70)))), 0,IF(ISERROR(IF(AC70=60,Q70+(AC70/T70),Q70+(AD70/T70))), 0,IF(AC70=60,Q70+(AC70/T70),Q70+(AD70/T70)))) -> 0
A71: D# | B71: 19 | C71: 53 | D71: 52 | E71: =IF(ISERROR(IF(ISERROR(IF(ISERROR(Y70), 0,Y70)), 0,IF(ISERROR(Y70), 0,Y70))), 0,IF(ISERROR(IF(ISERROR(Y70), 0,Y70)), 0,IF(ISERROR(Y70), 0,Y70))) -> 0 | G71: =IF(ISERROR(IF(ISERROR(IF(ISERROR(AB70), 0,AB70)), 0,IF(ISERROR(AB70), 0,AB70))), 0,IF(ISERROR(IF(ISERROR(AB70), 0,AB70)), 0,IF(ISERROR(AB70), 0,AB70))) -> 0 | H71: =IF(ISERROR(IF(ISERROR(IF(ISERROR($E$10-G71), 0,$E$10-G71)), 0,IF(ISERROR($E$10-G71), 0,$E$10-G71))), 0,IF(ISERROR(IF(ISERROR($E$10-G71), 0,$E$10-G71)), 0,IF(ISERROR($E$10-G71), 0,$E$10-G71))) -> 0.4 | J71: =IF(ISERROR(IF(ISERROR(AB71), 0,AB71)), 0,IF(ISERROR(AB71), 0,AB71)) -> 0 | K71: =IF(ISERROR(IF(ISERROR(ROUND($E$10-J71,3)), 0,ROUND($E$10-J71,3))), 0,IF(ISERROR(ROUND($E$10-J71,3)), 0,ROUND($E$10-J71,3))) -> 0.4 | M71: =IF(ISERROR(AB72), "",AB72) -> 0 | N71: =IF(ISERROR($E$10-M71), "",$E$10-M71) -> 0.4 | O71: =A72 -> 272.5 | P71: =I71 -> 0 | Q71: =IF(ISERROR(IF(ISERROR(IF(AC70=W70,Q70+(AC70/T70),Q70+(AD70/T70))), 0,IF(AC70=W70,Q70+(AC70/T70),Q70+(AD70/T70)))), 0,IF(ISERROR(IF(AC70=W70,Q70+(AC70/T70),Q70+(AD70/T70))), 0,IF(AC70=W70,Q70+(AC70/T70),Q70+(AD70/T70)))) -> 0 | R71: =D71 -> 52 | S71: =IF(ISERROR(IF(ISERROR(Q71-R71), 0,Q71-R71)), 0,IF(ISERROR(Q71-R71), 0,Q71-R71)) -> -52 | T71: 0 | U71: =IF(ISERROR(IF(ISERROR(S71*T71), 0,S71*T71)), 0,IF(ISERROR(S71*T71), 0,S71*T71)) -> 0 | V71: 0 | W71: 14.2 | X71: 0.4 | Y71: =IF(ISERROR(IF(ISERROR(ABS(U71)), 0,ABS(U71))), 0,IF(ISERROR(ABS(U71)), 0,ABS(U71))) -> 0 | Z71: 0.15 | AA71: =IF(ISERROR(IF(ISERROR(ABS((Y71*X71)/W71)), 0,ABS((Y71*X71)/W71))), 0,IF(ISERROR(ABS((Y71*X71)/W71)), 0,ABS((Y71*X71)/W71))) -> 0 | AB71: =IF(ISERROR(IF(ISERROR(IF(AA71>Z71,Z71,AA71)), 0,IF(AA71>Z71,Z71,AA71))), 0,IF(ISERROR(IF(AA71>Z71,Z71,AA71)), 0,IF(AA71>Z71,Z71,AA71))) -> 0 | AC71: =IF(ISERROR(IF(ISERROR(IF(Y71>W71,W71,Y71)), 0,IF(Y71>W71,W71,Y71))), 0,IF(ISERROR(IF(Y71>W71,W71,Y71)), 0,IF(Y71>W71,W71,Y71))) -> 0 | AD71: =IF(ISERROR((AC71*AB71)/AA71), "",(AC71*AB71)/AA71) ->  | AE71: =IF(ISERROR(IF(AC71=W71,0,(AC71*AB71)/AA71)), "",IF(AC71=W71,0,(AC71*AB71)/AA71)) ->  | AF71: =IF(ISERROR(IF(AC71=60,Q71+(AC71/T71),Q71+(AD71/T71))), "",IF(AC71=60,Q71+(AC71/T71),Q71+(AD71/T71))) -> 
A72: =R307 -> 272.5 | B72: =IF(AND(C71<D71, E71>$E$7),"Ignore Drill Out Lead 1; rather pop out Lead 1 and LEAVE lead # 2 to "&K71&" inches.","") ->  | N72: =IF(ISERROR(IF(ISERROR((G71+J71+M71)/$E$10*$E$7), 0,(G71+J71+M71)/$E$10*$E$7)), 0,IF(ISERROR((G71+J71+M71)/$E$10*$E$7), 0,(G71+J71+M71)/$E$10*$E$7)) -> 0 | O72: =A72 -> 272.5 | P72: =L71 -> 0 | Q72: =IF(ISERROR(IF(AC71=W71,Q71+(AC71/T71),Q71+(AD71/T71))), "",IF(AC71=W71,Q71+(AC71/T71),Q71+(AD71/T71))) ->  | R72: =D71 -> 52 | S72: =IF(ISERROR(Q72-R72), 0,Q72-R72) -> 0 | T72: 0 | U72: =IF(ISERROR(S72*T72), "",S72*T72) -> 0 | V72: 0 | W72: 14.2 | X72: 0.4 | Y72: =IF(ISERROR(ABS(U72)), "",ABS(U72)) -> 0 | Z72: 0.15 | AA72: =IF(ISERROR(ABS((Y72*X72)/W72)), "",ABS((Y72*X72)/W72)) -> 0 | AB72: =IF(ISERROR(IF(AA72>Z72,Z72,AA72)), "",IF(AA72>Z72,Z72,AA72)) -> 0 | AC72: =IF(ISERROR(IF(Y72>W72,W72,Y72)), "",IF(Y72>W72,W72,Y72)) -> 0 | AD72: =IF(ISERROR((AC72*AB72)/AA72), "",(AC72*AB72)/AA72) ->  | AE72: =IF(ISERROR(IF(AC72=W72,0,(AC72*AB72)/AA72)), "",IF(AC72=W72,0,(AC72*AB72)/AA72)) ->  | AF72: =IF(ISERROR(IF(AC72=60,Q72+(AC72/T72),Q72+(AD72/T72))), "",IF(AC72=60,Q72+(AC72/T72),Q72+(AD72/T72))) -> 
C73: Test | D73: Target | F73: 1 | G73: dr_o | H73: Lv_in | I73: 2 | J73: dr_o | K73: Lv_in | L73: 3 | M73: dr_o | N73: Lv_in | O73: =A75 -> 299.4807692 | P73: =F74 -> 0 | Q73: =C74 -> 52 | R73: =D74 -> 52 | S73: =Q73-R73 -> 0 | T73: 0 | U73: =IF(ISERROR(IF(ISERROR(IF(ISERROR(IF(ISERROR(S73*T73), 0,S73*T73)), 0,IF(ISERROR(S73*T73), 0,S73*T73))), 0,IF(ISERROR(IF(ISERROR(S73*T73), 0,S73*T73)), 0,IF(ISERROR(S73*T73), 0,S73*T73)))), 0,IF(ISERROR(IF(ISERROR(IF(ISERROR(S73*T73), 0,S73*T73)), 0,IF(ISERROR(S73*T73), 0,S73*T73))), 0,IF(ISERROR(IF(ISERROR(S73*T73), 0,S73*T73)), 0,IF(ISERROR(S73*T73), 0,S73*T73)))) -> 0 | V73: 0 | W73: 14.2 | X73: 0.4 | Y73: =IF(ISERROR(IF(ISERROR(IF(ISERROR(ABS(U73)), 0,ABS(U73))), 0,IF(ISERROR(ABS(U73)), 0,ABS(U73)))), 0,IF(ISERROR(IF(ISERROR(ABS(U73)), 0,ABS(U73))), 0,IF(ISERROR(ABS(U73)), 0,ABS(U73)))) -> 0 | Z73: 0.15 | AA73: =IF(ISERROR(IF(ISERROR(IF(ISERROR(ABS((Y73*X73)/W73)), 0,ABS((Y73*X73)/W73))), 0,IF(ISERROR(ABS((Y73*X73)/W73)), 0,ABS((Y73*X73)/W73)))), 0,IF(ISERROR(IF(ISERROR(ABS((Y73*X73)/W73)), 0,ABS((Y73*X73)/W73))), 0,IF(ISERROR(ABS((Y73*X73)/W73)), 0,ABS((Y73*X73)/W73)))) -> 0 | AB73: =IF(ISERROR(IF(ISERROR(IF(ISERROR(IF(AA73>Z73,Z73,AA73)), 0,IF(AA73>Z73,Z73,AA73))), 0,IF(ISERROR(IF(AA73>Z73,Z73,AA73)), 0,IF(AA73>Z73,Z73,AA73)))), 0,IF(ISERROR(IF(ISERROR(IF(AA73>Z73,Z73,AA73)), 0,IF(AA73>Z73,Z73,AA73))), 0,IF(ISERROR(IF(AA73>Z73,Z73,AA73)), 0,IF(AA73>Z73,Z73,AA73)))) -> 0 | AC73: =IF(ISERROR(IF(ISERROR(IF(ISERROR(IF(Y73>W73,W73,Y73)), 0,IF(Y73>W73,W73,Y73))), 0,IF(ISERROR(IF(Y73>W73,W73,Y73)), 0,IF(Y73>W73,W73,Y73)))), 0,IF(ISERROR(IF(ISERROR(IF(Y73>W73,W73,Y73)), 0,IF(Y73>W73,W73,Y73))), 0,IF(ISERROR(IF(Y73>W73,W73,Y73)), 0,IF(Y73>W73,W73,Y73)))) -> 0 | AD73: =IF(ISERROR(IF(ISERROR(IF(ISERROR(IF(ISERROR((AC73*AB73)/AA73), 0,(AC73*AB73)/AA73)), 0,IF(ISERROR((AC73*AB73)/AA73), 0,(AC73*AB73)/AA73))), 0,IF(ISERROR(IF(ISERROR((AC73*AB73)/AA73), 0,(AC73*AB73)/AA73)), 0,IF(ISERROR((AC73*AB73)/AA73), 0,(AC73*AB73)/AA73)))), 0,IF(ISERROR(IF(ISERROR(IF(ISERROR((AC73*AB73)/AA73), 0,(AC73*AB73)/AA73)), 0,IF(ISERROR((AC73*AB73)/AA73), 0,(AC73*AB73)/AA73))), 0,IF(ISERROR(IF(ISERROR((AC73*AB73)/AA73), 0,(AC73*AB73)/AA73)), 0,IF(ISERROR((AC73*AB73)/AA73), 0,(AC73*AB73)/AA73)))) -> 0 | AE73: =IF(ISERROR(IF(ISERROR(IF(ISERROR(IF(AC73=W73,0,(AC73*AB73)/AA73)), 0,IF(AC73=W73,0,(AC73*AB73)/AA73))), 0,IF(ISERROR(IF(AC73=W73,0,(AC73*AB73)/AA73)), 0,IF(AC73=W73,0,(AC73*AB73)/AA73)))), 0,IF(ISERROR(IF(ISERROR(IF(AC73=W73,0,(AC73*AB73)/AA73)), 0,IF(AC73=W73,0,(AC73*AB73)/AA73))), 0,IF(ISERROR(IF(AC73=W73,0,(AC73*AB73)/AA73)), 0,IF(AC73=W73,0,(AC73*AB73)/AA73)))) -> 0 | AF73: =IF(ISERROR(IF(ISERROR(IF(AC73=60,Q73+(AC73/T73),Q73+(AD73/T73))), 0,IF(AC73=60,Q73+(AC73/T73),Q73+(AD73/T73)))), 0,IF(ISERROR(IF(AC73=60,Q73+(AC73/T73),Q73+(AD73/T73))), 0,IF(AC73=60,Q73+(AC73/T73),Q73+(AD73/T73)))) -> 0
A74: E | B74: 20 | C74: 52 | D74: 52 | E74: =IF(ISERROR(IF(ISERROR(IF(ISERROR(Y73), 0,Y73)), 0,IF(ISERROR(Y73), 0,Y73))), 0,IF(ISERROR(IF(ISERROR(Y73), 0,Y73)), 0,IF(ISERROR(Y73), 0,Y73))) -> 0 | G74: =IF(ISERROR(IF(ISERROR(IF(ISERROR(AB73), 0,AB73)), 0,IF(ISERROR(AB73), 0,AB73))), 0,IF(ISERROR(IF(ISERROR(AB73), 0,AB73)), 0,IF(ISERROR(AB73), 0,AB73))) -> 0 | H74: =IF(ISERROR(IF(ISERROR(IF(ISERROR($E$10-G74), 0,$E$10-G74)), 0,IF(ISERROR($E$10-G74), 0,$E$10-G74))), 0,IF(ISERROR(IF(ISERROR($E$10-G74), 0,$E$10-G74)), 0,IF(ISERROR($E$10-G74), 0,$E$10-G74))) -> 0.4 | J74: =IF(ISERROR(IF(ISERROR(AB74), 0,AB74)), 0,IF(ISERROR(AB74), 0,AB74)) -> 0 | K74: =IF(ISERROR(IF(ISERROR(ROUND($E$10-J74,3)), 0,ROUND($E$10-J74,3))), 0,IF(ISERROR(ROUND($E$10-J74,3)), 0,ROUND($E$10-J74,3))) -> 0.4 | M74: =IF(ISERROR(AB75), "",AB75) -> 0 | N74: =IF(ISERROR($E$10-M74), "",$E$10-M74) -> 0.4 | O74: =A75 -> 299.4807692 | P74: =I74 -> 0 | Q74: =IF(ISERROR(IF(ISERROR(IF(AC73=W73,Q73+(AC73/T73),Q73+(AD73/T73))), 0,IF(AC73=W73,Q73+(AC73/T73),Q73+(AD73/T73)))), 0,IF(ISERROR(IF(AC73=W73,Q73+(AC73/T73),Q73+(AD73/T73))), 0,IF(AC73=W73,Q73+(AC73/T73),Q73+(AD73/T73)))) -> 0 | R74: =D74 -> 52 | S74: =IF(ISERROR(IF(ISERROR(Q74-R74), 0,Q74-R74)), 0,IF(ISERROR(Q74-R74), 0,Q74-R74)) -> -52 | T74: 0 | U74: =IF(ISERROR(IF(ISERROR(S74*T74), 0,S74*T74)), 0,IF(ISERROR(S74*T74), 0,S74*T74)) -> 0 | V74: 0 | W74: 14.2 | X74: 0.4 | Y74: =IF(ISERROR(IF(ISERROR(ABS(U74)), 0,ABS(U74))), 0,IF(ISERROR(ABS(U74)), 0,ABS(U74))) -> 0 | Z74: 0.15 | AA74: =IF(ISERROR(IF(ISERROR(ABS((Y74*X74)/W74)), 0,ABS((Y74*X74)/W74))), 0,IF(ISERROR(ABS((Y74*X74)/W74)), 0,ABS((Y74*X74)/W74))) -> 0 | AB74: =IF(ISERROR(IF(ISERROR(IF(AA74>Z74,Z74,AA74)), 0,IF(AA74>Z74,Z74,AA74))), 0,IF(ISERROR(IF(AA74>Z74,Z74,AA74)), 0,IF(AA74>Z74,Z74,AA74))) -> 0 | AC74: =IF(ISERROR(IF(ISERROR(IF(Y74>W74,W74,Y74)), 0,IF(Y74>W74,W74,Y74))), 0,IF(ISERROR(IF(Y74>W74,W74,Y74)), 0,IF(Y74>W74,W74,Y74))) -> 0 | AD74: =IF(ISERROR((AC74*AB74)/AA74), "",(AC74*AB74)/AA74) ->  | AE74: =IF(ISERROR(IF(AC74=W74,0,(AC74*AB74)/AA74)), "",IF(AC74=W74,0,(AC74*AB74)/AA74)) ->  | AF74: =IF(ISERROR(IF(AC74=60,Q74+(AC74/T74),Q74+(AD74/T74))), "",IF(AC74=60,Q74+(AC74/T74),Q74+(AD74/T74))) -> 
A75: =F311 -> 299.4807692 | B75: =IF(AND(C74<D74, E74>$E$7),"Ignore Drill Out Lead 1; rather pop out Lead 1 and LEAVE lead # 2 to "&K74&" inches.","") ->  | N75: =IF(ISERROR(IF(ISERROR((G74+J74+M74)/$E$10*$E$7), 0,(G74+J74+M74)/$E$10*$E$7)), 0,IF(ISERROR((G74+J74+M74)/$E$10*$E$7), 0,(G74+J74+M74)/$E$10*$E$7)) -> 0 | O75: =A75 -> 299.4807692 | P75: =L74 -> 0 | Q75: =IF(ISERROR(IF(AC74=W74,Q74+(AC74/T74),Q74+(AD74/T74))), "",IF(AC74=W74,Q74+(AC74/T74),Q74+(AD74/T74))) ->  | R75: =D74 -> 52 | S75: =IF(ISERROR(Q75-R75), 0,Q75-R75) -> 0 | T75: 0 | U75: =IF(ISERROR(S75*T75), "",S75*T75) -> 0 | V75: 0 | W75: 14.2 | X75: 0.4 | Y75: =IF(ISERROR(ABS(U75)), "",ABS(U75)) -> 0 | Z75: 0.15 | AA75: =IF(ISERROR(ABS((Y75*X75)/W75)), "",ABS((Y75*X75)/W75)) -> 0 | AB75: =IF(ISERROR(IF(AA75>Z75,Z75,AA75)), "",IF(AA75>Z75,Z75,AA75)) -> 0 | AC75: =IF(ISERROR(IF(Y75>W75,W75,Y75)), "",IF(Y75>W75,W75,Y75)) -> 0 | AD75: =IF(ISERROR((AC75*AB75)/AA75), "",(AC75*AB75)/AA75) ->  | AE75: =IF(ISERROR(IF(AC75=W75,0,(AC75*AB75)/AA75)), "",IF(AC75=W75,0,(AC75*AB75)/AA75)) ->  | AF75: =IF(ISERROR(IF(AC75=60,Q75+(AC75/T75),Q75+(AD75/T75))), "",IF(AC75=60,Q75+(AC75/T75),Q75+(AD75/T75))) -> 
C76: Test | D76: Target | F76: 1 | G76: dr_o | H76: Lv_in | I76: 2 | J76: dr_o | K76: Lv_in | L76: 3 | M76: dr_o | N76: Lv_in | O76: =A78 -> 298.1153846 | P76: =F77 -> 0 | Q76: =C77 -> 50 | R76: =D77 -> 52 | S76: =Q76-R76 -> -2 | T76: 0 | U76: =IF(ISERROR(IF(ISERROR(IF(ISERROR(IF(ISERROR(S76*T76), 0,S76*T76)), 0,IF(ISERROR(S76*T76), 0,S76*T76))), 0,IF(ISERROR(IF(ISERROR(S76*T76), 0,S76*T76)), 0,IF(ISERROR(S76*T76), 0,S76*T76)))), 0,IF(ISERROR(IF(ISERROR(IF(ISERROR(S76*T76), 0,S76*T76)), 0,IF(ISERROR(S76*T76), 0,S76*T76))), 0,IF(ISERROR(IF(ISERROR(S76*T76), 0,S76*T76)), 0,IF(ISERROR(S76*T76), 0,S76*T76)))) -> 0 | V76: 0 | W76: 14.2 | X76: 0.4 | Y76: =IF(ISERROR(IF(ISERROR(IF(ISERROR(ABS(U76)), 0,ABS(U76))), 0,IF(ISERROR(ABS(U76)), 0,ABS(U76)))), 0,IF(ISERROR(IF(ISERROR(ABS(U76)), 0,ABS(U76))), 0,IF(ISERROR(ABS(U76)), 0,ABS(U76)))) -> 0 | Z76: 0.15 | AA76: =IF(ISERROR(IF(ISERROR(IF(ISERROR(ABS((Y76*X76)/W76)), 0,ABS((Y76*X76)/W76))), 0,IF(ISERROR(ABS((Y76*X76)/W76)), 0,ABS((Y76*X76)/W76)))), 0,IF(ISERROR(IF(ISERROR(ABS((Y76*X76)/W76)), 0,ABS((Y76*X76)/W76))), 0,IF(ISERROR(ABS((Y76*X76)/W76)), 0,ABS((Y76*X76)/W76)))) -> 0 | AB76: =IF(ISERROR(IF(ISERROR(IF(ISERROR(IF(AA76>Z76,Z76,AA76)), 0,IF(AA76>Z76,Z76,AA76))), 0,IF(ISERROR(IF(AA76>Z76,Z76,AA76)), 0,IF(AA76>Z76,Z76,AA76)))), 0,IF(ISERROR(IF(ISERROR(IF(AA76>Z76,Z76,AA76)), 0,IF(AA76>Z76,Z76,AA76))), 0,IF(ISERROR(IF(AA76>Z76,Z76,AA76)), 0,IF(AA76>Z76,Z76,AA76)))) -> 0 | AC76: =IF(ISERROR(IF(ISERROR(IF(ISERROR(IF(Y76>W76,W76,Y76)), 0,IF(Y76>W76,W76,Y76))), 0,IF(ISERROR(IF(Y76>W76,W76,Y76)), 0,IF(Y76>W76,W76,Y76)))), 0,IF(ISERROR(IF(ISERROR(IF(Y76>W76,W76,Y76)), 0,IF(Y76>W76,W76,Y76))), 0,IF(ISERROR(IF(Y76>W76,W76,Y76)), 0,IF(Y76>W76,W76,Y76)))) -> 0 | AD76: =IF(ISERROR(IF(ISERROR(IF(ISERROR(IF(ISERROR((AC76*AB76)/AA76), 0,(AC76*AB76)/AA76)), 0,IF(ISERROR((AC76*AB76)/AA76), 0,(AC76*AB76)/AA76))), 0,IF(ISERROR(IF(ISERROR((AC76*AB76)/AA76), 0,(AC76*AB76)/AA76)), 0,IF(ISERROR((AC76*AB76)/AA76), 0,(AC76*AB76)/AA76)))), 0,IF(ISERROR(IF(ISERROR(IF(ISERROR((AC76*AB76)/AA76), 0,(AC76*AB76)/AA76)), 0,IF(ISERROR((AC76*AB76)/AA76), 0,(AC76*AB76)/AA76))), 0,IF(ISERROR(IF(ISERROR((AC76*AB76)/AA76), 0,(AC76*AB76)/AA76)), 0,IF(ISERROR((AC76*AB76)/AA76), 0,(AC76*AB76)/AA76)))) -> 0 | AE76: =IF(ISERROR(IF(ISERROR(IF(ISERROR(IF(AC76=W76,0,(AC76*AB76)/AA76)), 0,IF(AC76=W76,0,(AC76*AB76)/AA76))), 0,IF(ISERROR(IF(AC76=W76,0,(AC76*AB76)/AA76)), 0,IF(AC76=W76,0,(AC76*AB76)/AA76)))), 0,IF(ISERROR(IF(ISERROR(IF(AC76=W76,0,(AC76*AB76)/AA76)), 0,IF(AC76=W76,0,(AC76*AB76)/AA76))), 0,IF(ISERROR(IF(AC76=W76,0,(AC76*AB76)/AA76)), 0,IF(AC76=W76,0,(AC76*AB76)/AA76)))) -> 0 | AF76: =IF(ISERROR(IF(ISERROR(IF(AC76=60,Q76+(AC76/T76),Q76+(AD76/T76))), 0,IF(AC76=60,Q76+(AC76/T76),Q76+(AD76/T76)))), 0,IF(ISERROR(IF(AC76=60,Q76+(AC76/T76),Q76+(AD76/T76))), 0,IF(AC76=60,Q76+(AC76/T76),Q76+(AD76/T76)))) -> 0
A77: F | B77: 21 | C77: 50 | D77: 52 | E77: =IF(ISERROR(IF(ISERROR(IF(ISERROR(Y76), 0,Y76)), 0,IF(ISERROR(Y76), 0,Y76))), 0,IF(ISERROR(IF(ISERROR(Y76), 0,Y76)), 0,IF(ISERROR(Y76), 0,Y76))) -> 0 | G77: =IF(ISERROR(IF(ISERROR(IF(ISERROR(AB76), 0,AB76)), 0,IF(ISERROR(AB76), 0,AB76))), 0,IF(ISERROR(IF(ISERROR(AB76), 0,AB76)), 0,IF(ISERROR(AB76), 0,AB76))) -> 0 | H77: =IF(ISERROR(IF(ISERROR(IF(ISERROR($E$10-G77), 0,$E$10-G77)), 0,IF(ISERROR($E$10-G77), 0,$E$10-G77))), 0,IF(ISERROR(IF(ISERROR($E$10-G77), 0,$E$10-G77)), 0,IF(ISERROR($E$10-G77), 0,$E$10-G77))) -> 0.4 | J77: =IF(ISERROR(IF(ISERROR(AB77), 0,AB77)), 0,IF(ISERROR(AB77), 0,AB77)) -> 0 | K77: =IF(ISERROR(IF(ISERROR(ROUND($E$10-J77,3)), 0,ROUND($E$10-J77,3))), 0,IF(ISERROR(ROUND($E$10-J77,3)), 0,ROUND($E$10-J77,3))) -> 0.4 | M77: =IF(ISERROR(IF(ISERROR(IF(ISERROR(IF(ISERROR(AB78), 0,AB78)), 0,IF(ISERROR(AB78), 0,AB78))), 0,IF(ISERROR(IF(ISERROR(AB78), 0,AB78)), 0,IF(ISERROR(AB78), 0,AB78)))), 0,IF(ISERROR(IF(ISERROR(IF(ISERROR(AB78), 0,AB78)), 0,IF(ISERROR(AB78), 0,AB78))), 0,IF(ISERROR(IF(ISERROR(AB78), 0,AB78)), 0,IF(ISERROR(AB78), 0,AB78)))) -> 0 | N77: =IF(ISERROR(IF(ISERROR(IF(ISERROR(IF(ISERROR($E$10-M77), 0,$E$10-M77)), 0,IF(ISERROR($E$10-M77), 0,$E$10-M77))), 0,IF(ISERROR(IF(ISERROR($E$10-M77), 0,$E$10-M77)), 0,IF(ISERROR($E$10-M77), 0,$E$10-M77)))), 0,IF(ISERROR(IF(ISERROR(IF(ISERROR($E$10-M77), 0,$E$10-M77)), 0,IF(ISERROR($E$10-M77), 0,$E$10-M77))), 0,IF(ISERROR(IF(ISERROR($E$10-M77), 0,$E$10-M77)), 0,IF(ISERROR($E$10-M77), 0,$E$10-M77)))) -> 0.4 | O77: =A78 -> 298.1153846 | P77: =I77 -> 0 | Q77: =IF(ISERROR(IF(ISERROR(IF(AC76=W76,Q76+(AC76/T76),Q76+(AD76/T76))), 0,IF(AC76=W76,Q76+(AC76/T76),Q76+(AD76/T76)))), 0,IF(ISERROR(IF(AC76=W76,Q76+(AC76/T76),Q76+(AD76/T76))), 0,IF(AC76=W76,Q76+(AC76/T76),Q76+(AD76/T76)))) -> 0 | R77: =D77 -> 52 | S77: =IF(ISERROR(IF(ISERROR(Q77-R77), 0,Q77-R77)), 0,IF(ISERROR(Q77-R77), 0,Q77-R77)) -> -52 | T77: 0 | U77: =IF(ISERROR(IF(ISERROR(S77*T77), 0,S77*T77)), 0,IF(ISERROR(S77*T77), 0,S77*T77)) -> 0 | V77: 0 | W77: 14.2 | X77: 0.4 | Y77: =IF(ISERROR(IF(ISERROR(ABS(U77)), 0,ABS(U77))), 0,IF(ISERROR(ABS(U77)), 0,ABS(U77))) -> 0 | Z77: 0.15 | AA77: =IF(ISERROR(IF(ISERROR(ABS((Y77*X77)/W77)), 0,ABS((Y77*X77)/W77))), 0,IF(ISERROR(ABS((Y77*X77)/W77)), 0,ABS((Y77*X77)/W77))) -> 0 | AB77: =IF(ISERROR(IF(ISERROR(IF(AA77>Z77,Z77,AA77)), 0,IF(AA77>Z77,Z77,AA77))), 0,IF(ISERROR(IF(AA77>Z77,Z77,AA77)), 0,IF(AA77>Z77,Z77,AA77))) -> 0 | AC77: =IF(ISERROR(IF(ISERROR(IF(Y77>W77,W77,Y77)), 0,IF(Y77>W77,W77,Y77))), 0,IF(ISERROR(IF(Y77>W77,W77,Y77)), 0,IF(Y77>W77,W77,Y77))) -> 0 | AD77: =IF(ISERROR((AC77*AB77)/AA77), 0,(AC77*AB77)/AA77) -> 0 | AE77: =IF(ISERROR(IF(ISERROR(IF(AC77=W77,0,(AC77*AB77)/AA77)), 0,IF(AC77=W77,0,(AC77*AB77)/AA77))), 0,IF(ISERROR(IF(AC77=W77,0,(AC77*AB77)/AA77)), 0,IF(AC77=W77,0,(AC77*AB77)/AA77))) -> 0 | AF77: =IF(ISERROR(IF(AC77=60,Q77+(AC77/T77),Q77+(AD77/T77))), 0,IF(AC77=60,Q77+(AC77/T77),Q77+(AD77/T77))) -> 0
A78: =F312 -> 298.1153846 | B78: =IF(AND(C77<D77, E77>$E$7),"Ignore Drill Out Lead 1; rather pop out Lead 1 and LEAVE lead # 2 to "&K77&" inches.","") ->  | N78: =IF(ISERROR(IF(ISERROR((G77+J77+M77)/$E$10*$E$7), 0,(G77+J77+M77)/$E$10*$E$7)), 0,IF(ISERROR((G77+J77+M77)/$E$10*$E$7), 0,(G77+J77+M77)/$E$10*$E$7)) -> 0 | O78: =A78 -> 298.1153846 | P78: =L77 -> 0 | Q78: =IF(ISERROR(IF(AC77=W77,Q77+(AC77/T77),Q77+(AD77/T77))), 0,IF(AC77=W77,Q77+(AC77/T77),Q77+(AD77/T77))) -> 0 | R78: =D77 -> 52 | S78: =IF(ISERROR(Q78-R78), 0,Q78-R78) -> -52 | T78: 0 | U78: =IF(ISERROR(IF(ISERROR(IF(ISERROR(IF(ISERROR(S78*T78), 0,S78*T78)), 0,IF(ISERROR(S78*T78), 0,S78*T78))), 0,IF(ISERROR(IF(ISERROR(S78*T78), 0,S78*T78)), 0,IF(ISERROR(S78*T78), 0,S78*T78)))), 0,IF(ISERROR(IF(ISERROR(IF(ISERROR(S78*T78), 0,S78*T78)), 0,IF(ISERROR(S78*T78), 0,S78*T78))), 0,IF(ISERROR(IF(ISERROR(S78*T78), 0,S78*T78)), 0,IF(ISERROR(S78*T78), 0,S78*T78)))) -> 0 | V78: 0 | W78: 14.2 | X78: 0.4 | Y78: =IF(ISERROR(IF(ISERROR(IF(ISERROR(ABS(U78)), 0,ABS(U78))), 0,IF(ISERROR(ABS(U78)), 0,ABS(U78)))), 0,IF(ISERROR(IF(ISERROR(ABS(U78)), 0,ABS(U78))), 0,IF(ISERROR(ABS(U78)), 0,ABS(U78)))) -> 0 | Z78: 0.15 | AA78: =IF(ISERROR(IF(ISERROR(IF(ISERROR(ABS((Y78*X78)/W78)), 0,ABS((Y78*X78)/W78))), 0,IF(ISERROR(ABS((Y78*X78)/W78)), 0,ABS((Y78*X78)/W78)))), 0,IF(ISERROR(IF(ISERROR(ABS((Y78*X78)/W78)), 0,ABS((Y78*X78)/W78))), 0,IF(ISERROR(ABS((Y78*X78)/W78)), 0,ABS((Y78*X78)/W78)))) -> 0 | AB78: =IF(ISERROR(IF(ISERROR(IF(ISERROR(IF(AA78>Z78,Z78,AA78)), 0,IF(AA78>Z78,Z78,AA78))), 0,IF(ISERROR(IF(AA78>Z78,Z78,AA78)), 0,IF(AA78>Z78,Z78,AA78)))), 0,IF(ISERROR(IF(ISERROR(IF(AA78>Z78,Z78,AA78)), 0,IF(AA78>Z78,Z78,AA78))), 0,IF(ISERROR(IF(AA78>Z78,Z78,AA78)), 0,IF(AA78>Z78,Z78,AA78)))) -> 0 | AC78: =IF(ISERROR(IF(ISERROR(IF(ISERROR(IF(Y78>W78,W78,Y78)), 0,IF(Y78>W78,W78,Y78))), 0,IF(ISERROR(IF(Y78>W78,W78,Y78)), 0,IF(Y78>W78,W78,Y78)))), 0,IF(ISERROR(IF(ISERROR(IF(Y78>W78,W78,Y78)), 0,IF(Y78>W78,W78,Y78))), 0,IF(ISERROR(IF(Y78>W78,W78,Y78)), 0,IF(Y78>W78,W78,Y78)))) -> 0 | AD78: =IF(ISERROR((AC78*AB78)/AA78), "",(AC78*AB78)/AA78) ->  | AE78: =IF(ISERROR(IF(AC78=W78,0,(AC78*AB78)/AA78)), "",IF(AC78=W78,0,(AC78*AB78)/AA78)) ->  | AF78: =IF(ISERROR(IF(AC78=60,Q78+(AC78/T78),Q78+(AD78/T78))), "",IF(AC78=60,Q78+(AC78/T78),Q78+(AD78/T78))) -> 
C79: Test | D79: Target | F79: 1 | G79: dr_o | H79: Lv_in | I79: 2 | J79: dr_o | K79: Lv_in | L79: 3 | M79: dr_o | N79: Lv_in | O79: =A81 -> 271.5 | P79: =F80 -> 0 | Q79: =C80 -> 52 | R79: =D80 -> 52 | S79: =Q79-R79 -> 0 | T79: 0 | U79: =IF(ISERROR(IF(ISERROR(IF(ISERROR(IF(ISERROR(S79*T79), 0,S79*T79)), 0,IF(ISERROR(S79*T79), 0,S79*T79))), 0,IF(ISERROR(IF(ISERROR(S79*T79), 0,S79*T79)), 0,IF(ISERROR(S79*T79), 0,S79*T79)))), 0,IF(ISERROR(IF(ISERROR(IF(ISERROR(S79*T79), 0,S79*T79)), 0,IF(ISERROR(S79*T79), 0,S79*T79))), 0,IF(ISERROR(IF(ISERROR(S79*T79), 0,S79*T79)), 0,IF(ISERROR(S79*T79), 0,S79*T79)))) -> 0 | V79: 0 | W79: 14.2 | X79: 0.4 | Y79: =IF(ISERROR(IF(ISERROR(IF(ISERROR(ABS(U79)), 0,ABS(U79))), 0,IF(ISERROR(ABS(U79)), 0,ABS(U79)))), 0,IF(ISERROR(IF(ISERROR(ABS(U79)), 0,ABS(U79))), 0,IF(ISERROR(ABS(U79)), 0,ABS(U79)))) -> 0 | Z79: 0.15 | AA79: =IF(ISERROR(IF(ISERROR(IF(ISERROR(ABS((Y79*X79)/W79)), 0,ABS((Y79*X79)/W79))), 0,IF(ISERROR(ABS((Y79*X79)/W79)), 0,ABS((Y79*X79)/W79)))), 0,IF(ISERROR(IF(ISERROR(ABS((Y79*X79)/W79)), 0,ABS((Y79*X79)/W79))), 0,IF(ISERROR(ABS((Y79*X79)/W79)), 0,ABS((Y79*X79)/W79)))) -> 0 | AB79: =IF(ISERROR(IF(ISERROR(IF(ISERROR(IF(AA79>Z79,Z79,AA79)), 0,IF(AA79>Z79,Z79,AA79))), 0,IF(ISERROR(IF(AA79>Z79,Z79,AA79)), 0,IF(AA79>Z79,Z79,AA79)))), 0,IF(ISERROR(IF(ISERROR(IF(AA79>Z79,Z79,AA79)), 0,IF(AA79>Z79,Z79,AA79))), 0,IF(ISERROR(IF(AA79>Z79,Z79,AA79)), 0,IF(AA79>Z79,Z79,AA79)))) -> 0 | AC79: =IF(ISERROR(IF(ISERROR(IF(ISERROR(IF(Y79>W79,W79,Y79)), 0,IF(Y79>W79,W79,Y79))), 0,IF(ISERROR(IF(Y79>W79,W79,Y79)), 0,IF(Y79>W79,W79,Y79)))), 0,IF(ISERROR(IF(ISERROR(IF(Y79>W79,W79,Y79)), 0,IF(Y79>W79,W79,Y79))), 0,IF(ISERROR(IF(Y79>W79,W79,Y79)), 0,IF(Y79>W79,W79,Y79)))) -> 0 | AD79: =IF(ISERROR(IF(ISERROR(IF(ISERROR(IF(ISERROR((AC79*AB79)/AA79), 0,(AC79*AB79)/AA79)), 0,IF(ISERROR((AC79*AB79)/AA79), 0,(AC79*AB79)/AA79))), 0,IF(ISERROR(IF(ISERROR((AC79*AB79)/AA79), 0,(AC79*AB79)/AA79)), 0,IF(ISERROR((AC79*AB79)/AA79), 0,(AC79*AB79)/AA79)))), 0,IF(ISERROR(IF(ISERROR(IF(ISERROR((AC79*AB79)/AA79), 0,(AC79*AB79)/AA79)), 0,IF(ISERROR((AC79*AB79)/AA79), 0,(AC79*AB79)/AA79))), 0,IF(ISERROR(IF(ISERROR((AC79*AB79)/AA79), 0,(AC79*AB79)/AA79)), 0,IF(ISERROR((AC79*AB79)/AA79), 0,(AC79*AB79)/AA79)))) -> 0 | AE79: =IF(ISERROR(IF(ISERROR(IF(ISERROR(IF(AC79=W79,0,(AC79*AB79)/AA79)), 0,IF(AC79=W79,0,(AC79*AB79)/AA79))), 0,IF(ISERROR(IF(AC79=W79,0,(AC79*AB79)/AA79)), 0,IF(AC79=W79,0,(AC79*AB79)/AA79)))), 0,IF(ISERROR(IF(ISERROR(IF(AC79=W79,0,(AC79*AB79)/AA79)), 0,IF(AC79=W79,0,(AC79*AB79)/AA79))), 0,IF(ISERROR(IF(AC79=W79,0,(AC79*AB79)/AA79)), 0,IF(AC79=W79,0,(AC79*AB79)/AA79)))) -> 0 | AF79: =IF(ISERROR(IF(ISERROR(IF(AC79=60,Q79+(AC79/T79),Q79+(AD79/T79))), 0,IF(AC79=60,Q79+(AC79/T79),Q79+(AD79/T79)))), 0,IF(ISERROR(IF(AC79=60,Q79+(AC79/T79),Q79+(AD79/T79))), 0,IF(AC79=60,Q79+(AC79/T79),Q79+(AD79/T79)))) -> 0
A80: F# | B80: 22 | C80: 52 | D80: 52 | E80: =IF(ISERROR(IF(ISERROR(IF(ISERROR(Y79), 0,Y79)), 0,IF(ISERROR(Y79), 0,Y79))), 0,IF(ISERROR(IF(ISERROR(Y79), 0,Y79)), 0,IF(ISERROR(Y79), 0,Y79))) -> 0 | G80: =IF(ISERROR(IF(ISERROR(IF(ISERROR(AB79), 0,AB79)), 0,IF(ISERROR(AB79), 0,AB79))), 0,IF(ISERROR(IF(ISERROR(AB79), 0,AB79)), 0,IF(ISERROR(AB79), 0,AB79))) -> 0 | H80: =IF(ISERROR(IF(ISERROR(IF(ISERROR($E$10-G80), 0,$E$10-G80)), 0,IF(ISERROR($E$10-G80), 0,$E$10-G80))), 0,IF(ISERROR(IF(ISERROR($E$10-G80), 0,$E$10-G80)), 0,IF(ISERROR($E$10-G80), 0,$E$10-G80))) -> 0.4 | J80: =IF(ISERROR(IF(ISERROR(AB80), 0,AB80)), 0,IF(ISERROR(AB80), 0,AB80)) -> 0 | K80: =IF(ISERROR(IF(ISERROR(ROUND($E$10-J80,3)), 0,ROUND($E$10-J80,3))), 0,IF(ISERROR(ROUND($E$10-J80,3)), 0,ROUND($E$10-J80,3))) -> 0.4 | M80: =IF(ISERROR(IF(ISERROR(IF(ISERROR(IF(ISERROR(AB81), 0,AB81)), 0,IF(ISERROR(AB81), 0,AB81))), 0,IF(ISERROR(IF(ISERROR(AB81), 0,AB81)), 0,IF(ISERROR(AB81), 0,AB81)))), 0,IF(ISERROR(IF(ISERROR(IF(ISERROR(AB81), 0,AB81)), 0,IF(ISERROR(AB81), 0,AB81))), 0,IF(ISERROR(IF(ISERROR(AB81), 0,AB81)), 0,IF(ISERROR(AB81), 0,AB81)))) -> 0 | N80: =IF(ISERROR(IF(ISERROR(IF(ISERROR(IF(ISERROR($E$10-M80), 0,$E$10-M80)), 0,IF(ISERROR($E$10-M80), 0,$E$10-M80))), 0,IF(ISERROR(IF(ISERROR($E$10-M80), 0,$E$10-M80)), 0,IF(ISERROR($E$10-M80), 0,$E$10-M80)))), 0,IF(ISERROR(IF(ISERROR(IF(ISERROR($E$10-M80), 0,$E$10-M80)), 0,IF(ISERROR($E$10-M80), 0,$E$10-M80))), 0,IF(ISERROR(IF(ISERROR($E$10-M80), 0,$E$10-M80)), 0,IF(ISERROR($E$10-M80), 0,$E$10-M80)))) -> 0.4 | O80: =A81 -> 271.5 | P80: =I80 -> 0 | Q80: =IF(ISERROR(IF(ISERROR(IF(AC79=W79,Q79+(AC79/T79),Q79+(AD79/T79))), 0,IF(AC79=W79,Q79+(AC79/T79),Q79+(AD79/T79)))), 0,IF(ISERROR(IF(AC79=W79,Q79+(AC79/T79),Q79+(AD79/T79))), 0,IF(AC79=W79,Q79+(AC79/T79),Q79+(AD79/T79)))) -> 0 | R80: =D80 -> 52 | S80: =IF(ISERROR(IF(ISERROR(Q80-R80), 0,Q80-R80)), 0,IF(ISERROR(Q80-R80), 0,Q80-R80)) -> -52 | T80: 0 | U80: =IF(ISERROR(IF(ISERROR(S80*T80), 0,S80*T80)), 0,IF(ISERROR(S80*T80), 0,S80*T80)) -> 0 | V80: 0 | W80: 14.2 | X80: 0.4 | Y80: =IF(ISERROR(IF(ISERROR(ABS(U80)), 0,ABS(U80))), 0,IF(ISERROR(ABS(U80)), 0,ABS(U80))) -> 0 | Z80: 0.15 | AA80: =IF(ISERROR(IF(ISERROR(ABS((Y80*X80)/W80)), 0,ABS((Y80*X80)/W80))), 0,IF(ISERROR(ABS((Y80*X80)/W80)), 0,ABS((Y80*X80)/W80))) -> 0 | AB80: =IF(ISERROR(IF(ISERROR(IF(AA80>Z80,Z80,AA80)), 0,IF(AA80>Z80,Z80,AA80))), 0,IF(ISERROR(IF(AA80>Z80,Z80,AA80)), 0,IF(AA80>Z80,Z80,AA80))) -> 0 | AC80: =IF(ISERROR(IF(ISERROR(IF(Y80>W80,W80,Y80)), 0,IF(Y80>W80,W80,Y80))), 0,IF(ISERROR(IF(Y80>W80,W80,Y80)), 0,IF(Y80>W80,W80,Y80))) -> 0 | AD80: =IF(ISERROR((AC80*AB80)/AA80), 0,(AC80*AB80)/AA80) -> 0 | AE80: =IF(ISERROR(IF(ISERROR(IF(AC80=W80,0,(AC80*AB80)/AA80)), 0,IF(AC80=W80,0,(AC80*AB80)/AA80))), 0,IF(ISERROR(IF(AC80=W80,0,(AC80*AB80)/AA80)), 0,IF(AC80=W80,0,(AC80*AB80)/AA80))) -> 0 | AF80: =IF(ISERROR(IF(AC80=60,Q80+(AC80/T80),Q80+(AD80/T80))), 0,IF(AC80=60,Q80+(AC80/T80),Q80+(AD80/T80))) -> 0
A81: =R308 -> 271.5 | B81: =IF(AND(C80<D80, E80>$E$7),"Ignore Drill Out Lead 1; rather pop out Lead 1 and LEAVE lead # 2 to "&K80&" inches.","") ->  | N81: =IF(ISERROR(IF(ISERROR((G80+J80+M80)/$E$10*$E$7), 0,(G80+J80+M80)/$E$10*$E$7)), 0,IF(ISERROR((G80+J80+M80)/$E$10*$E$7), 0,(G80+J80+M80)/$E$10*$E$7)) -> 0 | O81: =A81 -> 271.5 | P81: =L80 -> 0 | Q81: =IF(ISERROR(IF(AC80=W80,Q80+(AC80/T80),Q80+(AD80/T80))), 0,IF(AC80=W80,Q80+(AC80/T80),Q80+(AD80/T80))) -> 0 | R81: =D80 -> 52 | S81: =IF(ISERROR(Q81-R81), 0,Q81-R81) -> -52 | T81: 0 | U81: =IF(ISERROR(IF(ISERROR(IF(ISERROR(IF(ISERROR(S81*T81), 0,S81*T81)), 0,IF(ISERROR(S81*T81), 0,S81*T81))), 0,IF(ISERROR(IF(ISERROR(S81*T81), 0,S81*T81)), 0,IF(ISERROR(S81*T81), 0,S81*T81)))), 0,IF(ISERROR(IF(ISERROR(IF(ISERROR(S81*T81), 0,S81*T81)), 0,IF(ISERROR(S81*T81), 0,S81*T81))), 0,IF(ISERROR(IF(ISERROR(S81*T81), 0,S81*T81)), 0,IF(ISERROR(S81*T81), 0,S81*T81)))) -> 0 | V81: 0 | W81: 14.2 | X81: 0.4 | Y81: =IF(ISERROR(IF(ISERROR(IF(ISERROR(ABS(U81)), 0,ABS(U81))), 0,IF(ISERROR(ABS(U81)), 0,ABS(U81)))), 0,IF(ISERROR(IF(ISERROR(ABS(U81)), 0,ABS(U81))), 0,IF(ISERROR(ABS(U81)), 0,ABS(U81)))) -> 0 | Z81: 0.15 | AA81: =IF(ISERROR(IF(ISERROR(IF(ISERROR(ABS((Y81*X81)/W81)), 0,ABS((Y81*X81)/W81))), 0,IF(ISERROR(ABS((Y81*X81)/W81)), 0,ABS((Y81*X81)/W81)))), 0,IF(ISERROR(IF(ISERROR(ABS((Y81*X81)/W81)), 0,ABS((Y81*X81)/W81))), 0,IF(ISERROR(ABS((Y81*X81)/W81)), 0,ABS((Y81*X81)/W81)))) -> 0 | AB81: =IF(ISERROR(IF(ISERROR(IF(ISERROR(IF(AA81>Z81,Z81,AA81)), 0,IF(AA81>Z81,Z81,AA81))), 0,IF(ISERROR(IF(AA81>Z81,Z81,AA81)), 0,IF(AA81>Z81,Z81,AA81)))), 0,IF(ISERROR(IF(ISERROR(IF(AA81>Z81,Z81,AA81)), 0,IF(AA81>Z81,Z81,AA81))), 0,IF(ISERROR(IF(AA81>Z81,Z81,AA81)), 0,IF(AA81>Z81,Z81,AA81)))) -> 0 | AC81: =IF(ISERROR(IF(ISERROR(IF(ISERROR(IF(Y81>W81,W81,Y81)), 0,IF(Y81>W81,W81,Y81))), 0,IF(ISERROR(IF(Y81>W81,W81,Y81)), 0,IF(Y81>W81,W81,Y81)))), 0,IF(ISERROR(IF(ISERROR(IF(Y81>W81,W81,Y81)), 0,IF(Y81>W81,W81,Y81))), 0,IF(ISERROR(IF(Y81>W81,W81,Y81)), 0,IF(Y81>W81,W81,Y81)))) -> 0 | AD81: =IF(ISERROR((AC81*AB81)/AA81), "",(AC81*AB81)/AA81) ->  | AE81: =IF(ISERROR(IF(AC81=W81,0,(AC81*AB81)/AA81)), "",IF(AC81=W81,0,(AC81*AB81)/AA81)) ->  | AF81: =IF(ISERROR(IF(AC81=60,Q81+(AC81/T81),Q81+(AD81/T81))), "",IF(AC81=60,Q81+(AC81/T81),Q81+(AD81/T81))) -> 
C82: Test | D82: Target | F82: 1 | G82: dr_o | H82: Lv_in | I82: 2 | J82: dr_o | K82: Lv_in | L82: 3 | M82: dr_o | N82: Lv_in | O82: =A84 -> 296.75 | P82: =F83 -> 0 | Q82: =C83 -> 48 | R82: =D83 -> 52 | S82: =Q82-R82 -> -4 | T82: 0 | U82: =IF(ISERROR(IF(ISERROR(IF(ISERROR(IF(ISERROR(S82*T82), 0,S82*T82)), 0,IF(ISERROR(S82*T82), 0,S82*T82))), 0,IF(ISERROR(IF(ISERROR(S82*T82), 0,S82*T82)), 0,IF(ISERROR(S82*T82), 0,S82*T82)))), 0,IF(ISERROR(IF(ISERROR(IF(ISERROR(S82*T82), 0,S82*T82)), 0,IF(ISERROR(S82*T82), 0,S82*T82))), 0,IF(ISERROR(IF(ISERROR(S82*T82), 0,S82*T82)), 0,IF(ISERROR(S82*T82), 0,S82*T82)))) -> 0 | V82: 0 | W82: 14.2 | X82: 0.4 | Y82: =IF(ISERROR(IF(ISERROR(IF(ISERROR(ABS(U82)), 0,ABS(U82))), 0,IF(ISERROR(ABS(U82)), 0,ABS(U82)))), 0,IF(ISERROR(IF(ISERROR(ABS(U82)), 0,ABS(U82))), 0,IF(ISERROR(ABS(U82)), 0,ABS(U82)))) -> 0 | Z82: 0.15 | AA82: =IF(ISERROR(IF(ISERROR(IF(ISERROR(ABS((Y82*X82)/W82)), 0,ABS((Y82*X82)/W82))), 0,IF(ISERROR(ABS((Y82*X82)/W82)), 0,ABS((Y82*X82)/W82)))), 0,IF(ISERROR(IF(ISERROR(ABS((Y82*X82)/W82)), 0,ABS((Y82*X82)/W82))), 0,IF(ISERROR(ABS((Y82*X82)/W82)), 0,ABS((Y82*X82)/W82)))) -> 0 | AB82: =IF(ISERROR(IF(ISERROR(IF(ISERROR(IF(AA82>Z82,Z82,AA82)), 0,IF(AA82>Z82,Z82,AA82))), 0,IF(ISERROR(IF(AA82>Z82,Z82,AA82)), 0,IF(AA82>Z82,Z82,AA82)))), 0,IF(ISERROR(IF(ISERROR(IF(AA82>Z82,Z82,AA82)), 0,IF(AA82>Z82,Z82,AA82))), 0,IF(ISERROR(IF(AA82>Z82,Z82,AA82)), 0,IF(AA82>Z82,Z82,AA82)))) -> 0 | AC82: =IF(ISERROR(IF(ISERROR(IF(ISERROR(IF(Y82>W82,W82,Y82)), 0,IF(Y82>W82,W82,Y82))), 0,IF(ISERROR(IF(Y82>W82,W82,Y82)), 0,IF(Y82>W82,W82,Y82)))), 0,IF(ISERROR(IF(ISERROR(IF(Y82>W82,W82,Y82)), 0,IF(Y82>W82,W82,Y82))), 0,IF(ISERROR(IF(Y82>W82,W82,Y82)), 0,IF(Y82>W82,W82,Y82)))) -> 0 | AD82: =IF(ISERROR(IF(ISERROR(IF(ISERROR(IF(ISERROR((AC82*AB82)/AA82), 0,(AC82*AB82)/AA82)), 0,IF(ISERROR((AC82*AB82)/AA82), 0,(AC82*AB82)/AA82))), 0,IF(ISERROR(IF(ISERROR((AC82*AB82)/AA82), 0,(AC82*AB82)/AA82)), 0,IF(ISERROR((AC82*AB82)/AA82), 0,(AC82*AB82)/AA82)))), 0,IF(ISERROR(IF(ISERROR(IF(ISERROR((AC82*AB82)/AA82), 0,(AC82*AB82)/AA82)), 0,IF(ISERROR((AC82*AB82)/AA82), 0,(AC82*AB82)/AA82))), 0,IF(ISERROR(IF(ISERROR((AC82*AB82)/AA82), 0,(AC82*AB82)/AA82)), 0,IF(ISERROR((AC82*AB82)/AA82), 0,(AC82*AB82)/AA82)))) -> 0 | AE82: =IF(ISERROR(IF(ISERROR(IF(ISERROR(IF(AC82=W82,0,(AC82*AB82)/AA82)), 0,IF(AC82=W82,0,(AC82*AB82)/AA82))), 0,IF(ISERROR(IF(AC82=W82,0,(AC82*AB82)/AA82)), 0,IF(AC82=W82,0,(AC82*AB82)/AA82)))), 0,IF(ISERROR(IF(ISERROR(IF(AC82=W82,0,(AC82*AB82)/AA82)), 0,IF(AC82=W82,0,(AC82*AB82)/AA82))), 0,IF(ISERROR(IF(AC82=W82,0,(AC82*AB82)/AA82)), 0,IF(AC82=W82,0,(AC82*AB82)/AA82)))) -> 0 | AF82: =IF(ISERROR(IF(ISERROR(IF(AC82=60,Q82+(AC82/T82),Q82+(AD82/T82))), 0,IF(AC82=60,Q82+(AC82/T82),Q82+(AD82/T82)))), 0,IF(ISERROR(IF(AC82=60,Q82+(AC82/T82),Q82+(AD82/T82))), 0,IF(AC82=60,Q82+(AC82/T82),Q82+(AD82/T82)))) -> 0
A83: G | B83: 23 | C83: 48 | D83: 52 | E83: =IF(ISERROR(IF(ISERROR(IF(ISERROR(Y82), 0,Y82)), 0,IF(ISERROR(Y82), 0,Y82))), 0,IF(ISERROR(IF(ISERROR(Y82), 0,Y82)), 0,IF(ISERROR(Y82), 0,Y82))) -> 0 | G83: =IF(ISERROR(IF(ISERROR(IF(ISERROR(AB82), 0,AB82)), 0,IF(ISERROR(AB82), 0,AB82))), 0,IF(ISERROR(IF(ISERROR(AB82), 0,AB82)), 0,IF(ISERROR(AB82), 0,AB82))) -> 0 | H83: =IF(ISERROR(IF(ISERROR(IF(ISERROR($E$10-G83), 0,$E$10-G83)), 0,IF(ISERROR($E$10-G83), 0,$E$10-G83))), 0,IF(ISERROR(IF(ISERROR($E$10-G83), 0,$E$10-G83)), 0,IF(ISERROR($E$10-G83), 0,$E$10-G83))) -> 0.4 | J83: =IF(ISERROR(IF(ISERROR(AB83), 0,AB83)), 0,IF(ISERROR(AB83), 0,AB83)) -> 0 | K83: =IF(ISERROR(IF(ISERROR(ROUND($E$10-J83,3)), 0,ROUND($E$10-J83,3))), 0,IF(ISERROR(ROUND($E$10-J83,3)), 0,ROUND($E$10-J83,3))) -> 0.4 | M83: =IF(ISERROR(AB84), "",AB84) -> 0 | N83: =IF(ISERROR($E$10-M83), "",$E$10-M83) -> 0.4 | O83: =A84 -> 296.75 | P83: =I83 -> 0 | Q83: =IF(ISERROR(IF(ISERROR(IF(AC82=W82,Q82+(AC82/T82),Q82+(AD82/T82))), 0,IF(AC82=W82,Q82+(AC82/T82),Q82+(AD82/T82)))), 0,IF(ISERROR(IF(AC82=W82,Q82+(AC82/T82),Q82+(AD82/T82))), 0,IF(AC82=W82,Q82+(AC82/T82),Q82+(AD82/T82)))) -> 0 | R83: =D83 -> 52 | S83: =IF(ISERROR(IF(ISERROR(Q83-R83), 0,Q83-R83)), 0,IF(ISERROR(Q83-R83), 0,Q83-R83)) -> -52 | T83: 0 | U83: =IF(ISERROR(IF(ISERROR(S83*T83), 0,S83*T83)), 0,IF(ISERROR(S83*T83), 0,S83*T83)) -> 0 | V83: 0 | W83: 14.2 | X83: 0.4 | Y83: =IF(ISERROR(IF(ISERROR(ABS(U83)), 0,ABS(U83))), 0,IF(ISERROR(ABS(U83)), 0,ABS(U83))) -> 0 | Z83: 0.15 | AA83: =IF(ISERROR(IF(ISERROR(ABS((Y83*X83)/W83)), 0,ABS((Y83*X83)/W83))), 0,IF(ISERROR(ABS((Y83*X83)/W83)), 0,ABS((Y83*X83)/W83))) -> 0 | AB83: =IF(ISERROR(IF(ISERROR(IF(AA83>Z83,Z83,AA83)), 0,IF(AA83>Z83,Z83,AA83))), 0,IF(ISERROR(IF(AA83>Z83,Z83,AA83)), 0,IF(AA83>Z83,Z83,AA83))) -> 0 | AC83: =IF(ISERROR(IF(ISERROR(IF(Y83>W83,W83,Y83)), 0,IF(Y83>W83,W83,Y83))), 0,IF(ISERROR(IF(Y83>W83,W83,Y83)), 0,IF(Y83>W83,W83,Y83))) -> 0 | AD83: =IF(ISERROR((AC83*AB83)/AA83), "",(AC83*AB83)/AA83) ->  | AE83: =IF(ISERROR(IF(AC83=W83,0,(AC83*AB83)/AA83)), "",IF(AC83=W83,0,(AC83*AB83)/AA83)) ->  | AF83: =IF(ISERROR(IF(AC83=60,Q83+(AC83/T83),Q83+(AD83/T83))), "",IF(AC83=60,Q83+(AC83/T83),Q83+(AD83/T83))) -> 
A84: =F313 -> 296.75 | B84: =IF(AND(C83<D83, E83>$E$7),"Ignore Drill Out Lead 1; rather pop out Lead 1 and LEAVE lead # 2 to "&K83&" inches.","") ->  | N84: =IF(ISERROR(IF(ISERROR((G83+J83+M83)/$E$10*$E$7), 0,(G83+J83+M83)/$E$10*$E$7)), 0,IF(ISERROR((G83+J83+M83)/$E$10*$E$7), 0,(G83+J83+M83)/$E$10*$E$7)) -> 0 | O84: =A84 -> 296.75 | P84: =L83 -> 0 | Q84: =IF(ISERROR(IF(AC83=W83,Q83+(AC83/T83),Q83+(AD83/T83))), "",IF(AC83=W83,Q83+(AC83/T83),Q83+(AD83/T83))) ->  | R84: =D83 -> 52 | S84: =IF(ISERROR(Q84-R84), 0,Q84-R84) -> 0 | T84: 0 | U84: =IF(ISERROR(S84*T84), "",S84*T84) -> 0 | V84: 0 | W84: 14.2 | X84: 0.4 | Y84: =IF(ISERROR(ABS(U84)), "",ABS(U84)) -> 0 | Z84: 0.15 | AA84: =IF(ISERROR(ABS((Y84*X84)/W84)), "",ABS((Y84*X84)/W84)) -> 0 | AB84: =IF(ISERROR(IF(AA84>Z84,Z84,AA84)), "",IF(AA84>Z84,Z84,AA84)) -> 0 | AC84: =IF(ISERROR(IF(Y84>W84,W84,Y84)), "",IF(Y84>W84,W84,Y84)) -> 0 | AD84: =IF(ISERROR((AC84*AB84)/AA84), "",(AC84*AB84)/AA84) ->  | AE84: =IF(ISERROR(IF(AC84=W84,0,(AC84*AB84)/AA84)), "",IF(AC84=W84,0,(AC84*AB84)/AA84)) ->  | AF84: =IF(ISERROR(IF(AC84=60,Q84+(AC84/T84),Q84+(AD84/T84))), "",IF(AC84=60,Q84+(AC84/T84),Q84+(AD84/T84))) -> 
C85: Test | D85: Target | F85: 1 | G85: dr_o | H85: Lv_in | I85: 2 | J85: dr_o | K85: Lv_in | L85: 3 | M85: dr_o | N85: Lv_in | O85: =A87 -> 270.5 | P85: =F86 -> 0 | Q85: =C86 -> 52 | R85: =D86 -> 52 | S85: =Q85-R85 -> 0 | T85: 0 | U85: =IF(ISERROR(IF(ISERROR(IF(ISERROR(IF(ISERROR(S85*T85), 0,S85*T85)), 0,IF(ISERROR(S85*T85), 0,S85*T85))), 0,IF(ISERROR(IF(ISERROR(S85*T85), 0,S85*T85)), 0,IF(ISERROR(S85*T85), 0,S85*T85)))), 0,IF(ISERROR(IF(ISERROR(IF(ISERROR(S85*T85), 0,S85*T85)), 0,IF(ISERROR(S85*T85), 0,S85*T85))), 0,IF(ISERROR(IF(ISERROR(S85*T85), 0,S85*T85)), 0,IF(ISERROR(S85*T85), 0,S85*T85)))) -> 0 | V85: 0 | W85: 14.2 | X85: 0.4 | Y85: =IF(ISERROR(IF(ISERROR(IF(ISERROR(ABS(U85)), 0,ABS(U85))), 0,IF(ISERROR(ABS(U85)), 0,ABS(U85)))), 0,IF(ISERROR(IF(ISERROR(ABS(U85)), 0,ABS(U85))), 0,IF(ISERROR(ABS(U85)), 0,ABS(U85)))) -> 0 | Z85: 0.15 | AA85: =IF(ISERROR(IF(ISERROR(IF(ISERROR(ABS((Y85*X85)/W85)), 0,ABS((Y85*X85)/W85))), 0,IF(ISERROR(ABS((Y85*X85)/W85)), 0,ABS((Y85*X85)/W85)))), 0,IF(ISERROR(IF(ISERROR(ABS((Y85*X85)/W85)), 0,ABS((Y85*X85)/W85))), 0,IF(ISERROR(ABS((Y85*X85)/W85)), 0,ABS((Y85*X85)/W85)))) -> 0 | AB85: =IF(ISERROR(IF(ISERROR(IF(ISERROR(IF(AA85>Z85,Z85,AA85)), 0,IF(AA85>Z85,Z85,AA85))), 0,IF(ISERROR(IF(AA85>Z85,Z85,AA85)), 0,IF(AA85>Z85,Z85,AA85)))), 0,IF(ISERROR(IF(ISERROR(IF(AA85>Z85,Z85,AA85)), 0,IF(AA85>Z85,Z85,AA85))), 0,IF(ISERROR(IF(AA85>Z85,Z85,AA85)), 0,IF(AA85>Z85,Z85,AA85)))) -> 0 | AC85: =IF(ISERROR(IF(ISERROR(IF(ISERROR(IF(Y85>W85,W85,Y85)), 0,IF(Y85>W85,W85,Y85))), 0,IF(ISERROR(IF(Y85>W85,W85,Y85)), 0,IF(Y85>W85,W85,Y85)))), 0,IF(ISERROR(IF(ISERROR(IF(Y85>W85,W85,Y85)), 0,IF(Y85>W85,W85,Y85))), 0,IF(ISERROR(IF(Y85>W85,W85,Y85)), 0,IF(Y85>W85,W85,Y85)))) -> 0 | AD85: =IF(ISERROR(IF(ISERROR(IF(ISERROR(IF(ISERROR((AC85*AB85)/AA85), 0,(AC85*AB85)/AA85)), 0,IF(ISERROR((AC85*AB85)/AA85), 0,(AC85*AB85)/AA85))), 0,IF(ISERROR(IF(ISERROR((AC85*AB85)/AA85), 0,(AC85*AB85)/AA85)), 0,IF(ISERROR((AC85*AB85)/AA85), 0,(AC85*AB85)/AA85)))), 0,IF(ISERROR(IF(ISERROR(IF(ISERROR((AC85*AB85)/AA85), 0,(AC85*AB85)/AA85)), 0,IF(ISERROR((AC85*AB85)/AA85), 0,(AC85*AB85)/AA85))), 0,IF(ISERROR(IF(ISERROR((AC85*AB85)/AA85), 0,(AC85*AB85)/AA85)), 0,IF(ISERROR((AC85*AB85)/AA85), 0,(AC85*AB85)/AA85)))) -> 0 | AE85: =IF(ISERROR(IF(ISERROR(IF(ISERROR(IF(AC85=W85,0,(AC85*AB85)/AA85)), 0,IF(AC85=W85,0,(AC85*AB85)/AA85))), 0,IF(ISERROR(IF(AC85=W85,0,(AC85*AB85)/AA85)), 0,IF(AC85=W85,0,(AC85*AB85)/AA85)))), 0,IF(ISERROR(IF(ISERROR(IF(AC85=W85,0,(AC85*AB85)/AA85)), 0,IF(AC85=W85,0,(AC85*AB85)/AA85))), 0,IF(ISERROR(IF(AC85=W85,0,(AC85*AB85)/AA85)), 0,IF(AC85=W85,0,(AC85*AB85)/AA85)))) -> 0 | AF85: =IF(ISERROR(IF(ISERROR(IF(AC85=60,Q85+(AC85/T85),Q85+(AD85/T85))), 0,IF(AC85=60,Q85+(AC85/T85),Q85+(AD85/T85)))), 0,IF(ISERROR(IF(AC85=60,Q85+(AC85/T85),Q85+(AD85/T85))), 0,IF(AC85=60,Q85+(AC85/T85),Q85+(AD85/T85)))) -> 0
A86: G# | B86: 24 | C86: 52 | D86: 52 | E86: =IF(ISERROR(IF(ISERROR(IF(ISERROR(Y85), 0,Y85)), 0,IF(ISERROR(Y85), 0,Y85))), 0,IF(ISERROR(IF(ISERROR(Y85), 0,Y85)), 0,IF(ISERROR(Y85), 0,Y85))) -> 0 | G86: =IF(ISERROR(IF(ISERROR(IF(ISERROR(AB85), 0,AB85)), 0,IF(ISERROR(AB85), 0,AB85))), 0,IF(ISERROR(IF(ISERROR(AB85), 0,AB85)), 0,IF(ISERROR(AB85), 0,AB85))) -> 0 | H86: =IF(ISERROR(IF(ISERROR(IF(ISERROR($E$10-G86), 0,$E$10-G86)), 0,IF(ISERROR($E$10-G86), 0,$E$10-G86))), 0,IF(ISERROR(IF(ISERROR($E$10-G86), 0,$E$10-G86)), 0,IF(ISERROR($E$10-G86), 0,$E$10-G86))) -> 0.4 | J86: =IF(ISERROR(IF(ISERROR(AB86), 0,AB86)), 0,IF(ISERROR(AB86), 0,AB86)) -> 0 | K86: =IF(ISERROR(IF(ISERROR(ROUND($E$10-J86,3)), 0,ROUND($E$10-J86,3))), 0,IF(ISERROR(ROUND($E$10-J86,3)), 0,ROUND($E$10-J86,3))) -> 0.4 | M86: =IF(ISERROR(IF(ISERROR(IF(ISERROR(IF(ISERROR(AB87), 0,AB87)), 0,IF(ISERROR(AB87), 0,AB87))), 0,IF(ISERROR(IF(ISERROR(AB87), 0,AB87)), 0,IF(ISERROR(AB87), 0,AB87)))), 0,IF(ISERROR(IF(ISERROR(IF(ISERROR(AB87), 0,AB87)), 0,IF(ISERROR(AB87), 0,AB87))), 0,IF(ISERROR(IF(ISERROR(AB87), 0,AB87)), 0,IF(ISERROR(AB87), 0,AB87)))) -> 0 | N86: =IF(ISERROR(IF(ISERROR(IF(ISERROR(IF(ISERROR($E$10-M86), 0,$E$10-M86)), 0,IF(ISERROR($E$10-M86), 0,$E$10-M86))), 0,IF(ISERROR(IF(ISERROR($E$10-M86), 0,$E$10-M86)), 0,IF(ISERROR($E$10-M86), 0,$E$10-M86)))), 0,IF(ISERROR(IF(ISERROR(IF(ISERROR($E$10-M86), 0,$E$10-M86)), 0,IF(ISERROR($E$10-M86), 0,$E$10-M86))), 0,IF(ISERROR(IF(ISERROR($E$10-M86), 0,$E$10-M86)), 0,IF(ISERROR($E$10-M86), 0,$E$10-M86)))) -> 0.4 | O86: =A87 -> 270.5 | P86: =I86 -> 0 | Q86: =IF(ISERROR(IF(ISERROR(IF(AC85=W85,Q85+(AC85/T85),Q85+(AD85/T85))), 0,IF(AC85=W85,Q85+(AC85/T85),Q85+(AD85/T85)))), 0,IF(ISERROR(IF(AC85=W85,Q85+(AC85/T85),Q85+(AD85/T85))), 0,IF(AC85=W85,Q85+(AC85/T85),Q85+(AD85/T85)))) -> 0 | R86: =D86 -> 52 | S86: =IF(ISERROR(IF(ISERROR(Q86-R86), 0,Q86-R86)), 0,IF(ISERROR(Q86-R86), 0,Q86-R86)) -> -52 | T86: 0 | U86: =IF(ISERROR(IF(ISERROR(S86*T86), 0,S86*T86)), 0,IF(ISERROR(S86*T86), 0,S86*T86)) -> 0 | V86: 0 | W86: 14.2 | X86: 0.4 | Y86: =IF(ISERROR(IF(ISERROR(ABS(U86)), 0,ABS(U86))), 0,IF(ISERROR(ABS(U86)), 0,ABS(U86))) -> 0 | Z86: 0.15 | AA86: =IF(ISERROR(IF(ISERROR(ABS((Y86*X86)/W86)), 0,ABS((Y86*X86)/W86))), 0,IF(ISERROR(ABS((Y86*X86)/W86)), 0,ABS((Y86*X86)/W86))) -> 0 | AB86: =IF(ISERROR(IF(ISERROR(IF(AA86>Z86,Z86,AA86)), 0,IF(AA86>Z86,Z86,AA86))), 0,IF(ISERROR(IF(AA86>Z86,Z86,AA86)), 0,IF(AA86>Z86,Z86,AA86))) -> 0 | AC86: =IF(ISERROR(IF(ISERROR(IF(Y86>W86,W86,Y86)), 0,IF(Y86>W86,W86,Y86))), 0,IF(ISERROR(IF(Y86>W86,W86,Y86)), 0,IF(Y86>W86,W86,Y86))) -> 0 | AD86: =IF(ISERROR((AC86*AB86)/AA86), 0,(AC86*AB86)/AA86) -> 0 | AE86: =IF(ISERROR(IF(ISERROR(IF(AC86=W86,0,(AC86*AB86)/AA86)), 0,IF(AC86=W86,0,(AC86*AB86)/AA86))), 0,IF(ISERROR(IF(AC86=W86,0,(AC86*AB86)/AA86)), 0,IF(AC86=W86,0,(AC86*AB86)/AA86))) -> 0 | AF86: =IF(ISERROR(IF(AC86=60,Q86+(AC86/T86),Q86+(AD86/T86))), 0,IF(AC86=60,Q86+(AC86/T86),Q86+(AD86/T86))) -> 0
A87: =R309 -> 270.5 | B87: =IF(AND(C86<D86, E86>$E$7),"Ignore Drill Out Lead 1; rather pop out Lead 1 and LEAVE lead # 2 to "&K86&" inches.","") ->  | N87: =IF(ISERROR(IF(ISERROR((G86+J86+M86)/$E$10*$E$7), 0,(G86+J86+M86)/$E$10*$E$7)), 0,IF(ISERROR((G86+J86+M86)/$E$10*$E$7), 0,(G86+J86+M86)/$E$10*$E$7)) -> 0 | O87: =A87 -> 270.5 | P87: =L86 -> 0 | Q87: =IF(ISERROR(IF(AC86=W86,Q86+(AC86/T86),Q86+(AD86/T86))), 0,IF(AC86=W86,Q86+(AC86/T86),Q86+(AD86/T86))) -> 0 | R87: =D86 -> 52 | S87: =IF(ISERROR(Q87-R87), 0,Q87-R87) -> -52 | T87: 0 | U87: =IF(ISERROR(IF(ISERROR(IF(ISERROR(IF(ISERROR(S87*T87), 0,S87*T87)), 0,IF(ISERROR(S87*T87), 0,S87*T87))), 0,IF(ISERROR(IF(ISERROR(S87*T87), 0,S87*T87)), 0,IF(ISERROR(S87*T87), 0,S87*T87)))), 0,IF(ISERROR(IF(ISERROR(IF(ISERROR(S87*T87), 0,S87*T87)), 0,IF(ISERROR(S87*T87), 0,S87*T87))), 0,IF(ISERROR(IF(ISERROR(S87*T87), 0,S87*T87)), 0,IF(ISERROR(S87*T87), 0,S87*T87)))) -> 0 | V87: 0 | W87: 14.2 | X87: 0.4 | Y87: =IF(ISERROR(IF(ISERROR(IF(ISERROR(ABS(U87)), 0,ABS(U87))), 0,IF(ISERROR(ABS(U87)), 0,ABS(U87)))), 0,IF(ISERROR(IF(ISERROR(ABS(U87)), 0,ABS(U87))), 0,IF(ISERROR(ABS(U87)), 0,ABS(U87)))) -> 0 | Z87: 0.15 | AA87: =IF(ISERROR(IF(ISERROR(IF(ISERROR(ABS((Y87*X87)/W87)), 0,ABS((Y87*X87)/W87))), 0,IF(ISERROR(ABS((Y87*X87)/W87)), 0,ABS((Y87*X87)/W87)))), 0,IF(ISERROR(IF(ISERROR(ABS((Y87*X87)/W87)), 0,ABS((Y87*X87)/W87))), 0,IF(ISERROR(ABS((Y87*X87)/W87)), 0,ABS((Y87*X87)/W87)))) -> 0 | AB87: =IF(ISERROR(IF(ISERROR(IF(ISERROR(IF(AA87>Z87,Z87,AA87)), 0,IF(AA87>Z87,Z87,AA87))), 0,IF(ISERROR(IF(AA87>Z87,Z87,AA87)), 0,IF(AA87>Z87,Z87,AA87)))), 0,IF(ISERROR(IF(ISERROR(IF(AA87>Z87,Z87,AA87)), 0,IF(AA87>Z87,Z87,AA87))), 0,IF(ISERROR(IF(AA87>Z87,Z87,AA87)), 0,IF(AA87>Z87,Z87,AA87)))) -> 0 | AC87: =IF(ISERROR(IF(ISERROR(IF(ISERROR(IF(Y87>W87,W87,Y87)), 0,IF(Y87>W87,W87,Y87))), 0,IF(ISERROR(IF(Y87>W87,W87,Y87)), 0,IF(Y87>W87,W87,Y87)))), 0,IF(ISERROR(IF(ISERROR(IF(Y87>W87,W87,Y87)), 0,IF(Y87>W87,W87,Y87))), 0,IF(ISERROR(IF(Y87>W87,W87,Y87)), 0,IF(Y87>W87,W87,Y87)))) -> 0 | AD87: =IF(ISERROR((AC87*AB87)/AA87), "",(AC87*AB87)/AA87) ->  | AE87: =IF(ISERROR(IF(AC87=W87,0,(AC87*AB87)/AA87)), "",IF(AC87=W87,0,(AC87*AB87)/AA87)) ->  | AF87: =IF(ISERROR(IF(AC87=60,Q87+(AC87/T87),Q87+(AD87/T87))), "",IF(AC87=60,Q87+(AC87/T87),Q87+(AD87/T87))) -> 
C89: Gram Test | D89: Desired DW | E89: Total Lead to remove | F89: Location mm | G89: Drill Depth Inches | H89: Leave this much lead | I89: Location mm | J89: Depth | K89: Leave this much lead | L89: Location mm | M89: Depth | N89: Leave this much lead | Q89: delta DW | R89: ddw | S89: dif_dw | T89: key_ro | U89: reqd_ld | V89: key_div | W89: slugs | X89: lead_wid | Y89: reqd_ld | Z89: max_drill | AA89: tot_drill | AB89: act_drill | AC89: lead_out | AD89: fac | AE89: slug_rmn | AF89: delta_DW
B90: Key # | C90: DW | D90: DDW | E90: Ld. Out | F90: Lead 1 | G90: Drill Out | H90: LEAVE | I90: 2nd | J90: Drill | K90: LEAVE | L90: 3rd | M90: Drill | N90: LEAVE | O90: =A92 -> 295.3846154 | P90: =F91 -> 0 | Q90: =C91 -> 56 | R90: =D91 -> 51 | S90: =Q90-R90 -> 5 | T90: =IF(ISERROR(IF(ISERROR(IF(ISERROR(IF(ISERROR((O90/P90)), 0,(O90/P90))), 0,IF(ISERROR((O90/P90)), 0,(O90/P90)))), 0,IF(ISERROR(IF(ISERROR((O90/P90)), 0,(O90/P90))), 0,IF(ISERROR((O90/P90)), 0,(O90/P90))))), 0,IF(ISERROR(IF(ISERROR(IF(ISERROR((O90/P90)), 0,(O90/P90))), 0,IF(ISERROR((O90/P90)), 0,(O90/P90)))), 0,IF(ISERROR(IF(ISERROR((O90/P90)), 0,(O90/P90))), 0,IF(ISERROR((O90/P90)), 0,(O90/P90))))) -> 0 | U90: =IF(ISERROR(IF(ISERROR(IF(ISERROR(IF(ISERROR(S90*T90), 0,S90*T90)), 0,IF(ISERROR(S90*T90), 0,S90*T90))), 0,IF(ISERROR(IF(ISERROR(S90*T90), 0,S90*T90)), 0,IF(ISERROR(S90*T90), 0,S90*T90)))), 0,IF(ISERROR(IF(ISERROR(IF(ISERROR(S90*T90), 0,S90*T90)), 0,IF(ISERROR(S90*T90), 0,S90*T90))), 0,IF(ISERROR(IF(ISERROR(S90*T90), 0,S90*T90)), 0,IF(ISERROR(S90*T90), 0,S90*T90)))) -> 0 | V90: =IF(ISERROR(IF(ISERROR(IF(ISERROR(IF(ISERROR(O90/T90), 0,O90/T90)), 0,IF(ISERROR(O90/T90), 0,O90/T90))), 0,IF(ISERROR(IF(ISERROR(O90/T90), 0,O90/T90)), 0,IF(ISERROR(O90/T90), 0,O90/T90)))), 0,IF(ISERROR(IF(ISERROR(IF(ISERROR(O90/T90), 0,O90/T90)), 0,IF(ISERROR(O90/T90), 0,O90/T90))), 0,IF(ISERROR(IF(ISERROR(O90/T90), 0,O90/T90)), 0,IF(ISERROR(O90/T90), 0,O90/T90)))) -> 0 | W90: =$E$7 -> 14.2 | X90: =$E$10 -> 0.4 | Y90: =IF(ISERROR(IF(ISERROR(IF(ISERROR(ABS(U90)), 0,ABS(U90))), 0,IF(ISERROR(ABS(U90)), 0,ABS(U90)))), 0,IF(ISERROR(IF(ISERROR(ABS(U90)), 0,ABS(U90))), 0,IF(ISERROR(ABS(U90)), 0,ABS(U90)))) -> 0 | Z90: =$X$14-$G$11 -> 0.15 | AA90: =IF(ISERROR(IF(ISERROR(IF(ISERROR(ABS((Y90*X90)/W90)), 0,ABS((Y90*X90)/W90))), 0,IF(ISERROR(ABS((Y90*X90)/W90)), 0,ABS((Y90*X90)/W90)))), 0,IF(ISERROR(IF(ISERROR(ABS((Y90*X90)/W90)), 0,ABS((Y90*X90)/W90))), 0,IF(ISERROR(ABS((Y90*X90)/W90)), 0,ABS((Y90*X90)/W90)))) -> 0 | AB90: =IF(ISERROR(IF(ISERROR(IF(ISERROR(IF(AA90>Z90,Z90,AA90)), 0,IF(AA90>Z90,Z90,AA90))), 0,IF(ISERROR(IF(AA90>Z90,Z90,AA90)), 0,IF(AA90>Z90,Z90,AA90)))), 0,IF(ISERROR(IF(ISERROR(IF(AA90>Z90,Z90,AA90)), 0,IF(AA90>Z90,Z90,AA90))), 0,IF(ISERROR(IF(AA90>Z90,Z90,AA90)), 0,IF(AA90>Z90,Z90,AA90)))) -> 0 | AC90: =IF(ISERROR(IF(ISERROR(IF(ISERROR(IF(Y90>W90,W90,Y90)), 0,IF(Y90>W90,W90,Y90))), 0,IF(ISERROR(IF(Y90>W90,W90,Y90)), 0,IF(Y90>W90,W90,Y90)))), 0,IF(ISERROR(IF(ISERROR(IF(Y90>W90,W90,Y90)), 0,IF(Y90>W90,W90,Y90))), 0,IF(ISERROR(IF(Y90>W90,W90,Y90)), 0,IF(Y90>W90,W90,Y90)))) -> 0 | AD90: =IF(ISERROR(IF(ISERROR(IF(ISERROR(IF(ISERROR((AC90*AB90)/AA90), 0,(AC90*AB90)/AA90)), 0,IF(ISERROR((AC90*AB90)/AA90), 0,(AC90*AB90)/AA90))), 0,IF(ISERROR(IF(ISERROR((AC90*AB90)/AA90), 0,(AC90*AB90)/AA90)), 0,IF(ISERROR((AC90*AB90)/AA90), 0,(AC90*AB90)/AA90)))), 0,IF(ISERROR(IF(ISERROR(IF(ISERROR((AC90*AB90)/AA90), 0,(AC90*AB90)/AA90)), 0,IF(ISERROR((AC90*AB90)/AA90), 0,(AC90*AB90)/AA90))), 0,IF(ISERROR(IF(ISERROR((AC90*AB90)/AA90), 0,(AC90*AB90)/AA90)), 0,IF(ISERROR((AC90*AB90)/AA90), 0,(AC90*AB90)/AA90)))) -> 0 | AE90: =IF(ISERROR(IF(ISERROR(IF(ISERROR(IF(AC90=W90,0,(AC90*AB90)/AA90)), 0,IF(AC90=W90,0,(AC90*AB90)/AA90))), 0,IF(ISERROR(IF(AC90=W90,0,(AC90*AB90)/AA90)), 0,IF(AC90=W90,0,(AC90*AB90)/AA90)))), 0,IF(ISERROR(IF(ISERROR(IF(AC90=W90,0,(AC90*AB90)/AA90)), 0,IF(AC90=W90,0,(AC90*AB90)/AA90))), 0,IF(ISERROR(IF(AC90=W90,0,(AC90*AB90)/AA90)), 0,IF(AC90=W90,0,(AC90*AB90)/AA90)))) -> 0 | AF90: =IF(ISERROR(IF(ISERROR(IF(AC90=60,Q90+(AC90/T90),Q90+(AD90/T90))), 0,IF(AC90=60,Q90+(AC90/T90),Q90+(AD90/T90)))), 0,IF(ISERROR(IF(AC90=60,Q90+(AC90/T90),Q90+(AD90/T90))), 0,IF(AC90=60,Q90+(AC90/T90),Q90+(AD90/T90)))) -> 0
A91: A | B91: 25 | C91: 56 | D91: 51 | E91: =IF(ISERROR(IF(ISERROR(IF(ISERROR(Y90), 0,Y90)), 0,IF(ISERROR(Y90), 0,Y90))), 0,IF(ISERROR(IF(ISERROR(Y90), 0,Y90)), 0,IF(ISERROR(Y90), 0,Y90))) -> 0 | G91: =IF(ISERROR(IF(ISERROR(IF(ISERROR(AB90), 0,AB90)), 0,IF(ISERROR(AB90), 0,AB90))), 0,IF(ISERROR(IF(ISERROR(AB90), 0,AB90)), 0,IF(ISERROR(AB90), 0,AB90))) -> 0 | H91: =IF(ISERROR(IF(ISERROR(IF(ISERROR($E$10-G91), 0,$E$10-G91)), 0,IF(ISERROR($E$10-G91), 0,$E$10-G91))), 0,IF(ISERROR(IF(ISERROR($E$10-G91), 0,$E$10-G91)), 0,IF(ISERROR($E$10-G91), 0,$E$10-G91))) -> 0.4 | J91: =IF(ISERROR(IF(ISERROR(AB91), 0,AB91)), 0,IF(ISERROR(AB91), 0,AB91)) -> 0 | K91: =IF(ISERROR(IF(ISERROR(ROUND($E$10-J91,3)), 0,ROUND($E$10-J91,3))), 0,IF(ISERROR(ROUND($E$10-J91,3)), 0,ROUND($E$10-J91,3))) -> 0.4 | M91: =IF(ISERROR(AB92), "",AB92) -> 0 | N91: =IF(ISERROR($E$10-M91), "",$E$10-M91) -> 0.4 | O91: =A92 -> 295.3846154 | P91: =I91 -> 0 | Q91: =IF(ISERROR(IF(ISERROR(IF(AC90=W90,Q90+(AC90/T90),Q90+(AD90/T90))), 0,IF(AC90=W90,Q90+(AC90/T90),Q90+(AD90/T90)))), 0,IF(ISERROR(IF(AC90=W90,Q90+(AC90/T90),Q90+(AD90/T90))), 0,IF(AC90=W90,Q90+(AC90/T90),Q90+(AD90/T90)))) -> 0 | R91: =D91 -> 51 | S91: =IF(ISERROR(IF(ISERROR(Q91-R91), 0,Q91-R91)), 0,IF(ISERROR(Q91-R91), 0,Q91-R91)) -> -51 | T91: =IF(ISERROR(IF(ISERROR(IF(ISERROR(IF(ISERROR((O91/P91)), 0,(O91/P91))), 0,IF(ISERROR((O91/P91)), 0,(O91/P91)))), 0,IF(ISERROR(IF(ISERROR((O91/P91)), 0,(O91/P91))), 0,IF(ISERROR((O91/P91)), 0,(O91/P91))))), 0,IF(ISERROR(IF(ISERROR(IF(ISERROR((O91/P91)), 0,(O91/P91))), 0,IF(ISERROR((O91/P91)), 0,(O91/P91)))), 0,IF(ISERROR(IF(ISERROR((O91/P91)), 0,(O91/P91))), 0,IF(ISERROR((O91/P91)), 0,(O91/P91))))) -> 0 | U91: =IF(ISERROR(IF(ISERROR(S91*T91), 0,S91*T91)), 0,IF(ISERROR(S91*T91), 0,S91*T91)) -> 0 | V91: =IF(ISERROR(IF(ISERROR(IF(ISERROR(IF(ISERROR(O91/T91), 0,O91/T91)), 0,IF(ISERROR(O91/T91), 0,O91/T91))), 0,IF(ISERROR(IF(ISERROR(O91/T91), 0,O91/T91)), 0,IF(ISERROR(O91/T91), 0,O91/T91)))), 0,IF(ISERROR(IF(ISERROR(IF(ISERROR(O91/T91), 0,O91/T91)), 0,IF(ISERROR(O91/T91), 0,O91/T91))), 0,IF(ISERROR(IF(ISERROR(O91/T91), 0,O91/T91)), 0,IF(ISERROR(O91/T91), 0,O91/T91)))) -> 0 | W91: 14.2 | X91: 0.4 | Y91: =IF(ISERROR(IF(ISERROR(ABS(U91)), 0,ABS(U91))), 0,IF(ISERROR(ABS(U91)), 0,ABS(U91))) -> 0 | Z91: 0.15 | AA91: =IF(ISERROR(IF(ISERROR(ABS((Y91*X91)/W91)), 0,ABS((Y91*X91)/W91))), 0,IF(ISERROR(ABS((Y91*X91)/W91)), 0,ABS((Y91*X91)/W91))) -> 0 | AB91: =IF(ISERROR(IF(ISERROR(IF(AA91>Z91,Z91,AA91)), 0,IF(AA91>Z91,Z91,AA91))), 0,IF(ISERROR(IF(AA91>Z91,Z91,AA91)), 0,IF(AA91>Z91,Z91,AA91))) -> 0 | AC91: =IF(ISERROR(IF(ISERROR(IF(Y91>W91,W91,Y91)), 0,IF(Y91>W91,W91,Y91))), 0,IF(ISERROR(IF(Y91>W91,W91,Y91)), 0,IF(Y91>W91,W91,Y91))) -> 0 | AD91: =IF(ISERROR((AC91*AB91)/AA91), "",(AC91*AB91)/AA91) ->  | AE91: =IF(ISERROR(IF(AC91=W91,0,(AC91*AB91)/AA91)), "",IF(AC91=W91,0,(AC91*AB91)/AA91)) ->  | AF91: =IF(ISERROR(IF(AC91=60,Q91+(AC91/T91),Q91+(AD91/T91))), "",IF(AC91=60,Q91+(AC91/T91),Q91+(AD91/T91))) -> 
A92: =F314 -> 295.3846154 | B92: =IF(AND(C91<D91, E91>$E$7),"Ignore Drill Out Lead 1; rather pop out Lead 1 and LEAVE lead # 2 to "&K91&" inches.","") ->  | N92: =IF(ISERROR(IF(ISERROR((G91+J91+M91)/$E$10*$E$7), 0,(G91+J91+M91)/$E$10*$E$7)), 0,IF(ISERROR((G91+J91+M91)/$E$10*$E$7), 0,(G91+J91+M91)/$E$10*$E$7)) -> 0 | O92: =A92 -> 295.3846154 | P92: =L91 -> 0 | Q92: =IF(ISERROR(IF(AC91=W91,Q91+(AC91/T91),Q91+(AD91/T91))), "",IF(AC91=W91,Q91+(AC91/T91),Q91+(AD91/T91))) ->  | R92: =D91 -> 51 | S92: =IF(ISERROR(Q92-R92), 0,Q92-R92) -> 0 | T92: =IF(ISERROR((O92/P92)), 0,(O92/P92)) -> 0 | U92: =IF(ISERROR(S92*T92), "",S92*T92) -> 0 | V92: =IF(ISERROR(IF(ISERROR(O92/T92), 0,O92/T92)), 0,IF(ISERROR(O92/T92), 0,O92/T92)) -> 0 | W92: 14.2 | X92: 0.4 | Y92: =IF(ISERROR(ABS(U92)), "",ABS(U92)) -> 0 | Z92: 0.15 | AA92: =IF(ISERROR(ABS((Y92*X92)/W92)), "",ABS((Y92*X92)/W92)) -> 0 | AB92: =IF(ISERROR(IF(AA92>Z92,Z92,AA92)), "",IF(AA92>Z92,Z92,AA92)) -> 0 | AC92: =IF(ISERROR(IF(Y92>W92,W92,Y92)), "",IF(Y92>W92,W92,Y92)) -> 0 | AD92: =IF(ISERROR((AC92*AB92)/AA92), "",(AC92*AB92)/AA92) ->  | AE92: =IF(ISERROR(IF(AC92=W92,0,(AC92*AB92)/AA92)), "",IF(AC92=W92,0,(AC92*AB92)/AA92)) ->  | AF92: =IF(ISERROR(IF(AC92=60,Q92+(AC92/T92),Q92+(AD92/T92))), "",IF(AC92=60,Q92+(AC92/T92),Q92+(AD92/T92))) -> 
C93: Test | D93: Target | F93: 1 | G93: dr_o | H93: Lv_in | I93: 2 | J93: dr_o | K93: Lv_in | L93: 3 | M93: dr_o | N93: Lv_in | O93: =A95 -> 269.5 | P93: =F94 -> 0 | Q93: =C94 -> 56 | R93: =D94 -> 51 | S93: =Q93-R93 -> 5 | T93: =IF(ISERROR(IF(ISERROR(IF(ISERROR(IF(ISERROR((O93/P93)), 0,(O93/P93))), 0,IF(ISERROR((O93/P93)), 0,(O93/P93)))), 0,IF(ISERROR(IF(ISERROR((O93/P93)), 0,(O93/P93))), 0,IF(ISERROR((O93/P93)), 0,(O93/P93))))), 0,IF(ISERROR(IF(ISERROR(IF(ISERROR((O93/P93)), 0,(O93/P93))), 0,IF(ISERROR((O93/P93)), 0,(O93/P93)))), 0,IF(ISERROR(IF(ISERROR((O93/P93)), 0,(O93/P93))), 0,IF(ISERROR((O93/P93)), 0,(O93/P93))))) -> 0 | U93: =IF(ISERROR(IF(ISERROR(IF(ISERROR(IF(ISERROR(S93*T93), 0,S93*T93)), 0,IF(ISERROR(S93*T93), 0,S93*T93))), 0,IF(ISERROR(IF(ISERROR(S93*T93), 0,S93*T93)), 0,IF(ISERROR(S93*T93), 0,S93*T93)))), 0,IF(ISERROR(IF(ISERROR(IF(ISERROR(S93*T93), 0,S93*T93)), 0,IF(ISERROR(S93*T93), 0,S93*T93))), 0,IF(ISERROR(IF(ISERROR(S93*T93), 0,S93*T93)), 0,IF(ISERROR(S93*T93), 0,S93*T93)))) -> 0 | V93: =IF(ISERROR(IF(ISERROR(IF(ISERROR(IF(ISERROR(O93/T93), 0,O93/T93)), 0,IF(ISERROR(O93/T93), 0,O93/T93))), 0,IF(ISERROR(IF(ISERROR(O93/T93), 0,O93/T93)), 0,IF(ISERROR(O93/T93), 0,O93/T93)))), 0,IF(ISERROR(IF(ISERROR(IF(ISERROR(O93/T93), 0,O93/T93)), 0,IF(ISERROR(O93/T93), 0,O93/T93))), 0,IF(ISERROR(IF(ISERROR(O93/T93), 0,O93/T93)), 0,IF(ISERROR(O93/T93), 0,O93/T93)))) -> 0 | W93: 14.2 | X93: 0.4 | Y93: =IF(ISERROR(IF(ISERROR(IF(ISERROR(ABS(U93)), 0,ABS(U93))), 0,IF(ISERROR(ABS(U93)), 0,ABS(U93)))), 0,IF(ISERROR(IF(ISERROR(ABS(U93)), 0,ABS(U93))), 0,IF(ISERROR(ABS(U93)), 0,ABS(U93)))) -> 0 | Z93: 0.15 | AA93: =IF(ISERROR(IF(ISERROR(IF(ISERROR(ABS((Y93*X93)/W93)), 0,ABS((Y93*X93)/W93))), 0,IF(ISERROR(ABS((Y93*X93)/W93)), 0,ABS((Y93*X93)/W93)))), 0,IF(ISERROR(IF(ISERROR(ABS((Y93*X93)/W93)), 0,ABS((Y93*X93)/W93))), 0,IF(ISERROR(ABS((Y93*X93)/W93)), 0,ABS((Y93*X93)/W93)))) -> 0 | AB93: =IF(ISERROR(IF(ISERROR(IF(ISERROR(IF(AA93>Z93,Z93,AA93)), 0,IF(AA93>Z93,Z93,AA93))), 0,IF(ISERROR(IF(AA93>Z93,Z93,AA93)), 0,IF(AA93>Z93,Z93,AA93)))), 0,IF(ISERROR(IF(ISERROR(IF(AA93>Z93,Z93,AA93)), 0,IF(AA93>Z93,Z93,AA93))), 0,IF(ISERROR(IF(AA93>Z93,Z93,AA93)), 0,IF(AA93>Z93,Z93,AA93)))) -> 0 | AC93: =IF(ISERROR(IF(ISERROR(IF(ISERROR(IF(Y93>W93,W93,Y93)), 0,IF(Y93>W93,W93,Y93))), 0,IF(ISERROR(IF(Y93>W93,W93,Y93)), 0,IF(Y93>W93,W93,Y93)))), 0,IF(ISERROR(IF(ISERROR(IF(Y93>W93,W93,Y93)), 0,IF(Y93>W93,W93,Y93))), 0,IF(ISERROR(IF(Y93>W93,W93,Y93)), 0,IF(Y93>W93,W93,Y93)))) -> 0 | AD93: =IF(ISERROR(IF(ISERROR(IF(ISERROR(IF(ISERROR((AC93*AB93)/AA93), 0,(AC93*AB93)/AA93)), 0,IF(ISERROR((AC93*AB93)/AA93), 0,(AC93*AB93)/AA93))), 0,IF(ISERROR(IF(ISERROR((AC93*AB93)/AA93), 0,(AC93*AB93)/AA93)), 0,IF(ISERROR((AC93*AB93)/AA93), 0,(AC93*AB93)/AA93)))), 0,IF(ISERROR(IF(ISERROR(IF(ISERROR((AC93*AB93)/AA93), 0,(AC93*AB93)/AA93)), 0,IF(ISERROR((AC93*AB93)/AA93), 0,(AC93*AB93)/AA93))), 0,IF(ISERROR(IF(ISERROR((AC93*AB93)/AA93), 0,(AC93*AB93)/AA93)), 0,IF(ISERROR((AC93*AB93)/AA93), 0,(AC93*AB93)/AA93)))) -> 0 | AE93: =IF(ISERROR(IF(ISERROR(IF(ISERROR(IF(AC93=W93,0,(AC93*AB93)/AA93)), 0,IF(AC93=W93,0,(AC93*AB93)/AA93))), 0,IF(ISERROR(IF(AC93=W93,0,(AC93*AB93)/AA93)), 0,IF(AC93=W93,0,(AC93*AB93)/AA93)))), 0,IF(ISERROR(IF(ISERROR(IF(AC93=W93,0,(AC93*AB93)/AA93)), 0,IF(AC93=W93,0,(AC93*AB93)/AA93))), 0,IF(ISERROR(IF(AC93=W93,0,(AC93*AB93)/AA93)), 0,IF(AC93=W93,0,(AC93*AB93)/AA93)))) -> 0 | AF93: =IF(ISERROR(IF(ISERROR(IF(AC93=60,Q93+(AC93/T93),Q93+(AD93/T93))), 0,IF(AC93=60,Q93+(AC93/T93),Q93+(AD93/T93)))), 0,IF(ISERROR(IF(AC93=60,Q93+(AC93/T93),Q93+(AD93/T93))), 0,IF(AC93=60,Q93+(AC93/T93),Q93+(AD93/T93)))) -> 0
A94: A# | B94: 26 | C94: 56 | D94: 51 | E94: =IF(ISERROR(IF(ISERROR(IF(ISERROR(Y93), 0,Y93)), 0,IF(ISERROR(Y93), 0,Y93))), 0,IF(ISERROR(IF(ISERROR(Y93), 0,Y93)), 0,IF(ISERROR(Y93), 0,Y93))) -> 0 | G94: =IF(ISERROR(IF(ISERROR(IF(ISERROR(AB93), 0,AB93)), 0,IF(ISERROR(AB93), 0,AB93))), 0,IF(ISERROR(IF(ISERROR(AB93), 0,AB93)), 0,IF(ISERROR(AB93), 0,AB93))) -> 0 | H94: =IF(ISERROR(IF(ISERROR(IF(ISERROR($E$10-G94), 0,$E$10-G94)), 0,IF(ISERROR($E$10-G94), 0,$E$10-G94))), 0,IF(ISERROR(IF(ISERROR($E$10-G94), 0,$E$10-G94)), 0,IF(ISERROR($E$10-G94), 0,$E$10-G94))) -> 0.4 | J94: =IF(ISERROR(IF(ISERROR(AB94), 0,AB94)), 0,IF(ISERROR(AB94), 0,AB94)) -> 0 | K94: =IF(ISERROR(IF(ISERROR(ROUND($E$10-J94,3)), 0,ROUND($E$10-J94,3))), 0,IF(ISERROR(ROUND($E$10-J94,3)), 0,ROUND($E$10-J94,3))) -> 0.4 | M94: =IF(ISERROR(AB95), "",AB95) -> 0 | N94: =IF(ISERROR($E$10-M94), "",$E$10-M94) -> 0.4 | O94: =A95 -> 269.5 | P94: =I94 -> 0 | Q94: =IF(ISERROR(IF(ISERROR(IF(AC93=W93,Q93+(AC93/T93),Q93+(AD93/T93))), 0,IF(AC93=W93,Q93+(AC93/T93),Q93+(AD93/T93)))), 0,IF(ISERROR(IF(AC93=W93,Q93+(AC93/T93),Q93+(AD93/T93))), 0,IF(AC93=W93,Q93+(AC93/T93),Q93+(AD93/T93)))) -> 0 | R94: =D94 -> 51 | S94: =IF(ISERROR(IF(ISERROR(Q94-R94), 0,Q94-R94)), 0,IF(ISERROR(Q94-R94), 0,Q94-R94)) -> -51 | T94: =IF(ISERROR(IF(ISERROR(IF(ISERROR(IF(ISERROR((O94/P94)), 0,(O94/P94))), 0,IF(ISERROR((O94/P94)), 0,(O94/P94)))), 0,IF(ISERROR(IF(ISERROR((O94/P94)), 0,(O94/P94))), 0,IF(ISERROR((O94/P94)), 0,(O94/P94))))), 0,IF(ISERROR(IF(ISERROR(IF(ISERROR((O94/P94)), 0,(O94/P94))), 0,IF(ISERROR((O94/P94)), 0,(O94/P94)))), 0,IF(ISERROR(IF(ISERROR((O94/P94)), 0,(O94/P94))), 0,IF(ISERROR((O94/P94)), 0,(O94/P94))))) -> 0 | U94: =IF(ISERROR(IF(ISERROR(S94*T94), 0,S94*T94)), 0,IF(ISERROR(S94*T94), 0,S94*T94)) -> 0 | V94: 0 | W94: 14.2 | X94: 0.4 | Y94: =IF(ISERROR(IF(ISERROR(ABS(U94)), 0,ABS(U94))), 0,IF(ISERROR(ABS(U94)), 0,ABS(U94))) -> 0 | Z94: 0.15 | AA94: =IF(ISERROR(IF(ISERROR(ABS((Y94*X94)/W94)), 0,ABS((Y94*X94)/W94))), 0,IF(ISERROR(ABS((Y94*X94)/W94)), 0,ABS((Y94*X94)/W94))) -> 0 | AB94: =IF(ISERROR(IF(ISERROR(IF(AA94>Z94,Z94,AA94)), 0,IF(AA94>Z94,Z94,AA94))), 0,IF(ISERROR(IF(AA94>Z94,Z94,AA94)), 0,IF(AA94>Z94,Z94,AA94))) -> 0 | AC94: =IF(ISERROR(IF(ISERROR(IF(Y94>W94,W94,Y94)), 0,IF(Y94>W94,W94,Y94))), 0,IF(ISERROR(IF(Y94>W94,W94,Y94)), 0,IF(Y94>W94,W94,Y94))) -> 0 | AD94: =IF(ISERROR((AC94*AB94)/AA94), "",(AC94*AB94)/AA94) ->  | AE94: =IF(ISERROR(IF(AC94=W94,0,(AC94*AB94)/AA94)), "",IF(AC94=W94,0,(AC94*AB94)/AA94)) ->  | AF94: =IF(ISERROR(IF(AC94=60,Q94+(AC94/T94),Q94+(AD94/T94))), "",IF(AC94=60,Q94+(AC94/T94),Q94+(AD94/T94))) -> 
A95: =R310 -> 269.5 | B95: =IF(AND(C94<D94, E94>$E$7),"Ignore Drill Out Lead 1; rather pop out Lead 1 and LEAVE lead # 2 to "&K94&" inches.","") ->  | N95: =IF(ISERROR(IF(ISERROR((G94+J94+M94)/$E$10*$E$7), 0,(G94+J94+M94)/$E$10*$E$7)), 0,IF(ISERROR((G94+J94+M94)/$E$10*$E$7), 0,(G94+J94+M94)/$E$10*$E$7)) -> 0 | O95: =A95 -> 269.5 | P95: =L94 -> 0 | Q95: =IF(ISERROR(IF(AC94=W94,Q94+(AC94/T94),Q94+(AD94/T94))), "",IF(AC94=W94,Q94+(AC94/T94),Q94+(AD94/T94))) ->  | R95: =D94 -> 51 | S95: =IF(ISERROR(Q95-R95), 0,Q95-R95) -> 0 | T95: =IF(ISERROR(IF(ISERROR(IF(ISERROR((O95/P95)), 0,(O95/P95))), 0,IF(ISERROR((O95/P95)), 0,(O95/P95)))), 0,IF(ISERROR(IF(ISERROR((O95/P95)), 0,(O95/P95))), 0,IF(ISERROR((O95/P95)), 0,(O95/P95)))) -> 0 | U95: =IF(ISERROR(S95*T95), "",S95*T95) -> 0 | V95: 0 | W95: 14.2 | X95: 0.4 | Y95: =IF(ISERROR(ABS(U95)), "",ABS(U95)) -> 0 | Z95: 0.15 | AA95: =IF(ISERROR(ABS((Y95*X95)/W95)), "",ABS((Y95*X95)/W95)) -> 0 | AB95: =IF(ISERROR(IF(AA95>Z95,Z95,AA95)), "",IF(AA95>Z95,Z95,AA95)) -> 0 | AC95: =IF(ISERROR(IF(Y95>W95,W95,Y95)), "",IF(Y95>W95,W95,Y95)) -> 0 | AD95: =IF(ISERROR((AC95*AB95)/AA95), "",(AC95*AB95)/AA95) ->  | AE95: =IF(ISERROR(IF(AC95=W95,0,(AC95*AB95)/AA95)), "",IF(AC95=W95,0,(AC95*AB95)/AA95)) ->  | AF95: =IF(ISERROR(IF(AC95=60,Q95+(AC95/T95),Q95+(AD95/T95))), "",IF(AC95=60,Q95+(AC95/T95),Q95+(AD95/T95))) -> 
C96: Test | D96: Target | F96: 1 | G96: dr_o | H96: Lv_in | I96: 2 | J96: dr_o | K96: Lv_in | L96: 3 | M96: dr_o | N96: Lv_in | O96: =A98 -> 294.0192308 | P96: =F97 -> 0 | Q96: =C97 -> 56 | R96: =D97 -> 51 | S96: =Q96-R96 -> 5 | T96: =IF(ISERROR(IF(ISERROR(IF(ISERROR(IF(ISERROR((O96/P96)), 0,(O96/P96))), 0,IF(ISERROR((O96/P96)), 0,(O96/P96)))), 0,IF(ISERROR(IF(ISERROR((O96/P96)), 0,(O96/P96))), 0,IF(ISERROR((O96/P96)), 0,(O96/P96))))), 0,IF(ISERROR(IF(ISERROR(IF(ISERROR((O96/P96)), 0,(O96/P96))), 0,IF(ISERROR((O96/P96)), 0,(O96/P96)))), 0,IF(ISERROR(IF(ISERROR((O96/P96)), 0,(O96/P96))), 0,IF(ISERROR((O96/P96)), 0,(O96/P96))))) -> 0 | U96: =IF(ISERROR(IF(ISERROR(IF(ISERROR(IF(ISERROR(S96*T96), 0,S96*T96)), 0,IF(ISERROR(S96*T96), 0,S96*T96))), 0,IF(ISERROR(IF(ISERROR(S96*T96), 0,S96*T96)), 0,IF(ISERROR(S96*T96), 0,S96*T96)))), 0,IF(ISERROR(IF(ISERROR(IF(ISERROR(S96*T96), 0,S96*T96)), 0,IF(ISERROR(S96*T96), 0,S96*T96))), 0,IF(ISERROR(IF(ISERROR(S96*T96), 0,S96*T96)), 0,IF(ISERROR(S96*T96), 0,S96*T96)))) -> 0 | V96: 0 | W96: 14.2 | X96: 0.4 | Y96: =IF(ISERROR(IF(ISERROR(IF(ISERROR(ABS(U96)), 0,ABS(U96))), 0,IF(ISERROR(ABS(U96)), 0,ABS(U96)))), 0,IF(ISERROR(IF(ISERROR(ABS(U96)), 0,ABS(U96))), 0,IF(ISERROR(ABS(U96)), 0,ABS(U96)))) -> 0 | Z96: 0.15 | AA96: =IF(ISERROR(IF(ISERROR(IF(ISERROR(ABS((Y96*X96)/W96)), 0,ABS((Y96*X96)/W96))), 0,IF(ISERROR(ABS((Y96*X96)/W96)), 0,ABS((Y96*X96)/W96)))), 0,IF(ISERROR(IF(ISERROR(ABS((Y96*X96)/W96)), 0,ABS((Y96*X96)/W96))), 0,IF(ISERROR(ABS((Y96*X96)/W96)), 0,ABS((Y96*X96)/W96)))) -> 0 | AB96: =IF(ISERROR(IF(ISERROR(IF(ISERROR(IF(AA96>Z96,Z96,AA96)), 0,IF(AA96>Z96,Z96,AA96))), 0,IF(ISERROR(IF(AA96>Z96,Z96,AA96)), 0,IF(AA96>Z96,Z96,AA96)))), 0,IF(ISERROR(IF(ISERROR(IF(AA96>Z96,Z96,AA96)), 0,IF(AA96>Z96,Z96,AA96))), 0,IF(ISERROR(IF(AA96>Z96,Z96,AA96)), 0,IF(AA96>Z96,Z96,AA96)))) -> 0 | AC96: =IF(ISERROR(IF(ISERROR(IF(ISERROR(IF(Y96>W96,W96,Y96)), 0,IF(Y96>W96,W96,Y96))), 0,IF(ISERROR(IF(Y96>W96,W96,Y96)), 0,IF(Y96>W96,W96,Y96)))), 0,IF(ISERROR(IF(ISERROR(IF(Y96>W96,W96,Y96)), 0,IF(Y96>W96,W96,Y96))), 0,IF(ISERROR(IF(Y96>W96,W96,Y96)), 0,IF(Y96>W96,W96,Y96)))) -> 0 | AD96: =IF(ISERROR(IF(ISERROR(IF(ISERROR(IF(ISERROR((AC96*AB96)/AA96), 0,(AC96*AB96)/AA96)), 0,IF(ISERROR((AC96*AB96)/AA96), 0,(AC96*AB96)/AA96))), 0,IF(ISERROR(IF(ISERROR((AC96*AB96)/AA96), 0,(AC96*AB96)/AA96)), 0,IF(ISERROR((AC96*AB96)/AA96), 0,(AC96*AB96)/AA96)))), 0,IF(ISERROR(IF(ISERROR(IF(ISERROR((AC96*AB96)/AA96), 0,(AC96*AB96)/AA96)), 0,IF(ISERROR((AC96*AB96)/AA96), 0,(AC96*AB96)/AA96))), 0,IF(ISERROR(IF(ISERROR((AC96*AB96)/AA96), 0,(AC96*AB96)/AA96)), 0,IF(ISERROR((AC96*AB96)/AA96), 0,(AC96*AB96)/AA96)))) -> 0 | AE96: =IF(ISERROR(IF(ISERROR(IF(ISERROR(IF(AC96=W96,0,(AC96*AB96)/AA96)), 0,IF(AC96=W96,0,(AC96*AB96)/AA96))), 0,IF(ISERROR(IF(AC96=W96,0,(AC96*AB96)/AA96)), 0,IF(AC96=W96,0,(AC96*AB96)/AA96)))), 0,IF(ISERROR(IF(ISERROR(IF(AC96=W96,0,(AC96*AB96)/AA96)), 0,IF(AC96=W96,0,(AC96*AB96)/AA96))), 0,IF(ISERROR(IF(AC96=W96,0,(AC96*AB96)/AA96)), 0,IF(AC96=W96,0,(AC96*AB96)/AA96)))) -> 0 | AF96: =IF(ISERROR(IF(ISERROR(IF(AC96=60,Q96+(AC96/T96),Q96+(AD96/T96))), 0,IF(AC96=60,Q96+(AC96/T96),Q96+(AD96/T96)))), 0,IF(ISERROR(IF(AC96=60,Q96+(AC96/T96),Q96+(AD96/T96))), 0,IF(AC96=60,Q96+(AC96/T96),Q96+(AD96/T96)))) -> 0
A97: B | B97: 27 | C97: 56 | D97: 51 | E97: =IF(ISERROR(IF(ISERROR(IF(ISERROR(Y96), 0,Y96)), 0,IF(ISERROR(Y96), 0,Y96))), 0,IF(ISERROR(IF(ISERROR(Y96), 0,Y96)), 0,IF(ISERROR(Y96), 0,Y96))) -> 0 | G97: =IF(ISERROR(IF(ISERROR(IF(ISERROR(AB96), 0,AB96)), 0,IF(ISERROR(AB96), 0,AB96))), 0,IF(ISERROR(IF(ISERROR(AB96), 0,AB96)), 0,IF(ISERROR(AB96), 0,AB96))) -> 0 | H97: =IF(ISERROR(IF(ISERROR(IF(ISERROR($E$10-G97), 0,$E$10-G97)), 0,IF(ISERROR($E$10-G97), 0,$E$10-G97))), 0,IF(ISERROR(IF(ISERROR($E$10-G97), 0,$E$10-G97)), 0,IF(ISERROR($E$10-G97), 0,$E$10-G97))) -> 0.4 | J97: =IF(ISERROR(IF(ISERROR(AB97), 0,AB97)), 0,IF(ISERROR(AB97), 0,AB97)) -> 0 | K97: =IF(ISERROR(IF(ISERROR(ROUND($E$10-J97,3)), 0,ROUND($E$10-J97,3))), 0,IF(ISERROR(ROUND($E$10-J97,3)), 0,ROUND($E$10-J97,3))) -> 0.4 | M97: =IF(ISERROR(IF(ISERROR(IF(ISERROR(IF(ISERROR(AB98), 0,AB98)), 0,IF(ISERROR(AB98), 0,AB98))), 0,IF(ISERROR(IF(ISERROR(AB98), 0,AB98)), 0,IF(ISERROR(AB98), 0,AB98)))), 0,IF(ISERROR(IF(ISERROR(IF(ISERROR(AB98), 0,AB98)), 0,IF(ISERROR(AB98), 0,AB98))), 0,IF(ISERROR(IF(ISERROR(AB98), 0,AB98)), 0,IF(ISERROR(AB98), 0,AB98)))) -> 0 | N97: =IF(ISERROR(IF(ISERROR(IF(ISERROR(IF(ISERROR($E$10-M97), 0,$E$10-M97)), 0,IF(ISERROR($E$10-M97), 0,$E$10-M97))), 0,IF(ISERROR(IF(ISERROR($E$10-M97), 0,$E$10-M97)), 0,IF(ISERROR($E$10-M97), 0,$E$10-M97)))), 0,IF(ISERROR(IF(ISERROR(IF(ISERROR($E$10-M97), 0,$E$10-M97)), 0,IF(ISERROR($E$10-M97), 0,$E$10-M97))), 0,IF(ISERROR(IF(ISERROR($E$10-M97), 0,$E$10-M97)), 0,IF(ISERROR($E$10-M97), 0,$E$10-M97)))) -> 0.4 | O97: =A98 -> 294.0192308 | P97: =I97 -> 0 | Q97: =IF(ISERROR(IF(ISERROR(IF(AC96=W96,Q96+(AC96/T96),Q96+(AD96/T96))), 0,IF(AC96=W96,Q96+(AC96/T96),Q96+(AD96/T96)))), 0,IF(ISERROR(IF(AC96=W96,Q96+(AC96/T96),Q96+(AD96/T96))), 0,IF(AC96=W96,Q96+(AC96/T96),Q96+(AD96/T96)))) -> 0 | R97: =D97 -> 51 | S97: =IF(ISERROR(IF(ISERROR(Q97-R97), 0,Q97-R97)), 0,IF(ISERROR(Q97-R97), 0,Q97-R97)) -> -51 | T97: 0 | U97: =IF(ISERROR(IF(ISERROR(S97*T97), 0,S97*T97)), 0,IF(ISERROR(S97*T97), 0,S97*T97)) -> 0 | V97: 0 | W97: 14.2 | X97: 0.4 | Y97: =IF(ISERROR(IF(ISERROR(ABS(U97)), 0,ABS(U97))), 0,IF(ISERROR(ABS(U97)), 0,ABS(U97))) -> 0 | Z97: 0.15 | AA97: =IF(ISERROR(IF(ISERROR(ABS((Y97*X97)/W97)), 0,ABS((Y97*X97)/W97))), 0,IF(ISERROR(ABS((Y97*X97)/W97)), 0,ABS((Y97*X97)/W97))) -> 0 | AB97: =IF(ISERROR(IF(ISERROR(IF(AA97>Z97,Z97,AA97)), 0,IF(AA97>Z97,Z97,AA97))), 0,IF(ISERROR(IF(AA97>Z97,Z97,AA97)), 0,IF(AA97>Z97,Z97,AA97))) -> 0 | AC97: =IF(ISERROR(IF(ISERROR(IF(Y97>W97,W97,Y97)), 0,IF(Y97>W97,W97,Y97))), 0,IF(ISERROR(IF(Y97>W97,W97,Y97)), 0,IF(Y97>W97,W97,Y97))) -> 0 | AD97: =IF(ISERROR((AC97*AB97)/AA97), 0,(AC97*AB97)/AA97) -> 0 | AE97: =IF(ISERROR(IF(ISERROR(IF(AC97=W97,0,(AC97*AB97)/AA97)), 0,IF(AC97=W97,0,(AC97*AB97)/AA97))), 0,IF(ISERROR(IF(AC97=W97,0,(AC97*AB97)/AA97)), 0,IF(AC97=W97,0,(AC97*AB97)/AA97))) -> 0 | AF97: =IF(ISERROR(IF(AC97=60,Q97+(AC97/T97),Q97+(AD97/T97))), 0,IF(AC97=60,Q97+(AC97/T97),Q97+(AD97/T97))) -> 0
A98: =F315 -> 294.0192308 | B98: =IF(AND(C97<D97, E97>$E$7),"Ignore Drill Out Lead 1; rather pop out Lead 1 and LEAVE lead # 2 to "&K97&" inches.","") ->  | N98: =IF(ISERROR(IF(ISERROR((G97+J97+M97)/$E$10*$E$7), 0,(G97+J97+M97)/$E$10*$E$7)), 0,IF(ISERROR((G97+J97+M97)/$E$10*$E$7), 0,(G97+J97+M97)/$E$10*$E$7)) -> 0 | O98: =A98 -> 294.0192308 | P98: =L97 -> 0 | Q98: =IF(ISERROR(IF(AC97=W97,Q97+(AC97/T97),Q97+(AD97/T97))), 0,IF(AC97=W97,Q97+(AC97/T97),Q97+(AD97/T97))) -> 0 | R98: =D97 -> 51 | S98: =IF(ISERROR(Q98-R98), 0,Q98-R98) -> -51 | T98: 0 | U98: =IF(ISERROR(IF(ISERROR(IF(ISERROR(IF(ISERROR(S98*T98), 0,S98*T98)), 0,IF(ISERROR(S98*T98), 0,S98*T98))), 0,IF(ISERROR(IF(ISERROR(S98*T98), 0,S98*T98)), 0,IF(ISERROR(S98*T98), 0,S98*T98)))), 0,IF(ISERROR(IF(ISERROR(IF(ISERROR(S98*T98), 0,S98*T98)), 0,IF(ISERROR(S98*T98), 0,S98*T98))), 0,IF(ISERROR(IF(ISERROR(S98*T98), 0,S98*T98)), 0,IF(ISERROR(S98*T98), 0,S98*T98)))) -> 0 | V98: 0 | W98: 14.2 | X98: 0.4 | Y98: =IF(ISERROR(IF(ISERROR(IF(ISERROR(ABS(U98)), 0,ABS(U98))), 0,IF(ISERROR(ABS(U98)), 0,ABS(U98)))), 0,IF(ISERROR(IF(ISERROR(ABS(U98)), 0,ABS(U98))), 0,IF(ISERROR(ABS(U98)), 0,ABS(U98)))) -> 0 | Z98: 0.15 | AA98: =IF(ISERROR(IF(ISERROR(IF(ISERROR(ABS((Y98*X98)/W98)), 0,ABS((Y98*X98)/W98))), 0,IF(ISERROR(ABS((Y98*X98)/W98)), 0,ABS((Y98*X98)/W98)))), 0,IF(ISERROR(IF(ISERROR(ABS((Y98*X98)/W98)), 0,ABS((Y98*X98)/W98))), 0,IF(ISERROR(ABS((Y98*X98)/W98)), 0,ABS((Y98*X98)/W98)))) -> 0 | AB98: =IF(ISERROR(IF(ISERROR(IF(ISERROR(IF(AA98>Z98,Z98,AA98)), 0,IF(AA98>Z98,Z98,AA98))), 0,IF(ISERROR(IF(AA98>Z98,Z98,AA98)), 0,IF(AA98>Z98,Z98,AA98)))), 0,IF(ISERROR(IF(ISERROR(IF(AA98>Z98,Z98,AA98)), 0,IF(AA98>Z98,Z98,AA98))), 0,IF(ISERROR(IF(AA98>Z98,Z98,AA98)), 0,IF(AA98>Z98,Z98,AA98)))) -> 0 | AC98: =IF(ISERROR(IF(ISERROR(IF(ISERROR(IF(Y98>W98,W98,Y98)), 0,IF(Y98>W98,W98,Y98))), 0,IF(ISERROR(IF(Y98>W98,W98,Y98)), 0,IF(Y98>W98,W98,Y98)))), 0,IF(ISERROR(IF(ISERROR(IF(Y98>W98,W98,Y98)), 0,IF(Y98>W98,W98,Y98))), 0,IF(ISERROR(IF(Y98>W98,W98,Y98)), 0,IF(Y98>W98,W98,Y98)))) -> 0 | AD98: =IF(ISERROR((AC98*AB98)/AA98), "",(AC98*AB98)/AA98) ->  | AE98: =IF(ISERROR(IF(AC98=W98,0,(AC98*AB98)/AA98)), "",IF(AC98=W98,0,(AC98*AB98)/AA98)) ->  | AF98: =IF(ISERROR(IF(AC98=60,Q98+(AC98/T98),Q98+(AD98/T98))), "",IF(AC98=60,Q98+(AC98/T98),Q98+(AD98/T98))) -> 
C99: Test | D99: Target | F99: 1 | G99: dr_o | H99: Lv_in | I99: 2 | J99: dr_o | K99: Lv_in | L99: 3 | M99: dr_o | N99: Lv_in | O99: =A101 -> 292.6538462 | P99: =F100 -> 0 | Q99: =C100 -> 56 | R99: =D100 -> 51 | S99: =Q99-R99 -> 5 | T99: 0 | U99: =IF(ISERROR(IF(ISERROR(IF(ISERROR(IF(ISERROR(S99*T99), 0,S99*T99)), 0,IF(ISERROR(S99*T99), 0,S99*T99))), 0,IF(ISERROR(IF(ISERROR(S99*T99), 0,S99*T99)), 0,IF(ISERROR(S99*T99), 0,S99*T99)))), 0,IF(ISERROR(IF(ISERROR(IF(ISERROR(S99*T99), 0,S99*T99)), 0,IF(ISERROR(S99*T99), 0,S99*T99))), 0,IF(ISERROR(IF(ISERROR(S99*T99), 0,S99*T99)), 0,IF(ISERROR(S99*T99), 0,S99*T99)))) -> 0 | V99: 0 | W99: 14.2 | X99: 0.4 | Y99: =IF(ISERROR(IF(ISERROR(IF(ISERROR(ABS(U99)), 0,ABS(U99))), 0,IF(ISERROR(ABS(U99)), 0,ABS(U99)))), 0,IF(ISERROR(IF(ISERROR(ABS(U99)), 0,ABS(U99))), 0,IF(ISERROR(ABS(U99)), 0,ABS(U99)))) -> 0 | Z99: 0.15 | AA99: =IF(ISERROR(IF(ISERROR(IF(ISERROR(ABS((Y99*X99)/W99)), 0,ABS((Y99*X99)/W99))), 0,IF(ISERROR(ABS((Y99*X99)/W99)), 0,ABS((Y99*X99)/W99)))), 0,IF(ISERROR(IF(ISERROR(ABS((Y99*X99)/W99)), 0,ABS((Y99*X99)/W99))), 0,IF(ISERROR(ABS((Y99*X99)/W99)), 0,ABS((Y99*X99)/W99)))) -> 0 | AB99: =IF(ISERROR(IF(ISERROR(IF(ISERROR(IF(AA99>Z99,Z99,AA99)), 0,IF(AA99>Z99,Z99,AA99))), 0,IF(ISERROR(IF(AA99>Z99,Z99,AA99)), 0,IF(AA99>Z99,Z99,AA99)))), 0,IF(ISERROR(IF(ISERROR(IF(AA99>Z99,Z99,AA99)), 0,IF(AA99>Z99,Z99,AA99))), 0,IF(ISERROR(IF(AA99>Z99,Z99,AA99)), 0,IF(AA99>Z99,Z99,AA99)))) -> 0 | AC99: =IF(ISERROR(IF(ISERROR(IF(ISERROR(IF(Y99>W99,W99,Y99)), 0,IF(Y99>W99,W99,Y99))), 0,IF(ISERROR(IF(Y99>W99,W99,Y99)), 0,IF(Y99>W99,W99,Y99)))), 0,IF(ISERROR(IF(ISERROR(IF(Y99>W99,W99,Y99)), 0,IF(Y99>W99,W99,Y99))), 0,IF(ISERROR(IF(Y99>W99,W99,Y99)), 0,IF(Y99>W99,W99,Y99)))) -> 0 | AD99: =IF(ISERROR(IF(ISERROR(IF(ISERROR(IF(ISERROR((AC99*AB99)/AA99), 0,(AC99*AB99)/AA99)), 0,IF(ISERROR((AC99*AB99)/AA99), 0,(AC99*AB99)/AA99))), 0,IF(ISERROR(IF(ISERROR((AC99*AB99)/AA99), 0,(AC99*AB99)/AA99)), 0,IF(ISERROR((AC99*AB99)/AA99), 0,(AC99*AB99)/AA99)))), 0,IF(ISERROR(IF(ISERROR(IF(ISERROR((AC99*AB99)/AA99), 0,(AC99*AB99)/AA99)), 0,IF(ISERROR((AC99*AB99)/AA99), 0,(AC99*AB99)/AA99))), 0,IF(ISERROR(IF(ISERROR((AC99*AB99)/AA99), 0,(AC99*AB99)/AA99)), 0,IF(ISERROR((AC99*AB99)/AA99), 0,(AC99*AB99)/AA99)))) -> 0 | AE99: =IF(ISERROR(IF(ISERROR(IF(ISERROR(IF(AC99=W99,0,(AC99*AB99)/AA99)), 0,IF(AC99=W99,0,(AC99*AB99)/AA99))), 0,IF(ISERROR(IF(AC99=W99,0,(AC99*AB99)/AA99)), 0,IF(AC99=W99,0,(AC99*AB99)/AA99)))), 0,IF(ISERROR(IF(ISERROR(IF(AC99=W99,0,(AC99*AB99)/AA99)), 0,IF(AC99=W99,0,(AC99*AB99)/AA99))), 0,IF(ISERROR(IF(AC99=W99,0,(AC99*AB99)/AA99)), 0,IF(AC99=W99,0,(AC99*AB99)/AA99)))) -> 0 | AF99: =IF(ISERROR(IF(ISERROR(IF(AC99=60,Q99+(AC99/T99),Q99+(AD99/T99))), 0,IF(AC99=60,Q99+(AC99/T99),Q99+(AD99/T99)))), 0,IF(ISERROR(IF(AC99=60,Q99+(AC99/T99),Q99+(AD99/T99))), 0,IF(AC99=60,Q99+(AC99/T99),Q99+(AD99/T99)))) -> 0
A100: C | B100: 28 | C100: 56 | D100: 51 | E100: =IF(ISERROR(IF(ISERROR(IF(ISERROR(Y99), 0,Y99)), 0,IF(ISERROR(Y99), 0,Y99))), 0,IF(ISERROR(IF(ISERROR(Y99), 0,Y99)), 0,IF(ISERROR(Y99), 0,Y99))) -> 0 | G100: =IF(ISERROR(IF(ISERROR(IF(ISERROR(AB99), 0,AB99)), 0,IF(ISERROR(AB99), 0,AB99))), 0,IF(ISERROR(IF(ISERROR(AB99), 0,AB99)), 0,IF(ISERROR(AB99), 0,AB99))) -> 0 | H100: =IF(ISERROR(IF(ISERROR(IF(ISERROR($E$10-G100), 0,$E$10-G100)), 0,IF(ISERROR($E$10-G100), 0,$E$10-G100))), 0,IF(ISERROR(IF(ISERROR($E$10-G100), 0,$E$10-G100)), 0,IF(ISERROR($E$10-G100), 0,$E$10-G100))) -> 0.4 | J100: =IF(ISERROR(IF(ISERROR(AB100), 0,AB100)), 0,IF(ISERROR(AB100), 0,AB100)) -> 0 | K100: =IF(ISERROR(IF(ISERROR(ROUND($E$10-J100,3)), 0,ROUND($E$10-J100,3))), 0,IF(ISERROR(ROUND($E$10-J100,3)), 0,ROUND($E$10-J100,3))) -> 0.4 | M100: =IF(ISERROR(AB101), "",AB101) -> 0 | N100: =IF(ISERROR($E$10-M100), "",$E$10-M100) -> 0.4 | O100: =A101 -> 292.6538462 | P100: =I100 -> 0 | Q100: =IF(ISERROR(IF(ISERROR(IF(AC99=W99,Q99+(AC99/T99),Q99+(AD99/T99))), 0,IF(AC99=W99,Q99+(AC99/T99),Q99+(AD99/T99)))), 0,IF(ISERROR(IF(AC99=W99,Q99+(AC99/T99),Q99+(AD99/T99))), 0,IF(AC99=W99,Q99+(AC99/T99),Q99+(AD99/T99)))) -> 0 | R100: =D100 -> 51 | S100: =IF(ISERROR(IF(ISERROR(Q100-R100), 0,Q100-R100)), 0,IF(ISERROR(Q100-R100), 0,Q100-R100)) -> -51 | T100: 0 | U100: =IF(ISERROR(IF(ISERROR(S100*T100), 0,S100*T100)), 0,IF(ISERROR(S100*T100), 0,S100*T100)) -> 0 | V100: 0 | W100: 14.2 | X100: 0.4 | Y100: =IF(ISERROR(IF(ISERROR(ABS(U100)), 0,ABS(U100))), 0,IF(ISERROR(ABS(U100)), 0,ABS(U100))) -> 0 | Z100: 0.15 | AA100: =IF(ISERROR(IF(ISERROR(ABS((Y100*X100)/W100)), 0,ABS((Y100*X100)/W100))), 0,IF(ISERROR(ABS((Y100*X100)/W100)), 0,ABS((Y100*X100)/W100))) -> 0 | AB100: =IF(ISERROR(IF(ISERROR(IF(AA100>Z100,Z100,AA100)), 0,IF(AA100>Z100,Z100,AA100))), 0,IF(ISERROR(IF(AA100>Z100,Z100,AA100)), 0,IF(AA100>Z100,Z100,AA100))) -> 0 | AC100: =IF(ISERROR(IF(ISERROR(IF(Y100>W100,W100,Y100)), 0,IF(Y100>W100,W100,Y100))), 0,IF(ISERROR(IF(Y100>W100,W100,Y100)), 0,IF(Y100>W100,W100,Y100))) -> 0 | AD100: =IF(ISERROR((AC100*AB100)/AA100), "",(AC100*AB100)/AA100) ->  | AE100: =IF(ISERROR(IF(AC100=W100,0,(AC100*AB100)/AA100)), "",IF(AC100=W100,0,(AC100*AB100)/AA100)) ->  | AF100: =IF(ISERROR(IF(AC100=60,Q100+(AC100/T100),Q100+(AD100/T100))), "",IF(AC100=60,Q100+(AC100/T100),Q100+(AD100/T100))) -> 
A101: =F316 -> 292.6538462 | B101: =IF(AND(C100<D100, E100>$E$7),"Ignore Drill Out Lead 1; rather pop out Lead 1 and LEAVE lead # 2 to "&K100&" inches.","") ->  | N101: =IF(ISERROR(IF(ISERROR((G100+J100+M100)/$E$10*$E$7), 0,(G100+J100+M100)/$E$10*$E$7)), 0,IF(ISERROR((G100+J100+M100)/$E$10*$E$7), 0,(G100+J100+M100)/$E$10*$E$7)) -> 0 | O101: =A101 -> 292.6538462 | P101: =L100 -> 0 | Q101: =IF(ISERROR(IF(AC100=W100,Q100+(AC100/T100),Q100+(AD100/T100))), "",IF(AC100=W100,Q100+(AC100/T100),Q100+(AD100/T100))) ->  | R101: =D100 -> 51 | S101: =IF(ISERROR(Q101-R101), 0,Q101-R101) -> 0 | T101: 0 | U101: =IF(ISERROR(S101*T101), "",S101*T101) -> 0 | V101: 0 | W101: 14.2 | X101: 0.4 | Y101: =IF(ISERROR(ABS(U101)), "",ABS(U101)) -> 0 | Z101: 0.15 | AA101: =IF(ISERROR(ABS((Y101*X101)/W101)), "",ABS((Y101*X101)/W101)) -> 0 | AB101: =IF(ISERROR(IF(AA101>Z101,Z101,AA101)), "",IF(AA101>Z101,Z101,AA101)) -> 0 | AC101: =IF(ISERROR(IF(Y101>W101,W101,Y101)), "",IF(Y101>W101,W101,Y101)) -> 0 | AD101: =IF(ISERROR((AC101*AB101)/AA101), "",(AC101*AB101)/AA101) ->  | AE101: =IF(ISERROR(IF(AC101=W101,0,(AC101*AB101)/AA101)), "",IF(AC101=W101,0,(AC101*AB101)/AA101)) ->  | AF101: =IF(ISERROR(IF(AC101=60,Q101+(AC101/T101),Q101+(AD101/T101))), "",IF(AC101=60,Q101+(AC101/T101),Q101+(AD101/T101))) -> 
C102: Test | D102: Target | F102: 1 | G102: dr_o | H102: Lv_in | I102: 2 | J102: dr_o | K102: Lv_in | L102: 3 | M102: dr_o | N102: Lv_in | O102: =A104 -> 268.5 | P102: =F103 -> 0 | Q102: =C103 -> 60 | R102: =D103 -> 51 | S102: =Q102-R102 -> 9 | T102: 0 | U102: =IF(ISERROR(IF(ISERROR(IF(ISERROR(IF(ISERROR(S102*T102), 0,S102*T102)), 0,IF(ISERROR(S102*T102), 0,S102*T102))), 0,IF(ISERROR(IF(ISERROR(S102*T102), 0,S102*T102)), 0,IF(ISERROR(S102*T102), 0,S102*T102)))), 0,IF(ISERROR(IF(ISERROR(IF(ISERROR(S102*T102), 0,S102*T102)), 0,IF(ISERROR(S102*T102), 0,S102*T102))), 0,IF(ISERROR(IF(ISERROR(S102*T102), 0,S102*T102)), 0,IF(ISERROR(S102*T102), 0,S102*T102)))) -> 0 | V102: 0 | W102: 14.2 | X102: 0.4 | Y102: =IF(ISERROR(IF(ISERROR(IF(ISERROR(ABS(U102)), 0,ABS(U102))), 0,IF(ISERROR(ABS(U102)), 0,ABS(U102)))), 0,IF(ISERROR(IF(ISERROR(ABS(U102)), 0,ABS(U102))), 0,IF(ISERROR(ABS(U102)), 0,ABS(U102)))) -> 0 | Z102: 0.15 | AA102: =IF(ISERROR(IF(ISERROR(IF(ISERROR(ABS((Y102*X102)/W102)), 0,ABS((Y102*X102)/W102))), 0,IF(ISERROR(ABS((Y102*X102)/W102)), 0,ABS((Y102*X102)/W102)))), 0,IF(ISERROR(IF(ISERROR(ABS((Y102*X102)/W102)), 0,ABS((Y102*X102)/W102))), 0,IF(ISERROR(ABS((Y102*X102)/W102)), 0,ABS((Y102*X102)/W102)))) -> 0 | AB102: =IF(ISERROR(IF(ISERROR(IF(ISERROR(IF(AA102>Z102,Z102,AA102)), 0,IF(AA102>Z102,Z102,AA102))), 0,IF(ISERROR(IF(AA102>Z102,Z102,AA102)), 0,IF(AA102>Z102,Z102,AA102)))), 0,IF(ISERROR(IF(ISERROR(IF(AA102>Z102,Z102,AA102)), 0,IF(AA102>Z102,Z102,AA102))), 0,IF(ISERROR(IF(AA102>Z102,Z102,AA102)), 0,IF(AA102>Z102,Z102,AA102)))) -> 0 | AC102: =IF(ISERROR(IF(ISERROR(IF(ISERROR(IF(Y102>W102,W102,Y102)), 0,IF(Y102>W102,W102,Y102))), 0,IF(ISERROR(IF(Y102>W102,W102,Y102)), 0,IF(Y102>W102,W102,Y102)))), 0,IF(ISERROR(IF(ISERROR(IF(Y102>W102,W102,Y102)), 0,IF(Y102>W102,W102,Y102))), 0,IF(ISERROR(IF(Y102>W102,W102,Y102)), 0,IF(Y102>W102,W102,Y102)))) -> 0 | AD102: =IF(ISERROR(IF(ISERROR(IF(ISERROR(IF(ISERROR((AC102*AB102)/AA102), 0,(AC102*AB102)/AA102)), 0,IF(ISERROR((AC102*AB102)/AA102), 0,(AC102*AB102)/AA102))), 0,IF(ISERROR(IF(ISERROR((AC102*AB102)/AA102), 0,(AC102*AB102)/AA102)), 0,IF(ISERROR((AC102*AB102)/AA102), 0,(AC102*AB102)/AA102)))), 0,IF(ISERROR(IF(ISERROR(IF(ISERROR((AC102*AB102)/AA102), 0,(AC102*AB102)/AA102)), 0,IF(ISERROR((AC102*AB102)/AA102), 0,(AC102*AB102)/AA102))), 0,IF(ISERROR(IF(ISERROR((AC102*AB102)/AA102), 0,(AC102*AB102)/AA102)), 0,IF(ISERROR((AC102*AB102)/AA102), 0,(AC102*AB102)/AA102)))) -> 0 | AE102: =IF(ISERROR(IF(ISERROR(IF(ISERROR(IF(AC102=W102,0,(AC102*AB102)/AA102)), 0,IF(AC102=W102,0,(AC102*AB102)/AA102))), 0,IF(ISERROR(IF(AC102=W102,0,(AC102*AB102)/AA102)), 0,IF(AC102=W102,0,(AC102*AB102)/AA102)))), 0,IF(ISERROR(IF(ISERROR(IF(AC102=W102,0,(AC102*AB102)/AA102)), 0,IF(AC102=W102,0,(AC102*AB102)/AA102))), 0,IF(ISERROR(IF(AC102=W102,0,(AC102*AB102)/AA102)), 0,IF(AC102=W102,0,(AC102*AB102)/AA102)))) -> 0 | AF102: =IF(ISERROR(IF(ISERROR(IF(AC102=60,Q102+(AC102/T102),Q102+(AD102/T102))), 0,IF(AC102=60,Q102+(AC102/T102),Q102+(AD102/T102)))), 0,IF(ISERROR(IF(AC102=60,Q102+(AC102/T102),Q102+(AD102/T102))), 0,IF(AC102=60,Q102+(AC102/T102),Q102+(AD102/T102)))) -> 0
A103: C# | B103: 29 | C103: 60 | D103: 51 | E103: =IF(ISERROR(IF(ISERROR(IF(ISERROR(Y102), 0,Y102)), 0,IF(ISERROR(Y102), 0,Y102))), 0,IF(ISERROR(IF(ISERROR(Y102), 0,Y102)), 0,IF(ISERROR(Y102), 0,Y102))) -> 0 | G103: =IF(ISERROR(IF(ISERROR(IF(ISERROR(AB102), 0,AB102)), 0,IF(ISERROR(AB102), 0,AB102))), 0,IF(ISERROR(IF(ISERROR(AB102), 0,AB102)), 0,IF(ISERROR(AB102), 0,AB102))) -> 0 | H103: =IF(ISERROR(IF(ISERROR(IF(ISERROR($E$10-G103), 0,$E$10-G103)), 0,IF(ISERROR($E$10-G103), 0,$E$10-G103))), 0,IF(ISERROR(IF(ISERROR($E$10-G103), 0,$E$10-G103)), 0,IF(ISERROR($E$10-G103), 0,$E$10-G103))) -> 0.4 | J103: =IF(ISERROR(IF(ISERROR(AB103), 0,AB103)), 0,IF(ISERROR(AB103), 0,AB103)) -> 0 | K103: =IF(ISERROR(IF(ISERROR(ROUND($E$10-J103,3)), 0,ROUND($E$10-J103,3))), 0,IF(ISERROR(ROUND($E$10-J103,3)), 0,ROUND($E$10-J103,3))) -> 0.4 | M103: =IF(ISERROR(AB104), "",AB104) -> 0 | N103: =IF(ISERROR($E$10-M103), "",$E$10-M103) -> 0.4 | O103: =A104 -> 268.5 | P103: =I103 -> 0 | Q103: =IF(ISERROR(IF(ISERROR(IF(AC102=W102,Q102+(AC102/T102),Q102+(AD102/T102))), 0,IF(AC102=W102,Q102+(AC102/T102),Q102+(AD102/T102)))), 0,IF(ISERROR(IF(AC102=W102,Q102+(AC102/T102),Q102+(AD102/T102))), 0,IF(AC102=W102,Q102+(AC102/T102),Q102+(AD102/T102)))) -> 0 | R103: =D103 -> 51 | S103: =IF(ISERROR(IF(ISERROR(Q103-R103), 0,Q103-R103)), 0,IF(ISERROR(Q103-R103), 0,Q103-R103)) -> -51 | T103: 0 | U103: =IF(ISERROR(IF(ISERROR(S103*T103), 0,S103*T103)), 0,IF(ISERROR(S103*T103), 0,S103*T103)) -> 0 | V103: 0 | W103: 14.2 | X103: 0.4 | Y103: =IF(ISERROR(IF(ISERROR(ABS(U103)), 0,ABS(U103))), 0,IF(ISERROR(ABS(U103)), 0,ABS(U103))) -> 0 | Z103: 0.15 | AA103: =IF(ISERROR(IF(ISERROR(ABS((Y103*X103)/W103)), 0,ABS((Y103*X103)/W103))), 0,IF(ISERROR(ABS((Y103*X103)/W103)), 0,ABS((Y103*X103)/W103))) -> 0 | AB103: =IF(ISERROR(IF(ISERROR(IF(AA103>Z103,Z103,AA103)), 0,IF(AA103>Z103,Z103,AA103))), 0,IF(ISERROR(IF(AA103>Z103,Z103,AA103)), 0,IF(AA103>Z103,Z103,AA103))) -> 0 | AC103: =IF(ISERROR(IF(ISERROR(IF(Y103>W103,W103,Y103)), 0,IF(Y103>W103,W103,Y103))), 0,IF(ISERROR(IF(Y103>W103,W103,Y103)), 0,IF(Y103>W103,W103,Y103))) -> 0 | AD103: =IF(ISERROR((AC103*AB103)/AA103), "",(AC103*AB103)/AA103) ->  | AE103: =IF(ISERROR(IF(AC103=W103,0,(AC103*AB103)/AA103)), "",IF(AC103=W103,0,(AC103*AB103)/AA103)) ->  | AF103: =IF(ISERROR(IF(AC103=60,Q103+(AC103/T103),Q103+(AD103/T103))), "",IF(AC103=60,Q103+(AC103/T103),Q103+(AD103/T103))) -> 
A104: =R311 -> 268.5 | B104: =IF(AND(C103<D103, E103>$E$7),"Ignore Drill Out Lead 1; rather pop out Lead 1 and LEAVE lead # 2 to "&K103&" inches.","") ->  | N104: =IF(ISERROR(IF(ISERROR((G103+J103+M103)/$E$10*$E$7), 0,(G103+J103+M103)/$E$10*$E$7)), 0,IF(ISERROR((G103+J103+M103)/$E$10*$E$7), 0,(G103+J103+M103)/$E$10*$E$7)) -> 0 | O104: =A104 -> 268.5 | P104: =L103 -> 0 | Q104: =IF(ISERROR(IF(AC103=W103,Q103+(AC103/T103),Q103+(AD103/T103))), "",IF(AC103=W103,Q103+(AC103/T103),Q103+(AD103/T103))) ->  | R104: =D103 -> 51 | S104: =IF(ISERROR(Q104-R104), 0,Q104-R104) -> 0 | T104: 0 | U104: =IF(ISERROR(S104*T104), "",S104*T104) -> 0 | V104: 0 | W104: 14.2 | X104: 0.4 | Y104: =IF(ISERROR(ABS(U104)), "",ABS(U104)) -> 0 | Z104: 0.15 | AA104: =IF(ISERROR(ABS((Y104*X104)/W104)), "",ABS((Y104*X104)/W104)) -> 0 | AB104: =IF(ISERROR(IF(AA104>Z104,Z104,AA104)), "",IF(AA104>Z104,Z104,AA104)) -> 0 | AC104: =IF(ISERROR(IF(Y104>W104,W104,Y104)), "",IF(Y104>W104,W104,Y104)) -> 0 | AD104: =IF(ISERROR((AC104*AB104)/AA104), "",(AC104*AB104)/AA104) ->  | AE104: =IF(ISERROR(IF(AC104=W104,0,(AC104*AB104)/AA104)), "",IF(AC104=W104,0,(AC104*AB104)/AA104)) ->  | AF104: =IF(ISERROR(IF(AC104=60,Q104+(AC104/T104),Q104+(AD104/T104))), "",IF(AC104=60,Q104+(AC104/T104),Q104+(AD104/T104))) -> 
C105: Test | D105: Target | F105: 1 | G105: dr_o | H105: Lv_in | I105: 2 | J105: dr_o | K105: Lv_in | L105: 3 | M105: dr_o | N105: Lv_in | O105: =A107 -> 291.2884615 | P105: =F106 -> 0 | Q105: =C106 -> 54 | R105: =D106 -> 51 | S105: =Q105-R105 -> 3 | T105: 0 | U105: =IF(ISERROR(IF(ISERROR(IF(ISERROR(IF(ISERROR(S105*T105), 0,S105*T105)), 0,IF(ISERROR(S105*T105), 0,S105*T105))), 0,IF(ISERROR(IF(ISERROR(S105*T105), 0,S105*T105)), 0,IF(ISERROR(S105*T105), 0,S105*T105)))), 0,IF(ISERROR(IF(ISERROR(IF(ISERROR(S105*T105), 0,S105*T105)), 0,IF(ISERROR(S105*T105), 0,S105*T105))), 0,IF(ISERROR(IF(ISERROR(S105*T105), 0,S105*T105)), 0,IF(ISERROR(S105*T105), 0,S105*T105)))) -> 0 | V105: 0 | W105: 14.2 | X105: 0.4 | Y105: =IF(ISERROR(IF(ISERROR(IF(ISERROR(ABS(U105)), 0,ABS(U105))), 0,IF(ISERROR(ABS(U105)), 0,ABS(U105)))), 0,IF(ISERROR(IF(ISERROR(ABS(U105)), 0,ABS(U105))), 0,IF(ISERROR(ABS(U105)), 0,ABS(U105)))) -> 0 | Z105: 0.15 | AA105: =IF(ISERROR(IF(ISERROR(IF(ISERROR(ABS((Y105*X105)/W105)), 0,ABS((Y105*X105)/W105))), 0,IF(ISERROR(ABS((Y105*X105)/W105)), 0,ABS((Y105*X105)/W105)))), 0,IF(ISERROR(IF(ISERROR(ABS((Y105*X105)/W105)), 0,ABS((Y105*X105)/W105))), 0,IF(ISERROR(ABS((Y105*X105)/W105)), 0,ABS((Y105*X105)/W105)))) -> 0 | AB105: =IF(ISERROR(IF(ISERROR(IF(ISERROR(IF(AA105>Z105,Z105,AA105)), 0,IF(AA105>Z105,Z105,AA105))), 0,IF(ISERROR(IF(AA105>Z105,Z105,AA105)), 0,IF(AA105>Z105,Z105,AA105)))), 0,IF(ISERROR(IF(ISERROR(IF(AA105>Z105,Z105,AA105)), 0,IF(AA105>Z105,Z105,AA105))), 0,IF(ISERROR(IF(AA105>Z105,Z105,AA105)), 0,IF(AA105>Z105,Z105,AA105)))) -> 0 | AC105: =IF(ISERROR(IF(ISERROR(IF(ISERROR(IF(Y105>W105,W105,Y105)), 0,IF(Y105>W105,W105,Y105))), 0,IF(ISERROR(IF(Y105>W105,W105,Y105)), 0,IF(Y105>W105,W105,Y105)))), 0,IF(ISERROR(IF(ISERROR(IF(Y105>W105,W105,Y105)), 0,IF(Y105>W105,W105,Y105))), 0,IF(ISERROR(IF(Y105>W105,W105,Y105)), 0,IF(Y105>W105,W105,Y105)))) -> 0 | AD105: =IF(ISERROR(IF(ISERROR(IF(ISERROR(IF(ISERROR((AC105*AB105)/AA105), 0,(AC105*AB105)/AA105)), 0,IF(ISERROR((AC105*AB105)/AA105), 0,(AC105*AB105)/AA105))), 0,IF(ISERROR(IF(ISERROR((AC105*AB105)/AA105), 0,(AC105*AB105)/AA105)), 0,IF(ISERROR((AC105*AB105)/AA105), 0,(AC105*AB105)/AA105)))), 0,IF(ISERROR(IF(ISERROR(IF(ISERROR((AC105*AB105)/AA105), 0,(AC105*AB105)/AA105)), 0,IF(ISERROR((AC105*AB105)/AA105), 0,(AC105*AB105)/AA105))), 0,IF(ISERROR(IF(ISERROR((AC105*AB105)/AA105), 0,(AC105*AB105)/AA105)), 0,IF(ISERROR((AC105*AB105)/AA105), 0,(AC105*AB105)/AA105)))) -> 0 | AE105: =IF(ISERROR(IF(ISERROR(IF(ISERROR(IF(AC105=W105,0,(AC105*AB105)/AA105)), 0,IF(AC105=W105,0,(AC105*AB105)/AA105))), 0,IF(ISERROR(IF(AC105=W105,0,(AC105*AB105)/AA105)), 0,IF(AC105=W105,0,(AC105*AB105)/AA105)))), 0,IF(ISERROR(IF(ISERROR(IF(AC105=W105,0,(AC105*AB105)/AA105)), 0,IF(AC105=W105,0,(AC105*AB105)/AA105))), 0,IF(ISERROR(IF(AC105=W105,0,(AC105*AB105)/AA105)), 0,IF(AC105=W105,0,(AC105*AB105)/AA105)))) -> 0 | AF105: =IF(ISERROR(IF(ISERROR(IF(AC105=60,Q105+(AC105/T105),Q105+(AD105/T105))), 0,IF(AC105=60,Q105+(AC105/T105),Q105+(AD105/T105)))), 0,IF(ISERROR(IF(AC105=60,Q105+(AC105/T105),Q105+(AD105/T105))), 0,IF(AC105=60,Q105+(AC105/T105),Q105+(AD105/T105)))) -> 0
A106: D | B106: 30 | C106: 54 | D106: 51 | E106: =IF(ISERROR(IF(ISERROR(IF(ISERROR(Y105), 0,Y105)), 0,IF(ISERROR(Y105), 0,Y105))), 0,IF(ISERROR(IF(ISERROR(Y105), 0,Y105)), 0,IF(ISERROR(Y105), 0,Y105))) -> 0 | G106: =IF(ISERROR(IF(ISERROR(IF(ISERROR(AB105), 0,AB105)), 0,IF(ISERROR(AB105), 0,AB105))), 0,IF(ISERROR(IF(ISERROR(AB105), 0,AB105)), 0,IF(ISERROR(AB105), 0,AB105))) -> 0 | H106: =IF(ISERROR(IF(ISERROR(IF(ISERROR($E$10-G106), 0,$E$10-G106)), 0,IF(ISERROR($E$10-G106), 0,$E$10-G106))), 0,IF(ISERROR(IF(ISERROR($E$10-G106), 0,$E$10-G106)), 0,IF(ISERROR($E$10-G106), 0,$E$10-G106))) -> 0.4 | J106: =IF(ISERROR(IF(ISERROR(AB106), 0,AB106)), 0,IF(ISERROR(AB106), 0,AB106)) -> 0 | K106: =IF(ISERROR(IF(ISERROR(ROUND($E$10-J106,3)), 0,ROUND($E$10-J106,3))), 0,IF(ISERROR(ROUND($E$10-J106,3)), 0,ROUND($E$10-J106,3))) -> 0.4 | M106: =IF(ISERROR(IF(ISERROR(IF(ISERROR(IF(ISERROR(AB107), 0,AB107)), 0,IF(ISERROR(AB107), 0,AB107))), 0,IF(ISERROR(IF(ISERROR(AB107), 0,AB107)), 0,IF(ISERROR(AB107), 0,AB107)))), 0,IF(ISERROR(IF(ISERROR(IF(ISERROR(AB107), 0,AB107)), 0,IF(ISERROR(AB107), 0,AB107))), 0,IF(ISERROR(IF(ISERROR(AB107), 0,AB107)), 0,IF(ISERROR(AB107), 0,AB107)))) -> 0 | N106: =IF(ISERROR(IF(ISERROR(IF(ISERROR(IF(ISERROR($E$10-M106), 0,$E$10-M106)), 0,IF(ISERROR($E$10-M106), 0,$E$10-M106))), 0,IF(ISERROR(IF(ISERROR($E$10-M106), 0,$E$10-M106)), 0,IF(ISERROR($E$10-M106), 0,$E$10-M106)))), 0,IF(ISERROR(IF(ISERROR(IF(ISERROR($E$10-M106), 0,$E$10-M106)), 0,IF(ISERROR($E$10-M106), 0,$E$10-M106))), 0,IF(ISERROR(IF(ISERROR($E$10-M106), 0,$E$10-M106)), 0,IF(ISERROR($E$10-M106), 0,$E$10-M106)))) -> 0.4 | O106: =A107 -> 291.2884615 | P106: =I106 -> 0 | Q106: =IF(ISERROR(IF(ISERROR(IF(AC105=W105,Q105+(AC105/T105),Q105+(AD105/T105))), 0,IF(AC105=W105,Q105+(AC105/T105),Q105+(AD105/T105)))), 0,IF(ISERROR(IF(AC105=W105,Q105+(AC105/T105),Q105+(AD105/T105))), 0,IF(AC105=W105,Q105+(AC105/T105),Q105+(AD105/T105)))) -> 0 | R106: =D106 -> 51 | S106: =IF(ISERROR(IF(ISERROR(Q106-R106), 0,Q106-R106)), 0,IF(ISERROR(Q106-R106), 0,Q106-R106)) -> -51 | T106: 0 | U106: =IF(ISERROR(IF(ISERROR(S106*T106), 0,S106*T106)), 0,IF(ISERROR(S106*T106), 0,S106*T106)) -> 0 | V106: 0 | W106: 14.2 | X106: 0.4 | Y106: =IF(ISERROR(IF(ISERROR(ABS(U106)), 0,ABS(U106))), 0,IF(ISERROR(ABS(U106)), 0,ABS(U106))) -> 0 | Z106: 0.15 | AA106: =IF(ISERROR(IF(ISERROR(ABS((Y106*X106)/W106)), 0,ABS((Y106*X106)/W106))), 0,IF(ISERROR(ABS((Y106*X106)/W106)), 0,ABS((Y106*X106)/W106))) -> 0 | AB106: =IF(ISERROR(IF(ISERROR(IF(AA106>Z106,Z106,AA106)), 0,IF(AA106>Z106,Z106,AA106))), 0,IF(ISERROR(IF(AA106>Z106,Z106,AA106)), 0,IF(AA106>Z106,Z106,AA106))) -> 0 | AC106: =IF(ISERROR(IF(ISERROR(IF(Y106>W106,W106,Y106)), 0,IF(Y106>W106,W106,Y106))), 0,IF(ISERROR(IF(Y106>W106,W106,Y106)), 0,IF(Y106>W106,W106,Y106))) -> 0 | AD106: =IF(ISERROR((AC106*AB106)/AA106), 0,(AC106*AB106)/AA106) -> 0 | AE106: =IF(ISERROR(IF(ISERROR(IF(AC106=W106,0,(AC106*AB106)/AA106)), 0,IF(AC106=W106,0,(AC106*AB106)/AA106))), 0,IF(ISERROR(IF(AC106=W106,0,(AC106*AB106)/AA106)), 0,IF(AC106=W106,0,(AC106*AB106)/AA106))) -> 0 | AF106: =IF(ISERROR(IF(AC106=60,Q106+(AC106/T106),Q106+(AD106/T106))), 0,IF(AC106=60,Q106+(AC106/T106),Q106+(AD106/T106))) -> 0
A107: =F317 -> 291.2884615 | B107: =IF(AND(C106<D106, E106>$E$7),"Ignore Drill Out Lead 1; rather pop out Lead 1 and LEAVE lead # 2 to "&K106&" inches.","") ->  | N107: =IF(ISERROR(IF(ISERROR((G106+J106+M106)/$E$10*$E$7), 0,(G106+J106+M106)/$E$10*$E$7)), 0,IF(ISERROR((G106+J106+M106)/$E$10*$E$7), 0,(G106+J106+M106)/$E$10*$E$7)) -> 0 | O107: =A107 -> 291.2884615 | P107: =L106 -> 0 | Q107: =IF(ISERROR(IF(AC106=W106,Q106+(AC106/T106),Q106+(AD106/T106))), 0,IF(AC106=W106,Q106+(AC106/T106),Q106+(AD106/T106))) -> 0 | R107: =D106 -> 51 | S107: =IF(ISERROR(Q107-R107), 0,Q107-R107) -> -51 | T107: 0 | U107: =IF(ISERROR(IF(ISERROR(IF(ISERROR(IF(ISERROR(S107*T107), 0,S107*T107)), 0,IF(ISERROR(S107*T107), 0,S107*T107))), 0,IF(ISERROR(IF(ISERROR(S107*T107), 0,S107*T107)), 0,IF(ISERROR(S107*T107), 0,S107*T107)))), 0,IF(ISERROR(IF(ISERROR(IF(ISERROR(S107*T107), 0,S107*T107)), 0,IF(ISERROR(S107*T107), 0,S107*T107))), 0,IF(ISERROR(IF(ISERROR(S107*T107), 0,S107*T107)), 0,IF(ISERROR(S107*T107), 0,S107*T107)))) -> 0 | V107: 0 | W107: 14.2 | X107: 0.4 | Y107: =IF(ISERROR(IF(ISERROR(IF(ISERROR(ABS(U107)), 0,ABS(U107))), 0,IF(ISERROR(ABS(U107)), 0,ABS(U107)))), 0,IF(ISERROR(IF(ISERROR(ABS(U107)), 0,ABS(U107))), 0,IF(ISERROR(ABS(U107)), 0,ABS(U107)))) -> 0 | Z107: 0.15 | AA107: =IF(ISERROR(IF(ISERROR(IF(ISERROR(ABS((Y107*X107)/W107)), 0,ABS((Y107*X107)/W107))), 0,IF(ISERROR(ABS((Y107*X107)/W107)), 0,ABS((Y107*X107)/W107)))), 0,IF(ISERROR(IF(ISERROR(ABS((Y107*X107)/W107)), 0,ABS((Y107*X107)/W107))), 0,IF(ISERROR(ABS((Y107*X107)/W107)), 0,ABS((Y107*X107)/W107)))) -> 0 | AB107: =IF(ISERROR(IF(ISERROR(IF(ISERROR(IF(AA107>Z107,Z107,AA107)), 0,IF(AA107>Z107,Z107,AA107))), 0,IF(ISERROR(IF(AA107>Z107,Z107,AA107)), 0,IF(AA107>Z107,Z107,AA107)))), 0,IF(ISERROR(IF(ISERROR(IF(AA107>Z107,Z107,AA107)), 0,IF(AA107>Z107,Z107,AA107))), 0,IF(ISERROR(IF(AA107>Z107,Z107,AA107)), 0,IF(AA107>Z107,Z107,AA107)))) -> 0 | AC107: =IF(ISERROR(IF(ISERROR(IF(ISERROR(IF(Y107>W107,W107,Y107)), 0,IF(Y107>W107,W107,Y107))), 0,IF(ISERROR(IF(Y107>W107,W107,Y107)), 0,IF(Y107>W107,W107,Y107)))), 0,IF(ISERROR(IF(ISERROR(IF(Y107>W107,W107,Y107)), 0,IF(Y107>W107,W107,Y107))), 0,IF(ISERROR(IF(Y107>W107,W107,Y107)), 0,IF(Y107>W107,W107,Y107)))) -> 0 | AD107: =IF(ISERROR((AC107*AB107)/AA107), "",(AC107*AB107)/AA107) ->  | AE107: =IF(ISERROR(IF(AC107=W107,0,(AC107*AB107)/AA107)), "",IF(AC107=W107,0,(AC107*AB107)/AA107)) ->  | AF107: =IF(ISERROR(IF(AC107=60,Q107+(AC107/T107),Q107+(AD107/T107))), "",IF(AC107=60,Q107+(AC107/T107),Q107+(AD107/T107))) -> 
C108: Test | D108: Target | F108: 1 | G108: dr_o | H108: Lv_in | I108: 2 | J108: dr_o | K108: Lv_in | L108: 3 | M108: dr_o | N108: Lv_in | O108: =A110 -> 267.5 | P108: =F109 -> 0 | Q108: =C109 -> 65 | R108: =D109 -> 51 | S108: =Q108-R108 -> 14 | T108: 0 | U108: =IF(ISERROR(IF(ISERROR(IF(ISERROR(IF(ISERROR(S108*T108), 0,S108*T108)), 0,IF(ISERROR(S108*T108), 0,S108*T108))), 0,IF(ISERROR(IF(ISERROR(S108*T108), 0,S108*T108)), 0,IF(ISERROR(S108*T108), 0,S108*T108)))), 0,IF(ISERROR(IF(ISERROR(IF(ISERROR(S108*T108), 0,S108*T108)), 0,IF(ISERROR(S108*T108), 0,S108*T108))), 0,IF(ISERROR(IF(ISERROR(S108*T108), 0,S108*T108)), 0,IF(ISERROR(S108*T108), 0,S108*T108)))) -> 0 | V108: 0 | W108: 14.2 | X108: 0.4 | Y108: =IF(ISERROR(IF(ISERROR(IF(ISERROR(ABS(U108)), 0,ABS(U108))), 0,IF(ISERROR(ABS(U108)), 0,ABS(U108)))), 0,IF(ISERROR(IF(ISERROR(ABS(U108)), 0,ABS(U108))), 0,IF(ISERROR(ABS(U108)), 0,ABS(U108)))) -> 0 | Z108: 0.15 | AA108: =IF(ISERROR(IF(ISERROR(IF(ISERROR(ABS((Y108*X108)/W108)), 0,ABS((Y108*X108)/W108))), 0,IF(ISERROR(ABS((Y108*X108)/W108)), 0,ABS((Y108*X108)/W108)))), 0,IF(ISERROR(IF(ISERROR(ABS((Y108*X108)/W108)), 0,ABS((Y108*X108)/W108))), 0,IF(ISERROR(ABS((Y108*X108)/W108)), 0,ABS((Y108*X108)/W108)))) -> 0 | AB108: =IF(ISERROR(IF(ISERROR(IF(ISERROR(IF(AA108>Z108,Z108,AA108)), 0,IF(AA108>Z108,Z108,AA108))), 0,IF(ISERROR(IF(AA108>Z108,Z108,AA108)), 0,IF(AA108>Z108,Z108,AA108)))), 0,IF(ISERROR(IF(ISERROR(IF(AA108>Z108,Z108,AA108)), 0,IF(AA108>Z108,Z108,AA108))), 0,IF(ISERROR(IF(AA108>Z108,Z108,AA108)), 0,IF(AA108>Z108,Z108,AA108)))) -> 0 | AC108: =IF(ISERROR(IF(ISERROR(IF(ISERROR(IF(Y108>W108,W108,Y108)), 0,IF(Y108>W108,W108,Y108))), 0,IF(ISERROR(IF(Y108>W108,W108,Y108)), 0,IF(Y108>W108,W108,Y108)))), 0,IF(ISERROR(IF(ISERROR(IF(Y108>W108,W108,Y108)), 0,IF(Y108>W108,W108,Y108))), 0,IF(ISERROR(IF(Y108>W108,W108,Y108)), 0,IF(Y108>W108,W108,Y108)))) -> 0 | AD108: =IF(ISERROR(IF(ISERROR(IF(ISERROR(IF(ISERROR((AC108*AB108)/AA108), 0,(AC108*AB108)/AA108)), 0,IF(ISERROR((AC108*AB108)/AA108), 0,(AC108*AB108)/AA108))), 0,IF(ISERROR(IF(ISERROR((AC108*AB108)/AA108), 0,(AC108*AB108)/AA108)), 0,IF(ISERROR((AC108*AB108)/AA108), 0,(AC108*AB108)/AA108)))), 0,IF(ISERROR(IF(ISERROR(IF(ISERROR((AC108*AB108)/AA108), 0,(AC108*AB108)/AA108)), 0,IF(ISERROR((AC108*AB108)/AA108), 0,(AC108*AB108)/AA108))), 0,IF(ISERROR(IF(ISERROR((AC108*AB108)/AA108), 0,(AC108*AB108)/AA108)), 0,IF(ISERROR((AC108*AB108)/AA108), 0,(AC108*AB108)/AA108)))) -> 0 | AE108: =IF(ISERROR(IF(ISERROR(IF(ISERROR(IF(AC108=W108,0,(AC108*AB108)/AA108)), 0,IF(AC108=W108,0,(AC108*AB108)/AA108))), 0,IF(ISERROR(IF(AC108=W108,0,(AC108*AB108)/AA108)), 0,IF(AC108=W108,0,(AC108*AB108)/AA108)))), 0,IF(ISERROR(IF(ISERROR(IF(AC108=W108,0,(AC108*AB108)/AA108)), 0,IF(AC108=W108,0,(AC108*AB108)/AA108))), 0,IF(ISERROR(IF(AC108=W108,0,(AC108*AB108)/AA108)), 0,IF(AC108=W108,0,(AC108*AB108)/AA108)))) -> 0 | AF108: =IF(ISERROR(IF(ISERROR(IF(AC108=60,Q108+(AC108/T108),Q108+(AD108/T108))), 0,IF(AC108=60,Q108+(AC108/T108),Q108+(AD108/T108)))), 0,IF(ISERROR(IF(AC108=60,Q108+(AC108/T108),Q108+(AD108/T108))), 0,IF(AC108=60,Q108+(AC108/T108),Q108+(AD108/T108)))) -> 0
A109: D# | B109: 31 | C109: 65 | D109: 51 | E109: =IF(ISERROR(IF(ISERROR(IF(ISERROR(Y108), 0,Y108)), 0,IF(ISERROR(Y108), 0,Y108))), 0,IF(ISERROR(IF(ISERROR(Y108), 0,Y108)), 0,IF(ISERROR(Y108), 0,Y108))) -> 0 | G109: =IF(ISERROR(IF(ISERROR(IF(ISERROR(AB108), 0,AB108)), 0,IF(ISERROR(AB108), 0,AB108))), 0,IF(ISERROR(IF(ISERROR(AB108), 0,AB108)), 0,IF(ISERROR(AB108), 0,AB108))) -> 0 | H109: =IF(ISERROR(IF(ISERROR(IF(ISERROR($E$10-G109), 0,$E$10-G109)), 0,IF(ISERROR($E$10-G109), 0,$E$10-G109))), 0,IF(ISERROR(IF(ISERROR($E$10-G109), 0,$E$10-G109)), 0,IF(ISERROR($E$10-G109), 0,$E$10-G109))) -> 0.4 | J109: =IF(ISERROR(IF(ISERROR(AB109), 0,AB109)), 0,IF(ISERROR(AB109), 0,AB109)) -> 0 | K109: =IF(ISERROR(IF(ISERROR(ROUND($E$10-J109,3)), 0,ROUND($E$10-J109,3))), 0,IF(ISERROR(ROUND($E$10-J109,3)), 0,ROUND($E$10-J109,3))) -> 0.4 | M109: =IF(ISERROR(IF(ISERROR(IF(ISERROR(IF(ISERROR(AB110), 0,AB110)), 0,IF(ISERROR(AB110), 0,AB110))), 0,IF(ISERROR(IF(ISERROR(AB110), 0,AB110)), 0,IF(ISERROR(AB110), 0,AB110)))), 0,IF(ISERROR(IF(ISERROR(IF(ISERROR(AB110), 0,AB110)), 0,IF(ISERROR(AB110), 0,AB110))), 0,IF(ISERROR(IF(ISERROR(AB110), 0,AB110)), 0,IF(ISERROR(AB110), 0,AB110)))) -> 0 | N109: =IF(ISERROR(IF(ISERROR(IF(ISERROR(IF(ISERROR($E$10-M109), 0,$E$10-M109)), 0,IF(ISERROR($E$10-M109), 0,$E$10-M109))), 0,IF(ISERROR(IF(ISERROR($E$10-M109), 0,$E$10-M109)), 0,IF(ISERROR($E$10-M109), 0,$E$10-M109)))), 0,IF(ISERROR(IF(ISERROR(IF(ISERROR($E$10-M109), 0,$E$10-M109)), 0,IF(ISERROR($E$10-M109), 0,$E$10-M109))), 0,IF(ISERROR(IF(ISERROR($E$10-M109), 0,$E$10-M109)), 0,IF(ISERROR($E$10-M109), 0,$E$10-M109)))) -> 0.4 | O109: =A110 -> 267.5 | P109: =I109 -> 0 | Q109: =IF(ISERROR(IF(ISERROR(IF(AC108=W108,Q108+(AC108/T108),Q108+(AD108/T108))), 0,IF(AC108=W108,Q108+(AC108/T108),Q108+(AD108/T108)))), 0,IF(ISERROR(IF(AC108=W108,Q108+(AC108/T108),Q108+(AD108/T108))), 0,IF(AC108=W108,Q108+(AC108/T108),Q108+(AD108/T108)))) -> 0 | R109: =D109 -> 51 | S109: =IF(ISERROR(IF(ISERROR(Q109-R109), 0,Q109-R109)), 0,IF(ISERROR(Q109-R109), 0,Q109-R109)) -> -51 | T109: 0 | U109: =IF(ISERROR(IF(ISERROR(S109*T109), 0,S109*T109)), 0,IF(ISERROR(S109*T109), 0,S109*T109)) -> 0 | V109: 0 | W109: 14.2 | X109: 0.4 | Y109: =IF(ISERROR(IF(ISERROR(ABS(U109)), 0,ABS(U109))), 0,IF(ISERROR(ABS(U109)), 0,ABS(U109))) -> 0 | Z109: 0.15 | AA109: =IF(ISERROR(IF(ISERROR(ABS((Y109*X109)/W109)), 0,ABS((Y109*X109)/W109))), 0,IF(ISERROR(ABS((Y109*X109)/W109)), 0,ABS((Y109*X109)/W109))) -> 0 | AB109: =IF(ISERROR(IF(ISERROR(IF(AA109>Z109,Z109,AA109)), 0,IF(AA109>Z109,Z109,AA109))), 0,IF(ISERROR(IF(AA109>Z109,Z109,AA109)), 0,IF(AA109>Z109,Z109,AA109))) -> 0 | AC109: =IF(ISERROR(IF(ISERROR(IF(Y109>W109,W109,Y109)), 0,IF(Y109>W109,W109,Y109))), 0,IF(ISERROR(IF(Y109>W109,W109,Y109)), 0,IF(Y109>W109,W109,Y109))) -> 0 | AD109: =IF(ISERROR((AC109*AB109)/AA109), 0,(AC109*AB109)/AA109) -> 0 | AE109: =IF(ISERROR(IF(ISERROR(IF(AC109=W109,0,(AC109*AB109)/AA109)), 0,IF(AC109=W109,0,(AC109*AB109)/AA109))), 0,IF(ISERROR(IF(AC109=W109,0,(AC109*AB109)/AA109)), 0,IF(AC109=W109,0,(AC109*AB109)/AA109))) -> 0 | AF109: =IF(ISERROR(IF(AC109=60,Q109+(AC109/T109),Q109+(AD109/T109))), 0,IF(AC109=60,Q109+(AC109/T109),Q109+(AD109/T109))) -> 0
A110: =R312 -> 267.5 | B110: =IF(AND(C109<D109, E109>$E$7),"Ignore Drill Out Lead 1; rather pop out Lead 1 and LEAVE lead # 2 to "&K109&" inches.","") ->  | N110: =IF(ISERROR(IF(ISERROR((G109+J109+M109)/$E$10*$E$7), 0,(G109+J109+M109)/$E$10*$E$7)), 0,IF(ISERROR((G109+J109+M109)/$E$10*$E$7), 0,(G109+J109+M109)/$E$10*$E$7)) -> 0 | O110: =A110 -> 267.5 | P110: =L109 -> 0 | Q110: =IF(ISERROR(IF(AC109=W109,Q109+(AC109/T109),Q109+(AD109/T109))), 0,IF(AC109=W109,Q109+(AC109/T109),Q109+(AD109/T109))) -> 0 | R110: =D109 -> 51 | S110: =IF(ISERROR(Q110-R110), 0,Q110-R110) -> -51 | T110: 0 | U110: =IF(ISERROR(IF(ISERROR(IF(ISERROR(IF(ISERROR(S110*T110), 0,S110*T110)), 0,IF(ISERROR(S110*T110), 0,S110*T110))), 0,IF(ISERROR(IF(ISERROR(S110*T110), 0,S110*T110)), 0,IF(ISERROR(S110*T110), 0,S110*T110)))), 0,IF(ISERROR(IF(ISERROR(IF(ISERROR(S110*T110), 0,S110*T110)), 0,IF(ISERROR(S110*T110), 0,S110*T110))), 0,IF(ISERROR(IF(ISERROR(S110*T110), 0,S110*T110)), 0,IF(ISERROR(S110*T110), 0,S110*T110)))) -> 0 | V110: 0 | W110: 14.2 | X110: 0.4 | Y110: =IF(ISERROR(IF(ISERROR(IF(ISERROR(ABS(U110)), 0,ABS(U110))), 0,IF(ISERROR(ABS(U110)), 0,ABS(U110)))), 0,IF(ISERROR(IF(ISERROR(ABS(U110)), 0,ABS(U110))), 0,IF(ISERROR(ABS(U110)), 0,ABS(U110)))) -> 0 | Z110: 0.15 | AA110: =IF(ISERROR(IF(ISERROR(IF(ISERROR(ABS((Y110*X110)/W110)), 0,ABS((Y110*X110)/W110))), 0,IF(ISERROR(ABS((Y110*X110)/W110)), 0,ABS((Y110*X110)/W110)))), 0,IF(ISERROR(IF(ISERROR(ABS((Y110*X110)/W110)), 0,ABS((Y110*X110)/W110))), 0,IF(ISERROR(ABS((Y110*X110)/W110)), 0,ABS((Y110*X110)/W110)))) -> 0 | AB110: =IF(ISERROR(IF(ISERROR(IF(ISERROR(IF(AA110>Z110,Z110,AA110)), 0,IF(AA110>Z110,Z110,AA110))), 0,IF(ISERROR(IF(AA110>Z110,Z110,AA110)), 0,IF(AA110>Z110,Z110,AA110)))), 0,IF(ISERROR(IF(ISERROR(IF(AA110>Z110,Z110,AA110)), 0,IF(AA110>Z110,Z110,AA110))), 0,IF(ISERROR(IF(AA110>Z110,Z110,AA110)), 0,IF(AA110>Z110,Z110,AA110)))) -> 0 | AC110: =IF(ISERROR(IF(ISERROR(IF(ISERROR(IF(Y110>W110,W110,Y110)), 0,IF(Y110>W110,W110,Y110))), 0,IF(ISERROR(IF(Y110>W110,W110,Y110)), 0,IF(Y110>W110,W110,Y110)))), 0,IF(ISERROR(IF(ISERROR(IF(Y110>W110,W110,Y110)), 0,IF(Y110>W110,W110,Y110))), 0,IF(ISERROR(IF(Y110>W110,W110,Y110)), 0,IF(Y110>W110,W110,Y110)))) -> 0 | AD110: =IF(ISERROR((AC110*AB110)/AA110), "",(AC110*AB110)/AA110) ->  | AE110: =IF(ISERROR(IF(AC110=W110,0,(AC110*AB110)/AA110)), "",IF(AC110=W110,0,(AC110*AB110)/AA110)) ->  | AF110: =IF(ISERROR(IF(AC110=60,Q110+(AC110/T110),Q110+(AD110/T110))), "",IF(AC110=60,Q110+(AC110/T110),Q110+(AD110/T110))) -> 
C111: Test | D111: Target | F111: 1 | G111: dr_o | H111: Lv_in | I111: 2 | J111: dr_o | K111: Lv_in | L111: 3 | M111: dr_o | N111: Lv_in | O111: =A113 -> 289.9230769 | P111: =F112 -> 0 | Q111: =C112 -> 52 | R111: =D112 -> 51 | S111: =Q111-R111 -> 1 | T111: 0 | U111: =IF(ISERROR(IF(ISERROR(IF(ISERROR(IF(ISERROR(S111*T111), 0,S111*T111)), 0,IF(ISERROR(S111*T111), 0,S111*T111))), 0,IF(ISERROR(IF(ISERROR(S111*T111), 0,S111*T111)), 0,IF(ISERROR(S111*T111), 0,S111*T111)))), 0,IF(ISERROR(IF(ISERROR(IF(ISERROR(S111*T111), 0,S111*T111)), 0,IF(ISERROR(S111*T111), 0,S111*T111))), 0,IF(ISERROR(IF(ISERROR(S111*T111), 0,S111*T111)), 0,IF(ISERROR(S111*T111), 0,S111*T111)))) -> 0 | V111: 0 | W111: 14.2 | X111: 0.4 | Y111: =IF(ISERROR(IF(ISERROR(IF(ISERROR(ABS(U111)), 0,ABS(U111))), 0,IF(ISERROR(ABS(U111)), 0,ABS(U111)))), 0,IF(ISERROR(IF(ISERROR(ABS(U111)), 0,ABS(U111))), 0,IF(ISERROR(ABS(U111)), 0,ABS(U111)))) -> 0 | Z111: 0.15 | AA111: =IF(ISERROR(IF(ISERROR(IF(ISERROR(ABS((Y111*X111)/W111)), 0,ABS((Y111*X111)/W111))), 0,IF(ISERROR(ABS((Y111*X111)/W111)), 0,ABS((Y111*X111)/W111)))), 0,IF(ISERROR(IF(ISERROR(ABS((Y111*X111)/W111)), 0,ABS((Y111*X111)/W111))), 0,IF(ISERROR(ABS((Y111*X111)/W111)), 0,ABS((Y111*X111)/W111)))) -> 0 | AB111: =IF(ISERROR(IF(ISERROR(IF(ISERROR(IF(AA111>Z111,Z111,AA111)), 0,IF(AA111>Z111,Z111,AA111))), 0,IF(ISERROR(IF(AA111>Z111,Z111,AA111)), 0,IF(AA111>Z111,Z111,AA111)))), 0,IF(ISERROR(IF(ISERROR(IF(AA111>Z111,Z111,AA111)), 0,IF(AA111>Z111,Z111,AA111))), 0,IF(ISERROR(IF(AA111>Z111,Z111,AA111)), 0,IF(AA111>Z111,Z111,AA111)))) -> 0 | AC111: =IF(ISERROR(IF(ISERROR(IF(ISERROR(IF(Y111>W111,W111,Y111)), 0,IF(Y111>W111,W111,Y111))), 0,IF(ISERROR(IF(Y111>W111,W111,Y111)), 0,IF(Y111>W111,W111,Y111)))), 0,IF(ISERROR(IF(ISERROR(IF(Y111>W111,W111,Y111)), 0,IF(Y111>W111,W111,Y111))), 0,IF(ISERROR(IF(Y111>W111,W111,Y111)), 0,IF(Y111>W111,W111,Y111)))) -> 0 | AD111: =IF(ISERROR(IF(ISERROR(IF(ISERROR(IF(ISERROR((AC111*AB111)/AA111), 0,(AC111*AB111)/AA111)), 0,IF(ISERROR((AC111*AB111)/AA111), 0,(AC111*AB111)/AA111))), 0,IF(ISERROR(IF(ISERROR((AC111*AB111)/AA111), 0,(AC111*AB111)/AA111)), 0,IF(ISERROR((AC111*AB111)/AA111), 0,(AC111*AB111)/AA111)))), 0,IF(ISERROR(IF(ISERROR(IF(ISERROR((AC111*AB111)/AA111), 0,(AC111*AB111)/AA111)), 0,IF(ISERROR((AC111*AB111)/AA111), 0,(AC111*AB111)/AA111))), 0,IF(ISERROR(IF(ISERROR((AC111*AB111)/AA111), 0,(AC111*AB111)/AA111)), 0,IF(ISERROR((AC111*AB111)/AA111), 0,(AC111*AB111)/AA111)))) -> 0 | AE111: =IF(ISERROR(IF(ISERROR(IF(ISERROR(IF(AC111=W111,0,(AC111*AB111)/AA111)), 0,IF(AC111=W111,0,(AC111*AB111)/AA111))), 0,IF(ISERROR(IF(AC111=W111,0,(AC111*AB111)/AA111)), 0,IF(AC111=W111,0,(AC111*AB111)/AA111)))), 0,IF(ISERROR(IF(ISERROR(IF(AC111=W111,0,(AC111*AB111)/AA111)), 0,IF(AC111=W111,0,(AC111*AB111)/AA111))), 0,IF(ISERROR(IF(AC111=W111,0,(AC111*AB111)/AA111)), 0,IF(AC111=W111,0,(AC111*AB111)/AA111)))) -> 0 | AF111: =IF(ISERROR(IF(ISERROR(IF(AC111=60,Q111+(AC111/T111),Q111+(AD111/T111))), 0,IF(AC111=60,Q111+(AC111/T111),Q111+(AD111/T111)))), 0,IF(ISERROR(IF(AC111=60,Q111+(AC111/T111),Q111+(AD111/T111))), 0,IF(AC111=60,Q111+(AC111/T111),Q111+(AD111/T111)))) -> 0
A112: E | B112: 32 | C112: 52 | D112: 51 | E112: =IF(ISERROR(IF(ISERROR(IF(ISERROR(Y111), 0,Y111)), 0,IF(ISERROR(Y111), 0,Y111))), 0,IF(ISERROR(IF(ISERROR(Y111), 0,Y111)), 0,IF(ISERROR(Y111), 0,Y111))) -> 0 | G112: =IF(ISERROR(IF(ISERROR(IF(ISERROR(AB111), 0,AB111)), 0,IF(ISERROR(AB111), 0,AB111))), 0,IF(ISERROR(IF(ISERROR(AB111), 0,AB111)), 0,IF(ISERROR(AB111), 0,AB111))) -> 0 | H112: =IF(ISERROR(IF(ISERROR(IF(ISERROR($E$10-G112), 0,$E$10-G112)), 0,IF(ISERROR($E$10-G112), 0,$E$10-G112))), 0,IF(ISERROR(IF(ISERROR($E$10-G112), 0,$E$10-G112)), 0,IF(ISERROR($E$10-G112), 0,$E$10-G112))) -> 0.4 | J112: =IF(ISERROR(IF(ISERROR(AB112), 0,AB112)), 0,IF(ISERROR(AB112), 0,AB112)) -> 0 | K112: =IF(ISERROR(IF(ISERROR(ROUND($E$10-J112,3)), 0,ROUND($E$10-J112,3))), 0,IF(ISERROR(ROUND($E$10-J112,3)), 0,ROUND($E$10-J112,3))) -> 0.4 | M112: =IF(ISERROR(AB113), "",AB113) -> 0 | N112: =IF(ISERROR($E$10-M112), "",$E$10-M112) -> 0.4 | O112: =A113 -> 289.9230769 | P112: =I112 -> 0 | Q112: =IF(ISERROR(IF(ISERROR(IF(AC111=W111,Q111+(AC111/T111),Q111+(AD111/T111))), 0,IF(AC111=W111,Q111+(AC111/T111),Q111+(AD111/T111)))), 0,IF(ISERROR(IF(AC111=W111,Q111+(AC111/T111),Q111+(AD111/T111))), 0,IF(AC111=W111,Q111+(AC111/T111),Q111+(AD111/T111)))) -> 0 | R112: =D112 -> 51 | S112: =IF(ISERROR(IF(ISERROR(Q112-R112), 0,Q112-R112)), 0,IF(ISERROR(Q112-R112), 0,Q112-R112)) -> -51 | T112: 0 | U112: =IF(ISERROR(IF(ISERROR(S112*T112), 0,S112*T112)), 0,IF(ISERROR(S112*T112), 0,S112*T112)) -> 0 | V112: 0 | W112: 14.2 | X112: 0.4 | Y112: =IF(ISERROR(IF(ISERROR(ABS(U112)), 0,ABS(U112))), 0,IF(ISERROR(ABS(U112)), 0,ABS(U112))) -> 0 | Z112: 0.15 | AA112: =IF(ISERROR(IF(ISERROR(ABS((Y112*X112)/W112)), 0,ABS((Y112*X112)/W112))), 0,IF(ISERROR(ABS((Y112*X112)/W112)), 0,ABS((Y112*X112)/W112))) -> 0 | AB112: =IF(ISERROR(IF(ISERROR(IF(AA112>Z112,Z112,AA112)), 0,IF(AA112>Z112,Z112,AA112))), 0,IF(ISERROR(IF(AA112>Z112,Z112,AA112)), 0,IF(AA112>Z112,Z112,AA112))) -> 0 | AC112: =IF(ISERROR(IF(ISERROR(IF(Y112>W112,W112,Y112)), 0,IF(Y112>W112,W112,Y112))), 0,IF(ISERROR(IF(Y112>W112,W112,Y112)), 0,IF(Y112>W112,W112,Y112))) -> 0 | AD112: =IF(ISERROR((AC112*AB112)/AA112), "",(AC112*AB112)/AA112) ->  | AE112: =IF(ISERROR(IF(AC112=W112,0,(AC112*AB112)/AA112)), "",IF(AC112=W112,0,(AC112*AB112)/AA112)) ->  | AF112: =IF(ISERROR(IF(AC112=60,Q112+(AC112/T112),Q112+(AD112/T112))), "",IF(AC112=60,Q112+(AC112/T112),Q112+(AD112/T112))) -> 
A113: =F318 -> 289.9230769 | B113: =IF(AND(C112<D112, E112>$E$7),"Ignore Drill Out Lead 1; rather pop out Lead 1 and LEAVE lead # 2 to "&K112&" inches.","") ->  | N113: =IF(ISERROR(IF(ISERROR((G112+J112+M112)/$E$10*$E$7), 0,(G112+J112+M112)/$E$10*$E$7)), 0,IF(ISERROR((G112+J112+M112)/$E$10*$E$7), 0,(G112+J112+M112)/$E$10*$E$7)) -> 0 | O113: =A113 -> 289.9230769 | P113: =L112 -> 0 | Q113: =IF(ISERROR(IF(AC112=W112,Q112+(AC112/T112),Q112+(AD112/T112))), "",IF(AC112=W112,Q112+(AC112/T112),Q112+(AD112/T112))) ->  | R113: =D112 -> 51 | S113: =IF(ISERROR(Q113-R113), 0,Q113-R113) -> 0 | T113: 0 | U113: =IF(ISERROR(S113*T113), "",S113*T113) -> 0 | V113: 0 | W113: 14.2 | X113: 0.4 | Y113: =IF(ISERROR(ABS(U113)), "",ABS(U113)) -> 0 | Z113: 0.15 | AA113: =IF(ISERROR(ABS((Y113*X113)/W113)), "",ABS((Y113*X113)/W113)) -> 0 | AB113: =IF(ISERROR(IF(AA113>Z113,Z113,AA113)), "",IF(AA113>Z113,Z113,AA113)) -> 0 | AC113: =IF(ISERROR(IF(Y113>W113,W113,Y113)), "",IF(Y113>W113,W113,Y113)) -> 0 | AD113: =IF(ISERROR((AC113*AB113)/AA113), "",(AC113*AB113)/AA113) ->  | AE113: =IF(ISERROR(IF(AC113=W113,0,(AC113*AB113)/AA113)), "",IF(AC113=W113,0,(AC113*AB113)/AA113)) ->  | AF113: =IF(ISERROR(IF(AC113=60,Q113+(AC113/T113),Q113+(AD113/T113))), "",IF(AC113=60,Q113+(AC113/T113),Q113+(AD113/T113))) -> 
C114: Test | D114: Target | F114: 1 | G114: dr_o | H114: Lv_in | I114: 2 | J114: dr_o | K114: Lv_in | L114: 3 | M114: dr_o | N114: Lv_in | O114: =A116 -> 288.5576923 | P114: =F115 -> 0 | Q114: =C115 -> 58 | R114: =D115 -> 51 | S114: =IF(ISERROR(Q114-R114), 0,Q114-R114) -> 7 | T114: 0 | U114: =IF(ISERROR(S114*T114), 0,S114*T114) -> 0 | V114: 0 | W114: 14.2 | X114: 0.4 | Y114: =IF(ISERROR(ABS(U114)), 0,ABS(U114)) -> 0 | Z114: 0.15 | AA114: =IF(ISERROR(ABS((Y114*X114)/W114)), 0,ABS((Y114*X114)/W114)) -> 0 | AB114: =IF(ISERROR(IF(AA114>Z114,Z114,AA114)), 0,IF(AA114>Z114,Z114,AA114)) -> 0 | AC114: =IF(ISERROR(IF(Y114>W114,W114,Y114)), 0,IF(Y114>W114,W114,Y114)) -> 0 | AD114: =IF(ISERROR((AC114*AB114)/AA114), 0,(AC114*AB114)/AA114) -> 0 | AE114: =IF(ISERROR(IF(ISERROR(IF(AC114=W114,0,(AC114*AB114)/AA114)), 0,IF(AC114=W114,0,(AC114*AB114)/AA114))), 0,IF(ISERROR(IF(AC114=W114,0,(AC114*AB114)/AA114)), 0,IF(AC114=W114,0,(AC114*AB114)/AA114))) -> 0 | AF114: =IF(ISERROR(IF(AC114=60,Q114+(AC114/T114),Q114+(AD114/T114))), 0,IF(AC114=60,Q114+(AC114/T114),Q114+(AD114/T114))) -> 0
A115: F | B115: 33 | C115: 58 | D115: 51 | E115: =Y114 -> 0 | G115: =AB114 -> 0 | H115: =$E$10-G115 -> 0.4 | J115: =IF(ISERROR(IF(ISERROR(AB115), 0,AB115)), 0,IF(ISERROR(AB115), 0,AB115)) -> 0 | K115: =IF(ISERROR(IF(ISERROR(ROUND($E$10-J115,3)), 0,ROUND($E$10-J115,3))), 0,IF(ISERROR(ROUND($E$10-J115,3)), 0,ROUND($E$10-J115,3))) -> 0.4 | M115: =IF(ISERROR(AB116), "",AB116) -> 0 | N115: =IF(ISERROR($E$10-M115), "",$E$10-M115) -> 0.4 | O115: =A116 -> 288.5576923 | P115: =I115 -> 0 | Q115: =IF(ISERROR(IF(AC114=W114,Q114+(AC114/T114),Q114+(AD114/T114))), 0,IF(AC114=W114,Q114+(AC114/T114),Q114+(AD114/T114))) -> 0 | R115: =D115 -> 51 | S115: =IF(ISERROR(Q115-R115), 0,Q115-R115) -> -51 | T115: 0 | U115: =IF(ISERROR(S115*T115), 0,S115*T115) -> 0 | V115: 0 | W115: 14.2 | X115: 0.4 | Y115: =IF(ISERROR(ABS(U115)), 0,ABS(U115)) -> 0 | Z115: 0.15 | AA115: =IF(ISERROR(ABS((Y115*X115)/W115)), 0,ABS((Y115*X115)/W115)) -> 0 | AB115: =IF(ISERROR(IF(AA115>Z115,Z115,AA115)), 0,IF(AA115>Z115,Z115,AA115)) -> 0 | AC115: =IF(ISERROR(IF(Y115>W115,W115,Y115)), 0,IF(Y115>W115,W115,Y115)) -> 0 | AD115: =IF(ISERROR((AC115*AB115)/AA115), "",(AC115*AB115)/AA115) ->  | AE115: =IF(ISERROR(IF(AC115=W115,0,(AC115*AB115)/AA115)), "",IF(AC115=W115,0,(AC115*AB115)/AA115)) ->  | AF115: =IF(ISERROR(IF(AC115=60,Q115+(AC115/T115),Q115+(AD115/T115))), "",IF(AC115=60,Q115+(AC115/T115),Q115+(AD115/T115))) -> 
A116: =F319 -> 288.5576923 | B116: =IF(AND(C115<D115, E115>$E$7),"Ignore Drill Out Lead 1; rather pop out Lead 1 and LEAVE lead # 2 to "&K115&" inches.","") ->  | N116: =IF(ISERROR(IF(ISERROR((G115+J115+M115)/$E$10*$E$7), 0,(G115+J115+M115)/$E$10*$E$7)), 0,IF(ISERROR((G115+J115+M115)/$E$10*$E$7), 0,(G115+J115+M115)/$E$10*$E$7)) -> 0 | O116: =A116 -> 288.5576923 | P116: =L115 -> 0 | Q116: =IF(ISERROR(IF(AC115=W115,Q115+(AC115/T115),Q115+(AD115/T115))), "",IF(AC115=W115,Q115+(AC115/T115),Q115+(AD115/T115))) ->  | R116: =D115 -> 51 | S116: =IF(ISERROR(Q116-R116), 0,Q116-R116) -> 0 | T116: 0 | U116: =IF(ISERROR(S116*T116), "",S116*T116) -> 0 | V116: 0 | W116: 14.2 | X116: 0.4 | Y116: =IF(ISERROR(ABS(U116)), "",ABS(U116)) -> 0 | Z116: 0.15 | AA116: =IF(ISERROR(ABS((Y116*X116)/W116)), "",ABS((Y116*X116)/W116)) -> 0 | AB116: =IF(ISERROR(IF(AA116>Z116,Z116,AA116)), "",IF(AA116>Z116,Z116,AA116)) -> 0 | AC116: =IF(ISERROR(IF(Y116>W116,W116,Y116)), "",IF(Y116>W116,W116,Y116)) -> 0 | AD116: =IF(ISERROR((AC116*AB116)/AA116), "",(AC116*AB116)/AA116) ->  | AE116: =IF(ISERROR(IF(AC116=W116,0,(AC116*AB116)/AA116)), "",IF(AC116=W116,0,(AC116*AB116)/AA116)) ->  | AF116: =IF(ISERROR(IF(AC116=60,Q116+(AC116/T116),Q116+(AD116/T116))), "",IF(AC116=60,Q116+(AC116/T116),Q116+(AD116/T116))) -> 
C117: Test | D117: Target | F117: 1 | G117: dr_o | H117: Lv_in | I117: 2 | J117: dr_o | K117: Lv_in | L117: 3 | M117: dr_o | N117: Lv_in | O117: =A119 -> 266.5 | P117: =F118 -> 0 | Q117: =C118 -> 62 | R117: =D118 -> 51 | S117: =Q117-R117 -> 11 | T117: 0 | U117: =IF(ISERROR(IF(ISERROR(IF(ISERROR(IF(ISERROR(S117*T117), 0,S117*T117)), 0,IF(ISERROR(S117*T117), 0,S117*T117))), 0,IF(ISERROR(IF(ISERROR(S117*T117), 0,S117*T117)), 0,IF(ISERROR(S117*T117), 0,S117*T117)))), 0,IF(ISERROR(IF(ISERROR(IF(ISERROR(S117*T117), 0,S117*T117)), 0,IF(ISERROR(S117*T117), 0,S117*T117))), 0,IF(ISERROR(IF(ISERROR(S117*T117), 0,S117*T117)), 0,IF(ISERROR(S117*T117), 0,S117*T117)))) -> 0 | V117: 0 | W117: 14.2 | X117: 0.4 | Y117: =IF(ISERROR(IF(ISERROR(IF(ISERROR(ABS(U117)), 0,ABS(U117))), 0,IF(ISERROR(ABS(U117)), 0,ABS(U117)))), 0,IF(ISERROR(IF(ISERROR(ABS(U117)), 0,ABS(U117))), 0,IF(ISERROR(ABS(U117)), 0,ABS(U117)))) -> 0 | Z117: 0.15 | AA117: =IF(ISERROR(IF(ISERROR(IF(ISERROR(ABS((Y117*X117)/W117)), 0,ABS((Y117*X117)/W117))), 0,IF(ISERROR(ABS((Y117*X117)/W117)), 0,ABS((Y117*X117)/W117)))), 0,IF(ISERROR(IF(ISERROR(ABS((Y117*X117)/W117)), 0,ABS((Y117*X117)/W117))), 0,IF(ISERROR(ABS((Y117*X117)/W117)), 0,ABS((Y117*X117)/W117)))) -> 0 | AB117: =IF(ISERROR(IF(ISERROR(IF(ISERROR(IF(AA117>Z117,Z117,AA117)), 0,IF(AA117>Z117,Z117,AA117))), 0,IF(ISERROR(IF(AA117>Z117,Z117,AA117)), 0,IF(AA117>Z117,Z117,AA117)))), 0,IF(ISERROR(IF(ISERROR(IF(AA117>Z117,Z117,AA117)), 0,IF(AA117>Z117,Z117,AA117))), 0,IF(ISERROR(IF(AA117>Z117,Z117,AA117)), 0,IF(AA117>Z117,Z117,AA117)))) -> 0 | AC117: =IF(ISERROR(IF(ISERROR(IF(ISERROR(IF(Y117>W117,W117,Y117)), 0,IF(Y117>W117,W117,Y117))), 0,IF(ISERROR(IF(Y117>W117,W117,Y117)), 0,IF(Y117>W117,W117,Y117)))), 0,IF(ISERROR(IF(ISERROR(IF(Y117>W117,W117,Y117)), 0,IF(Y117>W117,W117,Y117))), 0,IF(ISERROR(IF(Y117>W117,W117,Y117)), 0,IF(Y117>W117,W117,Y117)))) -> 0 | AD117: =IF(ISERROR(IF(ISERROR(IF(ISERROR(IF(ISERROR((AC117*AB117)/AA117), 0,(AC117*AB117)/AA117)), 0,IF(ISERROR((AC117*AB117)/AA117), 0,(AC117*AB117)/AA117))), 0,IF(ISERROR(IF(ISERROR((AC117*AB117)/AA117), 0,(AC117*AB117)/AA117)), 0,IF(ISERROR((AC117*AB117)/AA117), 0,(AC117*AB117)/AA117)))), 0,IF(ISERROR(IF(ISERROR(IF(ISERROR((AC117*AB117)/AA117), 0,(AC117*AB117)/AA117)), 0,IF(ISERROR((AC117*AB117)/AA117), 0,(AC117*AB117)/AA117))), 0,IF(ISERROR(IF(ISERROR((AC117*AB117)/AA117), 0,(AC117*AB117)/AA117)), 0,IF(ISERROR((AC117*AB117)/AA117), 0,(AC117*AB117)/AA117)))) -> 0 | AE117: =IF(ISERROR(IF(ISERROR(IF(ISERROR(IF(AC117=W117,0,(AC117*AB117)/AA117)), 0,IF(AC117=W117,0,(AC117*AB117)/AA117))), 0,IF(ISERROR(IF(AC117=W117,0,(AC117*AB117)/AA117)), 0,IF(AC117=W117,0,(AC117*AB117)/AA117)))), 0,IF(ISERROR(IF(ISERROR(IF(AC117=W117,0,(AC117*AB117)/AA117)), 0,IF(AC117=W117,0,(AC117*AB117)/AA117))), 0,IF(ISERROR(IF(AC117=W117,0,(AC117*AB117)/AA117)), 0,IF(AC117=W117,0,(AC117*AB117)/AA117)))) -> 0 | AF117: =IF(ISERROR(IF(ISERROR(IF(AC117=60,Q117+(AC117/T117),Q117+(AD117/T117))), 0,IF(AC117=60,Q117+(AC117/T117),Q117+(AD117/T117)))), 0,IF(ISERROR(IF(AC117=60,Q117+(AC117/T117),Q117+(AD117/T117))), 0,IF(AC117=60,Q117+(AC117/T117),Q117+(AD117/T117)))) -> 0
A118: F# | B118: 34 | C118: 62 | D118: 51 | E118: =IF(ISERROR(IF(ISERROR(IF(ISERROR(Y117), 0,Y117)), 0,IF(ISERROR(Y117), 0,Y117))), 0,IF(ISERROR(IF(ISERROR(Y117), 0,Y117)), 0,IF(ISERROR(Y117), 0,Y117))) -> 0 | G118: =IF(ISERROR(IF(ISERROR(IF(ISERROR(AB117), 0,AB117)), 0,IF(ISERROR(AB117), 0,AB117))), 0,IF(ISERROR(IF(ISERROR(AB117), 0,AB117)), 0,IF(ISERROR(AB117), 0,AB117))) -> 0 | H118: =IF(ISERROR(IF(ISERROR(IF(ISERROR($E$10-G118), 0,$E$10-G118)), 0,IF(ISERROR($E$10-G118), 0,$E$10-G118))), 0,IF(ISERROR(IF(ISERROR($E$10-G118), 0,$E$10-G118)), 0,IF(ISERROR($E$10-G118), 0,$E$10-G118))) -> 0.4 | J118: =IF(ISERROR(IF(ISERROR(AB118), 0,AB118)), 0,IF(ISERROR(AB118), 0,AB118)) -> 0 | K118: =IF(ISERROR(IF(ISERROR(ROUND($E$10-J118,3)), 0,ROUND($E$10-J118,3))), 0,IF(ISERROR(ROUND($E$10-J118,3)), 0,ROUND($E$10-J118,3))) -> 0.4 | M118: =IF(ISERROR(AB119), "",AB119) -> 0 | N118: =IF(ISERROR($E$10-M118), "",$E$10-M118) -> 0.4 | O118: =A119 -> 266.5 | P118: =I118 -> 0 | Q118: =IF(ISERROR(IF(ISERROR(IF(AC117=W117,Q117+(AC117/T117),Q117+(AD117/T117))), 0,IF(AC117=W117,Q117+(AC117/T117),Q117+(AD117/T117)))), 0,IF(ISERROR(IF(AC117=W117,Q117+(AC117/T117),Q117+(AD117/T117))), 0,IF(AC117=W117,Q117+(AC117/T117),Q117+(AD117/T117)))) -> 0 | R118: =D118 -> 51 | S118: =IF(ISERROR(IF(ISERROR(Q118-R118), 0,Q118-R118)), 0,IF(ISERROR(Q118-R118), 0,Q118-R118)) -> -51 | T118: 0 | U118: =IF(ISERROR(IF(ISERROR(S118*T118), 0,S118*T118)), 0,IF(ISERROR(S118*T118), 0,S118*T118)) -> 0 | V118: 0 | W118: 14.2 | X118: 0.4 | Y118: =IF(ISERROR(IF(ISERROR(ABS(U118)), 0,ABS(U118))), 0,IF(ISERROR(ABS(U118)), 0,ABS(U118))) -> 0 | Z118: 0.15 | AA118: =IF(ISERROR(IF(ISERROR(ABS((Y118*X118)/W118)), 0,ABS((Y118*X118)/W118))), 0,IF(ISERROR(ABS((Y118*X118)/W118)), 0,ABS((Y118*X118)/W118))) -> 0 | AB118: =IF(ISERROR(IF(ISERROR(IF(AA118>Z118,Z118,AA118)), 0,IF(AA118>Z118,Z118,AA118))), 0,IF(ISERROR(IF(AA118>Z118,Z118,AA118)), 0,IF(AA118>Z118,Z118,AA118))) -> 0 | AC118: =IF(ISERROR(IF(ISERROR(IF(Y118>W118,W118,Y118)), 0,IF(Y118>W118,W118,Y118))), 0,IF(ISERROR(IF(Y118>W118,W118,Y118)), 0,IF(Y118>W118,W118,Y118))) -> 0 | AD118: =IF(ISERROR((AC118*AB118)/AA118), "",(AC118*AB118)/AA118) ->  | AE118: =IF(ISERROR(IF(AC118=W118,0,(AC118*AB118)/AA118)), "",IF(AC118=W118,0,(AC118*AB118)/AA118)) ->  | AF118: =IF(ISERROR(IF(AC118=60,Q118+(AC118/T118),Q118+(AD118/T118))), "",IF(AC118=60,Q118+(AC118/T118),Q118+(AD118/T118))) -> 
A119: =R313 -> 266.5 | B119: =IF(AND(C118<D118, E118>$E$7),"Ignore Drill Out Lead 1; rather pop out Lead 1 and LEAVE lead # 2 to "&K118&" inches.","") ->  | N119: =IF(ISERROR(IF(ISERROR((G118+J118+M118)/$E$10*$E$7), 0,(G118+J118+M118)/$E$10*$E$7)), 0,IF(ISERROR((G118+J118+M118)/$E$10*$E$7), 0,(G118+J118+M118)/$E$10*$E$7)) -> 0 | O119: =A119 -> 266.5 | P119: =L118 -> 0 | Q119: =IF(ISERROR(IF(AC118=W118,Q118+(AC118/T118),Q118+(AD118/T118))), "",IF(AC118=W118,Q118+(AC118/T118),Q118+(AD118/T118))) ->  | R119: =D118 -> 51 | S119: =IF(ISERROR(Q119-R119), 0,Q119-R119) -> 0 | T119: 0 | U119: =IF(ISERROR(S119*T119), "",S119*T119) -> 0 | V119: 0 | W119: 14.2 | X119: 0.4 | Y119: =IF(ISERROR(ABS(U119)), "",ABS(U119)) -> 0 | Z119: 0.15 | AA119: =IF(ISERROR(ABS((Y119*X119)/W119)), "",ABS((Y119*X119)/W119)) -> 0 | AB119: =IF(ISERROR(IF(AA119>Z119,Z119,AA119)), "",IF(AA119>Z119,Z119,AA119)) -> 0 | AC119: =IF(ISERROR(IF(Y119>W119,W119,Y119)), "",IF(Y119>W119,W119,Y119)) -> 0 | AD119: =IF(ISERROR((AC119*AB119)/AA119), "",(AC119*AB119)/AA119) ->  | AE119: =IF(ISERROR(IF(AC119=W119,0,(AC119*AB119)/AA119)), "",IF(AC119=W119,0,(AC119*AB119)/AA119)) ->  | AF119: =IF(ISERROR(IF(AC119=60,Q119+(AC119/T119),Q119+(AD119/T119))), "",IF(AC119=60,Q119+(AC119/T119),Q119+(AD119/T119))) -> 
C120: Test | D120: Target | F120: 1 | G120: dr_o | H120: Lv_in | I120: 2 | J120: dr_o | K120: Lv_in | L120: 3 | M120: dr_o | N120: Lv_in | O120: =A122 -> 287.1923077 | P120: =F121 -> 0 | Q120: =C121 -> 54 | R120: =D121 -> 51 | S120: =Q120-R120 -> 3 | T120: 0 | U120: =IF(ISERROR(IF(ISERROR(IF(ISERROR(IF(ISERROR(S120*T120), 0,S120*T120)), 0,IF(ISERROR(S120*T120), 0,S120*T120))), 0,IF(ISERROR(IF(ISERROR(S120*T120), 0,S120*T120)), 0,IF(ISERROR(S120*T120), 0,S120*T120)))), 0,IF(ISERROR(IF(ISERROR(IF(ISERROR(S120*T120), 0,S120*T120)), 0,IF(ISERROR(S120*T120), 0,S120*T120))), 0,IF(ISERROR(IF(ISERROR(S120*T120), 0,S120*T120)), 0,IF(ISERROR(S120*T120), 0,S120*T120)))) -> 0 | V120: 0 | W120: 14.2 | X120: 0.4 | Y120: =IF(ISERROR(IF(ISERROR(IF(ISERROR(ABS(U120)), 0,ABS(U120))), 0,IF(ISERROR(ABS(U120)), 0,ABS(U120)))), 0,IF(ISERROR(IF(ISERROR(ABS(U120)), 0,ABS(U120))), 0,IF(ISERROR(ABS(U120)), 0,ABS(U120)))) -> 0 | Z120: 0.15 | AA120: =IF(ISERROR(IF(ISERROR(IF(ISERROR(ABS((Y120*X120)/W120)), 0,ABS((Y120*X120)/W120))), 0,IF(ISERROR(ABS((Y120*X120)/W120)), 0,ABS((Y120*X120)/W120)))), 0,IF(ISERROR(IF(ISERROR(ABS((Y120*X120)/W120)), 0,ABS((Y120*X120)/W120))), 0,IF(ISERROR(ABS((Y120*X120)/W120)), 0,ABS((Y120*X120)/W120)))) -> 0 | AB120: =IF(ISERROR(IF(ISERROR(IF(ISERROR(IF(AA120>Z120,Z120,AA120)), 0,IF(AA120>Z120,Z120,AA120))), 0,IF(ISERROR(IF(AA120>Z120,Z120,AA120)), 0,IF(AA120>Z120,Z120,AA120)))), 0,IF(ISERROR(IF(ISERROR(IF(AA120>Z120,Z120,AA120)), 0,IF(AA120>Z120,Z120,AA120))), 0,IF(ISERROR(IF(AA120>Z120,Z120,AA120)), 0,IF(AA120>Z120,Z120,AA120)))) -> 0 | AC120: =IF(ISERROR(IF(ISERROR(IF(ISERROR(IF(Y120>W120,W120,Y120)), 0,IF(Y120>W120,W120,Y120))), 0,IF(ISERROR(IF(Y120>W120,W120,Y120)), 0,IF(Y120>W120,W120,Y120)))), 0,IF(ISERROR(IF(ISERROR(IF(Y120>W120,W120,Y120)), 0,IF(Y120>W120,W120,Y120))), 0,IF(ISERROR(IF(Y120>W120,W120,Y120)), 0,IF(Y120>W120,W120,Y120)))) -> 0 | AD120: =IF(ISERROR(IF(ISERROR(IF(ISERROR(IF(ISERROR((AC120*AB120)/AA120), 0,(AC120*AB120)/AA120)), 0,IF(ISERROR((AC120*AB120)/AA120), 0,(AC120*AB120)/AA120))), 0,IF(ISERROR(IF(ISERROR((AC120*AB120)/AA120), 0,(AC120*AB120)/AA120)), 0,IF(ISERROR((AC120*AB120)/AA120), 0,(AC120*AB120)/AA120)))), 0,IF(ISERROR(IF(ISERROR(IF(ISERROR((AC120*AB120)/AA120), 0,(AC120*AB120)/AA120)), 0,IF(ISERROR((AC120*AB120)/AA120), 0,(AC120*AB120)/AA120))), 0,IF(ISERROR(IF(ISERROR((AC120*AB120)/AA120), 0,(AC120*AB120)/AA120)), 0,IF(ISERROR((AC120*AB120)/AA120), 0,(AC120*AB120)/AA120)))) -> 0 | AE120: =IF(ISERROR(IF(ISERROR(IF(ISERROR(IF(AC120=W120,0,(AC120*AB120)/AA120)), 0,IF(AC120=W120,0,(AC120*AB120)/AA120))), 0,IF(ISERROR(IF(AC120=W120,0,(AC120*AB120)/AA120)), 0,IF(AC120=W120,0,(AC120*AB120)/AA120)))), 0,IF(ISERROR(IF(ISERROR(IF(AC120=W120,0,(AC120*AB120)/AA120)), 0,IF(AC120=W120,0,(AC120*AB120)/AA120))), 0,IF(ISERROR(IF(AC120=W120,0,(AC120*AB120)/AA120)), 0,IF(AC120=W120,0,(AC120*AB120)/AA120)))) -> 0 | AF120: =IF(ISERROR(IF(ISERROR(IF(AC120=60,Q120+(AC120/T120),Q120+(AD120/T120))), 0,IF(AC120=60,Q120+(AC120/T120),Q120+(AD120/T120)))), 0,IF(ISERROR(IF(AC120=60,Q120+(AC120/T120),Q120+(AD120/T120))), 0,IF(AC120=60,Q120+(AC120/T120),Q120+(AD120/T120)))) -> 0
A121: G | B121: 35 | C121: 54 | D121: 51 | E121: =IF(ISERROR(IF(ISERROR(IF(ISERROR(Y120), 0,Y120)), 0,IF(ISERROR(Y120), 0,Y120))), 0,IF(ISERROR(IF(ISERROR(Y120), 0,Y120)), 0,IF(ISERROR(Y120), 0,Y120))) -> 0 | G121: =IF(ISERROR(IF(ISERROR(IF(ISERROR(AB120), 0,AB120)), 0,IF(ISERROR(AB120), 0,AB120))), 0,IF(ISERROR(IF(ISERROR(AB120), 0,AB120)), 0,IF(ISERROR(AB120), 0,AB120))) -> 0 | H121: =IF(ISERROR(IF(ISERROR(IF(ISERROR($E$10-G121), 0,$E$10-G121)), 0,IF(ISERROR($E$10-G121), 0,$E$10-G121))), 0,IF(ISERROR(IF(ISERROR($E$10-G121), 0,$E$10-G121)), 0,IF(ISERROR($E$10-G121), 0,$E$10-G121))) -> 0.4 | J121: =IF(ISERROR(IF(ISERROR(AB121), 0,AB121)), 0,IF(ISERROR(AB121), 0,AB121)) -> 0 | K121: =IF(ISERROR(IF(ISERROR(ROUND($E$10-J121,3)), 0,ROUND($E$10-J121,3))), 0,IF(ISERROR(ROUND($E$10-J121,3)), 0,ROUND($E$10-J121,3))) -> 0.4 | M121: =IF(ISERROR(AB122), "",AB122) -> 0 | N121: =IF(ISERROR($E$10-M121), "",$E$10-M121) -> 0.4 | O121: =A122 -> 287.1923077 | P121: =I121 -> 0 | Q121: =IF(ISERROR(IF(ISERROR(IF(AC120=W120,Q120+(AC120/T120),Q120+(AD120/T120))), 0,IF(AC120=W120,Q120+(AC120/T120),Q120+(AD120/T120)))), 0,IF(ISERROR(IF(AC120=W120,Q120+(AC120/T120),Q120+(AD120/T120))), 0,IF(AC120=W120,Q120+(AC120/T120),Q120+(AD120/T120)))) -> 0 | R121: =D121 -> 51 | S121: =IF(ISERROR(IF(ISERROR(Q121-R121), 0,Q121-R121)), 0,IF(ISERROR(Q121-R121), 0,Q121-R121)) -> -51 | T121: 0 | U121: =IF(ISERROR(IF(ISERROR(S121*T121), 0,S121*T121)), 0,IF(ISERROR(S121*T121), 0,S121*T121)) -> 0 | V121: 0 | W121: 14.2 | X121: 0.4 | Y121: =IF(ISERROR(IF(ISERROR(ABS(U121)), 0,ABS(U121))), 0,IF(ISERROR(ABS(U121)), 0,ABS(U121))) -> 0 | Z121: 0.15 | AA121: =IF(ISERROR(IF(ISERROR(ABS((Y121*X121)/W121)), 0,ABS((Y121*X121)/W121))), 0,IF(ISERROR(ABS((Y121*X121)/W121)), 0,ABS((Y121*X121)/W121))) -> 0 | AB121: =IF(ISERROR(IF(ISERROR(IF(AA121>Z121,Z121,AA121)), 0,IF(AA121>Z121,Z121,AA121))), 0,IF(ISERROR(IF(AA121>Z121,Z121,AA121)), 0,IF(AA121>Z121,Z121,AA121))) -> 0 | AC121: =IF(ISERROR(IF(ISERROR(IF(Y121>W121,W121,Y121)), 0,IF(Y121>W121,W121,Y121))), 0,IF(ISERROR(IF(Y121>W121,W121,Y121)), 0,IF(Y121>W121,W121,Y121))) -> 0 | AD121: =IF(ISERROR((AC121*AB121)/AA121), "",(AC121*AB121)/AA121) ->  | AE121: =IF(ISERROR(IF(AC121=W121,0,(AC121*AB121)/AA121)), "",IF(AC121=W121,0,(AC121*AB121)/AA121)) ->  | AF121: =IF(ISERROR(IF(AC121=60,Q121+(AC121/T121),Q121+(AD121/T121))), "",IF(AC121=60,Q121+(AC121/T121),Q121+(AD121/T121))) -> 
A122: =F320 -> 287.1923077 | B122: =IF(AND(C121<D121, E121>$E$7),"Ignore Drill Out Lead 1; rather pop out Lead 1 and LEAVE lead # 2 to "&K121&" inches.","") ->  | N122: =IF(ISERROR(IF(ISERROR((G121+J121+M121)/$E$10*$E$7), 0,(G121+J121+M121)/$E$10*$E$7)), 0,IF(ISERROR((G121+J121+M121)/$E$10*$E$7), 0,(G121+J121+M121)/$E$10*$E$7)) -> 0 | O122: =A122 -> 287.1923077 | P122: =L121 -> 0 | Q122: =IF(ISERROR(IF(AC121=W121,Q121+(AC121/T121),Q121+(AD121/T121))), "",IF(AC121=W121,Q121+(AC121/T121),Q121+(AD121/T121))) ->  | R122: =D121 -> 51 | S122: =IF(ISERROR(Q122-R122), 0,Q122-R122) -> 0 | T122: =IF(ISERROR((O122/P122)), 0,(O122/P122)) -> 0 | U122: =IF(ISERROR(S122*T122), "",S122*T122) -> 0 | V122: =IF(ISERROR(IF(ISERROR(O122/T122), 0,O122/T122)), 0,IF(ISERROR(O122/T122), 0,O122/T122)) -> 0 | W122: 14.2 | X122: 0.4 | Y122: =IF(ISERROR(ABS(U122)), "",ABS(U122)) -> 0 | Z122: 0.15 | AA122: =IF(ISERROR(ABS((Y122*X122)/W122)), "",ABS((Y122*X122)/W122)) -> 0 | AB122: =IF(ISERROR(IF(AA122>Z122,Z122,AA122)), "",IF(AA122>Z122,Z122,AA122)) -> 0 | AC122: =IF(ISERROR(IF(Y122>W122,W122,Y122)), "",IF(Y122>W122,W122,Y122)) -> 0 | AD122: =IF(ISERROR((AC122*AB122)/AA122), "",(AC122*AB122)/AA122) ->  | AE122: =IF(ISERROR(IF(AC122=W122,0,(AC122*AB122)/AA122)), "",IF(AC122=W122,0,(AC122*AB122)/AA122)) ->  | AF122: =IF(ISERROR(IF(AC122=60,Q122+(AC122/T122),Q122+(AD122/T122))), "",IF(AC122=60,Q122+(AC122/T122),Q122+(AD122/T122))) -> 
C123: Test | D123: Target | F123: 1 | G123: dr_o | H123: Lv_in | I123: 2 | J123: dr_o | K123: Lv_in | L123: 3 | M123: dr_o | N123: Lv_in | O123: =A125 -> 265.5 | P123: =F124 -> 0 | Q123: =C124 -> 52 | R123: =D124 -> 51 | S123: =Q123-R123 -> 1 | T123: =IF(ISERROR(IF(ISERROR(IF(ISERROR(IF(ISERROR((O123/P123)), 0,(O123/P123))), 0,IF(ISERROR((O123/P123)), 0,(O123/P123)))), 0,IF(ISERROR(IF(ISERROR((O123/P123)), 0,(O123/P123))), 0,IF(ISERROR((O123/P123)), 0,(O123/P123))))), 0,IF(ISERROR(IF(ISERROR(IF(ISERROR((O123/P123)), 0,(O123/P123))), 0,IF(ISERROR((O123/P123)), 0,(O123/P123)))), 0,IF(ISERROR(IF(ISERROR((O123/P123)), 0,(O123/P123))), 0,IF(ISERROR((O123/P123)), 0,(O123/P123))))) -> 0 | U123: =IF(ISERROR(IF(ISERROR(IF(ISERROR(IF(ISERROR(S123*T123), 0,S123*T123)), 0,IF(ISERROR(S123*T123), 0,S123*T123))), 0,IF(ISERROR(IF(ISERROR(S123*T123), 0,S123*T123)), 0,IF(ISERROR(S123*T123), 0,S123*T123)))), 0,IF(ISERROR(IF(ISERROR(IF(ISERROR(S123*T123), 0,S123*T123)), 0,IF(ISERROR(S123*T123), 0,S123*T123))), 0,IF(ISERROR(IF(ISERROR(S123*T123), 0,S123*T123)), 0,IF(ISERROR(S123*T123), 0,S123*T123)))) -> 0 | V123: =IF(ISERROR(IF(ISERROR(IF(ISERROR(IF(ISERROR(O123/T123), 0,O123/T123)), 0,IF(ISERROR(O123/T123), 0,O123/T123))), 0,IF(ISERROR(IF(ISERROR(O123/T123), 0,O123/T123)), 0,IF(ISERROR(O123/T123), 0,O123/T123)))), 0,IF(ISERROR(IF(ISERROR(IF(ISERROR(O123/T123), 0,O123/T123)), 0,IF(ISERROR(O123/T123), 0,O123/T123))), 0,IF(ISERROR(IF(ISERROR(O123/T123), 0,O123/T123)), 0,IF(ISERROR(O123/T123), 0,O123/T123)))) -> 0 | W123: 14.2 | X123: 0.4 | Y123: =IF(ISERROR(IF(ISERROR(IF(ISERROR(ABS(U123)), 0,ABS(U123))), 0,IF(ISERROR(ABS(U123)), 0,ABS(U123)))), 0,IF(ISERROR(IF(ISERROR(ABS(U123)), 0,ABS(U123))), 0,IF(ISERROR(ABS(U123)), 0,ABS(U123)))) -> 0 | Z123: 0.15 | AA123: =IF(ISERROR(IF(ISERROR(IF(ISERROR(ABS((Y123*X123)/W123)), 0,ABS((Y123*X123)/W123))), 0,IF(ISERROR(ABS((Y123*X123)/W123)), 0,ABS((Y123*X123)/W123)))), 0,IF(ISERROR(IF(ISERROR(ABS((Y123*X123)/W123)), 0,ABS((Y123*X123)/W123))), 0,IF(ISERROR(ABS((Y123*X123)/W123)), 0,ABS((Y123*X123)/W123)))) -> 0 | AB123: =IF(ISERROR(IF(ISERROR(IF(ISERROR(IF(AA123>Z123,Z123,AA123)), 0,IF(AA123>Z123,Z123,AA123))), 0,IF(ISERROR(IF(AA123>Z123,Z123,AA123)), 0,IF(AA123>Z123,Z123,AA123)))), 0,IF(ISERROR(IF(ISERROR(IF(AA123>Z123,Z123,AA123)), 0,IF(AA123>Z123,Z123,AA123))), 0,IF(ISERROR(IF(AA123>Z123,Z123,AA123)), 0,IF(AA123>Z123,Z123,AA123)))) -> 0 | AC123: =IF(ISERROR(IF(ISERROR(IF(ISERROR(IF(Y123>W123,W123,Y123)), 0,IF(Y123>W123,W123,Y123))), 0,IF(ISERROR(IF(Y123>W123,W123,Y123)), 0,IF(Y123>W123,W123,Y123)))), 0,IF(ISERROR(IF(ISERROR(IF(Y123>W123,W123,Y123)), 0,IF(Y123>W123,W123,Y123))), 0,IF(ISERROR(IF(Y123>W123,W123,Y123)), 0,IF(Y123>W123,W123,Y123)))) -> 0 | AD123: =IF(ISERROR(IF(ISERROR(IF(ISERROR(IF(ISERROR((AC123*AB123)/AA123), 0,(AC123*AB123)/AA123)), 0,IF(ISERROR((AC123*AB123)/AA123), 0,(AC123*AB123)/AA123))), 0,IF(ISERROR(IF(ISERROR((AC123*AB123)/AA123), 0,(AC123*AB123)/AA123)), 0,IF(ISERROR((AC123*AB123)/AA123), 0,(AC123*AB123)/AA123)))), 0,IF(ISERROR(IF(ISERROR(IF(ISERROR((AC123*AB123)/AA123), 0,(AC123*AB123)/AA123)), 0,IF(ISERROR((AC123*AB123)/AA123), 0,(AC123*AB123)/AA123))), 0,IF(ISERROR(IF(ISERROR((AC123*AB123)/AA123), 0,(AC123*AB123)/AA123)), 0,IF(ISERROR((AC123*AB123)/AA123), 0,(AC123*AB123)/AA123)))) -> 0 | AE123: =IF(ISERROR(IF(ISERROR(IF(ISERROR(IF(AC123=W123,0,(AC123*AB123)/AA123)), 0,IF(AC123=W123,0,(AC123*AB123)/AA123))), 0,IF(ISERROR(IF(AC123=W123,0,(AC123*AB123)/AA123)), 0,IF(AC123=W123,0,(AC123*AB123)/AA123)))), 0,IF(ISERROR(IF(ISERROR(IF(AC123=W123,0,(AC123*AB123)/AA123)), 0,IF(AC123=W123,0,(AC123*AB123)/AA123))), 0,IF(ISERROR(IF(AC123=W123,0,(AC123*AB123)/AA123)), 0,IF(AC123=W123,0,(AC123*AB123)/AA123)))) -> 0 | AF123: =IF(ISERROR(IF(ISERROR(IF(AC123=60,Q123+(AC123/T123),Q123+(AD123/T123))), 0,IF(AC123=60,Q123+(AC123/T123),Q123+(AD123/T123)))), 0,IF(ISERROR(IF(AC123=60,Q123+(AC123/T123),Q123+(AD123/T123))), 0,IF(AC123=60,Q123+(AC123/T123),Q123+(AD123/T123)))) -> 0
A124: G# | B124: 36 | C124: 52 | D124: 51 | E124: =IF(ISERROR(IF(ISERROR(IF(ISERROR(Y123), 0,Y123)), 0,IF(ISERROR(Y123), 0,Y123))), 0,IF(ISERROR(IF(ISERROR(Y123), 0,Y123)), 0,IF(ISERROR(Y123), 0,Y123))) -> 0 | G124: =IF(ISERROR(IF(ISERROR(IF(ISERROR(AB123), 0,AB123)), 0,IF(ISERROR(AB123), 0,AB123))), 0,IF(ISERROR(IF(ISERROR(AB123), 0,AB123)), 0,IF(ISERROR(AB123), 0,AB123))) -> 0 | H124: =IF(ISERROR(IF(ISERROR(IF(ISERROR($E$10-G124), 0,$E$10-G124)), 0,IF(ISERROR($E$10-G124), 0,$E$10-G124))), 0,IF(ISERROR(IF(ISERROR($E$10-G124), 0,$E$10-G124)), 0,IF(ISERROR($E$10-G124), 0,$E$10-G124))) -> 0.4 | J124: =IF(ISERROR(AB124), "",AB124) -> 0 | K124: =IF(ISERROR(ROUND($E$10-J124,3)), "",ROUND($E$10-J124,3)) -> 0.4 | M124: =IF(ISERROR(AB125), "",AB125) -> 0 | N124: =IF(ISERROR($E$10-M124), "",$E$10-M124) -> 0.4 | O124: =A125 -> 265.5 | P124: =I124 -> 0 | Q124: =IF(ISERROR(IF(ISERROR(IF(AC123=W123,Q123+(AC123/T123),Q123+(AD123/T123))), 0,IF(AC123=W123,Q123+(AC123/T123),Q123+(AD123/T123)))), 0,IF(ISERROR(IF(AC123=W123,Q123+(AC123/T123),Q123+(AD123/T123))), 0,IF(AC123=W123,Q123+(AC123/T123),Q123+(AD123/T123)))) -> 0 | R124: =D124 -> 51 | S124: =IF(ISERROR(IF(ISERROR(Q124-R124), 0,Q124-R124)), 0,IF(ISERROR(Q124-R124), 0,Q124-R124)) -> -51 | T124: =IF(ISERROR(IF(ISERROR(IF(ISERROR(IF(ISERROR((O124/P124)), 0,(O124/P124))), 0,IF(ISERROR((O124/P124)), 0,(O124/P124)))), 0,IF(ISERROR(IF(ISERROR((O124/P124)), 0,(O124/P124))), 0,IF(ISERROR((O124/P124)), 0,(O124/P124))))), 0,IF(ISERROR(IF(ISERROR(IF(ISERROR((O124/P124)), 0,(O124/P124))), 0,IF(ISERROR((O124/P124)), 0,(O124/P124)))), 0,IF(ISERROR(IF(ISERROR((O124/P124)), 0,(O124/P124))), 0,IF(ISERROR((O124/P124)), 0,(O124/P124))))) -> 0 | U124: =IF(ISERROR(IF(ISERROR(S124*T124), 0,S124*T124)), 0,IF(ISERROR(S124*T124), 0,S124*T124)) -> 0 | V124: =IF(ISERROR(IF(ISERROR(IF(ISERROR(IF(ISERROR(O124/T124), 0,O124/T124)), 0,IF(ISERROR(O124/T124), 0,O124/T124))), 0,IF(ISERROR(IF(ISERROR(O124/T124), 0,O124/T124)), 0,IF(ISERROR(O124/T124), 0,O124/T124)))), 0,IF(ISERROR(IF(ISERROR(IF(ISERROR(O124/T124), 0,O124/T124)), 0,IF(ISERROR(O124/T124), 0,O124/T124))), 0,IF(ISERROR(IF(ISERROR(O124/T124), 0,O124/T124)), 0,IF(ISERROR(O124/T124), 0,O124/T124)))) -> 0 | W124: 14.2 | X124: 0.4 | Y124: =IF(ISERROR(IF(ISERROR(ABS(U124)), 0,ABS(U124))), 0,IF(ISERROR(ABS(U124)), 0,ABS(U124))) -> 0 | Z124: 0.15 | AA124: =IF(ISERROR(IF(ISERROR(ABS((Y124*X124)/W124)), 0,ABS((Y124*X124)/W124))), 0,IF(ISERROR(ABS((Y124*X124)/W124)), 0,ABS((Y124*X124)/W124))) -> 0 | AB124: =IF(ISERROR(IF(ISERROR(IF(AA124>Z124,Z124,AA124)), 0,IF(AA124>Z124,Z124,AA124))), 0,IF(ISERROR(IF(AA124>Z124,Z124,AA124)), 0,IF(AA124>Z124,Z124,AA124))) -> 0 | AC124: =IF(ISERROR(IF(ISERROR(IF(Y124>W124,W124,Y124)), 0,IF(Y124>W124,W124,Y124))), 0,IF(ISERROR(IF(Y124>W124,W124,Y124)), 0,IF(Y124>W124,W124,Y124))) -> 0 | AD124: =IF(ISERROR((AC124*AB124)/AA124), "",(AC124*AB124)/AA124) ->  | AE124: =IF(ISERROR(IF(AC124=W124,0,(AC124*AB124)/AA124)), "",IF(AC124=W124,0,(AC124*AB124)/AA124)) ->  | AF124: =IF(ISERROR(IF(AC124=60,Q124+(AC124/T124),Q124+(AD124/T124))), "",IF(AC124=60,Q124+(AC124/T124),Q124+(AD124/T124))) -> 
A125: =R314 -> 265.5 | B125: =IF(AND(C124<D124, E124>$E$7),"Ignore Drill Out Lead 1; rather pop out Lead 1 and LEAVE lead # 2 to "&K124&" inches.","") ->  | N125: =IF(ISERROR(IF(ISERROR((G124+J124+M124)/$E$10*$E$7), 0,(G124+J124+M124)/$E$10*$E$7)), 0,IF(ISERROR((G124+J124+M124)/$E$10*$E$7), 0,(G124+J124+M124)/$E$10*$E$7)) -> 0 | O125: =A125 -> 265.5 | P125: =L124 -> 0 | Q125: =IF(ISERROR(IF(AC124=W124,Q124+(AC124/T124),Q124+(AD124/T124))), "",IF(AC124=W124,Q124+(AC124/T124),Q124+(AD124/T124))) ->  | R125: =D124 -> 51 | S125: =IF(ISERROR(Q125-R125), 0,Q125-R125) -> 0 | T125: =IF(ISERROR(IF(ISERROR(IF(ISERROR((O125/P125)), 0,(O125/P125))), 0,IF(ISERROR((O125/P125)), 0,(O125/P125)))), 0,IF(ISERROR(IF(ISERROR((O125/P125)), 0,(O125/P125))), 0,IF(ISERROR((O125/P125)), 0,(O125/P125)))) -> 0 | U125: =IF(ISERROR(S125*T125), "",S125*T125) -> 0 | V125: =IF(ISERROR(IF(ISERROR(IF(ISERROR(IF(ISERROR(O125/T125), 0,O125/T125)), 0,IF(ISERROR(O125/T125), 0,O125/T125))), 0,IF(ISERROR(IF(ISERROR(O125/T125), 0,O125/T125)), 0,IF(ISERROR(O125/T125), 0,O125/T125)))), 0,IF(ISERROR(IF(ISERROR(IF(ISERROR(O125/T125), 0,O125/T125)), 0,IF(ISERROR(O125/T125), 0,O125/T125))), 0,IF(ISERROR(IF(ISERROR(O125/T125), 0,O125/T125)), 0,IF(ISERROR(O125/T125), 0,O125/T125)))) -> 0 | W125: 14.2 | X125: 0.4 | Y125: =IF(ISERROR(ABS(U125)), "",ABS(U125)) -> 0 | Z125: 0.15 | AA125: =IF(ISERROR(ABS((Y125*X125)/W125)), "",ABS((Y125*X125)/W125)) -> 0 | AB125: =IF(ISERROR(IF(AA125>Z125,Z125,AA125)), "",IF(AA125>Z125,Z125,AA125)) -> 0 | AC125: =IF(ISERROR(IF(Y125>W125,W125,Y125)), "",IF(Y125>W125,W125,Y125)) -> 0 | AD125: =IF(ISERROR((AC125*AB125)/AA125), "",(AC125*AB125)/AA125) ->  | AE125: =IF(ISERROR(IF(AC125=W125,0,(AC125*AB125)/AA125)), "",IF(AC125=W125,0,(AC125*AB125)/AA125)) ->  | AF125: =IF(ISERROR(IF(AC125=60,Q125+(AC125/T125),Q125+(AD125/T125))), "",IF(AC125=60,Q125+(AC125/T125),Q125+(AD125/T125))) -> 
C127: Gram Test | D127: Desired DW | E127: Total Lead to remove | F127: Location mm | G127: Drill Depth Inches | H127: Leave this much lead | I127: Location mm | J127: Depth | K127: Leave this much lead | L127: Location mm | M127: Depth | N127: Leave this much lead | Q127: delta DW | R127: ddw | S127: dif_dw | T127: key_ro | U127: reqd_ld | V127: key_div | W127: slugs | X127: lead_wid | Y127: reqd_ld | Z127: max_drill | AA127: tot_drill | AB127: act_drill | AC127: lead_out | AD127: fac | AE127: slug_rmn | AF127: delta_DW
B128: Key # | C128: DW | D128: DDW | E128: Ld. Out | F128: Lead 1 | G128: Drill Out | H128: LEAVE | I128: 2nd | J128: Drill | K128: LEAVE | L128: 3rd | M128: Drill | N128: LEAVE | O128: =A130 -> 285.8269231 | P128: =F129 -> 0 | Q128: =C129 -> 50 | R128: =D129 -> 50 | S128: =Q128-R128 -> 0 | T128: =IF(ISERROR(IF(ISERROR(IF(ISERROR(IF(ISERROR((O128/P128)), 0,(O128/P128))), 0,IF(ISERROR((O128/P128)), 0,(O128/P128)))), 0,IF(ISERROR(IF(ISERROR((O128/P128)), 0,(O128/P128))), 0,IF(ISERROR((O128/P128)), 0,(O128/P128))))), 0,IF(ISERROR(IF(ISERROR(IF(ISERROR((O128/P128)), 0,(O128/P128))), 0,IF(ISERROR((O128/P128)), 0,(O128/P128)))), 0,IF(ISERROR(IF(ISERROR((O128/P128)), 0,(O128/P128))), 0,IF(ISERROR((O128/P128)), 0,(O128/P128))))) -> 0 | U128: =IF(ISERROR(IF(ISERROR(IF(ISERROR(IF(ISERROR(S128*T128), 0,S128*T128)), 0,IF(ISERROR(S128*T128), 0,S128*T128))), 0,IF(ISERROR(IF(ISERROR(S128*T128), 0,S128*T128)), 0,IF(ISERROR(S128*T128), 0,S128*T128)))), 0,IF(ISERROR(IF(ISERROR(IF(ISERROR(S128*T128), 0,S128*T128)), 0,IF(ISERROR(S128*T128), 0,S128*T128))), 0,IF(ISERROR(IF(ISERROR(S128*T128), 0,S128*T128)), 0,IF(ISERROR(S128*T128), 0,S128*T128)))) -> 0 | V128: =IF(ISERROR(IF(ISERROR(IF(ISERROR(IF(ISERROR(O128/T128), 0,O128/T128)), 0,IF(ISERROR(O128/T128), 0,O128/T128))), 0,IF(ISERROR(IF(ISERROR(O128/T128), 0,O128/T128)), 0,IF(ISERROR(O128/T128), 0,O128/T128)))), 0,IF(ISERROR(IF(ISERROR(IF(ISERROR(O128/T128), 0,O128/T128)), 0,IF(ISERROR(O128/T128), 0,O128/T128))), 0,IF(ISERROR(IF(ISERROR(O128/T128), 0,O128/T128)), 0,IF(ISERROR(O128/T128), 0,O128/T128)))) -> 0 | W128: =$E$7 -> 14.2 | X128: =$E$10 -> 0.4 | Y128: =IF(ISERROR(IF(ISERROR(IF(ISERROR(ABS(U128)), 0,ABS(U128))), 0,IF(ISERROR(ABS(U128)), 0,ABS(U128)))), 0,IF(ISERROR(IF(ISERROR(ABS(U128)), 0,ABS(U128))), 0,IF(ISERROR(ABS(U128)), 0,ABS(U128)))) -> 0 | Z128: =$X$14-$G$11 -> 0.15 | AA128: =IF(ISERROR(IF(ISERROR(IF(ISERROR(ABS((Y128*X128)/W128)), 0,ABS((Y128*X128)/W128))), 0,IF(ISERROR(ABS((Y128*X128)/W128)), 0,ABS((Y128*X128)/W128)))), 0,IF(ISERROR(IF(ISERROR(ABS((Y128*X128)/W128)), 0,ABS((Y128*X128)/W128))), 0,IF(ISERROR(ABS((Y128*X128)/W128)), 0,ABS((Y128*X128)/W128)))) -> 0 | AB128: =IF(ISERROR(IF(ISERROR(IF(ISERROR(IF(AA128>Z128,Z128,AA128)), 0,IF(AA128>Z128,Z128,AA128))), 0,IF(ISERROR(IF(AA128>Z128,Z128,AA128)), 0,IF(AA128>Z128,Z128,AA128)))), 0,IF(ISERROR(IF(ISERROR(IF(AA128>Z128,Z128,AA128)), 0,IF(AA128>Z128,Z128,AA128))), 0,IF(ISERROR(IF(AA128>Z128,Z128,AA128)), 0,IF(AA128>Z128,Z128,AA128)))) -> 0 | AC128: =IF(ISERROR(IF(ISERROR(IF(ISERROR(IF(Y128>W128,W128,Y128)), 0,IF(Y128>W128,W128,Y128))), 0,IF(ISERROR(IF(Y128>W128,W128,Y128)), 0,IF(Y128>W128,W128,Y128)))), 0,IF(ISERROR(IF(ISERROR(IF(Y128>W128,W128,Y128)), 0,IF(Y128>W128,W128,Y128))), 0,IF(ISERROR(IF(Y128>W128,W128,Y128)), 0,IF(Y128>W128,W128,Y128)))) -> 0 | AD128: =IF(ISERROR((AC128*AB128)/AA128), 0,(AC128*AB128)/AA128) -> 0 | AE128: =IF(ISERROR(IF(ISERROR(IF(AC128=W128,0,(AC128*AB128)/AA128)), 0,IF(AC128=W128,0,(AC128*AB128)/AA128))), 0,IF(ISERROR(IF(AC128=W128,0,(AC128*AB128)/AA128)), 0,IF(AC128=W128,0,(AC128*AB128)/AA128))) -> 0 | AF128: =IF(ISERROR(IF(AC128=60,Q128+(AC128/T128),Q128+(AD128/T128))), 0,IF(AC128=60,Q128+(AC128/T128),Q128+(AD128/T128))) -> 0
A129: A | B129: 37 | C129: 50 | D129: 50 | E129: =IF(ISERROR(IF(ISERROR(IF(ISERROR(Y128), 0,Y128)), 0,IF(ISERROR(Y128), 0,Y128))), 0,IF(ISERROR(IF(ISERROR(Y128), 0,Y128)), 0,IF(ISERROR(Y128), 0,Y128))) -> 0 | G129: =IF(ISERROR(IF(ISERROR(IF(ISERROR(AB128), 0,AB128)), 0,IF(ISERROR(AB128), 0,AB128))), 0,IF(ISERROR(IF(ISERROR(AB128), 0,AB128)), 0,IF(ISERROR(AB128), 0,AB128))) -> 0 | H129: =IF(ISERROR(IF(ISERROR(IF(ISERROR($E$10-G129), 0,$E$10-G129)), 0,IF(ISERROR($E$10-G129), 0,$E$10-G129))), 0,IF(ISERROR(IF(ISERROR($E$10-G129), 0,$E$10-G129)), 0,IF(ISERROR($E$10-G129), 0,$E$10-G129))) -> 0.4 | J129: =IF(ISERROR(AB129), "",AB129) -> 0 | K129: =IF(ISERROR(ROUND($E$10-J129,3)), "",ROUND($E$10-J129,3)) -> 0.4 | M129: =IF(ISERROR(AB130), "",AB130) -> 0 | N129: =IF(ISERROR($E$10-M129), "",$E$10-M129) -> 0.4 | O129: =A130 -> 285.8269231 | P129: =I129 -> 0 | Q129: =IF(ISERROR(IF(AC128=W128,Q128+(AC128/T128),Q128+(AD128/T128))), 0,IF(AC128=W128,Q128+(AC128/T128),Q128+(AD128/T128))) -> 0 | R129: =D129 -> 50 | S129: =IF(ISERROR(Q129-R129), 0,Q129-R129) -> -50 | T129: =IF(ISERROR(IF(ISERROR(IF(ISERROR(IF(ISERROR((O129/P129)), 0,(O129/P129))), 0,IF(ISERROR((O129/P129)), 0,(O129/P129)))), 0,IF(ISERROR(IF(ISERROR((O129/P129)), 0,(O129/P129))), 0,IF(ISERROR((O129/P129)), 0,(O129/P129))))), 0,IF(ISERROR(IF(ISERROR(IF(ISERROR((O129/P129)), 0,(O129/P129))), 0,IF(ISERROR((O129/P129)), 0,(O129/P129)))), 0,IF(ISERROR(IF(ISERROR((O129/P129)), 0,(O129/P129))), 0,IF(ISERROR((O129/P129)), 0,(O129/P129))))) -> 0 | U129: =IF(ISERROR(S129*T129), 0,S129*T129) -> 0 | V129: 0 | W129: 14.2 | X129: 0.4 | Y129: =IF(ISERROR(ABS(U129)), 0,ABS(U129)) -> 0 | Z129: 0.15 | AA129: =IF(ISERROR(ABS((Y129*X129)/W129)), 0,ABS((Y129*X129)/W129)) -> 0 | AB129: =IF(ISERROR(IF(AA129>Z129,Z129,AA129)), 0,IF(AA129>Z129,Z129,AA129)) -> 0 | AC129: =IF(ISERROR(IF(Y129>W129,W129,Y129)), 0,IF(Y129>W129,W129,Y129)) -> 0 | AD129: =IF(ISERROR((AC129*AB129)/AA129), "",(AC129*AB129)/AA129) ->  | AE129: =IF(ISERROR(IF(AC129=W129,0,(AC129*AB129)/AA129)), "",IF(AC129=W129,0,(AC129*AB129)/AA129)) ->  | AF129: =IF(ISERROR(IF(AC129=60,Q129+(AC129/T129),Q129+(AD129/T129))), "",IF(AC129=60,Q129+(AC129/T129),Q129+(AD129/T129))) -> 
A130: =F321 -> 285.8269231 | B130: =IF(AND(C129<D129, E129>$E$7),"Ignore Drill Out Lead 1; rather pop out Lead 1 and LEAVE lead # 2 to "&K129&" inches.","") ->  | O130: =A130 -> 285.8269231 | P130: =L129 -> 0 | Q130: =IF(ISERROR(IF(AC129=W129,Q129+(AC129/T129),Q129+(AD129/T129))), "",IF(AC129=W129,Q129+(AC129/T129),Q129+(AD129/T129))) ->  | R130: =D129 -> 50 | S130: =IF(ISERROR(Q130-R130), 0,Q130-R130) -> 0 | T130: =IF(ISERROR(IF(ISERROR(IF(ISERROR((O130/P130)), 0,(O130/P130))), 0,IF(ISERROR((O130/P130)), 0,(O130/P130)))), 0,IF(ISERROR(IF(ISERROR((O130/P130)), 0,(O130/P130))), 0,IF(ISERROR((O130/P130)), 0,(O130/P130)))) -> 0 | U130: =IF(ISERROR(S130*T130), "",S130*T130) -> 0 | V130: 0 | W130: 14.2 | X130: 0.4 | Y130: =IF(ISERROR(ABS(U130)), "",ABS(U130)) -> 0 | Z130: 0.15 | AA130: =IF(ISERROR(ABS((Y130*X130)/W130)), "",ABS((Y130*X130)/W130)) -> 0 | AB130: =IF(ISERROR(IF(AA130>Z130,Z130,AA130)), "",IF(AA130>Z130,Z130,AA130)) -> 0 | AC130: =IF(ISERROR(IF(Y130>W130,W130,Y130)), "",IF(Y130>W130,W130,Y130)) -> 0 | AD130: =IF(ISERROR((AC130*AB130)/AA130), "",(AC130*AB130)/AA130) ->  | AE130: =IF(ISERROR(IF(AC130=W130,0,(AC130*AB130)/AA130)), "",IF(AC130=W130,0,(AC130*AB130)/AA130)) ->  | AF130: =IF(ISERROR(IF(AC130=60,Q130+(AC130/T130),Q130+(AD130/T130))), "",IF(AC130=60,Q130+(AC130/T130),Q130+(AD130/T130))) -> 
